Workbook

Sheet Introduction
A1: Crop Nutrient Response Tool (CNRT)
B3: This evaluation tool was designed to assist in interpretation and record-keeping for on-farm field crop trials involving multiple rates of any added nutrient.
B4: Its main goal is to provide the best possible estimate of "optimum rate" for a single-year response - the maximum rate at which it is profitable to apply a purchased nutrient - from limited data.
B5: The optimum rate is calculated without regard to residual effects on subsequent crops. The analysis is therefore more useful for mobile nutrients like nitrogen and less applicable to soil-retained nutrients like phosphate and potash.
B6: It can also function as a record-keeping tool. The summary worksheet provides a single-row storage for a thousand or more site-years.
B7: For best results, trials should have at least four rates, and one of them should be zero or less than 25% of the highest rate applied.
B8: MERNs are calculated from fitted curves without assessment of statistical significance. The probability that they do not differ from zero is not calculated.
B9: Interpretation should NOT be based on calculated MERN alone. It SHOULD include visual inspection of the relation of the fitted curve to the original data, and knowledge of data reliability.
B10: For computers without the Solver add-in, or if the "Fit" macro will not run, the response curves can be fit manually by tweaking the ABC coefficients for a good visual fit and maximum R-square.
B11: Note that cells with formulas are locked for protection. Password to unprotect is "ipni".
B12: Version 4.5 - May 2013 - assigns a weight of zero to the curve of lowest R-square, 1 to the curve with the highest, and intermediate weights to those in between
B14: Equation Form: | D14: R = price ratio (bushels of grain per pound of fertilizer nutrient); Y = Yield (bu/A); X = Rate of nutrient applied (lb/A)
C15: Quadratic (Q): | D15: Y = A + BX + CXX | K15: MERN = (R-B)/(2C) | O15: A = intercept; B = initial slope; C = curvature
C16: Quadratic Plateau (QP): | D16: Y = A + BX + CXX when X<B/-2C; otherwise Y=A + BB/-2C + BB/4C | K16: MERN = (R-B)/(2C) | O16: A = intercept; B = initial slope; C = curvature
C17: Mitscherlich (M): | D17: Y = A + Bexp(CX) | K17: MERN = (1/C)*ln(R/(B*C)) | O17: A = maximum yield; B = intercept minus maximum; C = curvature
C18: Linear-Plateau (LP): | D18: Y = A + BX when X < (C - A)/B; otherwise Y = C | K18: MERN = (C-A)/B if B>R; else MERN = 0 | O18: A = intercept; B = slope; C = maximum yield
C19: Spherical-plateau (S): | D19: Y = A + B(3X/(2C) - 0.5(X/C)^3) where X < C; otherwise Y = A + B | K19: MERN = SQRT(C^2 - 2*BR*C^3/(3*B)) | O19: A = intercept; B = maximum minus intercept; C = minimum rate for maximum yield
C20: When responses are near linear, the quadratic and linear-plateau models will become close to linear models.
B22: Moisture and Quality of Harvested Crop:
C23: To account for the value of differences in moisture or quality that result among applied rate treatments, convert their cash cost or value into units of yield and make appropriate adjustments to the yield data entered.
B25: Credits: | C25: This spreadsheet was developed by Dr. TW Bruulsema, in consultation with Dr. TS Murrell, IPNI Northcentral Director.
B27: Contact: | C27: Tom Bruulsema, PhD, CCA
C28: Director, Northeast Region, North America Program
C29: International Plant Nutrition Institute
C30: 18 Maplewood Drive
C31: Guelph, Ontario, Canada N1G 1L8
C32: cell: (519) 835-2499
C33: email: Tom.Bruulsema@ipni.net
C34: http://www.ipni.net/cnrt
B38: Lists: these are used for drop-down menus in some of the site information fields.
B40: Previous Crop | F40: Soil Texture | I40: Tillage | L40: Application Timing
B42: Barley | F42: Clay | I42: no-till | L42: preplant surface
B43: Edible Beans | F43: Clay loam | I43: conservation-till | L43: preplant incorporated
B44: Forage <33% legume | F44: Heavy Clay | I44: spring chisel | L44: broadcast preemerge
B45: Forage 30-50% leg | F45: Loam | I45: spring moldboard | L45: sidedress surface
B46: Forage >50% legume | F46: Loamy Sand | I46: fall chisel | L46: sidedress injected
B47: Grain Corn | F47: Sand | I47: fall moldboard | L47: NA
B48: Oats | F48: Sandy Clay | I48: conventional
B49: Silage Corn | F49: Sandy Clay loam | I49: NA
B50: Soybeans | F50: Sandy loam
B51: Wheat | F51: Silt loam
B52: Wheat-clover | F52: Silty Clay
B53: Cereal-clover | F53: Silty Clay loam
B54: NA | F54: NA
B58: References:
B59: Bruulsema, TW, PE Fixen, and CS Snyder. 2004. Fertilizer Nutrient Recovery in Sustainable Cropping Systems.
B60: Snyder, CS, and TW Bruulsema. 2007. Nutrient Use Efficiency and Effectiveness in North America: Indices of Agronomic and Environmental Benefit

Sheet E
B1: Crop Nutrient Response Tool (CNRT) v4.6 comparison mode | H1: R2-weighted Mean
A2: Step 1: Enter rate and yield data. | C2: Fertilizer rate, lb/A | D2: Crop Yield, bu/A | E2: Fertilizer rate, lb/A | F2: Crop Yield, bu/A | H2: A | I2: B
A3: Step 2: Click the Fit button.
A4: Step 3: Adjust crop and fertilizer prices.
A5: Step 4: Click to append information to summary. | C5: 0 | D5: 40 | E5: 0 | F5: 75 | G5: R2: | H5: =AVERAGE(A!G5:K5) -> 0.9962175368 | I5: =AVERAGE(B!G5:K5) -> 0.9973408576
A6: Site Details | C6: 30 | D6: 70 | E6: 30 | F6: 105 | G6: MERN (lb/A): | H6: =A!F6 -> 188.6601003 | I6: =B!F6 -> 165.75183
A7: Site | C7: 90 | D7: 120 | E7: 90 | F7: 155 | G7: Yield @ MERN (bu/A) | H7: =A!F7 -> 168.8891959 | I7: =B!F7 -> 188.3096855
A8: Year | C8: 120 | D8: 140 | E8: 120 | F8: 175 | G8: Partial Factor Productivity (PFP), bu/lb | H8: =A!F8 -> 0.8952035732 | I8: =B!F8 -> 1.136094157
A9: Town | C9: 150 | D9: 160 | E9: 150 | F9: 185 | G9: Agronomic Efficiency (AE), bu/lb | H9: =A!F9 -> 0.6830264189 | I9: =B!F9 -> 0.6837419375
A10: County | C10: 180 | D10: 170 | E10: 180 | F10: =D10+20 -> 190 | G10: Estimated Partial N Balance (PNB), % | H10: =A!F10 -> 0.5818823226 | I10: =B!F10 -> 0.7384612018
A11: State or province | C11: 210 | D11: 171 | E11: 210 | F11: 191 | G11: Estimated Recovery Efficiency (RE), % | H11: =A!F11 -> 0.6666173758 | I11: =B!F11 -> 0.6673157048
C12: 240 | D12: 169 | E12: 240 | F12: 189 | G12: Delta Yield (bu/A) | H12: =A!F12 -> 128.8598327 | I12: =B!F12 -> 113.3314774
A13: A | G13: Relative Yield (%) | H13: =A!F13 -> 0.2370155356 | I13: =B!F13 -> 0.3981643743
A14: B | I14: =B!F14 -> 0
A26: ESSENTIAL INFORMATION
A27: Crop ($/bu) | B27: 4
A28: Fertilizer ($/lb) | B28: 0.5
A29: Price ratio (f/c) | B29: =B28/B27 -> 0.125
A30: Crop nutrient content (lb/bu) | B30: 0.65
A31: Nutrient harvest index | B31: 0.666

Sheet A
B1: Crop Nutrient Response Tool (CNRT) v4.5 | F1: R2-weighted Mean | G1: Quadratic (Q) | H1: Quadratic- Plateau (QP) | I1: Mitscherlich (M) | J1: Linear-Plateau (LP) | K1: Spherical (SP)
A2: Step 1: Enter rate and yield data. | C2: Fertilizer rate, lb/A | D2: Crop Yield, bu/A | E2: A: | G2: 37.96311758 | H2: 38.0958687 | I2: 188.8975439 | J2: 43.72095679 | K2: 40.28930004
A3: Step 2: Click the Fit button. | E3: B: | G3: 1.184065134 | H3: 1.179037737 | I3: -151 | J3: 0.7984482947 | K3: 130.460659
A4: Step 3: Adjust crop and fertilizer prices. | E4: C: | G4: -0.002619138698 | H4: -0.002599097073 | I4: -0.009666607144 | J4: 169.9998471 | K4: 204.1413411
A5: Step 4: Click to append information to summary. | C5: =IF(ISNUMBER(E!C5),E!C5,"") -> 0 | D5: =IF(ISNUMBER(E!D5),E!D5,"") -> 40 | E5: R2: | G5: =IF(ISERROR(1-((SUM('C'!G5:G44)/COUNT('C'!G5:G44))/VAR($D5:$D44))),"no data",1-((SUM('C'!G5:G44)/COUNT('C'!G5:G44))/VAR($D5:$D44))) -> 0.9973900591 | H5: =IF(ISERROR(1-((SUM('C'!H5:H44)/COUNT('C'!H5:H44))/VAR($D5:$D44))),"no data",1-((SUM('C'!H5:H44)/COUNT('C'!H5:H44))/VAR($D5:$D44))) -> 0.9972680335 | I5: =IF(ISERROR(1-((SUM('C'!I5:I44)/COUNT('C'!I5:I44))/VAR($D5:$D44))),"no data",1-((SUM('C'!I5:I44)/COUNT('C'!I5:I44))/VAR($D5:$D44))) -> 0.9898955098 | J5: =IF(ISERROR(1-((SUM('C'!J5:J44)/COUNT('C'!J5:J44))/VAR($D5:$D44))),"no data",1-((SUM('C'!J5:J44)/COUNT('C'!J5:J44))/VAR($D5:$D44))) -> 0.9973572638 | K5: =IF(ISERROR(1-((SUM('C'!K5:K44)/COUNT('C'!K5:K44))/VAR($D5:$D44))),"no data",1-((SUM('C'!K5:K44)/COUNT('C'!K5:K44))/VAR($D5:$D44))) -> 0.9991768176
A6: Site Details | C6: =IF(ISNUMBER(E!C6),E!C6,"") -> 30 | D6: =IF(ISNUMBER(E!D6),E!D6,"") -> 70 | E6: MERN (lb/A): | F6: =IF(AND(ISNUMBER(G5),ISNUMBER(B29),'C'!M53),(G6*'C'!B45+H6*'C'!C45+I6*'C'!D45+J6*'C'!E45+K6*'C'!F45)/SUM('C'!B45:'C'!F45),"NA") -> 188.6601003 | G6: =IF(AND(ISNUMBER(G5),ISNUMBER(B29),'C'!M53),MIN((1+0.1*G5)*MAX($C5:$C44),IF(G4<0,MAX((G3-B29)/(-2*G4),0),IF(G3>B29,MAX($C5:$C44),0))),"NA$") -> 202.178131 | H6: =IF(AND(ISNUMBER(H5),ISNUMBER(B29),'C'!M53),MIN((1+0.1*H5)*MAX($C5:$C44),IF(H4<0,MAX((H3-B29)/(-2*H4),0),IF(H3>B29,MAX($C5:$C44),0))),"NA$") -> 202.7699827 | I6: =IF(AND(ISNUMBER(I5),ISNUMBER(B29),'C'!M53),MIN((1+0.1*I5)*MAX($C5:$C44),MAX((1/I4)*LN(B29/(I3*I4)),0)),"NA$") -> 254.2405465 | J6: =IF(AND(ISNUMBER(J5),ISNUMBER(B29),'C'!M53),MIN((1+0.1*J5)*MAX($C5:$C44),IF(J3>B29,(J4-J2)/J3,0)),"NA$") -> 158.1553761 | K6: =IF(AND(ISNUMBER(K5),ISNUMBER(B29),'C'!M53),IF(ISNUMBER(SQRT(K4^2-2*B29*K4^3/(3*K3))),MIN((1+0.1*K5)*MAX($C5:$C44),SQRT(K4^2-2*B29*K4^3/(3*K3))),0),"NA$") -> 190.3668339
A7: Site | C7: =IF(ISNUMBER(E!C7),E!C7,"") -> 90 | D7: =IF(ISNUMBER(E!D7),E!D7,"") -> 120 | E7: Yield @ MERN (bu/A) | F7: =IF(ISNUMBER(F6),VLOOKUP(F6,'C'!B48:H298,7),"NA") -> 168.8891959 | G7: =IF(ISNUMBER(G6),G2+G3*G6+G4*G6^2,"NA") -> 170.2952887 | H7: =IF(ISNUMBER(H6),H2+H3*H6+H4*H6^2,"NA") -> 170.3057234 | I7: =IF(ISNUMBER(I6),I2+I3*EXP(I6*I4),"NA") -> 175.9664298 | J7: =IF(ISNUMBER(J6),IF(J3>'C'!O22,MIN(J4,J2+J3*J6),J2),"NA") -> 169.9998471 | K7: =IF(AND(ISNUMBER(K6),K6>0),IF(K6<A!K$4,A!K$2+A!K$3*(3*K6/(2*A!K$4)-0.5*(K6/A!K$4)^3),A!K$3+A!K$2),"NA") -> 169.8790326
A8: Year | C8: =IF(ISNUMBER(E!C8),E!C8,"") -> 120 | D8: =IF(ISNUMBER(E!D8),E!D8,"") -> 140 | E8: Partial Factor Productivity (PFP), bu/lb | F8: =IF(ISNUMBER(F7/F6),F7/F6,"NA") -> 0.8952035732 | G8: 0.8423032095 | H8: 0.8398961282 | I8: 0.6921257532 | J8: 1.074891359 | K8: 0.8923772546
A9: Town | C9: =IF(ISNUMBER(E!C9),E!C9,"") -> 150 | D9: =IF(ISNUMBER(E!D9),E!D9,"") -> 160 | E9: Agronomic Efficiency (AE), bu/lb | F9: =IF(ISNUMBER(F12/F6),F12/F6,"NA") -> 0.6830264189 | G9: =IF(ISNUMBER((G7-G2)/G6),(G7-G2)/G6,"NA") -> 0.6545325669 | H9: =IF(ISNUMBER((H7-H2)/H6),(H7-H2)/H6,"NA") -> 0.6520188685 | I9: =IF(ISNUMBER((I7-(I2+I3))/I6),(I7-(I2+I3))/I6,"NA") -> 0.5430639911 | J9: =IF(ISNUMBER((J7-J2)/J6),(J7-J2)/J6,"NA") -> 0.7984482947 | K9: =IF(ISNUMBER((K7-K2)/K6),(K7-K2)/K6,"NA") -> 0.6807369221
A10: County | C10: =IF(ISNUMBER(E!C10),E!C10,"") -> 180 | D10: =IF(ISNUMBER(E!D10),E!D10,"") -> 170 | E10: Estimated Partial N Balance (PNB), % | F10: =IF(AND(F6>0,ISNUMBER(F6)),F7*B30/(F6+B25),"NA") -> 0.5818823226 | G10: =IF(AND(G6>0,ISNUMBER(G6)),G7*$B30/(G6+$B24),"NA") -> 0.5474970862 | H10: =IF(AND(H6>0,ISNUMBER(H6)),H7*$B30/(H6+$B24),"NA") -> 0.5459324833 | I10: =IF(AND(I6>0,ISNUMBER(I6)),I7*$B30/(I6+$B25),"NA") -> 0.4498817396 | J10: =IF(AND(J6>0,ISNUMBER(J6)),J7*B30/(J6+B25),"NA") -> 0.6986793833 | K10: =IF(AND(K6>0,ISNUMBER(K6)),K7*$B30/(K6+$B24),"NA") -> 0.5800452155
A11: State or province | C11: =IF(ISNUMBER(E!C11),E!C11,"") -> 210 | D11: =IF(ISNUMBER(E!D11),E!D11,"") -> 171 | E11: Estimated Recovery Efficiency (RE), % | F11: =IF(AND(F6>0,ISNUMBER(F6)),(F12/F6)*B30*(1/B31),"NA") -> 0.6666173758 | G11: =IF(AND(G6>0,ISNUMBER(G6)),((G7-G2)*$B30*(1/$B31))/G6,"NA") -> 0.6388080608 | H11: =IF(AND(H6>0,ISNUMBER(H6)),((H7-H2)*$B30*(1/$B31))/H6,"NA") -> 0.6363547515 | I11: =IF(AND(I6>0,ISNUMBER(I6)),((I7-(I2+I3))*B30*(1/B31))/I6,"NA") -> 0.5300174087 | J11: =IF(AND(J6>0,ISNUMBER(J6)),J3*B30*(1/B31),"NA") -> 0.7792663537 | K11: =IF(AND(K6>0,ISNUMBER(K6)),((K7-K2)*$B30*(1/$B31))/K6,"NA") -> 0.6643828819
A12: Latitude | C12: =IF(ISNUMBER(E!C12),E!C12,"") -> 240 | D12: =IF(ISNUMBER(E!D12),E!D12,"") -> 169 | E12: Delta Yield (bu/A) | F12: =IF(ISNUMBER(F7),F7-VLOOKUP(0,'C'!B48:H298,7),"NA") -> 128.8598327 | G12: =IF(ISNUMBER(G7),G7-G2,"NA") -> 132.3321711 | H12: =IF(ISNUMBER(H7),H7-H2,"NA") -> 132.2098547 | I12: =IF(ISNUMBER(I7),I7-(I2+I3),"NA") -> 138.0688859 | J12: =IF(ISNUMBER(J7),J7-J2,"NA") -> 126.2788903 | K12: =IF(ISNUMBER(K7),K7-K2,"NA") -> 129.5897326
A13: Longitude | C13: =IF(ISNUMBER(E!C13),E!C13,"") ->  | D13: =IF(ISNUMBER(E!D13),E!D13,"") ->  | E13: Relative Yield (%) | F13: =IF(ISNUMBER(F7),(F7-F12)/F7,"NA") -> 0.2370155356 | G13: =IF(ISNUMBER(G7),G2/G7,"NA") -> 0.222925237 | H13: =IF(ISNUMBER(H7),H2/H7,"NA") -> 0.2236910654 | I13: =IF(ISNUMBER(I7),(I2+I3)/I7,"NA") -> 0.2153680331 | J13: =IF(ISNUMBER(J7),J2/J7,"NA") -> 0.25718233 | K13: =IF(ISNUMBER(K7),K2/K7,"NA") -> 0.2371646425
A14: Altitude | C14: =IF(ISNUMBER(E!C14),E!C14,"") ->  | D14: =IF(ISNUMBER(E!D14),E!D14,"") -> 
A15: Soil texture class | C15: =IF(ISNUMBER(E!C15),E!C15,"") ->  | D15: =IF(ISNUMBER(E!D15),E!D15,"") -> 
A16: Preceding crop | C16: =IF(ISNUMBER(E!C16),E!C16,"") ->  | D16: =IF(ISNUMBER(E!D16),E!D16,"") -> 
A17: Expected Yield (bu/A) | C17: =IF(ISNUMBER(E!C17),E!C17,"") ->  | D17: =IF(ISNUMBER(E!D17),E!D17,"") -> 
A18: Tillage | C18: =IF(ISNUMBER(E!C18),E!C18,"") ->  | D18: =IF(ISNUMBER(E!D18),E!D18,"") -> 
A19: Nutrient Source | C19: =IF(ISNUMBER(E!C19),E!C19,"") ->  | D19: =IF(ISNUMBER(E!D19),E!D19,"") -> 
A20: Nutrient Timing | C20: =IF(ISNUMBER(E!C20),E!C20,"") ->  | D20: =IF(ISNUMBER(E!D20),E!D20,"") -> 
A21: Nutrient Placement | C21: =IF(ISNUMBER(E!C21),E!C21,"") ->  | D21: =IF(ISNUMBER(E!D21),E!D21,"") -> 
A22: Planting date | C22: =IF(ISNUMBER(E!C22),E!C22,"") ->  | D22: =IF(ISNUMBER(E!D22),E!D22,"") -> 
A23: PSNT (ppm) | C23: =IF(ISNUMBER(E!C23),E!C23,"") ->  | D23: =IF(ISNUMBER(E!D23),E!D23,"") -> 
A24: Manure N (lb/A) | C24: =IF(ISNUMBER(E!C24),E!C24,"") ->  | D24: =IF(ISNUMBER(E!D24),E!D24,"") -> 
A25: Harvest date | C25: =IF(ISNUMBER(E!C25),E!C25,"") ->  | D25: =IF(ISNUMBER(E!D25),E!D25,"") -> 
A26: ESSENTIAL INFORMATION | C26: =IF(ISNUMBER(E!C26),E!C26,"") ->  | D26: =IF(ISNUMBER(E!D26),E!D26,"") -> 
A27: Crop ($/bu) | B27: =E!B27 -> 4 | C27: =IF(ISNUMBER(E!C27),E!C27,"") ->  | D27: =IF(ISNUMBER(E!D27),E!D27,"") -> 
A28: Fertilizer ($/lb) | B28: =E!B28 -> 0.5 | C28: =IF(ISNUMBER(E!C28),E!C28,"") ->  | D28: =IF(ISNUMBER(E!D28),E!D28,"") -> 
A29: Price ratio (f/c) | B29: =E!B29 -> 0.125 | C29: =IF(ISNUMBER(E!C29),E!C29,"") ->  | D29: =IF(ISNUMBER(E!D29),E!D29,"") -> 
A30: Crop nutrient content (lb/bu) | B30: =E!B30 -> 0.65 | C30: =IF(ISNUMBER(E!C30),E!C30,"") ->  | D30: =IF(ISNUMBER(E!D30),E!D30,"") -> 
A31: Nutrient harvest index | B31: =E!B31 -> 0.666 | C31: =IF(ISNUMBER(E!C31),E!C31,"") ->  | D31: =IF(ISNUMBER(E!D31),E!D31,"") -> 
C32: =IF(ISNUMBER(E!C32),E!C32,"") ->  | D32: =IF(ISNUMBER(E!D32),E!D32,"") -> 
C33: =IF(ISNUMBER(E!C33),E!C33,"") ->  | D33: =IF(ISNUMBER(E!D33),E!D33,"") -> 
C34: =IF(ISNUMBER(E!C34),E!C34,"") ->  | D34: =IF(ISNUMBER(E!D34),E!D34,"") -> 
C35: =IF(ISNUMBER(E!C35),E!C35,"") ->  | D35: =IF(ISNUMBER(E!D35),E!D35,"") -> 
C36: =IF(ISNUMBER(E!C36),E!C36,"") ->  | D36: =IF(ISNUMBER(E!D36),E!D36,"") -> 
C37: =IF(ISNUMBER(E!C37),E!C37,"") ->  | D37: =IF(ISNUMBER(E!D37),E!D37,"") -> 
C38: =IF(ISNUMBER(E!C38),E!C38,"") ->  | D38: =IF(ISNUMBER(E!D38),E!D38,"") -> 
C39: =IF(ISNUMBER(E!C39),E!C39,"") ->  | D39: =IF(ISNUMBER(E!D39),E!D39,"") -> 
C40: =IF(ISNUMBER(E!C40),E!C40,"") ->  | D40: =IF(ISNUMBER(E!D40),E!D40,"") -> 
C41: =IF(ISNUMBER(E!C41),E!C41,"") ->  | D41: =IF(ISNUMBER(E!D41),E!D41,"") -> 
C42: =IF(ISNUMBER(E!C42),E!C42,"") ->  | D42: =IF(ISNUMBER(E!D42),E!D42,"") -> 
C43: =IF(ISNUMBER(E!C43),E!C43,"") ->  | D43: =IF(ISNUMBER(E!D43),E!D43,"") -> 
C44: =IF(ISNUMBER(E!C44),E!C44,"") ->  | D44: =IF(ISNUMBER(E!D44),E!D44,"") -> 

Sheet B
B1: Crop Nutrient Response Tool (CNRT) v4.5 | F1: R2-weighted Mean | G1: Quadratic (Q) | H1: Quadratic- Plateau (QP) | I1: Mitscherlich (M) | J1: Linear-Plateau (LP) | K1: Spherical (SP)
A2: Step 1: Enter rate and yield data. | C2: Fertilizer rate, lb/A | D2: Crop Yield, bu/A | E2: A: | G2: 74.02246371 | H2: 73.62264867 | I2: 202.3434272 | J2: 77.49994328 | K2: 75.45471337
A3: Step 2: Click the Fit button. | E3: B: | G3: 1.170420953 | H3: 1.196610452 | I3: -130.6596643 | J3: 0.8333335539 | K3: 114.3787005
A4: Step 3: Adjust crop and fertilizer prices. | E4: C: | G4: -0.002894442391 | H4: -0.003062709894 | I4: -0.01189820074 | J4: 188.7500056 | K4: 176.4420451
A5: Step 4: Click to append information to summary. | C5: =IF(ISNUMBER(E!E5),E!E5,"") -> 0 | D5: =IF(ISNUMBER(E!F5),E!F5,"") -> 75 | E5: R2: | G5: =IF(ISERROR(1-((SUM(D!G5:G44)/COUNT(D!G5:G44))/VAR($D5:$D44))),"no data",1-((SUM(D!G5:G44)/COUNT(D!G5:G44))/VAR($D5:$D44))) -> 0.9992306135 | H5: =IF(ISERROR(1-((SUM(D!H5:H44)/COUNT(D!H5:H44))/VAR($D5:$D44))),"no data",1-((SUM(D!H5:H44)/COUNT(D!H5:H44))/VAR($D5:$D44))) -> 0.9991097845 | I5: =IF(ISERROR(1-((SUM(D!I5:I44)/COUNT(D!I5:I44))/VAR($D5:$D44))),"no data",1-((SUM(D!I5:I44)/COUNT(D!I5:I44))/VAR($D5:$D44))) -> 0.9915795887 | J5: =IF(ISERROR(1-((SUM(D!J5:J44)/COUNT(D!J5:J44))/VAR($D5:$D44))),"no data",1-((SUM(D!J5:J44)/COUNT(D!J5:J44))/VAR($D5:$D44))) -> 0.9970989483 | K5: =IF(ISERROR(1-((SUM(D!K5:K44)/COUNT(D!K5:K44))/VAR($D5:$D44))),"no data",1-((SUM(D!K5:K44)/COUNT(D!K5:K44))/VAR($D5:$D44))) -> 0.9996853532
A6: Site Details | C6: =IF(ISNUMBER(E!E6),E!E6,"") -> 30 | D6: =IF(ISNUMBER(E!F6),E!F6,"") -> 105 | E6: MERN (lb/A): | F6: =IF(AND(ISNUMBER(G5),ISNUMBER(B29),D!M53),(G6*D!B45+H6*D!C45+I6*D!D45+J6*D!E45+K6*D!F45)/SUM(D!B45:'D'!F45),"NA") -> 165.75183 | G6: =IF(AND(ISNUMBER(G5),ISNUMBER(B29),D!M53),MIN((1+0.1*G5)*MAX($C5:$C44),IF(G4<0,MAX((G3-B29)/(-2*G4),0),IF(G3>B29,MAX($C5:$C44),0))),"NA$") -> 180.5910797 | H6: =IF(AND(ISNUMBER(H5),ISNUMBER(B29),D!M53),MIN((1+0.1*H5)*MAX($C5:$C44),IF(H4<0,MAX((H3-B29)/(-2*H4),0),IF(H3>B29,MAX($C5:$C44),0))),"NA$") -> 174.9448183 | I6: =IF(AND(ISNUMBER(I5),ISNUMBER(B29),D!M53),MIN((1+0.1*I5)*MAX($C5:$C44),MAX((1/I4)*LN(B29/(I3*I4)),0)),"NA$") -> 211.8529909 | J6: =IF(AND(ISNUMBER(J5),ISNUMBER(B29),D!M53),MIN((1+0.1*J5)*MAX($C5:$C44),IF(J3>B29,(J4-J2)/J3,0)),"NA$") -> 133.5000394 | K6: =IF(AND(ISNUMBER(K5),ISNUMBER(B29),D!M53),IF(ISNUMBER(SQRT(K4^2-2*B29*K4^3/(3*K3))),MIN((1+0.1*K5)*MAX($C5:$C44),SQRT(K4^2-2*B29*K4^3/(3*K3))),0),"NA$") -> 164.711171
A7: Site | C7: =IF(ISNUMBER(E!E7),E!E7,"") -> 90 | D7: =IF(ISNUMBER(E!F7),E!F7,"") -> 155 | E7: Yield @ MERN (bu/A) | F7: =IF(ISNUMBER(F6),VLOOKUP(F6,D!B48:H298,7),"NA") -> 188.3096855 | G7: =IF(ISNUMBER(G6),G2+G3*G6+G4*G6^2,"NA") -> 190.993198 | H7: =IF(ISNUMBER(H6),H2+H3*H6+H4*H6^2,"NA") -> 189.2270989 | I7: =IF(ISNUMBER(I6),I2+I3*EXP(I6*I4),"NA") -> 191.837637 | J7: =IF(ISNUMBER(J6),IF(J3>D!O22,MIN(J4,J2+J3*J6),J2),"NA") -> 188.7500056 | K7: =IF(AND(ISNUMBER(K6),K6>0),IF(K6<B!K$4,B!K$2+B!K$3*(3*K6/(2*B!K$4)-0.5*(K6/B!K$4)^3),B!K$3+B!K$2),"NA") -> 189.0918305
A8: Year | C8: =IF(ISNUMBER(E!E8),E!E8,"") -> 120 | D8: =IF(ISNUMBER(E!F8),E!F8,"") -> 175 | E8: Partial Factor Productivity (PFP), bu/lb | F8: =IF(ISNUMBER(F7/F6),F7/F6,"NA") -> 1.136094157 | G8: 1.057600399 | H8: 1.081638774 | I8: 0.9055224388 | J8: 1.413857302 | K8: 1.14802068
A9: Town | C9: =IF(ISNUMBER(E!E9),E!E9,"") -> 150 | D9: =IF(ISNUMBER(E!F9),E!F9,"") -> 185 | E9: Agronomic Efficiency (AE), bu/lb | F9: =IF(ISNUMBER(F12/F6),F12/F6,"NA") -> 0.6837419375 | G9: =IF(ISNUMBER((G7-G2)/G6),(G7-G2)/G6,"NA") -> 0.6477104765 | H9: =IF(ISNUMBER((H7-H2)/H6),(H7-H2)/H6,"NA") -> 0.6608052261 | I9: =IF(ISNUMBER((I7-(I2+I3))/I6),(I7-(I2+I3))/I6,"NA") -> 0.5671568459 | J9: =IF(ISNUMBER((J7-J2)/J6),(J7-J2)/J6,"NA") -> 0.8333335539 | K9: =IF(ISNUMBER((K7-K2)/K6),(K7-K2)/K6,"NA") -> 0.689917487
A10: County | C10: =IF(ISNUMBER(E!E10),E!E10,"") -> 180 | D10: =IF(ISNUMBER(E!F10),E!F10,"") -> 190 | E10: Estimated Partial N Balance (PNB), % | F10: =IF(AND(F6>0,ISNUMBER(F6)),F7*B30/(F6+B25),"NA") -> 0.7384612018 | G10: =IF(AND(G6>0,ISNUMBER(G6)),G7*$B30/(G6+$B24),"NA") -> 0.6874402595 | H10: =IF(AND(H6>0,ISNUMBER(H6)),H7*$B30/(H6+$B24),"NA") -> 0.7030652034 | I10: =IF(AND(I6>0,ISNUMBER(I6)),I7*$B30/(I6+$B25),"NA") -> 0.5885895852 | J10: =IF(AND(J6>0,ISNUMBER(J6)),J7*B30/(J6+B25),"NA") -> 0.9190072464 | K10: =IF(AND(K6>0,ISNUMBER(K6)),K7*$B30/(K6+$B24),"NA") -> 0.7462134421
A11: State or province | C11: =IF(ISNUMBER(E!E11),E!E11,"") -> 210 | D11: =IF(ISNUMBER(E!F11),E!F11,"") -> 191 | E11: Estimated Recovery Efficiency (RE), % | F11: =IF(AND(F6>0,ISNUMBER(F6)),(F12/F6)*B30*(1/B31),"NA") -> 0.6673157048 | G11: =IF(AND(G6>0,ISNUMBER(G6)),((G7-G2)*$B30*(1/$B31))/G6,"NA") -> 0.6321498644 | H11: =IF(AND(H6>0,ISNUMBER(H6)),((H7-H2)*$B30*(1/$B31))/H6,"NA") -> 0.6449300254 | I11: =IF(AND(I6>0,ISNUMBER(I6)),((I7-(I2+I3))*B30*(1/B31))/I6,"NA") -> 0.5535314562 | J11: =IF(AND(J6>0,ISNUMBER(J6)),J3*B30*(1/B31),"NA") -> 0.8133135286 | K11: =IF(AND(K6>0,ISNUMBER(K6)),((K7-K2)*$B30*(1/$B31))/K6,"NA") -> 0.6733428928
A12: Latitude | C12: =IF(ISNUMBER(E!E12),E!E12,"") -> 240 | D12: =IF(ISNUMBER(E!F12),E!F12,"") -> 189 | E12: Delta Yield (bu/A) | F12: =IF(ISNUMBER(F7),F7-VLOOKUP(0,D!B48:H298,7),"NA") -> 113.3314774 | G12: =IF(ISNUMBER(G7),G7-G2,"NA") -> 116.9707343 | H12: =IF(ISNUMBER(H7),H7-H2,"NA") -> 115.6044502 | I12: =IF(ISNUMBER(I7),I7-(I2+I3),"NA") -> 120.1538741 | J12: =IF(ISNUMBER(J7),J7-J2,"NA") -> 111.2500623 | K12: =IF(ISNUMBER(K7),K7-K2,"NA") -> 113.6371172
A13: Longitude | C13: =IF(ISNUMBER(E!E13),E!E13,"") ->  | D13: =IF(ISNUMBER(E!F13),E!F13,"") ->  | E13: Relative Yield (%) | F13: =IF(ISNUMBER(F7),(F7-F12)/F7,"NA") -> 0.3981643743 | G13: =IF(ISNUMBER(G7),G2/G7,"NA") -> 0.3875659682 | H13: =IF(ISNUMBER(H7),H2/H7,"NA") -> 0.389070324 | I13: =IF(ISNUMBER(I7),(I2+I3)/I7,"NA") -> 0.3736689213 | J13: =IF(ISNUMBER(J7),J2/J7,"NA") -> 0.4105957138 | K13: =IF(ISNUMBER(K7),K2/K7,"NA") -> 0.399037405
A14: Altitude | C14: =IF(ISNUMBER(E!E14),E!E14,"") ->  | D14: =IF(ISNUMBER(E!F14),E!F14,"") -> 
A15: Soil texture class | C15: =IF(ISNUMBER(E!E15),E!E15,"") ->  | D15: =IF(ISNUMBER(E!F15),E!F15,"") -> 
A16: Preceding crop | C16: =IF(ISNUMBER(E!E16),E!E16,"") ->  | D16: =IF(ISNUMBER(E!F16),E!F16,"") -> 
A17: Expected Yield (bu/A) | C17: =IF(ISNUMBER(E!E17),E!E17,"") ->  | D17: =IF(ISNUMBER(E!F17),E!F17,"") -> 
A18: Tillage | C18: =IF(ISNUMBER(E!E18),E!E18,"") ->  | D18: =IF(ISNUMBER(E!F18),E!F18,"") -> 
A19: Nutrient Source | C19: =IF(ISNUMBER(E!E19),E!E19,"") ->  | D19: =IF(ISNUMBER(E!F19),E!F19,"") -> 
A20: Nutrient Timing | C20: =IF(ISNUMBER(E!E20),E!E20,"") ->  | D20: =IF(ISNUMBER(E!F20),E!F20,"") -> 
A21: Nutrient Placement | C21: =IF(ISNUMBER(E!E21),E!E21,"") ->  | D21: =IF(ISNUMBER(E!F21),E!F21,"") -> 
A22: Planting date | C22: =IF(ISNUMBER(E!E22),E!E22,"") ->  | D22: =IF(ISNUMBER(E!F22),E!F22,"") -> 
A23: PSNT (ppm) | C23: =IF(ISNUMBER(E!E23),E!E23,"") ->  | D23: =IF(ISNUMBER(E!F23),E!F23,"") -> 
A24: Manure N (lb/A) | C24: =IF(ISNUMBER(E!E24),E!E24,"") ->  | D24: =IF(ISNUMBER(E!F24),E!F24,"") -> 
A25: Harvest date | C25: =IF(ISNUMBER(E!E25),E!E25,"") ->  | D25: =IF(ISNUMBER(E!F25),E!F25,"") -> 
A26: ESSENTIAL INFORMATION | C26: =IF(ISNUMBER(E!E26),E!E26,"") ->  | D26: =IF(ISNUMBER(E!F26),E!F26,"") -> 
A27: Crop ($/bu) | B27: =E!B27 -> 4 | C27: =IF(ISNUMBER(E!E27),E!E27,"") ->  | D27: =IF(ISNUMBER(E!F27),E!F27,"") -> 
A28: Fertilizer ($/lb) | B28: =E!B28 -> 0.5 | C28: =IF(ISNUMBER(E!E28),E!E28,"") ->  | D28: =IF(ISNUMBER(E!F28),E!F28,"") -> 
A29: Price ratio (f/c) | B29: =E!B29 -> 0.125 | C29: =IF(ISNUMBER(E!E29),E!E29,"") ->  | D29: =IF(ISNUMBER(E!F29),E!F29,"") -> 
A30: Crop nutrient content (lb/bu) | B30: =E!B30 -> 0.65 | C30: =IF(ISNUMBER(E!E30),E!E30,"") ->  | D30: =IF(ISNUMBER(E!F30),E!F30,"") -> 
A31: Nutrient harvest index | B31: =E!B31 -> 0.666 | C31: =IF(ISNUMBER(E!E31),E!E31,"") ->  | D31: =IF(ISNUMBER(E!F31),E!F31,"") -> 
C32: =IF(ISNUMBER(E!E32),E!E32,"") ->  | D32: =IF(ISNUMBER(E!F32),E!F32,"") -> 
C33: =IF(ISNUMBER(E!E33),E!E33,"") ->  | D33: =IF(ISNUMBER(E!F33),E!F33,"") -> 
C34: =IF(ISNUMBER(E!E34),E!E34,"") ->  | D34: =IF(ISNUMBER(E!F34),E!F34,"") -> 
C35: =IF(ISNUMBER(E!E35),E!E35,"") ->  | D35: =IF(ISNUMBER(E!F35),E!F35,"") -> 
C36: =IF(ISNUMBER(E!E36),E!E36,"") ->  | D36: =IF(ISNUMBER(E!F36),E!F36,"") -> 
C37: =IF(ISNUMBER(E!E37),E!E37,"") ->  | D37: =IF(ISNUMBER(E!F37),E!F37,"") -> 
C38: =IF(ISNUMBER(E!E38),E!E38,"") ->  | D38: =IF(ISNUMBER(E!F38),E!F38,"") -> 
C39: =IF(ISNUMBER(E!E39),E!E39,"") ->  | D39: =IF(ISNUMBER(E!F39),E!F39,"") -> 
C40: =IF(ISNUMBER(E!E40),E!E40,"") ->  | D40: =IF(ISNUMBER(E!F40),E!F40,"") -> 
C41: =IF(ISNUMBER(E!E41),E!E41,"") ->  | D41: =IF(ISNUMBER(E!F41),E!F41,"") -> 
C42: =IF(ISNUMBER(E!E42),E!E42,"") ->  | D42: =IF(ISNUMBER(E!F42),E!F42,"") -> 
C43: =IF(ISNUMBER(E!E43),E!E43,"") ->  | D43: =IF(ISNUMBER(E!F43),E!F43,"") -> 
C44: =IF(ISNUMBER(E!E44),E!E44,"") ->  | D44: =IF(ISNUMBER(E!F44),E!F44,"") -> 

Sheet C
A1: Calculations worksheet - do not enter data here
B3: Predicted Curve Values | G3: Squared differences predicted less observed
A4: Obs | B4: Q | C4: QP | D4: M | E4: LP | F4: S | G4: Q | H4: QP | I4: M | J4: LP | K4: S | M4: Technical
A5: 1 | B5: =IF(ISNUMBER(A!C5),A!G$2+A!G$3*A!C5+A!G$4*A!C5^2,"") -> 37.96311758 | C5: =IF(ISNUMBER(A!C5),IF(A!C5<(A!H$3/(-2*A!H$4)),A!H$2+A!H$3*A!C5+A!H$4*A!C5^2,A!H$2+A!H$3*(A!H$3/(-2*A!H$4))+A!H$4*(A!H$3/(-2*A!H$4))^2),"") -> 38.0958687 | D5: =IF(ISNUMBER(A!C5),A!I$2+A!I$3*EXP(A!I$4*A!C5),"") -> 37.89754386 | E5: =IF(ISNUMBER(A!C5),IF((A!J$2+A!J$3*A!C5)<A!J$4,A!J$2+A!J$3*A!C5,A!J$4),"") -> 43.72095679 | F5: =IF(ISNUMBER(A!C5),IF(A!C5<A!K$4,A!K$2+A!K$3*(3*A!C5/(2*A!K$4)-0.5*(A!C5/A!K$4)^3),A!K$3+A!K$2),"") -> 40.28930004 | G5: =IF(ISNUMBER(A!$C5),(B5-A!$D5)^2,"") -> 4.148889997 | H5: =IF(ISNUMBER(A!$C5),(C5-A!$D5)^2,"") -> 3.625716007 | I5: =IF(ISNUMBER(A!$C5),(D5-A!$D5)^2,"") -> 4.420321826 | J5: =IF(ISNUMBER(A!$C5),(E5-A!$D5)^2,"") -> 13.84551943 | K5: =IF(ISNUMBER(A!$C5),(F5-A!$D5)^2,"") -> 0.08369451161 | N5: Constraints:
A6: =A5+1 -> 2 | B6: =IF(ISNUMBER(A!C6),A!G$2+A!G$3*A!C6+A!G$4*A!C6^2,"") -> 71.12784677 | C6: =IF(ISNUMBER(A!C6),IF(A!C6<(A!H$3/(-2*A!H$4)),A!H$2+A!H$3*A!C6+A!H$4*A!C6^2,A!H$2+A!H$3*(A!H$3/(-2*A!H$4))+A!H$4*(A!H$3/(-2*A!H$4))^2),"") -> 71.12781344 | D6: =IF(ISNUMBER(A!C6),A!I$2+A!I$3*EXP(A!I$4*A!C6),"") -> 75.90954339 | E6: =IF(ISNUMBER(A!C6),IF((A!J$2+A!J$3*A!C6)<A!J$4,A!J$2+A!J$3*A!C6,A!J$4),"") -> 67.67440563 | F6: =IF(ISNUMBER(A!C6),IF(A!C6<A!K$4,A!K$2+A!K$3*(3*A!C6/(2*A!K$4)-0.5*(A!C6/A!K$4)^3),A!K$3+A!K$2),"") -> 68.84043765 | G6: =IF(ISNUMBER(A!$C6),(B6-A!$D6)^2,"") -> 1.272038331 | H6: =IF(ISNUMBER(A!$C6),(C6-A!$D6)^2,"") -> 1.27196316 | I6: =IF(ISNUMBER(A!$C6),(D6-A!$D6)^2,"") -> 34.92270312 | J6: =IF(ISNUMBER(A!$C6),(E6-A!$D6)^2,"") -> 5.408389171 | K6: =IF(ISNUMBER(A!$C6),(F6-A!$D6)^2,"") -> 1.344584845 | N6: Maximum | S6: Minimum | X6: Fitting
A7: =A6+1 -> 3 | B7: =IF(ISNUMBER(A!C7),A!G$2+A!G$3*A!C7+A!G$4*A!C7^2,"") -> 123.3139562 | C7: =IF(ISNUMBER(A!C7),IF(A!C7<(A!H$3/(-2*A!H$4)),A!H$2+A!H$3*A!C7+A!H$4*A!C7^2,A!H$2+A!H$3*(A!H$3/(-2*A!H$4))+A!H$4*(A!H$3/(-2*A!H$4))^2),"") -> 123.1565787 | D7: =IF(ISNUMBER(A!C7),A!I$2+A!I$3*EXP(A!I$4*A!C7),"") -> 125.635521 | E7: =IF(ISNUMBER(A!C7),IF((A!J$2+A!J$3*A!C7)<A!J$4,A!J$2+A!J$3*A!C7,A!J$4),"") -> 115.5813033 | F7: =IF(ISNUMBER(A!C7),IF(A!C7<A!K$4,A!K$2+A!K$3*(3*A!C7/(2*A!K$4)-0.5*(A!C7/A!K$4)^3),A!K$3+A!K$2),"") -> 120.9741397 | G7: =IF(ISNUMBER(A!$C7),(B7-A!$D7)^2,"") -> 10.98230552 | H7: =IF(ISNUMBER(A!$C7),(C7-A!$D7)^2,"") -> 9.963989284 | I7: =IF(ISNUMBER(A!$C7),(D7-A!$D7)^2,"") -> 31.75909722 | J7: =IF(ISNUMBER(A!$C7),(E7-A!$D7)^2,"") -> 19.52488041 | K7: =IF(ISNUMBER(A!$C7),(F7-A!$D7)^2,"") -> 0.9489482118 | N7: Q | O7: QP | P7: M | Q7: LP | R7: S | S7: Q | T7: QP | U7: M | V7: LP | W7: S | X7: Tolerance
A8: 4 | B8: =IF(ISNUMBER(A!C8),A!G$2+A!G$3*A!C8+A!G$4*A!C8^2,"") -> 142.3353364 | C8: =IF(ISNUMBER(A!C8),IF(A!C8<(A!H$3/(-2*A!H$4)),A!H$2+A!H$3*A!C8+A!H$4*A!C8^2,A!H$2+A!H$3*(A!H$3/(-2*A!H$4))+A!H$4*(A!H$3/(-2*A!H$4))^2),"") -> 142.1533993 | D8: =IF(ISNUMBER(A!C8),A!I$2+A!I$3*EXP(A!I$4*A!C8),"") -> 141.5607924 | E8: =IF(ISNUMBER(A!C8),IF((A!J$2+A!J$3*A!C8)<A!J$4,A!J$2+A!J$3*A!C8,A!J$4),"") -> 139.5347522 | F8: =IF(ISNUMBER(A!C8),IF(A!C8<A!K$4,A!K$2+A!K$3*(3*A!C8/(2*A!K$4)-0.5*(A!C8/A!K$4)^3),A!K$3+A!K$2),"") -> 142.0724176 | G8: =IF(ISNUMBER(A!$C8),(B8-A!$D8)^2,"") -> 5.453796065 | H8: =IF(ISNUMBER(A!$C8),(C8-A!$D8)^2,"") -> 4.63712845 | I8: =IF(ISNUMBER(A!$C8),(D8-A!$D8)^2,"") -> 2.436073018 | J8: =IF(ISNUMBER(A!$C8),(E8-A!$D8)^2,"") -> 0.216455558 | K8: =IF(ISNUMBER(A!$C8),(F8-A!$D8)^2,"") -> 4.294914812 | M8: A | N8: =(1+X8)*MIN(A!D5:D44) -> 60 | O8: =N8 -> 60 | P8: =(1+X8)*MAX(A!D5:D44) -> 256.5 | Q8: =N8 -> 60 | R8: =N8 -> 60 | S8: =MAX((1-X8)*MIN(A!D5:D44)-(1+X8)*MIN(A!C5:C44)*(1/O20),0.5*MIN(A!D5:D44)) -> 20 | T8: =S8 -> 20 | U8: =(1-X8)*MAX(A!D5:D44) -> 85.5 | V8: =S8 -> 20 | W8: =S8 -> 20 | X8: 0.5
A9: 5 | B9: =IF(ISNUMBER(A!C9),A!G$2+A!G$3*A!C9+A!G$4*A!C9^2,"") -> 156.642267 | C9: =IF(ISNUMBER(A!C9),IF(A!C9<(A!H$3/(-2*A!H$4)),A!H$2+A!H$3*A!C9+A!H$4*A!C9^2,A!H$2+A!H$3*(A!H$3/(-2*A!H$4))+A!H$4*(A!H$3/(-2*A!H$4))^2),"") -> 156.4718451 | D9: =IF(ISNUMBER(A!C9),A!I$2+A!I$3*EXP(A!I$4*A!C9),"") -> 153.4771141 | E9: =IF(ISNUMBER(A!C9),IF((A!J$2+A!J$3*A!C9)<A!J$4,A!J$2+A!J$3*A!C9,A!J$4),"") -> 163.488201 | F9: =IF(ISNUMBER(A!C9),IF(A!C9<A!K$4,A!K$2+A!K$3*(3*A!C9/(2*A!K$4)-0.5*(A!C9/A!K$4)^3),A!K$3+A!K$2),"") -> 158.2021224 | G9: =IF(ISNUMBER(A!$C9),(B9-A!$D9)^2,"") -> 11.27437121 | H9: =IF(ISNUMBER(A!$C9),(C9-A!$D9)^2,"") -> 12.44787705 | I9: =IF(ISNUMBER(A!$C9),(D9-A!$D9)^2,"") -> 42.54804034 | J9: =IF(ISNUMBER(A!$C9),(E9-A!$D9)^2,"") -> 12.16754618 | K9: =IF(ISNUMBER(A!$C9),(F9-A!$D9)^2,"") -> 3.232363948 | M9: B | N9: =O21*(1+X9)/O20 -> 1.536923077 | O9: =N9 -> 1.536923077 | P9: =MIN(-0.0000001,N8-U8) -> -25.5 | Q9: =O21*(1+0.5*X9)/O20 -> 1.280769231 | R9: =-1*U9 -> 151 | S9: 0 | T9: 0 | U9: =S8-Q10 -> -151 | V9: =S9 -> 0 | W9: =-1*P9 -> 25.5 | X9: 0.5
A10: 6 | B10: =IF(ISNUMBER(A!C10),A!G$2+A!G$3*A!C10+A!G$4*A!C10^2,"") -> 166.2347479 | C10: =IF(ISNUMBER(A!C10),IF(A!C10<(A!H$3/(-2*A!H$4)),A!H$2+A!H$3*A!C10+A!H$4*A!C10^2,A!H$2+A!H$3*(A!H$3/(-2*A!H$4))+A!H$4*(A!H$3/(-2*A!H$4))^2),"") -> 166.1119162 | D10: =IF(ISNUMBER(A!C10),A!I$2+A!I$3*EXP(A!I$4*A!C10),"") -> 162.3936794 | E10: =IF(ISNUMBER(A!C10),IF((A!J$2+A!J$3*A!C10)<A!J$4,A!J$2+A!J$3*A!C10,A!J$4),"") -> 169.9998471 | F10: =IF(ISNUMBER(A!C10),IF(A!C10<A!K$4,A!K$2+A!K$3*(3*A!C10/(2*A!K$4)-0.5*(A!C10/A!K$4)^3),A!K$3+A!K$2),"") -> 168.1211107 | G10: =IF(ISNUMBER(A!$C10),(B10-A!$D10)^2,"") -> 14.17712369 | H10: =IF(ISNUMBER(A!$C10),(C10-A!$D10)^2,"") -> 15.11719582 | I10: =IF(ISNUMBER(A!$C10),(D10-A!$D10)^2,"") -> 57.85611304 | J10: =IF(ISNUMBER(A!$C10),(E10-A!$D10)^2,"") -> 2.336789298e-08 | K10: =IF(ISNUMBER(A!$C10),(F10-A!$D10)^2,"") -> 3.530225007 | M10: C | N10: -1e-07 | O10: -1e-07 | P10: -1e-07 | Q10: =MAX(A!D5:D44) -> 171 | R10: =M51 -> 2060 | S10: -1 | T10: -1 | U10: =(O21*(1+X10)/O20)/AVERAGE(P9,U9) -> -0.01509348442 | V10: =(1-X8)*MAX(A!D5:D44) -> 85.5 | W10: 0 | X10: 0.3
A11: 7 | B11: =IF(ISNUMBER(A!C11),A!G$2+A!G$3*A!C11+A!G$4*A!C11^2,"") -> 171.1127791 | C11: =IF(ISNUMBER(A!C11),IF(A!C11<(A!H$3/(-2*A!H$4)),A!H$2+A!H$3*A!C11+A!H$4*A!C11^2,A!H$2+A!H$3*(A!H$3/(-2*A!H$4))+A!H$4*(A!H$3/(-2*A!H$4))^2),"") -> 171.0736125 | D11: =IF(ISNUMBER(A!C11),A!I$2+A!I$3*EXP(A!I$4*A!C11),"") -> 169.0656323 | E11: =IF(ISNUMBER(A!C11),IF((A!J$2+A!J$3*A!C11)<A!J$4,A!J$2+A!J$3*A!C11,A!J$4),"") -> 169.9998471 | F11: =IF(ISNUMBER(A!C11),IF(A!C11<A!K$4,A!K$2+A!K$3*(3*A!C11/(2*A!K$4)-0.5*(A!C11/A!K$4)^3),A!K$3+A!K$2),"") -> 170.749959 | G11: =IF(ISNUMBER(A!$C11),(B11-A!$D11)^2,"") -> 0.01271912662 | H11: =IF(ISNUMBER(A!$C11),(C11-A!$D11)^2,"") -> 0.005418804389 | I11: =IF(ISNUMBER(A!$C11),(D11-A!$D11)^2,"") -> 3.741778507 | J11: =IF(ISNUMBER(A!$C11),(E11-A!$D11)^2,"") -> 1.000305755 | K11: =IF(ISNUMBER(A!$C11),(F11-A!$D11)^2,"") -> 0.06252048881
A12: 8 | B12: =IF(ISNUMBER(A!C12),A!G$2+A!G$3*A!C12+A!G$4*A!C12^2,"") -> 171.2763607 | C12: =IF(ISNUMBER(A!C12),IF(A!C12<(A!H$3/(-2*A!H$4)),A!H$2+A!H$3*A!C12+A!H$4*A!C12^2,A!H$2+A!H$3*(A!H$3/(-2*A!H$4))+A!H$4*(A!H$3/(-2*A!H$4))^2),"") -> 171.8086491 | D12: =IF(ISNUMBER(A!C12),A!I$2+A!I$3*EXP(A!I$4*A!C12),"") -> 174.0580204 | E12: =IF(ISNUMBER(A!C12),IF((A!J$2+A!J$3*A!C12)<A!J$4,A!J$2+A!J$3*A!C12,A!J$4),"") -> 169.9998471 | F12: =IF(ISNUMBER(A!C12),IF(A!C12<A!K$4,A!K$2+A!K$3*(3*A!C12/(2*A!K$4)-0.5*(A!C12/A!K$4)^3),A!K$3+A!K$2),"") -> 170.749959 | G12: =IF(ISNUMBER(A!$C12),(B12-A!$D12)^2,"") -> 5.181818019 | H12: =IF(ISNUMBER(A!$C12),(C12-A!$D12)^2,"") -> 7.88850997 | I12: =IF(ISNUMBER(A!$C12),(D12-A!$D12)^2,"") -> 25.58357081 | J12: =IF(ISNUMBER(A!$C12),(E12-A!$D12)^2,"") -> 0.9996942922 | K12: =IF(ISNUMBER(A!$C12),(F12-A!$D12)^2,"") -> 3.062356592
A13: 9 | B13: =IF(ISNUMBER(A!C13),A!G$2+A!G$3*A!C13+A!G$4*A!C13^2,"") ->  | C13: =IF(ISNUMBER(A!C13),IF(A!C13<(A!H$3/(-2*A!H$4)),A!H$2+A!H$3*A!C13+A!H$4*A!C13^2,A!H$2+A!H$3*(A!H$3/(-2*A!H$4))+A!H$4*(A!H$3/(-2*A!H$4))^2),"") ->  | D13: =IF(ISNUMBER(A!C13),A!I$2+A!I$3*EXP(A!I$4*A!C13),"") ->  | E13: =IF(ISNUMBER(A!C13),IF((A!J$2+A!J$3*A!C13)<A!J$4,A!J$2+A!J$3*A!C13,A!J$4),"") ->  | F13: =IF(ISNUMBER(A!C13),IF(A!C13<A!K$4,A!K$2+A!K$3*(3*A!C13/(2*A!K$4)-0.5*(A!C13/A!K$4)^3),A!K$3+A!K$2),"") ->  | G13: =IF(ISNUMBER(A!$C13),(B13-A!$D13)^2,"") ->  | H13: =IF(ISNUMBER(A!$C13),(C13-A!$D13)^2,"") ->  | I13: =IF(ISNUMBER(A!$C13),(D13-A!$D13)^2,"") ->  | J13: =IF(ISNUMBER(A!$C13),(E13-A!$D13)^2,"") ->  | K13: =IF(ISNUMBER(A!$C13),(F13-A!$D13)^2,"") ->  | N13: Data for Graph:
A14: 10 | B14: =IF(ISNUMBER(A!C14),A!G$2+A!G$3*A!C14+A!G$4*A!C14^2,"") ->  | C14: =IF(ISNUMBER(A!C14),IF(A!C14<(A!H$3/(-2*A!H$4)),A!H$2+A!H$3*A!C14+A!H$4*A!C14^2,A!H$2+A!H$3*(A!H$3/(-2*A!H$4))+A!H$4*(A!H$3/(-2*A!H$4))^2),"") ->  | D14: =IF(ISNUMBER(A!C14),A!I$2+A!I$3*EXP(A!I$4*A!C14),"") ->  | E14: =IF(ISNUMBER(A!C14),IF((A!J$2+A!J$3*A!C14)<A!J$4,A!J$2+A!J$3*A!C14,A!J$4),"") ->  | F14: =IF(ISNUMBER(A!C14),IF(A!C14<A!K$4,A!K$2+A!K$3*(3*A!C14/(2*A!K$4)-0.5*(A!C14/A!K$4)^3),A!K$3+A!K$2),"") ->  | G14: =IF(ISNUMBER(A!$C14),(B14-A!$D14)^2,"") ->  | H14: =IF(ISNUMBER(A!$C14),(C14-A!$D14)^2,"") ->  | I14: =IF(ISNUMBER(A!$C14),(D14-A!$D14)^2,"") ->  | J14: =IF(ISNUMBER(A!$C14),(E14-A!$D14)^2,"") ->  | K14: =IF(ISNUMBER(A!$C14),(F14-A!$D14)^2,"") ->  | N14: Most Economic Rate | S14: Yield at Most Economic Rate | X14: Mean | Y14: Mean
A15: 11 | B15: =IF(ISNUMBER(A!C15),A!G$2+A!G$3*A!C15+A!G$4*A!C15^2,"") ->  | C15: =IF(ISNUMBER(A!C15),IF(A!C15<(A!H$3/(-2*A!H$4)),A!H$2+A!H$3*A!C15+A!H$4*A!C15^2,A!H$2+A!H$3*(A!H$3/(-2*A!H$4))+A!H$4*(A!H$3/(-2*A!H$4))^2),"") ->  | D15: =IF(ISNUMBER(A!C15),A!I$2+A!I$3*EXP(A!I$4*A!C15),"") ->  | E15: =IF(ISNUMBER(A!C15),IF((A!J$2+A!J$3*A!C15)<A!J$4,A!J$2+A!J$3*A!C15,A!J$4),"") ->  | F15: =IF(ISNUMBER(A!C15),IF(A!C15<A!K$4,A!K$2+A!K$3*(3*A!C15/(2*A!K$4)-0.5*(A!C15/A!K$4)^3),A!K$3+A!K$2),"") ->  | G15: =IF(ISNUMBER(A!$C15),(B15-A!$D15)^2,"") ->  | H15: =IF(ISNUMBER(A!$C15),(C15-A!$D15)^2,"") ->  | I15: =IF(ISNUMBER(A!$C15),(D15-A!$D15)^2,"") ->  | J15: =IF(ISNUMBER(A!$C15),(E15-A!$D15)^2,"") ->  | K15: =IF(ISNUMBER(A!$C15),(F15-A!$D15)^2,"") ->  | N15: Q | O15: QP | P15: M | Q15: LP | R15: S | S15: Q | T15: QP | U15: M | V15: LP | W15: S | X15: MERN | Y15: Y@mern
A16: 12 | B16: =IF(ISNUMBER(A!C16),A!G$2+A!G$3*A!C16+A!G$4*A!C16^2,"") ->  | C16: =IF(ISNUMBER(A!C16),IF(A!C16<(A!H$3/(-2*A!H$4)),A!H$2+A!H$3*A!C16+A!H$4*A!C16^2,A!H$2+A!H$3*(A!H$3/(-2*A!H$4))+A!H$4*(A!H$3/(-2*A!H$4))^2),"") ->  | D16: =IF(ISNUMBER(A!C16),A!I$2+A!I$3*EXP(A!I$4*A!C16),"") ->  | E16: =IF(ISNUMBER(A!C16),IF((A!J$2+A!J$3*A!C16)<A!J$4,A!J$2+A!J$3*A!C16,A!J$4),"") ->  | F16: =IF(ISNUMBER(A!C16),IF(A!C16<A!K$4,A!K$2+A!K$3*(3*A!C16/(2*A!K$4)-0.5*(A!C16/A!K$4)^3),A!K$3+A!K$2),"") ->  | G16: =IF(ISNUMBER(A!$C16),(B16-A!$D16)^2,"") ->  | H16: =IF(ISNUMBER(A!$C16),(C16-A!$D16)^2,"") ->  | I16: =IF(ISNUMBER(A!$C16),(D16-A!$D16)^2,"") ->  | J16: =IF(ISNUMBER(A!$C16),(E16-A!$D16)^2,"") ->  | K16: =IF(ISNUMBER(A!$C16),(F16-A!$D16)^2,"") ->  | N16: =A!G6 -> 202.178131 | O16: =A!H6 -> 202.7699827 | P16: =A!I6 -> 254.2405465 | Q16: =A!J6 -> 158.1553761 | R16: =A!K6 -> 190.3668339 | S16: 0 | T16: 0 | U16: 0 | V16: 0 | W16: 0 | X16: =A!$F$6 -> 188.6601003 | Y16: 0
A17: 13 | B17: =IF(ISNUMBER(A!C17),A!G$2+A!G$3*A!C17+A!G$4*A!C17^2,"") ->  | C17: =IF(ISNUMBER(A!C17),IF(A!C17<(A!H$3/(-2*A!H$4)),A!H$2+A!H$3*A!C17+A!H$4*A!C17^2,A!H$2+A!H$3*(A!H$3/(-2*A!H$4))+A!H$4*(A!H$3/(-2*A!H$4))^2),"") ->  | D17: =IF(ISNUMBER(A!C17),A!I$2+A!I$3*EXP(A!I$4*A!C17),"") ->  | E17: =IF(ISNUMBER(A!C17),IF((A!J$2+A!J$3*A!C17)<A!J$4,A!J$2+A!J$3*A!C17,A!J$4),"") ->  | F17: =IF(ISNUMBER(A!C17),IF(A!C17<A!K$4,A!K$2+A!K$3*(3*A!C17/(2*A!K$4)-0.5*(A!C17/A!K$4)^3),A!K$3+A!K$2),"") ->  | G17: =IF(ISNUMBER(A!$C17),(B17-A!$D17)^2,"") ->  | H17: =IF(ISNUMBER(A!$C17),(C17-A!$D17)^2,"") ->  | I17: =IF(ISNUMBER(A!$C17),(D17-A!$D17)^2,"") ->  | J17: =IF(ISNUMBER(A!$C17),(E17-A!$D17)^2,"") ->  | K17: =IF(ISNUMBER(A!$C17),(F17-A!$D17)^2,"") ->  | N17: =N16 -> 202.178131 | O17: =A!H6 -> 202.7699827 | P17: =A!I6 -> 254.2405465 | Q17: =A!J6 -> 158.1553761 | R17: =A!K6 -> 190.3668339 | S17: =A!G7 -> 170.2952887 | T17: =A!H7 -> 170.3057234 | U17: =A!I7 -> 175.9664298 | V17: =A!J7 -> 169.9998471 | W17: =A!K7 -> 169.8790326 | X17: =X16 -> 188.6601003 | Y17: =A!$F$7 -> 168.8891959
A18: 14 | B18: =IF(ISNUMBER(A!C18),A!G$2+A!G$3*A!C18+A!G$4*A!C18^2,"") ->  | C18: =IF(ISNUMBER(A!C18),IF(A!C18<(A!H$3/(-2*A!H$4)),A!H$2+A!H$3*A!C18+A!H$4*A!C18^2,A!H$2+A!H$3*(A!H$3/(-2*A!H$4))+A!H$4*(A!H$3/(-2*A!H$4))^2),"") ->  | D18: =IF(ISNUMBER(A!C18),A!I$2+A!I$3*EXP(A!I$4*A!C18),"") ->  | E18: =IF(ISNUMBER(A!C18),IF((A!J$2+A!J$3*A!C18)<A!J$4,A!J$2+A!J$3*A!C18,A!J$4),"") ->  | F18: =IF(ISNUMBER(A!C18),IF(A!C18<A!K$4,A!K$2+A!K$3*(3*A!C18/(2*A!K$4)-0.5*(A!C18/A!K$4)^3),A!K$3+A!K$2),"") ->  | G18: =IF(ISNUMBER(A!$C18),(B18-A!$D18)^2,"") ->  | H18: =IF(ISNUMBER(A!$C18),(C18-A!$D18)^2,"") ->  | I18: =IF(ISNUMBER(A!$C18),(D18-A!$D18)^2,"") ->  | J18: =IF(ISNUMBER(A!$C18),(E18-A!$D18)^2,"") ->  | K18: =IF(ISNUMBER(A!$C18),(F18-A!$D18)^2,"") -> 
A19: 15 | B19: =IF(ISNUMBER(A!C19),A!G$2+A!G$3*A!C19+A!G$4*A!C19^2,"") ->  | C19: =IF(ISNUMBER(A!C19),IF(A!C19<(A!H$3/(-2*A!H$4)),A!H$2+A!H$3*A!C19+A!H$4*A!C19^2,A!H$2+A!H$3*(A!H$3/(-2*A!H$4))+A!H$4*(A!H$3/(-2*A!H$4))^2),"") ->  | D19: =IF(ISNUMBER(A!C19),A!I$2+A!I$3*EXP(A!I$4*A!C19),"") ->  | E19: =IF(ISNUMBER(A!C19),IF((A!J$2+A!J$3*A!C19)<A!J$4,A!J$2+A!J$3*A!C19,A!J$4),"") ->  | F19: =IF(ISNUMBER(A!C19),IF(A!C19<A!K$4,A!K$2+A!K$3*(3*A!C19/(2*A!K$4)-0.5*(A!C19/A!K$4)^3),A!K$3+A!K$2),"") ->  | G19: =IF(ISNUMBER(A!$C19),(B19-A!$D19)^2,"") ->  | H19: =IF(ISNUMBER(A!$C19),(C19-A!$D19)^2,"") ->  | I19: =IF(ISNUMBER(A!$C19),(D19-A!$D19)^2,"") ->  | J19: =IF(ISNUMBER(A!$C19),(E19-A!$D19)^2,"") ->  | K19: =IF(ISNUMBER(A!$C19),(F19-A!$D19)^2,"") -> 
A20: 16 | B20: =IF(ISNUMBER(A!C20),A!G$2+A!G$3*A!C20+A!G$4*A!C20^2,"") ->  | C20: =IF(ISNUMBER(A!C20),IF(A!C20<(A!H$3/(-2*A!H$4)),A!H$2+A!H$3*A!C20+A!H$4*A!C20^2,A!H$2+A!H$3*(A!H$3/(-2*A!H$4))+A!H$4*(A!H$3/(-2*A!H$4))^2),"") ->  | D20: =IF(ISNUMBER(A!C20),A!I$2+A!I$3*EXP(A!I$4*A!C20),"") ->  | E20: =IF(ISNUMBER(A!C20),IF((A!J$2+A!J$3*A!C20)<A!J$4,A!J$2+A!J$3*A!C20,A!J$4),"") ->  | F20: =IF(ISNUMBER(A!C20),IF(A!C20<A!K$4,A!K$2+A!K$3*(3*A!C20/(2*A!K$4)-0.5*(A!C20/A!K$4)^3),A!K$3+A!K$2),"") ->  | G20: =IF(ISNUMBER(A!$C20),(B20-A!$D20)^2,"") ->  | H20: =IF(ISNUMBER(A!$C20),(C20-A!$D20)^2,"") ->  | I20: =IF(ISNUMBER(A!$C20),(D20-A!$D20)^2,"") ->  | J20: =IF(ISNUMBER(A!$C20),(E20-A!$D20)^2,"") ->  | K20: =IF(ISNUMBER(A!$C20),(F20-A!$D20)^2,"") ->  | N20: Nutrient content (lb/bu): | O20: =A!B30 -> 0.65 | P20: These two cells, carried from page A, set constraints on initial slope
A21: 17 | B21: =IF(ISNUMBER(A!C21),A!G$2+A!G$3*A!C21+A!G$4*A!C21^2,"") ->  | C21: =IF(ISNUMBER(A!C21),IF(A!C21<(A!H$3/(-2*A!H$4)),A!H$2+A!H$3*A!C21+A!H$4*A!C21^2,A!H$2+A!H$3*(A!H$3/(-2*A!H$4))+A!H$4*(A!H$3/(-2*A!H$4))^2),"") ->  | D21: =IF(ISNUMBER(A!C21),A!I$2+A!I$3*EXP(A!I$4*A!C21),"") ->  | E21: =IF(ISNUMBER(A!C21),IF((A!J$2+A!J$3*A!C21)<A!J$4,A!J$2+A!J$3*A!C21,A!J$4),"") ->  | F21: =IF(ISNUMBER(A!C21),IF(A!C21<A!K$4,A!K$2+A!K$3*(3*A!C21/(2*A!K$4)-0.5*(A!C21/A!K$4)^3),A!K$3+A!K$2),"") ->  | G21: =IF(ISNUMBER(A!$C21),(B21-A!$D21)^2,"") ->  | H21: =IF(ISNUMBER(A!$C21),(C21-A!$D21)^2,"") ->  | I21: =IF(ISNUMBER(A!$C21),(D21-A!$D21)^2,"") ->  | J21: =IF(ISNUMBER(A!$C21),(E21-A!$D21)^2,"") ->  | K21: =IF(ISNUMBER(A!$C21),(F21-A!$D21)^2,"") ->  | N21: NHI: | O21: =A!B31 -> 0.666 | P21: assuming maximum efficiency (REN) is 100% + fitting tolerance.
A22: 18 | B22: =IF(ISNUMBER(A!C22),A!G$2+A!G$3*A!C22+A!G$4*A!C22^2,"") ->  | C22: =IF(ISNUMBER(A!C22),IF(A!C22<(A!H$3/(-2*A!H$4)),A!H$2+A!H$3*A!C22+A!H$4*A!C22^2,A!H$2+A!H$3*(A!H$3/(-2*A!H$4))+A!H$4*(A!H$3/(-2*A!H$4))^2),"") ->  | D22: =IF(ISNUMBER(A!C22),A!I$2+A!I$3*EXP(A!I$4*A!C22),"") ->  | E22: =IF(ISNUMBER(A!C22),IF((A!J$2+A!J$3*A!C22)<A!J$4,A!J$2+A!J$3*A!C22,A!J$4),"") ->  | F22: =IF(ISNUMBER(A!C22),IF(A!C22<A!K$4,A!K$2+A!K$3*(3*A!C22/(2*A!K$4)-0.5*(A!C22/A!K$4)^3),A!K$3+A!K$2),"") ->  | G22: =IF(ISNUMBER(A!$C22),(B22-A!$D22)^2,"") ->  | H22: =IF(ISNUMBER(A!$C22),(C22-A!$D22)^2,"") ->  | I22: =IF(ISNUMBER(A!$C22),(D22-A!$D22)^2,"") ->  | J22: =IF(ISNUMBER(A!$C22),(E22-A!$D22)^2,"") ->  | K22: =IF(ISNUMBER(A!$C22),(F22-A!$D22)^2,"") -> 
A23: 19 | B23: =IF(ISNUMBER(A!C23),A!G$2+A!G$3*A!C23+A!G$4*A!C23^2,"") ->  | C23: =IF(ISNUMBER(A!C23),IF(A!C23<(A!H$3/(-2*A!H$4)),A!H$2+A!H$3*A!C23+A!H$4*A!C23^2,A!H$2+A!H$3*(A!H$3/(-2*A!H$4))+A!H$4*(A!H$3/(-2*A!H$4))^2),"") ->  | D23: =IF(ISNUMBER(A!C23),A!I$2+A!I$3*EXP(A!I$4*A!C23),"") ->  | E23: =IF(ISNUMBER(A!C23),IF((A!J$2+A!J$3*A!C23)<A!J$4,A!J$2+A!J$3*A!C23,A!J$4),"") ->  | F23: =IF(ISNUMBER(A!C23),IF(A!C23<A!K$4,A!K$2+A!K$3*(3*A!C23/(2*A!K$4)-0.5*(A!C23/A!K$4)^3),A!K$3+A!K$2),"") ->  | G23: =IF(ISNUMBER(A!$C23),(B23-A!$D23)^2,"") ->  | H23: =IF(ISNUMBER(A!$C23),(C23-A!$D23)^2,"") ->  | I23: =IF(ISNUMBER(A!$C23),(D23-A!$D23)^2,"") ->  | J23: =IF(ISNUMBER(A!$C23),(E23-A!$D23)^2,"") ->  | K23: =IF(ISNUMBER(A!$C23),(F23-A!$D23)^2,"") -> 
A24: 20 | B24: =IF(ISNUMBER(A!C24),A!G$2+A!G$3*A!C24+A!G$4*A!C24^2,"") ->  | C24: =IF(ISNUMBER(A!C24),IF(A!C24<(A!H$3/(-2*A!H$4)),A!H$2+A!H$3*A!C24+A!H$4*A!C24^2,A!H$2+A!H$3*(A!H$3/(-2*A!H$4))+A!H$4*(A!H$3/(-2*A!H$4))^2),"") ->  | D24: =IF(ISNUMBER(A!C24),A!I$2+A!I$3*EXP(A!I$4*A!C24),"") ->  | E24: =IF(ISNUMBER(A!C24),IF((A!J$2+A!J$3*A!C24)<A!J$4,A!J$2+A!J$3*A!C24,A!J$4),"") ->  | F24: =IF(ISNUMBER(A!C24),IF(A!C24<A!K$4,A!K$2+A!K$3*(3*A!C24/(2*A!K$4)-0.5*(A!C24/A!K$4)^3),A!K$3+A!K$2),"") ->  | G24: =IF(ISNUMBER(A!$C24),(B24-A!$D24)^2,"") ->  | H24: =IF(ISNUMBER(A!$C24),(C24-A!$D24)^2,"") ->  | I24: =IF(ISNUMBER(A!$C24),(D24-A!$D24)^2,"") ->  | J24: =IF(ISNUMBER(A!$C24),(E24-A!$D24)^2,"") ->  | K24: =IF(ISNUMBER(A!$C24),(F24-A!$D24)^2,"") -> 
A25: 21 | B25: =IF(ISNUMBER(A!C25),A!G$2+A!G$3*A!C25+A!G$4*A!C25^2,"") ->  | C25: =IF(ISNUMBER(A!C25),IF(A!C25<(A!H$3/(-2*A!H$4)),A!H$2+A!H$3*A!C25+A!H$4*A!C25^2,A!H$2+A!H$3*(A!H$3/(-2*A!H$4))+A!H$4*(A!H$3/(-2*A!H$4))^2),"") ->  | D25: =IF(ISNUMBER(A!C25),A!I$2+A!I$3*EXP(A!I$4*A!C25),"") ->  | E25: =IF(ISNUMBER(A!C25),IF((A!J$2+A!J$3*A!C25)<A!J$4,A!J$2+A!J$3*A!C25,A!J$4),"") ->  | F25: =IF(ISNUMBER(A!C25),IF(A!C25<A!K$4,A!K$2+A!K$3*(3*A!C25/(2*A!K$4)-0.5*(A!C25/A!K$4)^3),A!K$3+A!K$2),"") ->  | G25: =IF(ISNUMBER(A!$C25),(B25-A!$D25)^2,"") ->  | H25: =IF(ISNUMBER(A!$C25),(C25-A!$D25)^2,"") ->  | I25: =IF(ISNUMBER(A!$C25),(D25-A!$D25)^2,"") ->  | J25: =IF(ISNUMBER(A!$C25),(E25-A!$D25)^2,"") ->  | K25: =IF(ISNUMBER(A!$C25),(F25-A!$D25)^2,"") ->  | N25: Initialization
A26: 22 | B26: =IF(ISNUMBER(A!C26),A!G$2+A!G$3*A!C26+A!G$4*A!C26^2,"") ->  | C26: =IF(ISNUMBER(A!C26),IF(A!C26<(A!H$3/(-2*A!H$4)),A!H$2+A!H$3*A!C26+A!H$4*A!C26^2,A!H$2+A!H$3*(A!H$3/(-2*A!H$4))+A!H$4*(A!H$3/(-2*A!H$4))^2),"") ->  | D26: =IF(ISNUMBER(A!C26),A!I$2+A!I$3*EXP(A!I$4*A!C26),"") ->  | E26: =IF(ISNUMBER(A!C26),IF((A!J$2+A!J$3*A!C26)<A!J$4,A!J$2+A!J$3*A!C26,A!J$4),"") ->  | F26: =IF(ISNUMBER(A!C26),IF(A!C26<A!K$4,A!K$2+A!K$3*(3*A!C26/(2*A!K$4)-0.5*(A!C26/A!K$4)^3),A!K$3+A!K$2),"") ->  | G26: =IF(ISNUMBER(A!$C26),(B26-A!$D26)^2,"") ->  | H26: =IF(ISNUMBER(A!$C26),(C26-A!$D26)^2,"") ->  | I26: =IF(ISNUMBER(A!$C26),(D26-A!$D26)^2,"") ->  | J26: =IF(ISNUMBER(A!$C26),(E26-A!$D26)^2,"") ->  | K26: =IF(ISNUMBER(A!$C26),(F26-A!$D26)^2,"") ->  | N26: Mean
A27: 23 | B27: =IF(ISNUMBER(A!C27),A!G$2+A!G$3*A!C27+A!G$4*A!C27^2,"") ->  | C27: =IF(ISNUMBER(A!C27),IF(A!C27<(A!H$3/(-2*A!H$4)),A!H$2+A!H$3*A!C27+A!H$4*A!C27^2,A!H$2+A!H$3*(A!H$3/(-2*A!H$4))+A!H$4*(A!H$3/(-2*A!H$4))^2),"") ->  | D27: =IF(ISNUMBER(A!C27),A!I$2+A!I$3*EXP(A!I$4*A!C27),"") ->  | E27: =IF(ISNUMBER(A!C27),IF((A!J$2+A!J$3*A!C27)<A!J$4,A!J$2+A!J$3*A!C27,A!J$4),"") ->  | F27: =IF(ISNUMBER(A!C27),IF(A!C27<A!K$4,A!K$2+A!K$3*(3*A!C27/(2*A!K$4)-0.5*(A!C27/A!K$4)^3),A!K$3+A!K$2),"") ->  | G27: =IF(ISNUMBER(A!$C27),(B27-A!$D27)^2,"") ->  | H27: =IF(ISNUMBER(A!$C27),(C27-A!$D27)^2,"") ->  | I27: =IF(ISNUMBER(A!$C27),(D27-A!$D27)^2,"") ->  | J27: =IF(ISNUMBER(A!$C27),(E27-A!$D27)^2,"") ->  | K27: =IF(ISNUMBER(A!$C27),(F27-A!$D27)^2,"") ->  | N27: Q | O27: QP | P27: M | Q27: LP | R27: S
A28: 24 | B28: =IF(ISNUMBER(A!C28),A!G$2+A!G$3*A!C28+A!G$4*A!C28^2,"") ->  | C28: =IF(ISNUMBER(A!C28),IF(A!C28<(A!H$3/(-2*A!H$4)),A!H$2+A!H$3*A!C28+A!H$4*A!C28^2,A!H$2+A!H$3*(A!H$3/(-2*A!H$4))+A!H$4*(A!H$3/(-2*A!H$4))^2),"") ->  | D28: =IF(ISNUMBER(A!C28),A!I$2+A!I$3*EXP(A!I$4*A!C28),"") ->  | E28: =IF(ISNUMBER(A!C28),IF((A!J$2+A!J$3*A!C28)<A!J$4,A!J$2+A!J$3*A!C28,A!J$4),"") ->  | F28: =IF(ISNUMBER(A!C28),IF(A!C28<A!K$4,A!K$2+A!K$3*(3*A!C28/(2*A!K$4)-0.5*(A!C28/A!K$4)^3),A!K$3+A!K$2),"") ->  | G28: =IF(ISNUMBER(A!$C28),(B28-A!$D28)^2,"") ->  | H28: =IF(ISNUMBER(A!$C28),(C28-A!$D28)^2,"") ->  | I28: =IF(ISNUMBER(A!$C28),(D28-A!$D28)^2,"") ->  | J28: =IF(ISNUMBER(A!$C28),(E28-A!$D28)^2,"") ->  | K28: =IF(ISNUMBER(A!$C28),(F28-A!$D28)^2,"") ->  | M28: A | N28: =AVERAGE(N8,S8) -> 40 | O28: =N28 -> 40 | P28: =AVERAGE(P8,U8) -> 171 | Q28: 40 | R28: 40
A29: 25 | B29: =IF(ISNUMBER(A!C29),A!G$2+A!G$3*A!C29+A!G$4*A!C29^2,"") ->  | C29: =IF(ISNUMBER(A!C29),IF(A!C29<(A!H$3/(-2*A!H$4)),A!H$2+A!H$3*A!C29+A!H$4*A!C29^2,A!H$2+A!H$3*(A!H$3/(-2*A!H$4))+A!H$4*(A!H$3/(-2*A!H$4))^2),"") ->  | D29: =IF(ISNUMBER(A!C29),A!I$2+A!I$3*EXP(A!I$4*A!C29),"") ->  | E29: =IF(ISNUMBER(A!C29),IF((A!J$2+A!J$3*A!C29)<A!J$4,A!J$2+A!J$3*A!C29,A!J$4),"") ->  | F29: =IF(ISNUMBER(A!C29),IF(A!C29<A!K$4,A!K$2+A!K$3*(3*A!C29/(2*A!K$4)-0.5*(A!C29/A!K$4)^3),A!K$3+A!K$2),"") ->  | G29: =IF(ISNUMBER(A!$C29),(B29-A!$D29)^2,"") ->  | H29: =IF(ISNUMBER(A!$C29),(C29-A!$D29)^2,"") ->  | I29: =IF(ISNUMBER(A!$C29),(D29-A!$D29)^2,"") ->  | J29: =IF(ISNUMBER(A!$C29),(E29-A!$D29)^2,"") ->  | K29: =IF(ISNUMBER(A!$C29),(F29-A!$D29)^2,"") ->  | M29: B | N29: =AVERAGE(N9,S9) -> 0.7684615385 | O29: =N29 -> 0.7684615385 | P29: -88.25 | Q29: 0.6403846154 | R29: 88.25
A30: 26 | B30: =IF(ISNUMBER(A!C30),A!G$2+A!G$3*A!C30+A!G$4*A!C30^2,"") ->  | C30: =IF(ISNUMBER(A!C30),IF(A!C30<(A!H$3/(-2*A!H$4)),A!H$2+A!H$3*A!C30+A!H$4*A!C30^2,A!H$2+A!H$3*(A!H$3/(-2*A!H$4))+A!H$4*(A!H$3/(-2*A!H$4))^2),"") ->  | D30: =IF(ISNUMBER(A!C30),A!I$2+A!I$3*EXP(A!I$4*A!C30),"") ->  | E30: =IF(ISNUMBER(A!C30),IF((A!J$2+A!J$3*A!C30)<A!J$4,A!J$2+A!J$3*A!C30,A!J$4),"") ->  | F30: =IF(ISNUMBER(A!C30),IF(A!C30<A!K$4,A!K$2+A!K$3*(3*A!C30/(2*A!K$4)-0.5*(A!C30/A!K$4)^3),A!K$3+A!K$2),"") ->  | G30: =IF(ISNUMBER(A!$C30),(B30-A!$D30)^2,"") ->  | H30: =IF(ISNUMBER(A!$C30),(C30-A!$D30)^2,"") ->  | I30: =IF(ISNUMBER(A!$C30),(D30-A!$D30)^2,"") ->  | J30: =IF(ISNUMBER(A!$C30),(E30-A!$D30)^2,"") ->  | K30: =IF(ISNUMBER(A!$C30),(F30-A!$D30)^2,"") ->  | M30: C | N30: =AVERAGE(N10,S10)/10 -> -0.050000005 | O30: =N30 -> -0.050000005 | P30: =AVERAGE(P10,U10) -> -0.00754679221 | Q30: =AVERAGE(Q10,V10) -> 128.25 | R30: =M48 -> 254.2405465
A31: 27 | B31: =IF(ISNUMBER(A!C31),A!G$2+A!G$3*A!C31+A!G$4*A!C31^2,"") ->  | C31: =IF(ISNUMBER(A!C31),IF(A!C31<(A!H$3/(-2*A!H$4)),A!H$2+A!H$3*A!C31+A!H$4*A!C31^2,A!H$2+A!H$3*(A!H$3/(-2*A!H$4))+A!H$4*(A!H$3/(-2*A!H$4))^2),"") ->  | D31: =IF(ISNUMBER(A!C31),A!I$2+A!I$3*EXP(A!I$4*A!C31),"") ->  | E31: =IF(ISNUMBER(A!C31),IF((A!J$2+A!J$3*A!C31)<A!J$4,A!J$2+A!J$3*A!C31,A!J$4),"") ->  | F31: =IF(ISNUMBER(A!C31),IF(A!C31<A!K$4,A!K$2+A!K$3*(3*A!C31/(2*A!K$4)-0.5*(A!C31/A!K$4)^3),A!K$3+A!K$2),"") ->  | G31: =IF(ISNUMBER(A!$C31),(B31-A!$D31)^2,"") ->  | H31: =IF(ISNUMBER(A!$C31),(C31-A!$D31)^2,"") ->  | I31: =IF(ISNUMBER(A!$C31),(D31-A!$D31)^2,"") ->  | J31: =IF(ISNUMBER(A!$C31),(E31-A!$D31)^2,"") ->  | K31: =IF(ISNUMBER(A!$C31),(F31-A!$D31)^2,"") -> 
A32: 28 | B32: =IF(ISNUMBER(A!C32),A!G$2+A!G$3*A!C32+A!G$4*A!C32^2,"") ->  | C32: =IF(ISNUMBER(A!C32),IF(A!C32<(A!H$3/(-2*A!H$4)),A!H$2+A!H$3*A!C32+A!H$4*A!C32^2,A!H$2+A!H$3*(A!H$3/(-2*A!H$4))+A!H$4*(A!H$3/(-2*A!H$4))^2),"") ->  | D32: =IF(ISNUMBER(A!C32),A!I$2+A!I$3*EXP(A!I$4*A!C32),"") ->  | E32: =IF(ISNUMBER(A!C32),IF((A!J$2+A!J$3*A!C32)<A!J$4,A!J$2+A!J$3*A!C32,A!J$4),"") ->  | F32: =IF(ISNUMBER(A!C32),IF(A!C32<A!K$4,A!K$2+A!K$3*(3*A!C32/(2*A!K$4)-0.5*(A!C32/A!K$4)^3),A!K$3+A!K$2),"") ->  | G32: =IF(ISNUMBER(A!$C32),(B32-A!$D32)^2,"") ->  | H32: =IF(ISNUMBER(A!$C32),(C32-A!$D32)^2,"") ->  | I32: =IF(ISNUMBER(A!$C32),(D32-A!$D32)^2,"") ->  | J32: =IF(ISNUMBER(A!$C32),(E32-A!$D32)^2,"") ->  | K32: =IF(ISNUMBER(A!$C32),(F32-A!$D32)^2,"") -> 
A33: 29 | B33: =IF(ISNUMBER(A!C33),A!G$2+A!G$3*A!C33+A!G$4*A!C33^2,"") ->  | C33: =IF(ISNUMBER(A!C33),IF(A!C33<(A!H$3/(-2*A!H$4)),A!H$2+A!H$3*A!C33+A!H$4*A!C33^2,A!H$2+A!H$3*(A!H$3/(-2*A!H$4))+A!H$4*(A!H$3/(-2*A!H$4))^2),"") ->  | D33: =IF(ISNUMBER(A!C33),A!I$2+A!I$3*EXP(A!I$4*A!C33),"") ->  | E33: =IF(ISNUMBER(A!C33),IF((A!J$2+A!J$3*A!C33)<A!J$4,A!J$2+A!J$3*A!C33,A!J$4),"") ->  | F33: =IF(ISNUMBER(A!C33),IF(A!C33<A!K$4,A!K$2+A!K$3*(3*A!C33/(2*A!K$4)-0.5*(A!C33/A!K$4)^3),A!K$3+A!K$2),"") ->  | G33: =IF(ISNUMBER(A!$C33),(B33-A!$D33)^2,"") ->  | H33: =IF(ISNUMBER(A!$C33),(C33-A!$D33)^2,"") ->  | I33: =IF(ISNUMBER(A!$C33),(D33-A!$D33)^2,"") ->  | J33: =IF(ISNUMBER(A!$C33),(E33-A!$D33)^2,"") ->  | K33: =IF(ISNUMBER(A!$C33),(F33-A!$D33)^2,"") -> 
A34: 30 | B34: =IF(ISNUMBER(A!C34),A!G$2+A!G$3*A!C34+A!G$4*A!C34^2,"") ->  | C34: =IF(ISNUMBER(A!C34),IF(A!C34<(A!H$3/(-2*A!H$4)),A!H$2+A!H$3*A!C34+A!H$4*A!C34^2,A!H$2+A!H$3*(A!H$3/(-2*A!H$4))+A!H$4*(A!H$3/(-2*A!H$4))^2),"") ->  | D34: =IF(ISNUMBER(A!C34),A!I$2+A!I$3*EXP(A!I$4*A!C34),"") ->  | E34: =IF(ISNUMBER(A!C34),IF((A!J$2+A!J$3*A!C34)<A!J$4,A!J$2+A!J$3*A!C34,A!J$4),"") ->  | F34: =IF(ISNUMBER(A!C34),IF(A!C34<A!K$4,A!K$2+A!K$3*(3*A!C34/(2*A!K$4)-0.5*(A!C34/A!K$4)^3),A!K$3+A!K$2),"") ->  | G34: =IF(ISNUMBER(A!$C34),(B34-A!$D34)^2,"") ->  | H34: =IF(ISNUMBER(A!$C34),(C34-A!$D34)^2,"") ->  | I34: =IF(ISNUMBER(A!$C34),(D34-A!$D34)^2,"") ->  | J34: =IF(ISNUMBER(A!$C34),(E34-A!$D34)^2,"") ->  | K34: =IF(ISNUMBER(A!$C34),(F34-A!$D34)^2,"") -> 
A35: 31 | B35: =IF(ISNUMBER(A!C35),A!G$2+A!G$3*A!C35+A!G$4*A!C35^2,"") ->  | C35: =IF(ISNUMBER(A!C35),IF(A!C35<(A!H$3/(-2*A!H$4)),A!H$2+A!H$3*A!C35+A!H$4*A!C35^2,A!H$2+A!H$3*(A!H$3/(-2*A!H$4))+A!H$4*(A!H$3/(-2*A!H$4))^2),"") ->  | D35: =IF(ISNUMBER(A!C35),A!I$2+A!I$3*EXP(A!I$4*A!C35),"") ->  | E35: =IF(ISNUMBER(A!C35),IF((A!J$2+A!J$3*A!C35)<A!J$4,A!J$2+A!J$3*A!C35,A!J$4),"") ->  | F35: =IF(ISNUMBER(A!C35),IF(A!C35<A!K$4,A!K$2+A!K$3*(3*A!C35/(2*A!K$4)-0.5*(A!C35/A!K$4)^3),A!K$3+A!K$2),"") ->  | G35: =IF(ISNUMBER(A!$C35),(B35-A!$D35)^2,"") ->  | H35: =IF(ISNUMBER(A!$C35),(C35-A!$D35)^2,"") ->  | I35: =IF(ISNUMBER(A!$C35),(D35-A!$D35)^2,"") ->  | J35: =IF(ISNUMBER(A!$C35),(E35-A!$D35)^2,"") ->  | K35: =IF(ISNUMBER(A!$C35),(F35-A!$D35)^2,"") -> 
A36: 32 | B36: =IF(ISNUMBER(A!C36),A!G$2+A!G$3*A!C36+A!G$4*A!C36^2,"") ->  | C36: =IF(ISNUMBER(A!C36),IF(A!C36<(A!H$3/(-2*A!H$4)),A!H$2+A!H$3*A!C36+A!H$4*A!C36^2,A!H$2+A!H$3*(A!H$3/(-2*A!H$4))+A!H$4*(A!H$3/(-2*A!H$4))^2),"") ->  | D36: =IF(ISNUMBER(A!C36),A!I$2+A!I$3*EXP(A!I$4*A!C36),"") ->  | E36: =IF(ISNUMBER(A!C36),IF((A!J$2+A!J$3*A!C36)<A!J$4,A!J$2+A!J$3*A!C36,A!J$4),"") ->  | F36: =IF(ISNUMBER(A!C36),IF(A!C36<A!K$4,A!K$2+A!K$3*(3*A!C36/(2*A!K$4)-0.5*(A!C36/A!K$4)^3),A!K$3+A!K$2),"") ->  | G36: =IF(ISNUMBER(A!$C36),(B36-A!$D36)^2,"") ->  | H36: =IF(ISNUMBER(A!$C36),(C36-A!$D36)^2,"") ->  | I36: =IF(ISNUMBER(A!$C36),(D36-A!$D36)^2,"") ->  | J36: =IF(ISNUMBER(A!$C36),(E36-A!$D36)^2,"") ->  | K36: =IF(ISNUMBER(A!$C36),(F36-A!$D36)^2,"") -> 
A37: 33 | B37: =IF(ISNUMBER(A!C37),A!G$2+A!G$3*A!C37+A!G$4*A!C37^2,"") ->  | C37: =IF(ISNUMBER(A!C37),IF(A!C37<(A!H$3/(-2*A!H$4)),A!H$2+A!H$3*A!C37+A!H$4*A!C37^2,A!H$2+A!H$3*(A!H$3/(-2*A!H$4))+A!H$4*(A!H$3/(-2*A!H$4))^2),"") ->  | D37: =IF(ISNUMBER(A!C37),A!I$2+A!I$3*EXP(A!I$4*A!C37),"") ->  | E37: =IF(ISNUMBER(A!C37),IF((A!J$2+A!J$3*A!C37)<A!J$4,A!J$2+A!J$3*A!C37,A!J$4),"") ->  | F37: =IF(ISNUMBER(A!C37),IF(A!C37<A!K$4,A!K$2+A!K$3*(3*A!C37/(2*A!K$4)-0.5*(A!C37/A!K$4)^3),A!K$3+A!K$2),"") ->  | G37: =IF(ISNUMBER(A!$C37),(B37-A!$D37)^2,"") ->  | H37: =IF(ISNUMBER(A!$C37),(C37-A!$D37)^2,"") ->  | I37: =IF(ISNUMBER(A!$C37),(D37-A!$D37)^2,"") ->  | J37: =IF(ISNUMBER(A!$C37),(E37-A!$D37)^2,"") ->  | K37: =IF(ISNUMBER(A!$C37),(F37-A!$D37)^2,"") -> 
A38: 34 | B38: =IF(ISNUMBER(A!C38),A!G$2+A!G$3*A!C38+A!G$4*A!C38^2,"") ->  | C38: =IF(ISNUMBER(A!C38),IF(A!C38<(A!H$3/(-2*A!H$4)),A!H$2+A!H$3*A!C38+A!H$4*A!C38^2,A!H$2+A!H$3*(A!H$3/(-2*A!H$4))+A!H$4*(A!H$3/(-2*A!H$4))^2),"") ->  | D38: =IF(ISNUMBER(A!C38),A!I$2+A!I$3*EXP(A!I$4*A!C38),"") ->  | E38: =IF(ISNUMBER(A!C38),IF((A!J$2+A!J$3*A!C38)<A!J$4,A!J$2+A!J$3*A!C38,A!J$4),"") ->  | F38: =IF(ISNUMBER(A!C38),IF(A!C38<A!K$4,A!K$2+A!K$3*(3*A!C38/(2*A!K$4)-0.5*(A!C38/A!K$4)^3),A!K$3+A!K$2),"") ->  | G38: =IF(ISNUMBER(A!$C38),(B38-A!$D38)^2,"") ->  | H38: =IF(ISNUMBER(A!$C38),(C38-A!$D38)^2,"") ->  | I38: =IF(ISNUMBER(A!$C38),(D38-A!$D38)^2,"") ->  | J38: =IF(ISNUMBER(A!$C38),(E38-A!$D38)^2,"") ->  | K38: =IF(ISNUMBER(A!$C38),(F38-A!$D38)^2,"") -> 
A39: 35 | B39: =IF(ISNUMBER(A!C39),A!G$2+A!G$3*A!C39+A!G$4*A!C39^2,"") ->  | C39: =IF(ISNUMBER(A!C39),IF(A!C39<(A!H$3/(-2*A!H$4)),A!H$2+A!H$3*A!C39+A!H$4*A!C39^2,A!H$2+A!H$3*(A!H$3/(-2*A!H$4))+A!H$4*(A!H$3/(-2*A!H$4))^2),"") ->  | D39: =IF(ISNUMBER(A!C39),A!I$2+A!I$3*EXP(A!I$4*A!C39),"") ->  | E39: =IF(ISNUMBER(A!C39),IF((A!J$2+A!J$3*A!C39)<A!J$4,A!J$2+A!J$3*A!C39,A!J$4),"") ->  | F39: =IF(ISNUMBER(A!C39),IF(A!C39<A!K$4,A!K$2+A!K$3*(3*A!C39/(2*A!K$4)-0.5*(A!C39/A!K$4)^3),A!K$3+A!K$2),"") ->  | G39: =IF(ISNUMBER(A!$C39),(B39-A!$D39)^2,"") ->  | H39: =IF(ISNUMBER(A!$C39),(C39-A!$D39)^2,"") ->  | I39: =IF(ISNUMBER(A!$C39),(D39-A!$D39)^2,"") ->  | J39: =IF(ISNUMBER(A!$C39),(E39-A!$D39)^2,"") ->  | K39: =IF(ISNUMBER(A!$C39),(F39-A!$D39)^2,"") -> 
A40: 36 | B40: =IF(ISNUMBER(A!C40),A!G$2+A!G$3*A!C40+A!G$4*A!C40^2,"") ->  | C40: =IF(ISNUMBER(A!C40),IF(A!C40<(A!H$3/(-2*A!H$4)),A!H$2+A!H$3*A!C40+A!H$4*A!C40^2,A!H$2+A!H$3*(A!H$3/(-2*A!H$4))+A!H$4*(A!H$3/(-2*A!H$4))^2),"") ->  | D40: =IF(ISNUMBER(A!C40),A!I$2+A!I$3*EXP(A!I$4*A!C40),"") ->  | E40: =IF(ISNUMBER(A!C40),IF((A!J$2+A!J$3*A!C40)<A!J$4,A!J$2+A!J$3*A!C40,A!J$4),"") ->  | F40: =IF(ISNUMBER(A!C40),IF(A!C40<A!K$4,A!K$2+A!K$3*(3*A!C40/(2*A!K$4)-0.5*(A!C40/A!K$4)^3),A!K$3+A!K$2),"") ->  | G40: =IF(ISNUMBER(A!$C40),(B40-A!$D40)^2,"") ->  | H40: =IF(ISNUMBER(A!$C40),(C40-A!$D40)^2,"") ->  | I40: =IF(ISNUMBER(A!$C40),(D40-A!$D40)^2,"") ->  | J40: =IF(ISNUMBER(A!$C40),(E40-A!$D40)^2,"") ->  | K40: =IF(ISNUMBER(A!$C40),(F40-A!$D40)^2,"") -> 
A41: 37 | B41: =IF(ISNUMBER(A!C41),A!G$2+A!G$3*A!C41+A!G$4*A!C41^2,"") ->  | C41: =IF(ISNUMBER(A!C41),IF(A!C41<(A!H$3/(-2*A!H$4)),A!H$2+A!H$3*A!C41+A!H$4*A!C41^2,A!H$2+A!H$3*(A!H$3/(-2*A!H$4))+A!H$4*(A!H$3/(-2*A!H$4))^2),"") ->  | D41: =IF(ISNUMBER(A!C41),A!I$2+A!I$3*EXP(A!I$4*A!C41),"") ->  | E41: =IF(ISNUMBER(A!C41),IF((A!J$2+A!J$3*A!C41)<A!J$4,A!J$2+A!J$3*A!C41,A!J$4),"") ->  | F41: =IF(ISNUMBER(A!C41),IF(A!C41<A!K$4,A!K$2+A!K$3*(3*A!C41/(2*A!K$4)-0.5*(A!C41/A!K$4)^3),A!K$3+A!K$2),"") ->  | G41: =IF(ISNUMBER(A!$C41),(B41-A!$D41)^2,"") ->  | H41: =IF(ISNUMBER(A!$C41),(C41-A!$D41)^2,"") ->  | I41: =IF(ISNUMBER(A!$C41),(D41-A!$D41)^2,"") ->  | J41: =IF(ISNUMBER(A!$C41),(E41-A!$D41)^2,"") ->  | K41: =IF(ISNUMBER(A!$C41),(F41-A!$D41)^2,"") -> 
A42: 38 | B42: =IF(ISNUMBER(A!C42),A!G$2+A!G$3*A!C42+A!G$4*A!C42^2,"") ->  | C42: =IF(ISNUMBER(A!C42),IF(A!C42<(A!H$3/(-2*A!H$4)),A!H$2+A!H$3*A!C42+A!H$4*A!C42^2,A!H$2+A!H$3*(A!H$3/(-2*A!H$4))+A!H$4*(A!H$3/(-2*A!H$4))^2),"") ->  | D42: =IF(ISNUMBER(A!C42),A!I$2+A!I$3*EXP(A!I$4*A!C42),"") ->  | E42: =IF(ISNUMBER(A!C42),IF((A!J$2+A!J$3*A!C42)<A!J$4,A!J$2+A!J$3*A!C42,A!J$4),"") ->  | F42: =IF(ISNUMBER(A!C42),IF(A!C42<A!K$4,A!K$2+A!K$3*(3*A!C42/(2*A!K$4)-0.5*(A!C42/A!K$4)^3),A!K$3+A!K$2),"") ->  | G42: =IF(ISNUMBER(A!$C42),(B42-A!$D42)^2,"") ->  | H42: =IF(ISNUMBER(A!$C42),(C42-A!$D42)^2,"") ->  | I42: =IF(ISNUMBER(A!$C42),(D42-A!$D42)^2,"") ->  | J42: =IF(ISNUMBER(A!$C42),(E42-A!$D42)^2,"") ->  | K42: =IF(ISNUMBER(A!$C42),(F42-A!$D42)^2,"") -> 
A43: 39 | B43: =IF(ISNUMBER(A!C43),A!G$2+A!G$3*A!C43+A!G$4*A!C43^2,"") ->  | C43: =IF(ISNUMBER(A!C43),IF(A!C43<(A!H$3/(-2*A!H$4)),A!H$2+A!H$3*A!C43+A!H$4*A!C43^2,A!H$2+A!H$3*(A!H$3/(-2*A!H$4))+A!H$4*(A!H$3/(-2*A!H$4))^2),"") ->  | D43: =IF(ISNUMBER(A!C43),A!I$2+A!I$3*EXP(A!I$4*A!C43),"") ->  | E43: =IF(ISNUMBER(A!C43),IF((A!J$2+A!J$3*A!C43)<A!J$4,A!J$2+A!J$3*A!C43,A!J$4),"") ->  | F43: =IF(ISNUMBER(A!C43),IF(A!C43<A!K$4,A!K$2+A!K$3*(3*A!C43/(2*A!K$4)-0.5*(A!C43/A!K$4)^3),A!K$3+A!K$2),"") ->  | G43: =IF(ISNUMBER(A!$C43),(B43-A!$D43)^2,"") ->  | H43: =IF(ISNUMBER(A!$C43),(C43-A!$D43)^2,"") ->  | I43: =IF(ISNUMBER(A!$C43),(D43-A!$D43)^2,"") ->  | J43: =IF(ISNUMBER(A!$C43),(E43-A!$D43)^2,"") ->  | K43: =IF(ISNUMBER(A!$C43),(F43-A!$D43)^2,"") -> 
A44: 40 | B44: =IF(ISNUMBER(A!C44),A!G$2+A!G$3*A!C44+A!G$4*A!C44^2,"") ->  | C44: =IF(ISNUMBER(A!C44),IF(A!C44<(A!H$3/(-2*A!H$4)),A!H$2+A!H$3*A!C44+A!H$4*A!C44^2,A!H$2+A!H$3*(A!H$3/(-2*A!H$4))+A!H$4*(A!H$3/(-2*A!H$4))^2),"") ->  | D44: =IF(ISNUMBER(A!C44),A!I$2+A!I$3*EXP(A!I$4*A!C44),"") ->  | E44: =IF(ISNUMBER(A!C44),IF((A!J$2+A!J$3*A!C44)<A!J$4,A!J$2+A!J$3*A!C44,A!J$4),"") ->  | F44: =IF(ISNUMBER(A!C44),IF(A!C44<A!K$4,A!K$2+A!K$3*(3*A!C44/(2*A!K$4)-0.5*(A!C44/A!K$4)^3),A!K$3+A!K$2),"") ->  | G44: =IF(ISNUMBER(A!$C44),(B44-A!$D44)^2,"") ->  | H44: =IF(ISNUMBER(A!$C44),(C44-A!$D44)^2,"") ->  | I44: =IF(ISNUMBER(A!$C44),(D44-A!$D44)^2,"") ->  | J44: =IF(ISNUMBER(A!$C44),(E44-A!$D44)^2,"") ->  | K44: =IF(ISNUMBER(A!$C44),(F44-A!$D44)^2,"") -> 
A45: WEIGHTS | B45: =(0.0001+(A!G5-MIN(A!$G5:$K5)))/(0.0001+(MAX(A!$G5:$K5)-MIN(A!$G5:$K5))) -> 0.8095405796 | C45: =(0.0001+(A!H5-MIN(A!$G5:$K5)))/(0.0001+(MAX(A!$G5:$K5)-MIN(A!$G5:$K5))) -> 0.7965332679 | D45: =(0.0001+(A!I5-MIN(A!$G5:$K5)))/(0.0001+(MAX(A!$G5:$K5)-MIN(A!$G5:$K5))) -> 0.01065949472 | E45: =(0.0001+(A!J5-MIN(A!$G5:$K5)))/(0.0001+(MAX(A!$G5:$K5)-MIN(A!$G5:$K5))) -> 0.8060447671 | F45: =(0.0001+(A!K5-MIN(A!$G5:$K5)))/(0.0001+(MAX(A!$G5:$K5)-MIN(A!$G5:$K5))) -> 1
B47: Nrate | C47: Q yield | D47: QP yield | E47: M yield | F47: LP yield | G47: S yield | H47: mean yield | M47: Maximum rate for curves
A48: 0 | B48: =IF(A48<MAX($M$48),A48,MAX($M$48)) -> 0 | C48: =A!G$2+A!G$3*B48+A!G$4*B48^2 -> 37.96311758 | D48: =IF(B48<(A!H$3/(-2*A!H$4)),A!H$2+A!H$3*B48+A!H$4*B48^2,A!H$2+A!H$3*(A!H$3/(-2*A!H$4))+A!H$3*A!H$3/(4*A!H$4)) -> 38.0958687 | E48: =A!I$2+A!I$3*EXP(A!I$4*B48) -> 37.89754386 | F48: =IF((A!J$2+A!J$3*B48)<A!J$4,A!J$2+A!J$3*B48,A!J$4) -> 43.72095679 | G48: =IF(B48<A!K$4,A!K$2+A!K$3*(3*B48/(2*A!K$4)-0.5*(B48/A!K$4)^3),A!K$3+A!K$2) -> 40.28930004 | H48: =(C48*B$45+'C'!D48*C$45+'C'!E48*D$45+'C'!F48*E$45+'C'!G48*F$45)/SUM(B$45:F$45) -> 40.02936321 | M48: =MAX(A!C5:C44,A!G6:K6) -> 254.2405465
A49: 2 | B49: =IF(A49<MAX($M$48),A49,MAX($M$48)) -> 2 | C49: =A!G$2+A!G$3*B49+A!G$4*B49^2 -> 40.32077129 | D49: =IF(B49<(A!H$3/(-2*A!H$4)),A!H$2+A!H$3*B49+A!H$4*B49^2,A!H$2+A!H$3*(A!H$3/(-2*A!H$4))+A!H$3*A!H$3/(4*A!H$4)) -> 40.44354779 | E49: =A!I$2+A!I$3*EXP(A!I$4*B49) -> 40.78882033 | F49: =IF((A!J$2+A!J$3*B49)<A!J$4,A!J$2+A!J$3*B49,A!J$4) -> 45.31785338 | G49: =IF(B49<A!K$4,A!K$2+A!K$3*(3*B49/(2*A!K$4)-0.5*(B49/A!K$4)^3),A!K$3+A!K$2) -> 42.20644946 | H49: =(C49*B$45+'C'!D49*C$45+'C'!E49*D$45+'C'!F49*E$45+'C'!G49*F$45)/SUM(B$45:F$45) -> 42.07850567
A50: 4 | B50: 4 | C50: =A!G$2+A!G$3*B50+A!G$4*B50^2 -> 42.6574719 | D50: =IF(B50<(A!H$3/(-2*A!H$4)),A!H$2+A!H$3*B50+A!H$4*B50^2,A!H$2+A!H$3*(A!H$3/(-2*A!H$4))+A!H$3*A!H$3/(4*A!H$4)) -> 42.77043409 | E50: =A!I$2+A!I$3*EXP(A!I$4*B50) -> 43.624736 | F50: =IF((A!J$2+A!J$3*B50)<A!J$4,A!J$2+A!J$3*B50,A!J$4) -> 46.91474997 | G50: =IF(B50<A!K$4,A!K$2+A!K$3*(3*B50/(2*A!K$4)-0.5*(B50/A!K$4)^3),A!K$3+A!K$2) -> 44.12323085 | H50: =(C50*B$45+'C'!D50*C$45+'C'!E50*D$45+'C'!F50*E$45+'C'!G50*F$45)/SUM(B$45:F$45) -> 44.11757366
A51: 6 | B51: 6 | C51: =A!G$2+A!G$3*B51+A!G$4*B51^2 -> 44.97321939 | D51: =IF(B51<(A!H$3/(-2*A!H$4)),A!H$2+A!H$3*B51+A!H$4*B51^2,A!H$2+A!H$3*(A!H$3/(-2*A!H$4))+A!H$3*A!H$3/(4*A!H$4)) -> 45.07652763 | E51: =A!I$2+A!I$3*EXP(A!I$4*B51) -> 46.40635091 | F51: =IF((A!J$2+A!J$3*B51)<A!J$4,A!J$2+A!J$3*B51,A!J$4) -> 48.51164656 | G51: =IF(B51<A!K$4,A!K$2+A!K$3*(3*B51/(2*A!K$4)-0.5*(B51/A!K$4)^3),A!K$3+A!K$2) -> 46.03927614 | H51: =(C51*B$45+'C'!D51*C$45+'C'!E51*D$45+'C'!F51*E$45+'C'!G51*F$45)/SUM(B$45:F$45) -> 46.14646295 | M51: =ROUND(SUM(A!C5:D44),0) -> 2060 | N51: sum of yields and rates entered (to detect new data entry)
A52: 8 | B52: 8 | C52: =A!G$2+A!G$3*B52+A!G$4*B52^2 -> 47.26801377 | D52: =IF(B52<(A!H$3/(-2*A!H$4)),A!H$2+A!H$3*B52+A!H$4*B52^2,A!H$2+A!H$3*(A!H$3/(-2*A!H$4))+A!H$3*A!H$3/(4*A!H$4)) -> 47.36182838 | E52: =A!I$2+A!I$3*EXP(A!I$4*B52) -> 49.13470477 | F52: =IF((A!J$2+A!J$3*B52)<A!J$4,A!J$2+A!J$3*B52,A!J$4) -> 50.10854315 | G52: =IF(B52<A!K$4,A!K$2+A!K$3*(3*B52/(2*A!K$4)-0.5*(B52/A!K$4)^3),A!K$3+A!K$2) -> 47.95421732 | H52: =(C52*B$45+'C'!D52*C$45+'C'!E52*D$45+'C'!F52*E$45+'C'!G52*F$45)/SUM(B$45:F$45) -> 48.16506924 | M52: 2060 | N52: set by the FIT macro when finished
A53: 10 | B53: 10 | C53: =A!G$2+A!G$3*B53+A!G$4*B53^2 -> 49.54185505 | D53: =IF(B53<(A!H$3/(-2*A!H$4)),A!H$2+A!H$3*B53+A!H$4*B53^2,A!H$2+A!H$3*(A!H$3/(-2*A!H$4))+A!H$3*A!H$3/(4*A!H$4)) -> 49.62633636 | E53: =A!I$2+A!I$3*EXP(A!I$4*B53) -> 51.8108174 | F53: =IF((A!J$2+A!J$3*B53)<A!J$4,A!J$2+A!J$3*B53,A!J$4) -> 51.70543974 | G53: =IF(B53<A!K$4,A!K$2+A!K$3*(3*B53/(2*A!K$4)-0.5*(B53/A!K$4)^3),A!K$3+A!K$2) -> 49.86768632 | H53: =(C53*B$45+'C'!D53*C$45+'C'!E53*D$45+'C'!F53*E$45+'C'!G53*F$45)/SUM(B$45:F$45) -> 50.1732882 | M53: =M51=M52 -> TRUE | N53: detects whether the FIT macro has been run on the latest data entered.
A54: 12 | B54: 12 | C54: =A!G$2+A!G$3*B54+A!G$4*B54^2 -> 51.79474321 | D54: =IF(B54<(A!H$3/(-2*A!H$4)),A!H$2+A!H$3*B54+A!H$4*B54^2,A!H$2+A!H$3*(A!H$3/(-2*A!H$4))+A!H$3*A!H$3/(4*A!H$4)) -> 51.87005156 | E54: =A!I$2+A!I$3*EXP(A!I$4*B54) -> 54.4356891 | F54: =IF((A!J$2+A!J$3*B54)<A!J$4,A!J$2+A!J$3*B54,A!J$4) -> 53.30233633 | G54: =IF(B54<A!K$4,A!K$2+A!K$3*(3*B54/(2*A!K$4)-0.5*(B54/A!K$4)^3),A!K$3+A!K$2) -> 51.77931511 | H54: =(C54*B$45+'C'!D54*C$45+'C'!E54*D$45+'C'!F54*E$45+'C'!G54*F$45)/SUM(B$45:F$45) -> 52.1710154
A55: 14 | B55: 14 | C55: =A!G$2+A!G$3*B55+A!G$4*B55^2 -> 54.02667827 | D55: =IF(B55<(A!H$3/(-2*A!H$4)),A!H$2+A!H$3*B55+A!H$4*B55^2,A!H$2+A!H$3*(A!H$3/(-2*A!H$4))+A!H$3*A!H$3/(4*A!H$4)) -> 54.09297399 | E55: =A!I$2+A!I$3*EXP(A!I$4*B55) -> 57.010301 | F55: =IF((A!J$2+A!J$3*B55)<A!J$4,A!J$2+A!J$3*B55,A!J$4) -> 54.89923292 | G55: =IF(B55<A!K$4,A!K$2+A!K$3*(3*B55/(2*A!K$4)-0.5*(B55/A!K$4)^3),A!K$3+A!K$2) -> 53.68873564 | H55: =(C55*B$45+'C'!D55*C$45+'C'!E55*D$45+'C'!F55*E$45+'C'!G55*F$45)/SUM(B$45:F$45) -> 54.15814637
A56: 16 | B56: 16 | C56: =A!G$2+A!G$3*B56+A!G$4*B56^2 -> 56.23766021 | D56: =IF(B56<(A!H$3/(-2*A!H$4)),A!H$2+A!H$3*B56+A!H$4*B56^2,A!H$2+A!H$3*(A!H$3/(-2*A!H$4))+A!H$3*A!H$3/(4*A!H$4)) -> 56.29510364 | E56: =A!I$2+A!I$3*EXP(A!I$4*B56) -> 59.53561544 | F56: =IF((A!J$2+A!J$3*B56)<A!J$4,A!J$2+A!J$3*B56,A!J$4) -> 56.4961295 | G56: =IF(B56<A!K$4,A!K$2+A!K$3*(3*B56/(2*A!K$4)-0.5*(B56/A!K$4)^3),A!K$3+A!K$2) -> 55.59557988 | H56: =(C56*B$45+'C'!D56*C$45+'C'!E56*D$45+'C'!F56*E$45+'C'!G56*F$45)/SUM(B$45:F$45) -> 56.13457659
A57: 18 | B57: 18 | C57: =A!G$2+A!G$3*B57+A!G$4*B57^2 -> 58.42768905 | D57: =IF(B57<(A!H$3/(-2*A!H$4)),A!H$2+A!H$3*B57+A!H$4*B57^2,A!H$2+A!H$3*(A!H$3/(-2*A!H$4))+A!H$3*A!H$3/(4*A!H$4)) -> 58.47644051 | E57: =A!I$2+A!I$3*EXP(A!I$4*B57) -> 62.01257637 | F57: =IF((A!J$2+A!J$3*B57)<A!J$4,A!J$2+A!J$3*B57,A!J$4) -> 58.09302609 | G57: =IF(B57<A!K$4,A!K$2+A!K$3*(3*B57/(2*A!K$4)-0.5*(B57/A!K$4)^3),A!K$3+A!K$2) -> 57.49947977 | H57: =(C57*B$45+'C'!D57*C$45+'C'!E57*D$45+'C'!F57*E$45+'C'!G57*F$45)/SUM(B$45:F$45) -> 58.10020146
A58: 20 | B58: 20 | C58: =A!G$2+A!G$3*B58+A!G$4*B58^2 -> 60.59676478 | D58: =IF(B58<(A!H$3/(-2*A!H$4)),A!H$2+A!H$3*B58+A!H$4*B58^2,A!H$2+A!H$3*(A!H$3/(-2*A!H$4))+A!H$3*A!H$3/(4*A!H$4)) -> 60.63698461 | E58: =A!I$2+A!I$3*EXP(A!I$4*B58) -> 64.44210962 | F58: =IF((A!J$2+A!J$3*B58)<A!J$4,A!J$2+A!J$3*B58,A!J$4) -> 59.68992268 | G58: =IF(B58<A!K$4,A!K$2+A!K$3*(3*B58/(2*A!K$4)-0.5*(B58/A!K$4)^3),A!K$3+A!K$2) -> 59.40006729 | H58: =(C58*B$45+'C'!D58*C$45+'C'!E58*D$45+'C'!F58*E$45+'C'!G58*F$45)/SUM(B$45:F$45) -> 60.05491635
A59: 22 | B59: 22 | C59: =A!G$2+A!G$3*B59+A!G$4*B59^2 -> 62.74488739 | D59: =IF(B59<(A!H$3/(-2*A!H$4)),A!H$2+A!H$3*B59+A!H$4*B59^2,A!H$2+A!H$3*(A!H$3/(-2*A!H$4))+A!H$3*A!H$3/(4*A!H$4)) -> 62.77673593 | E59: =A!I$2+A!I$3*EXP(A!I$4*B59) -> 66.82512331 | F59: =IF((A!J$2+A!J$3*B59)<A!J$4,A!J$2+A!J$3*B59,A!J$4) -> 61.28681927 | G59: =IF(B59<A!K$4,A!K$2+A!K$3*(3*B59/(2*A!K$4)-0.5*(B59/A!K$4)^3),A!K$3+A!K$2) -> 61.29697438 | H59: =(C59*B$45+'C'!D59*C$45+'C'!E59*D$45+'C'!F59*E$45+'C'!G59*F$45)/SUM(B$45:F$45) -> 61.99861655
A60: 24 | B60: 24 | C60: =A!G$2+A!G$3*B60+A!G$4*B60^2 -> 64.8720569 | D60: =IF(B60<(A!H$3/(-2*A!H$4)),A!H$2+A!H$3*B60+A!H$4*B60^2,A!H$2+A!H$3*(A!H$3/(-2*A!H$4))+A!H$3*A!H$3/(4*A!H$4)) -> 64.89569447 | E60: =A!I$2+A!I$3*EXP(A!I$4*B60) -> 69.16250819 | F60: =IF((A!J$2+A!J$3*B60)<A!J$4,A!J$2+A!J$3*B60,A!J$4) -> 62.88371586 | G60: =IF(B60<A!K$4,A!K$2+A!K$3*(3*B60/(2*A!K$4)-0.5*(B60/A!K$4)^3),A!K$3+A!K$2) -> 63.189833 | H60: =(C60*B$45+'C'!D60*C$45+'C'!E60*D$45+'C'!F60*E$45+'C'!G60*F$45)/SUM(B$45:F$45) -> 63.9311973
A61: 26 | B61: 26 | C61: =A!G$2+A!G$3*B61+A!G$4*B61^2 -> 66.9782733 | D61: =IF(B61<(A!H$3/(-2*A!H$4)),A!H$2+A!H$3*B61+A!H$4*B61^2,A!H$2+A!H$3*(A!H$3/(-2*A!H$4))+A!H$3*A!H$3/(4*A!H$4)) -> 66.99386024 | E61: =A!I$2+A!I$3*EXP(A!I$4*B61) -> 71.45513793 | F61: =IF((A!J$2+A!J$3*B61)<A!J$4,A!J$2+A!J$3*B61,A!J$4) -> 64.48061245 | G61: =IF(B61<A!K$4,A!K$2+A!K$3*(3*B61/(2*A!K$4)-0.5*(B61/A!K$4)^3),A!K$3+A!K$2) -> 65.07827512 | H61: =(C61*B$45+'C'!D61*C$45+'C'!E61*D$45+'C'!F61*E$45+'C'!G61*F$45)/SUM(B$45:F$45) -> 65.85255382
A62: 28 | B62: 28 | C62: =A!G$2+A!G$3*B62+A!G$4*B62^2 -> 69.06353659 | D62: =IF(B62<(A!H$3/(-2*A!H$4)),A!H$2+A!H$3*B62+A!H$4*B62^2,A!H$2+A!H$3*(A!H$3/(-2*A!H$4))+A!H$3*A!H$3/(4*A!H$4)) -> 69.07123323 | E62: =A!I$2+A!I$3*EXP(A!I$4*B62) -> 73.70386949 | F62: =IF((A!J$2+A!J$3*B62)<A!J$4,A!J$2+A!J$3*B62,A!J$4) -> 66.07750904 | G62: =IF(B62<A!K$4,A!K$2+A!K$3*(3*B62/(2*A!K$4)-0.5*(B62/A!K$4)^3),A!K$3+A!K$2) -> 66.96193268 | H62: =(C62*B$45+'C'!D62*C$45+'C'!E62*D$45+'C'!F62*E$45+'C'!G62*F$45)/SUM(B$45:F$45) -> 67.76258122
A63: 30 | B63: 30 | C63: =A!G$2+A!G$3*B63+A!G$4*B63^2 -> 71.12784677 | D63: =IF(B63<(A!H$3/(-2*A!H$4)),A!H$2+A!H$3*B63+A!H$4*B63^2,A!H$2+A!H$3*(A!H$3/(-2*A!H$4))+A!H$3*A!H$3/(4*A!H$4)) -> 71.12781344 | E63: =A!I$2+A!I$3*EXP(A!I$4*B63) -> 75.90954339 | F63: =IF((A!J$2+A!J$3*B63)<A!J$4,A!J$2+A!J$3*B63,A!J$4) -> 67.67440563 | G63: =IF(B63<A!K$4,A!K$2+A!K$3*(3*B63/(2*A!K$4)-0.5*(B63/A!K$4)^3),A!K$3+A!K$2) -> 68.84043765 | H63: =(C63*B$45+'C'!D63*C$45+'C'!E63*D$45+'C'!F63*E$45+'C'!G63*F$45)/SUM(B$45:F$45) -> 69.66117461
A64: 32 | B64: 32 | C64: =A!G$2+A!G$3*B64+A!G$4*B64^2 -> 73.17120384 | D64: =IF(B64<(A!H$3/(-2*A!H$4)),A!H$2+A!H$3*B64+A!H$4*B64^2,A!H$2+A!H$3*(A!H$3/(-2*A!H$4))+A!H$3*A!H$3/(4*A!H$4)) -> 73.16360088 | E64: =A!I$2+A!I$3*EXP(A!I$4*B64) -> 78.0729841 | F64: =IF((A!J$2+A!J$3*B64)<A!J$4,A!J$2+A!J$3*B64,A!J$4) -> 69.27130222 | G64: =IF(B64<A!K$4,A!K$2+A!K$3*(3*B64/(2*A!K$4)-0.5*(B64/A!K$4)^3),A!K$3+A!K$2) -> 70.71342198 | H64: =(C64*B$45+'C'!D64*C$45+'C'!E64*D$45+'C'!F64*E$45+'C'!G64*F$45)/SUM(B$45:F$45) -> 71.54822903
A65: 34 | B65: 34 | C65: =A!G$2+A!G$3*B65+A!G$4*B65^2 -> 75.1936078 | D65: =IF(B65<(A!H$3/(-2*A!H$4)),A!H$2+A!H$3*B65+A!H$4*B65^2,A!H$2+A!H$3*(A!H$3/(-2*A!H$4))+A!H$3*A!H$3/(4*A!H$4)) -> 75.17859554 | E65: =A!I$2+A!I$3*EXP(A!I$4*B65) -> 80.19500027 | F65: =IF((A!J$2+A!J$3*B65)<A!J$4,A!J$2+A!J$3*B65,A!J$4) -> 70.86819881 | G65: =IF(B65<A!K$4,A!K$2+A!K$3*(3*B65/(2*A!K$4)-0.5*(B65/A!K$4)^3),A!K$3+A!K$2) -> 72.58051763 | H65: =(C65*B$45+'C'!D65*C$45+'C'!E65*D$45+'C'!F65*E$45+'C'!G65*F$45)/SUM(B$45:F$45) -> 73.42363946
A66: 36 | B66: 36 | C66: =A!G$2+A!G$3*B66+A!G$4*B66^2 -> 77.19505865 | D66: =IF(B66<(A!H$3/(-2*A!H$4)),A!H$2+A!H$3*B66+A!H$4*B66^2,A!H$2+A!H$3*(A!H$3/(-2*A!H$4))+A!H$3*A!H$3/(4*A!H$4)) -> 77.17279742 | E66: =A!I$2+A!I$3*EXP(A!I$4*B66) -> 82.27638508 | F66: =IF((A!J$2+A!J$3*B66)<A!J$4,A!J$2+A!J$3*B66,A!J$4) -> 72.4650954 | G66: =IF(B66<A!K$4,A!K$2+A!K$3*(3*B66/(2*A!K$4)-0.5*(B66/A!K$4)^3),A!K$3+A!K$2) -> 74.44135656 | H66: =(C66*B$45+'C'!D66*C$45+'C'!E66*D$45+'C'!F66*E$45+'C'!G66*F$45)/SUM(B$45:F$45) -> 75.28730084
A67: 38 | B67: 38 | C67: =A!G$2+A!G$3*B67+A!G$4*B67^2 -> 79.17555639 | D67: =IF(B67<(A!H$3/(-2*A!H$4)),A!H$2+A!H$3*B67+A!H$4*B67^2,A!H$2+A!H$3*(A!H$3/(-2*A!H$4))+A!H$3*A!H$3/(4*A!H$4)) -> 79.14620653 | E67: =A!I$2+A!I$3*EXP(A!I$4*B67) -> 84.31791652 | F67: =IF((A!J$2+A!J$3*B67)<A!J$4,A!J$2+A!J$3*B67,A!J$4) -> 74.06199199 | G67: =IF(B67<A!K$4,A!K$2+A!K$3*(3*B67/(2*A!K$4)-0.5*(B67/A!K$4)^3),A!K$3+A!K$2) -> 76.29557073 | H67: =(C67*B$45+'C'!D67*C$45+'C'!E67*D$45+'C'!F67*E$45+'C'!G67*F$45)/SUM(B$45:F$45) -> 77.13910809
A68: 40 | B68: 40 | C68: =A!G$2+A!G$3*B68+A!G$4*B68^2 -> 81.13510102 | D68: =IF(B68<(A!H$3/(-2*A!H$4)),A!H$2+A!H$3*B68+A!H$4*B68^2,A!H$2+A!H$3*(A!H$3/(-2*A!H$4))+A!H$3*A!H$3/(4*A!H$4)) -> 81.09882286 | E68: =A!I$2+A!I$3*EXP(A!I$4*B68) -> 86.32035768 | F68: =IF((A!J$2+A!J$3*B68)<A!J$4,A!J$2+A!J$3*B68,A!J$4) -> 75.65888858 | G68: =IF(B68<A!K$4,A!K$2+A!K$3*(3*B68/(2*A!K$4)-0.5*(B68/A!K$4)^3),A!K$3+A!K$2) -> 78.14279209 | H68: =(C68*B$45+'C'!D68*C$45+'C'!E68*D$45+'C'!F68*E$45+'C'!G68*F$45)/SUM(B$45:F$45) -> 78.97895603
A69: 42 | B69: 42 | C69: =A!G$2+A!G$3*B69+A!G$4*B69^2 -> 83.07369254 | D69: =IF(B69<(A!H$3/(-2*A!H$4)),A!H$2+A!H$3*B69+A!H$4*B69^2,A!H$2+A!H$3*(A!H$3/(-2*A!H$4))+A!H$3*A!H$3/(4*A!H$4)) -> 83.03064641 | E69: =A!I$2+A!I$3*EXP(A!I$4*B69) -> 88.28445705 | F69: =IF((A!J$2+A!J$3*B69)<A!J$4,A!J$2+A!J$3*B69,A!J$4) -> 77.25578517 | G69: =IF(B69<A!K$4,A!K$2+A!K$3*(3*B69/(2*A!K$4)-0.5*(B69/A!K$4)^3),A!K$3+A!K$2) -> 79.9826526 | H69: =(C69*B$45+'C'!D69*C$45+'C'!E69*D$45+'C'!F69*E$45+'C'!G69*F$45)/SUM(B$45:F$45) -> 80.80673949
A70: 44 | B70: 44 | C70: =A!G$2+A!G$3*B70+A!G$4*B70^2 -> 84.99133095 | D70: =IF(B70<(A!H$3/(-2*A!H$4)),A!H$2+A!H$3*B70+A!H$4*B70^2,A!H$2+A!H$3*(A!H$3/(-2*A!H$4))+A!H$3*A!H$3/(4*A!H$4)) -> 84.94167719 | E70: =A!I$2+A!I$3*EXP(A!I$4*B70) -> 90.21094877 | F70: =IF((A!J$2+A!J$3*B70)<A!J$4,A!J$2+A!J$3*B70,A!J$4) -> 78.85268176 | G70: =IF(B70<A!K$4,A!K$2+A!K$3*(3*B70/(2*A!K$4)-0.5*(B70/A!K$4)^3),A!K$3+A!K$2) -> 81.81478422 | H70: =(C70*B$45+'C'!D70*C$45+'C'!E70*D$45+'C'!F70*E$45+'C'!G70*F$45)/SUM(B$45:F$45) -> 82.6223532
A71: 46 | B71: 46 | C71: =A!G$2+A!G$3*B71+A!G$4*B71^2 -> 86.88801625 | D71: =IF(B71<(A!H$3/(-2*A!H$4)),A!H$2+A!H$3*B71+A!H$4*B71^2,A!H$2+A!H$3*(A!H$3/(-2*A!H$4))+A!H$3*A!H$3/(4*A!H$4)) -> 86.83191519 | E71: =A!I$2+A!I$3*EXP(A!I$4*B71) -> 92.10055294 | F71: =IF((A!J$2+A!J$3*B71)<A!J$4,A!J$2+A!J$3*B71,A!J$4) -> 80.44957835 | G71: =IF(B71<A!K$4,A!K$2+A!K$3*(3*B71/(2*A!K$4)-0.5*(B71/A!K$4)^3),A!K$3+A!K$2) -> 83.6388189 | H71: =(C71*B$45+'C'!D71*C$45+'C'!E71*D$45+'C'!F71*E$45+'C'!G71*F$45)/SUM(B$45:F$45) -> 84.4256919
A72: 48 | B72: 48 | C72: =A!G$2+A!G$3*B72+A!G$4*B72^2 -> 88.76374845 | D72: =IF(B72<(A!H$3/(-2*A!H$4)),A!H$2+A!H$3*B72+A!H$4*B72^2,A!H$2+A!H$3*(A!H$3/(-2*A!H$4))+A!H$3*A!H$3/(4*A!H$4)) -> 88.70136042 | E72: =A!I$2+A!I$3*EXP(A!I$4*B72) -> 93.95397587 | F72: =IF((A!J$2+A!J$3*B72)<A!J$4,A!J$2+A!J$3*B72,A!J$4) -> 82.04647494 | G72: =IF(B72<A!K$4,A!K$2+A!K$3*(3*B72/(2*A!K$4)-0.5*(B72/A!K$4)^3),A!K$3+A!K$2) -> 85.45438861 | H72: =(C72*B$45+'C'!D72*C$45+'C'!E72*D$45+'C'!F72*E$45+'C'!G72*F$45)/SUM(B$45:F$45) -> 86.21665025
A73: 50 | B73: 50 | C73: =A!G$2+A!G$3*B73+A!G$4*B73^2 -> 90.61852753 | D73: =IF(B73<(A!H$3/(-2*A!H$4)),A!H$2+A!H$3*B73+A!H$4*B73^2,A!H$2+A!H$3*(A!H$3/(-2*A!H$4))+A!H$3*A!H$3/(4*A!H$4)) -> 90.55001286 | E73: =A!I$2+A!I$3*EXP(A!I$4*B73) -> 95.77191033 | F73: =IF((A!J$2+A!J$3*B73)<A!J$4,A!J$2+A!J$3*B73,A!J$4) -> 83.64337152 | G73: =IF(B73<A!K$4,A!K$2+A!K$3*(3*B73/(2*A!K$4)-0.5*(B73/A!K$4)^3),A!K$3+A!K$2) -> 87.2611253 | H73: =(C73*B$45+'C'!D73*C$45+'C'!E73*D$45+'C'!F73*E$45+'C'!G73*F$45)/SUM(B$45:F$45) -> 87.99512289
A74: 52 | B74: 52 | C74: =A!G$2+A!G$3*B74+A!G$4*B74^2 -> 92.4523535 | D74: =IF(B74<(A!H$3/(-2*A!H$4)),A!H$2+A!H$3*B74+A!H$4*B74^2,A!H$2+A!H$3*(A!H$3/(-2*A!H$4))+A!H$3*A!H$3/(4*A!H$4)) -> 92.37787253 | E74: =A!I$2+A!I$3*EXP(A!I$4*B74) -> 97.55503585 | F74: =IF((A!J$2+A!J$3*B74)<A!J$4,A!J$2+A!J$3*B74,A!J$4) -> 85.24026811 | G74: =IF(B74<A!K$4,A!K$2+A!K$3*(3*B74/(2*A!K$4)-0.5*(B74/A!K$4)^3),A!K$3+A!K$2) -> 89.05866093 | H74: =(C74*B$45+'C'!D74*C$45+'C'!E74*D$45+'C'!F74*E$45+'C'!G74*F$45)/SUM(B$45:F$45) -> 89.76100439
A75: 54 | B75: 54 | C75: =A!G$2+A!G$3*B75+A!G$4*B75^2 -> 94.26522637 | D75: =IF(B75<(A!H$3/(-2*A!H$4)),A!H$2+A!H$3*B75+A!H$4*B75^2,A!H$2+A!H$3*(A!H$3/(-2*A!H$4))+A!H$3*A!H$3/(4*A!H$4)) -> 94.18493943 | E75: =A!I$2+A!I$3*EXP(A!I$4*B75) -> 99.30401892 | F75: =IF((A!J$2+A!J$3*B75)<A!J$4,A!J$2+A!J$3*B75,A!J$4) -> 86.8371647 | G75: =IF(B75<A!K$4,A!K$2+A!K$3*(3*B75/(2*A!K$4)-0.5*(B75/A!K$4)^3),A!K$3+A!K$2) -> 90.84662745 | H75: =(C75*B$45+'C'!D75*C$45+'C'!E75*D$45+'C'!F75*E$45+'C'!G75*F$45)/SUM(B$45:F$45) -> 91.51418932
A76: 56 | B76: 56 | C76: =A!G$2+A!G$3*B76+A!G$4*B76^2 -> 96.05714612 | D76: =IF(B76<(A!H$3/(-2*A!H$4)),A!H$2+A!H$3*B76+A!H$4*B76^2,A!H$2+A!H$3*(A!H$3/(-2*A!H$4))+A!H$3*A!H$3/(4*A!H$4)) -> 95.97121355 | E76: =A!I$2+A!I$3*EXP(A!I$4*B76) -> 101.0195133 | F76: =IF((A!J$2+A!J$3*B76)<A!J$4,A!J$2+A!J$3*B76,A!J$4) -> 88.43406129 | G76: =IF(B76<A!K$4,A!K$2+A!K$3*(3*B76/(2*A!K$4)-0.5*(B76/A!K$4)^3),A!K$3+A!K$2) -> 92.62465683 | H76: =(C76*B$45+'C'!D76*C$45+'C'!E76*D$45+'C'!F76*E$45+'C'!G76*F$45)/SUM(B$45:F$45) -> 93.25457217
A77: 58 | B77: 58 | C77: =A!G$2+A!G$3*B77+A!G$4*B77^2 -> 97.82811276 | D77: =IF(B77<(A!H$3/(-2*A!H$4)),A!H$2+A!H$3*B77+A!H$4*B77^2,A!H$2+A!H$3*(A!H$3/(-2*A!H$4))+A!H$3*A!H$3/(4*A!H$4)) -> 97.73669489 | E77: =A!I$2+A!I$3*EXP(A!I$4*B77) -> 102.7021602 | F77: =IF((A!J$2+A!J$3*B77)<A!J$4,A!J$2+A!J$3*B77,A!J$4) -> 90.03095788 | G77: =IF(B77<A!K$4,A!K$2+A!K$3*(3*B77/(2*A!K$4)-0.5*(B77/A!K$4)^3),A!K$3+A!K$2) -> 94.39238102 | H77: =(C77*B$45+'C'!D77*C$45+'C'!E77*D$45+'C'!F77*E$45+'C'!G77*F$45)/SUM(B$45:F$45) -> 94.98204743
A78: 60 | B78: 60 | C78: =A!G$2+A!G$3*B78+A!G$4*B78^2 -> 99.5781263 | D78: =IF(B78<(A!H$3/(-2*A!H$4)),A!H$2+A!H$3*B78+A!H$4*B78^2,A!H$2+A!H$3*(A!H$3/(-2*A!H$4))+A!H$3*A!H$3/(4*A!H$4)) -> 99.48138345 | E78: =A!I$2+A!I$3*EXP(A!I$4*B78) -> 104.3525886 | F78: =IF((A!J$2+A!J$3*B78)<A!J$4,A!J$2+A!J$3*B78,A!J$4) -> 91.62785447 | G78: =IF(B78<A!K$4,A!K$2+A!K$3*(3*B78/(2*A!K$4)-0.5*(B78/A!K$4)^3),A!K$3+A!K$2) -> 96.14943198 | H78: =(C78*B$45+'C'!D78*C$45+'C'!E78*D$45+'C'!F78*E$45+'C'!G78*F$45)/SUM(B$45:F$45) -> 96.69650951
A79: 62 | B79: 62 | C79: =A!G$2+A!G$3*B79+A!G$4*B79^2 -> 101.3071867 | D79: =IF(B79<(A!H$3/(-2*A!H$4)),A!H$2+A!H$3*B79+A!H$4*B79^2,A!H$2+A!H$3*(A!H$3/(-2*A!H$4))+A!H$3*A!H$3/(4*A!H$4)) -> 101.2052792 | E79: =A!I$2+A!I$3*EXP(A!I$4*B79) -> 105.9714153 | F79: =IF((A!J$2+A!J$3*B79)<A!J$4,A!J$2+A!J$3*B79,A!J$4) -> 93.22475106 | G79: =IF(B79<A!K$4,A!K$2+A!K$3*(3*B79/(2*A!K$4)-0.5*(B79/A!K$4)^3),A!K$3+A!K$2) -> 97.89544166 | H79: =(C79*B$45+'C'!D79*C$45+'C'!E79*D$45+'C'!F79*E$45+'C'!G79*F$45)/SUM(B$45:F$45) -> 98.39785282
A80: 64 | B80: 64 | C80: =A!G$2+A!G$3*B80+A!G$4*B80^2 -> 103.015294 | D80: =IF(B80<(A!H$3/(-2*A!H$4)),A!H$2+A!H$3*B80+A!H$4*B80^2,A!H$2+A!H$3*(A!H$3/(-2*A!H$4))+A!H$3*A!H$3/(4*A!H$4)) -> 102.9083823 | E80: =A!I$2+A!I$3*EXP(A!I$4*B80) -> 107.5592455 | F80: =IF((A!J$2+A!J$3*B80)<A!J$4,A!J$2+A!J$3*B80,A!J$4) -> 94.82164765 | G80: =IF(B80<A!K$4,A!K$2+A!K$3*(3*B80/(2*A!K$4)-0.5*(B80/A!K$4)^3),A!K$3+A!K$2) -> 99.63004203 | H80: =(C80*B$45+'C'!D80*C$45+'C'!E80*D$45+'C'!F80*E$45+'C'!G80*F$45)/SUM(B$45:F$45) -> 100.0859717
A81: 66 | B81: 66 | C81: =A!G$2+A!G$3*B81+A!G$4*B81^2 -> 104.7024482 | D81: =IF(B81<(A!H$3/(-2*A!H$4)),A!H$2+A!H$3*B81+A!H$4*B81^2,A!H$2+A!H$3*(A!H$3/(-2*A!H$4))+A!H$3*A!H$3/(4*A!H$4)) -> 104.5906925 | E81: =A!I$2+A!I$3*EXP(A!I$4*B81) -> 109.1166727 | F81: =IF((A!J$2+A!J$3*B81)<A!J$4,A!J$2+A!J$3*B81,A!J$4) -> 96.41854424 | G81: =IF(B81<A!K$4,A!K$2+A!K$3*(3*B81/(2*A!K$4)-0.5*(B81/A!K$4)^3),A!K$3+A!K$2) -> 101.352865 | H81: =(C81*B$45+'C'!D81*C$45+'C'!E81*D$45+'C'!F81*E$45+'C'!G81*F$45)/SUM(B$45:F$45) -> 101.7607605
A82: 68 | B82: 68 | C82: =A!G$2+A!G$3*B82+A!G$4*B82^2 -> 106.3686493 | D82: =IF(B82<(A!H$3/(-2*A!H$4)),A!H$2+A!H$3*B82+A!H$4*B82^2,A!H$2+A!H$3*(A!H$3/(-2*A!H$4))+A!H$3*A!H$3/(4*A!H$4)) -> 106.2522099 | E82: =A!I$2+A!I$3*EXP(A!I$4*B82) -> 110.6442791 | F82: =IF((A!J$2+A!J$3*B82)<A!J$4,A!J$2+A!J$3*B82,A!J$4) -> 98.01544083 | G82: =IF(B82<A!K$4,A!K$2+A!K$3*(3*B82/(2*A!K$4)-0.5*(B82/A!K$4)^3),A!K$3+A!K$2) -> 103.0635426 | H82: =(C82*B$45+'C'!D82*C$45+'C'!E82*D$45+'C'!F82*E$45+'C'!G82*F$45)/SUM(B$45:F$45) -> 103.4221135
A83: 70 | B83: 70 | C83: =A!G$2+A!G$3*B83+A!G$4*B83^2 -> 108.0138973 | D83: =IF(B83<(A!H$3/(-2*A!H$4)),A!H$2+A!H$3*B83+A!H$4*B83^2,A!H$2+A!H$3*(A!H$3/(-2*A!H$4))+A!H$3*A!H$3/(4*A!H$4)) -> 107.8929346 | E83: =A!I$2+A!I$3*EXP(A!I$4*B83) -> 112.1426355 | F83: =IF((A!J$2+A!J$3*B83)<A!J$4,A!J$2+A!J$3*B83,A!J$4) -> 99.61233742 | G83: =IF(B83<A!K$4,A!K$2+A!K$3*(3*B83/(2*A!K$4)-0.5*(B83/A!K$4)^3),A!K$3+A!K$2) -> 104.7617068 | H83: =(C83*B$45+'C'!D83*C$45+'C'!E83*D$45+'C'!F83*E$45+'C'!G83*F$45)/SUM(B$45:F$45) -> 105.0699249
A84: 72 | B84: 72 | C84: =A!G$2+A!G$3*B84+A!G$4*B84^2 -> 109.6381922 | D84: =IF(B84<(A!H$3/(-2*A!H$4)),A!H$2+A!H$3*B84+A!H$4*B84^2,A!H$2+A!H$3*(A!H$3/(-2*A!H$4))+A!H$3*A!H$3/(4*A!H$4)) -> 109.5128665 | E84: =A!I$2+A!I$3*EXP(A!I$4*B84) -> 113.6123021 | F84: =IF((A!J$2+A!J$3*B84)<A!J$4,A!J$2+A!J$3*B84,A!J$4) -> 101.209234 | G84: =IF(B84<A!K$4,A!K$2+A!K$3*(3*B84/(2*A!K$4)-0.5*(B84/A!K$4)^3),A!K$3+A!K$2) -> 106.4469895 | H84: =(C84*B$45+'C'!D84*C$45+'C'!E84*D$45+'C'!F84*E$45+'C'!G84*F$45)/SUM(B$45:F$45) -> 106.7040889
A85: 74 | B85: 74 | C85: =A!G$2+A!G$3*B85+A!G$4*B85^2 -> 111.241534 | D85: =IF(B85<(A!H$3/(-2*A!H$4)),A!H$2+A!H$3*B85+A!H$4*B85^2,A!H$2+A!H$3*(A!H$3/(-2*A!H$4))+A!H$3*A!H$3/(4*A!H$4)) -> 111.1120057 | E85: =A!I$2+A!I$3*EXP(A!I$4*B85) -> 115.0538283 | F85: =IF((A!J$2+A!J$3*B85)<A!J$4,A!J$2+A!J$3*B85,A!J$4) -> 102.8061306 | G85: =IF(B85<A!K$4,A!K$2+A!K$3*(3*B85/(2*A!K$4)-0.5*(B85/A!K$4)^3),A!K$3+A!K$2) -> 108.1190226 | H85: =(C85*B$45+'C'!D85*C$45+'C'!E85*D$45+'C'!F85*E$45+'C'!G85*F$45)/SUM(B$45:F$45) -> 108.3244998
A86: 76 | B86: 76 | C86: =A!G$2+A!G$3*B86+A!G$4*B86^2 -> 112.8239226 | D86: =IF(B86<(A!H$3/(-2*A!H$4)),A!H$2+A!H$3*B86+A!H$4*B86^2,A!H$2+A!H$3*(A!H$3/(-2*A!H$4))+A!H$3*A!H$3/(4*A!H$4)) -> 112.690352 | E86: =A!I$2+A!I$3*EXP(A!I$4*B86) -> 116.4677528 | F86: =IF((A!J$2+A!J$3*B86)<A!J$4,A!J$2+A!J$3*B86,A!J$4) -> 104.4030272 | G86: =IF(B86<A!K$4,A!K$2+A!K$3*(3*B86/(2*A!K$4)-0.5*(B86/A!K$4)^3),A!K$3+A!K$2) -> 109.7774382 | H86: =(C86*B$45+'C'!D86*C$45+'C'!E86*D$45+'C'!F86*E$45+'C'!G86*F$45)/SUM(B$45:F$45) -> 109.9310517
A87: 78 | B87: 78 | C87: =A!G$2+A!G$3*B87+A!G$4*B87^2 -> 114.3853582 | D87: =IF(B87<(A!H$3/(-2*A!H$4)),A!H$2+A!H$3*B87+A!H$4*B87^2,A!H$2+A!H$3*(A!H$3/(-2*A!H$4))+A!H$3*A!H$3/(4*A!H$4)) -> 114.2479056 | E87: =A!I$2+A!I$3*EXP(A!I$4*B87) -> 117.8546041 | F87: =IF((A!J$2+A!J$3*B87)<A!J$4,A!J$2+A!J$3*B87,A!J$4) -> 105.9999238 | G87: =IF(B87<A!K$4,A!K$2+A!K$3*(3*B87/(2*A!K$4)-0.5*(B87/A!K$4)^3),A!K$3+A!K$2) -> 111.4218682 | H87: =(C87*B$45+'C'!D87*C$45+'C'!E87*D$45+'C'!F87*E$45+'C'!G87*F$45)/SUM(B$45:F$45) -> 111.5236387
A88: 80 | B88: 80 | C88: =A!G$2+A!G$3*B88+A!G$4*B88^2 -> 115.9258406 | D88: =IF(B88<(A!H$3/(-2*A!H$4)),A!H$2+A!H$3*B88+A!H$4*B88^2,A!H$2+A!H$3*(A!H$3/(-2*A!H$4))+A!H$3*A!H$3/(4*A!H$4)) -> 115.7846664 | E88: =A!I$2+A!I$3*EXP(A!I$4*B88) -> 119.2149007 | F88: =IF((A!J$2+A!J$3*B88)<A!J$4,A!J$2+A!J$3*B88,A!J$4) -> 107.5968204 | G88: =IF(B88<A!K$4,A!K$2+A!K$3*(3*B88/(2*A!K$4)-0.5*(B88/A!K$4)^3),A!K$3+A!K$2) -> 113.0519445 | H88: =(C88*B$45+'C'!D88*C$45+'C'!E88*D$45+'C'!F88*E$45+'C'!G88*F$45)/SUM(B$45:F$45) -> 113.1021549
A89: 82 | B89: 82 | C89: =A!G$2+A!G$3*B89+A!G$4*B89^2 -> 117.44537 | D89: =IF(B89<(A!H$3/(-2*A!H$4)),A!H$2+A!H$3*B89+A!H$4*B89^2,A!H$2+A!H$3*(A!H$3/(-2*A!H$4))+A!H$3*A!H$3/(4*A!H$4)) -> 117.3006344 | E89: =A!I$2+A!I$3*EXP(A!I$4*B89) -> 120.5491509 | F89: =IF((A!J$2+A!J$3*B89)<A!J$4,A!J$2+A!J$3*B89,A!J$4) -> 109.193717 | G89: =IF(B89<A!K$4,A!K$2+A!K$3*(3*B89/(2*A!K$4)-0.5*(B89/A!K$4)^3),A!K$3+A!K$2) -> 114.6672991 | H89: =(C89*B$45+'C'!D89*C$45+'C'!E89*D$45+'C'!F89*E$45+'C'!G89*F$45)/SUM(B$45:F$45) -> 114.6664944
A90: 84 | B90: 84 | C90: =A!G$2+A!G$3*B90+A!G$4*B90^2 -> 118.9439462 | D90: =IF(B90<(A!H$3/(-2*A!H$4)),A!H$2+A!H$3*B90+A!H$4*B90^2,A!H$2+A!H$3*(A!H$3/(-2*A!H$4))+A!H$3*A!H$3/(4*A!H$4)) -> 118.7958097 | E90: =A!I$2+A!I$3*EXP(A!I$4*B90) -> 121.8578535 | F90: =IF((A!J$2+A!J$3*B90)<A!J$4,A!J$2+A!J$3*B90,A!J$4) -> 110.7906135 | G90: =IF(B90<A!K$4,A!K$2+A!K$3*(3*B90/(2*A!K$4)-0.5*(B90/A!K$4)^3),A!K$3+A!K$2) -> 116.267564 | H90: =(C90*B$45+'C'!D90*C$45+'C'!E90*D$45+'C'!F90*E$45+'C'!G90*F$45)/SUM(B$45:F$45) -> 116.2165511
A91: 86 | B91: 86 | C91: =A!G$2+A!G$3*B91+A!G$4*B91^2 -> 120.4215693 | D91: =IF(B91<(A!H$3/(-2*A!H$4)),A!H$2+A!H$3*B91+A!H$4*B91^2,A!H$2+A!H$3*(A!H$3/(-2*A!H$4))+A!H$3*A!H$3/(4*A!H$4)) -> 120.2701921 | E91: =A!I$2+A!I$3*EXP(A!I$4*B91) -> 123.1414978 | F91: =IF((A!J$2+A!J$3*B91)<A!J$4,A!J$2+A!J$3*B91,A!J$4) -> 112.3875101 | G91: =IF(B91<A!K$4,A!K$2+A!K$3*(3*B91/(2*A!K$4)-0.5*(B91/A!K$4)^3),A!K$3+A!K$2) -> 117.8523711 | H91: =(C91*B$45+'C'!D91*C$45+'C'!E91*D$45+'C'!F91*E$45+'C'!G91*F$45)/SUM(B$45:F$45) -> 117.7522191
A92: 88 | B92: 88 | C92: =A!G$2+A!G$3*B92+A!G$4*B92^2 -> 121.8782393 | D92: =IF(B92<(A!H$3/(-2*A!H$4)),A!H$2+A!H$3*B92+A!H$4*B92^2,A!H$2+A!H$3*(A!H$3/(-2*A!H$4))+A!H$3*A!H$3/(4*A!H$4)) -> 121.7237818 | E92: =A!I$2+A!I$3*EXP(A!I$4*B92) -> 124.4005634 | F92: =IF((A!J$2+A!J$3*B92)<A!J$4,A!J$2+A!J$3*B92,A!J$4) -> 113.9844067 | G92: =IF(B92<A!K$4,A!K$2+A!K$3*(3*B92/(2*A!K$4)-0.5*(B92/A!K$4)^3),A!K$3+A!K$2) -> 119.4213523 | H92: =(C92*B$45+'C'!D92*C$45+'C'!E92*D$45+'C'!F92*E$45+'C'!G92*F$45)/SUM(B$45:F$45) -> 119.2733923
A93: 90 | B93: 90 | C93: =A!G$2+A!G$3*B93+A!G$4*B93^2 -> 123.3139562 | D93: =IF(B93<(A!H$3/(-2*A!H$4)),A!H$2+A!H$3*B93+A!H$4*B93^2,A!H$2+A!H$3*(A!H$3/(-2*A!H$4))+A!H$3*A!H$3/(4*A!H$4)) -> 123.1565787 | E93: =A!I$2+A!I$3*EXP(A!I$4*B93) -> 125.635521 | F93: =IF((A!J$2+A!J$3*B93)<A!J$4,A!J$2+A!J$3*B93,A!J$4) -> 115.5813033 | G93: =IF(B93<A!K$4,A!K$2+A!K$3*(3*B93/(2*A!K$4)-0.5*(B93/A!K$4)^3),A!K$3+A!K$2) -> 120.9741397 | H93: =(C93*B$45+'C'!D93*C$45+'C'!E93*D$45+'C'!F93*E$45+'C'!G93*F$45)/SUM(B$45:F$45) -> 120.7799647
A94: 92 | B94: 92 | C94: =A!G$2+A!G$3*B94+A!G$4*B94^2 -> 124.72872 | D94: =IF(B94<(A!H$3/(-2*A!H$4)),A!H$2+A!H$3*B94+A!H$4*B94^2,A!H$2+A!H$3*(A!H$3/(-2*A!H$4))+A!H$3*A!H$3/(4*A!H$4)) -> 124.5685829 | E94: =A!I$2+A!I$3*EXP(A!I$4*B94) -> 126.8468323 | F94: =IF((A!J$2+A!J$3*B94)<A!J$4,A!J$2+A!J$3*B94,A!J$4) -> 117.1781999 | G94: =IF(B94<A!K$4,A!K$2+A!K$3*(3*B94/(2*A!K$4)-0.5*(B94/A!K$4)^3),A!K$3+A!K$2) -> 122.5103652 | H94: =(C94*B$45+'C'!D94*C$45+'C'!E94*D$45+'C'!F94*E$45+'C'!G94*F$45)/SUM(B$45:F$45) -> 122.2718302
A95: 94 | B95: 94 | C95: =A!G$2+A!G$3*B95+A!G$4*B95^2 -> 126.1225306 | D95: =IF(B95<(A!H$3/(-2*A!H$4)),A!H$2+A!H$3*B95+A!H$4*B95^2,A!H$2+A!H$3*(A!H$3/(-2*A!H$4))+A!H$3*A!H$3/(4*A!H$4)) -> 125.9597942 | E95: =A!I$2+A!I$3*EXP(A!I$4*B95) -> 128.0349499 | F95: =IF((A!J$2+A!J$3*B95)<A!J$4,A!J$2+A!J$3*B95,A!J$4) -> 118.7750965 | G95: =IF(B95<A!K$4,A!K$2+A!K$3*(3*B95/(2*A!K$4)-0.5*(B95/A!K$4)^3),A!K$3+A!K$2) -> 124.0296607 | H95: =(C95*B$45+'C'!D95*C$45+'C'!E95*D$45+'C'!F95*E$45+'C'!G95*F$45)/SUM(B$45:F$45) -> 123.7488827
A96: 96 | B96: 96 | C96: =A!G$2+A!G$3*B96+A!G$4*B96^2 -> 127.4953882 | D96: =IF(B96<(A!H$3/(-2*A!H$4)),A!H$2+A!H$3*B96+A!H$4*B96^2,A!H$2+A!H$3*(A!H$3/(-2*A!H$4))+A!H$3*A!H$3/(4*A!H$4)) -> 127.3302128 | E96: =A!I$2+A!I$3*EXP(A!I$4*B96) -> 129.200318 | F96: =IF((A!J$2+A!J$3*B96)<A!J$4,A!J$2+A!J$3*B96,A!J$4) -> 120.3719931 | G96: =IF(B96<A!K$4,A!K$2+A!K$3*(3*B96/(2*A!K$4)-0.5*(B96/A!K$4)^3),A!K$3+A!K$2) -> 125.5316583 | H96: =(C96*B$45+'C'!D96*C$45+'C'!E96*D$45+'C'!F96*E$45+'C'!G96*F$45)/SUM(B$45:F$45) -> 125.211016
A97: 98 | B97: 98 | C97: =A!G$2+A!G$3*B97+A!G$4*B97^2 -> 128.8472926 | D97: =IF(B97<(A!H$3/(-2*A!H$4)),A!H$2+A!H$3*B97+A!H$4*B97^2,A!H$2+A!H$3*(A!H$3/(-2*A!H$4))+A!H$3*A!H$3/(4*A!H$4)) -> 128.6798386 | E97: =A!I$2+A!I$3*EXP(A!I$4*B97) -> 130.3433722 | F97: =IF((A!J$2+A!J$3*B97)<A!J$4,A!J$2+A!J$3*B97,A!J$4) -> 121.9688897 | G97: =IF(B97<A!K$4,A!K$2+A!K$3*(3*B97/(2*A!K$4)-0.5*(B97/A!K$4)^3),A!K$3+A!K$2) -> 127.0159898 | H97: =(C97*B$45+'C'!D97*C$45+'C'!E97*D$45+'C'!F97*E$45+'C'!G97*F$45)/SUM(B$45:F$45) -> 126.6581239
A98: 100 | B98: 100 | C98: =A!G$2+A!G$3*B98+A!G$4*B98^2 -> 130.178244 | D98: =IF(B98<(A!H$3/(-2*A!H$4)),A!H$2+A!H$3*B98+A!H$4*B98^2,A!H$2+A!H$3*(A!H$3/(-2*A!H$4))+A!H$3*A!H$3/(4*A!H$4)) -> 130.0086717 | E98: =A!I$2+A!I$3*EXP(A!I$4*B98) -> 131.4645398 | F98: =IF((A!J$2+A!J$3*B98)<A!J$4,A!J$2+A!J$3*B98,A!J$4) -> 123.5657863 | G98: =IF(B98<A!K$4,A!K$2+A!K$3*(3*B98/(2*A!K$4)-0.5*(B98/A!K$4)^3),A!K$3+A!K$2) -> 128.4822872 | H98: =(C98*B$45+'C'!D98*C$45+'C'!E98*D$45+'C'!F98*E$45+'C'!G98*F$45)/SUM(B$45:F$45) -> 128.0901003
A99: 102 | B99: 102 | C99: =A!G$2+A!G$3*B99+A!G$4*B99^2 -> 131.4882422 | D99: =IF(B99<(A!H$3/(-2*A!H$4)),A!H$2+A!H$3*B99+A!H$4*B99^2,A!H$2+A!H$3*(A!H$3/(-2*A!H$4))+A!H$3*A!H$3/(4*A!H$4)) -> 131.3167119 | E99: =A!I$2+A!I$3*EXP(A!I$4*B99) -> 132.5642397 | F99: =IF((A!J$2+A!J$3*B99)<A!J$4,A!J$2+A!J$3*B99,A!J$4) -> 125.1626828 | G99: =IF(B99<A!K$4,A!K$2+A!K$3*(3*B99/(2*A!K$4)-0.5*(B99/A!K$4)^3),A!K$3+A!K$2) -> 129.9301825 | H99: =(C99*B$45+'C'!D99*C$45+'C'!E99*D$45+'C'!F99*E$45+'C'!G99*F$45)/SUM(B$45:F$45) -> 129.5068389
A100: 104 | B100: 104 | C100: =A!G$2+A!G$3*B100+A!G$4*B100^2 -> 132.7772873 | D100: =IF(B100<(A!H$3/(-2*A!H$4)),A!H$2+A!H$3*B100+A!H$4*B100^2,A!H$2+A!H$3*(A!H$3/(-2*A!H$4))+A!H$3*A!H$3/(4*A!H$4)) -> 132.6039594 | E100: =A!I$2+A!I$3*EXP(A!I$4*B100) -> 133.6428831 | F100: =IF((A!J$2+A!J$3*B100)<A!J$4,A!J$2+A!J$3*B100,A!J$4) -> 126.7595794 | G100: =IF(B100<A!K$4,A!K$2+A!K$3*(3*B100/(2*A!K$4)-0.5*(B100/A!K$4)^3),A!K$3+A!K$2) -> 131.3593076 | H100: =(C100*B$45+'C'!D100*C$45+'C'!E100*D$45+'C'!F100*E$45+'C'!G100*F$45)/SUM(B$45:F$45) -> 130.9082336
A101: 106 | B101: 106 | C101: =A!G$2+A!G$3*B101+A!G$4*B101^2 -> 134.0453794 | D101: =IF(B101<(A!H$3/(-2*A!H$4)),A!H$2+A!H$3*B101+A!H$4*B101^2,A!H$2+A!H$3*(A!H$3/(-2*A!H$4))+A!H$3*A!H$3/(4*A!H$4)) -> 133.8704141 | E101: =A!I$2+A!I$3*EXP(A!I$4*B101) -> 134.7008732 | F101: =IF((A!J$2+A!J$3*B101)<A!J$4,A!J$2+A!J$3*B101,A!J$4) -> 128.356476 | G101: =IF(B101<A!K$4,A!K$2+A!K$3*(3*B101/(2*A!K$4)-0.5*(B101/A!K$4)^3),A!K$3+A!K$2) -> 132.7692945 | H101: =(C101*B$45+'C'!D101*C$45+'C'!E101*D$45+'C'!F101*E$45+'C'!G101*F$45)/SUM(B$45:F$45) -> 132.2941779
A102: 108 | B102: 108 | C102: =A!G$2+A!G$3*B102+A!G$4*B102^2 -> 135.2925183 | D102: =IF(B102<(A!H$3/(-2*A!H$4)),A!H$2+A!H$3*B102+A!H$4*B102^2,A!H$2+A!H$3*(A!H$3/(-2*A!H$4))+A!H$3*A!H$3/(4*A!H$4)) -> 135.116076 | E102: =A!I$2+A!I$3*EXP(A!I$4*B102) -> 135.7386054 | F102: =IF((A!J$2+A!J$3*B102)<A!J$4,A!J$2+A!J$3*B102,A!J$4) -> 129.9533726 | G102: =IF(B102<A!K$4,A!K$2+A!K$3*(3*B102/(2*A!K$4)-0.5*(B102/A!K$4)^3),A!K$3+A!K$2) -> 134.1597752 | H102: =(C102*B$45+'C'!D102*C$45+'C'!E102*D$45+'C'!F102*E$45+'C'!G102*F$45)/SUM(B$45:F$45) -> 133.6645657
A103: 110 | B103: 110 | C103: =A!G$2+A!G$3*B103+A!G$4*B103^2 -> 136.5187041 | D103: =IF(B103<(A!H$3/(-2*A!H$4)),A!H$2+A!H$3*B103+A!H$4*B103^2,A!H$2+A!H$3*(A!H$3/(-2*A!H$4))+A!H$3*A!H$3/(4*A!H$4)) -> 136.3409452 | E103: =A!I$2+A!I$3*EXP(A!I$4*B103) -> 136.7564675 | F103: =IF((A!J$2+A!J$3*B103)<A!J$4,A!J$2+A!J$3*B103,A!J$4) -> 131.5502692 | G103: =IF(B103<A!K$4,A!K$2+A!K$3*(3*B103/(2*A!K$4)-0.5*(B103/A!K$4)^3),A!K$3+A!K$2) -> 135.5303816 | H103: =(C103*B$45+'C'!D103*C$45+'C'!E103*D$45+'C'!F103*E$45+'C'!G103*F$45)/SUM(B$45:F$45) -> 135.0192905
A104: 112 | B104: 112 | C104: =A!G$2+A!G$3*B104+A!G$4*B104^2 -> 137.7239367 | D104: =IF(B104<(A!H$3/(-2*A!H$4)),A!H$2+A!H$3*B104+A!H$4*B104^2,A!H$2+A!H$3*(A!H$3/(-2*A!H$4))+A!H$3*A!H$3/(4*A!H$4)) -> 137.5450216 | E104: =A!I$2+A!I$3*EXP(A!I$4*B104) -> 137.7548402 | F104: =IF((A!J$2+A!J$3*B104)<A!J$4,A!J$2+A!J$3*B104,A!J$4) -> 133.1471658 | G104: =IF(B104<A!K$4,A!K$2+A!K$3*(3*B104/(2*A!K$4)-0.5*(B104/A!K$4)^3),A!K$3+A!K$2) -> 136.8807456 | H104: =(C104*B$45+'C'!D104*C$45+'C'!E104*D$45+'C'!F104*E$45+'C'!G104*F$45)/SUM(B$45:F$45) -> 136.3582462
A105: 114 | B105: 114 | C105: =A!G$2+A!G$3*B105+A!G$4*B105^2 -> 138.9082163 | D105: =IF(B105<(A!H$3/(-2*A!H$4)),A!H$2+A!H$3*B105+A!H$4*B105^2,A!H$2+A!H$3*(A!H$3/(-2*A!H$4))+A!H$3*A!H$3/(4*A!H$4)) -> 138.7283051 | E105: =A!I$2+A!I$3*EXP(A!I$4*B105) -> 138.7340964 | F105: =IF((A!J$2+A!J$3*B105)<A!J$4,A!J$2+A!J$3*B105,A!J$4) -> 134.7440624 | G105: =IF(B105<A!K$4,A!K$2+A!K$3*(3*B105/(2*A!K$4)-0.5*(B105/A!K$4)^3),A!K$3+A!K$2) -> 138.2104993 | H105: =(C105*B$45+'C'!D105*C$45+'C'!E105*D$45+'C'!F105*E$45+'C'!G105*F$45)/SUM(B$45:F$45) -> 137.6813262
A106: 116 | B106: 116 | C106: =A!G$2+A!G$3*B106+A!G$4*B106^2 -> 140.0715428 | D106: =IF(B106<(A!H$3/(-2*A!H$4)),A!H$2+A!H$3*B106+A!H$4*B106^2,A!H$2+A!H$3*(A!H$3/(-2*A!H$4))+A!H$3*A!H$3/(4*A!H$4)) -> 139.890796 | E106: =A!I$2+A!I$3*EXP(A!I$4*B106) -> 139.6946024 | F106: =IF((A!J$2+A!J$3*B106)<A!J$4,A!J$2+A!J$3*B106,A!J$4) -> 136.340959 | G106: =IF(B106<A!K$4,A!K$2+A!K$3*(3*B106/(2*A!K$4)-0.5*(B106/A!K$4)^3),A!K$3+A!K$2) -> 139.5192746 | H106: =(C106*B$45+'C'!D106*C$45+'C'!E106*D$45+'C'!F106*E$45+'C'!G106*F$45)/SUM(B$45:F$45) -> 138.9884242
A107: 118 | B107: 118 | C107: =A!G$2+A!G$3*B107+A!G$4*B107^2 -> 141.2139161 | D107: =IF(B107<(A!H$3/(-2*A!H$4)),A!H$2+A!H$3*B107+A!H$4*B107^2,A!H$2+A!H$3*(A!H$3/(-2*A!H$4))+A!H$3*A!H$3/(4*A!H$4)) -> 141.032494 | E107: =A!I$2+A!I$3*EXP(A!I$4*B107) -> 140.636717 | F107: =IF((A!J$2+A!J$3*B107)<A!J$4,A!J$2+A!J$3*B107,A!J$4) -> 137.9378556 | G107: =IF(B107<A!K$4,A!K$2+A!K$3*(3*B107/(2*A!K$4)-0.5*(B107/A!K$4)^3),A!K$3+A!K$2) -> 140.8067033 | H107: =(C107*B$45+'C'!D107*C$45+'C'!E107*D$45+'C'!F107*E$45+'C'!G107*F$45)/SUM(B$45:F$45) -> 140.2794338
A108: 120 | B108: 120 | C108: =A!G$2+A!G$3*B108+A!G$4*B108^2 -> 142.3353364 | D108: =IF(B108<(A!H$3/(-2*A!H$4)),A!H$2+A!H$3*B108+A!H$4*B108^2,A!H$2+A!H$3*(A!H$3/(-2*A!H$4))+A!H$3*A!H$3/(4*A!H$4)) -> 142.1533993 | E108: =A!I$2+A!I$3*EXP(A!I$4*B108) -> 141.5607924 | F108: =IF((A!J$2+A!J$3*B108)<A!J$4,A!J$2+A!J$3*B108,A!J$4) -> 139.5347522 | G108: =IF(B108<A!K$4,A!K$2+A!K$3*(3*B108/(2*A!K$4)-0.5*(B108/A!K$4)^3),A!K$3+A!K$2) -> 142.0724176 | H108: =(C108*B$45+'C'!D108*C$45+'C'!E108*D$45+'C'!F108*E$45+'C'!G108*F$45)/SUM(B$45:F$45) -> 141.5542486
A109: 122 | B109: 122 | C109: =A!G$2+A!G$3*B109+A!G$4*B109^2 -> 143.4358035 | D109: =IF(B109<(A!H$3/(-2*A!H$4)),A!H$2+A!H$3*B109+A!H$4*B109^2,A!H$2+A!H$3*(A!H$3/(-2*A!H$4))+A!H$3*A!H$3/(4*A!H$4)) -> 143.2535118 | E109: =A!I$2+A!I$3*EXP(A!I$4*B109) -> 142.4671741 | F109: =IF((A!J$2+A!J$3*B109)<A!J$4,A!J$2+A!J$3*B109,A!J$4) -> 141.1316487 | G109: =IF(B109<A!K$4,A!K$2+A!K$3*(3*B109/(2*A!K$4)-0.5*(B109/A!K$4)^3),A!K$3+A!K$2) -> 143.3160494 | H109: =(C109*B$45+'C'!D109*C$45+'C'!E109*D$45+'C'!F109*E$45+'C'!G109*F$45)/SUM(B$45:F$45) -> 142.8127621
A110: 124 | B110: 124 | C110: =A!G$2+A!G$3*B110+A!G$4*B110^2 -> 144.5153176 | D110: =IF(B110<(A!H$3/(-2*A!H$4)),A!H$2+A!H$3*B110+A!H$4*B110^2,A!H$2+A!H$3*(A!H$3/(-2*A!H$4))+A!H$3*A!H$3/(4*A!H$4)) -> 144.3328315 | E110: =A!I$2+A!I$3*EXP(A!I$4*B110) -> 143.3562008 | F110: =IF((A!J$2+A!J$3*B110)<A!J$4,A!J$2+A!J$3*B110,A!J$4) -> 142.7285453 | G110: =IF(B110<A!K$4,A!K$2+A!K$3*(3*B110/(2*A!K$4)-0.5*(B110/A!K$4)^3),A!K$3+A!K$2) -> 144.5372305 | H110: =(C110*B$45+'C'!D110*C$45+'C'!E110*D$45+'C'!F110*E$45+'C'!G110*F$45)/SUM(B$45:F$45) -> 144.0548678
A111: 126 | B111: 126 | C111: =A!G$2+A!G$3*B111+A!G$4*B111^2 -> 145.5738785 | D111: =IF(B111<(A!H$3/(-2*A!H$4)),A!H$2+A!H$3*B111+A!H$4*B111^2,A!H$2+A!H$3*(A!H$3/(-2*A!H$4))+A!H$3*A!H$3/(4*A!H$4)) -> 145.3913584 | E111: =A!I$2+A!I$3*EXP(A!I$4*B111) -> 144.2282049 | F111: =IF((A!J$2+A!J$3*B111)<A!J$4,A!J$2+A!J$3*B111,A!J$4) -> 144.3254419 | G111: =IF(B111<A!K$4,A!K$2+A!K$3*(3*B111/(2*A!K$4)-0.5*(B111/A!K$4)^3),A!K$3+A!K$2) -> 145.735593 | H111: =(C111*B$45+'C'!D111*C$45+'C'!E111*D$45+'C'!F111*E$45+'C'!G111*F$45)/SUM(B$45:F$45) -> 145.2804593
A112: 128 | B112: 128 | C112: =A!G$2+A!G$3*B112+A!G$4*B112^2 -> 146.6114863 | D112: =IF(B112<(A!H$3/(-2*A!H$4)),A!H$2+A!H$3*B112+A!H$4*B112^2,A!H$2+A!H$3*(A!H$3/(-2*A!H$4))+A!H$3*A!H$3/(4*A!H$4)) -> 146.4290926 | E112: =A!I$2+A!I$3*EXP(A!I$4*B112) -> 145.0835123 | F112: =IF((A!J$2+A!J$3*B112)<A!J$4,A!J$2+A!J$3*B112,A!J$4) -> 145.9223385 | G112: =IF(B112<A!K$4,A!K$2+A!K$3*(3*B112/(2*A!K$4)-0.5*(B112/A!K$4)^3),A!K$3+A!K$2) -> 146.9107688 | H112: =(C112*B$45+'C'!D112*C$45+'C'!E112*D$45+'C'!F112*E$45+'C'!G112*F$45)/SUM(B$45:F$45) -> 146.48943
A113: 130 | B113: =IF(A113<MAX($M$48),A113,MAX($M$48)) -> 130 | C113: =A!G$2+A!G$3*B113+A!G$4*B113^2 -> 147.628141 | D113: =IF(B113<(A!H$3/(-2*A!H$4)),A!H$2+A!H$3*B113+A!H$4*B113^2,A!H$2+A!H$3*(A!H$3/(-2*A!H$4))+A!H$3*A!H$3/(4*A!H$4)) -> 147.446034 | E113: =A!I$2+A!I$3*EXP(A!I$4*B113) -> 145.9224426 | F113: =IF((A!J$2+A!J$3*B113)<A!J$4,A!J$2+A!J$3*B113,A!J$4) -> 147.5192351 | G113: =IF(B113<A!K$4,A!K$2+A!K$3*(3*B113/(2*A!K$4)-0.5*(B113/A!K$4)^3),A!K$3+A!K$2) -> 148.06239 | H113: =(C113*B$45+'C'!D113*C$45+'C'!E113*D$45+'C'!F113*E$45+'C'!G113*F$45)/SUM(B$45:F$45) -> 147.6816735
A114: 132 | B114: 132 | C114: =A!G$2+A!G$3*B114+A!G$4*B114^2 -> 148.6238426 | D114: =IF(B114<(A!H$3/(-2*A!H$4)),A!H$2+A!H$3*B114+A!H$4*B114^2,A!H$2+A!H$3*(A!H$3/(-2*A!H$4))+A!H$3*A!H$3/(4*A!H$4)) -> 148.4421826 | E114: =A!I$2+A!I$3*EXP(A!I$4*B114) -> 146.7453095 | F114: =IF((A!J$2+A!J$3*B114)<A!J$4,A!J$2+A!J$3*B114,A!J$4) -> 149.1161317 | G114: =IF(B114<A!K$4,A!K$2+A!K$3*(3*B114/(2*A!K$4)-0.5*(B114/A!K$4)^3),A!K$3+A!K$2) -> 149.1900883 | H114: =(C114*B$45+'C'!D114*C$45+'C'!E114*D$45+'C'!F114*E$45+'C'!G114*F$45)/SUM(B$45:F$45) -> 148.857083
A115: 134 | B115: 134 | C115: =A!G$2+A!G$3*B115+A!G$4*B115^2 -> 149.5985911 | D115: =IF(B115<(A!H$3/(-2*A!H$4)),A!H$2+A!H$3*B115+A!H$4*B115^2,A!H$2+A!H$3*(A!H$3/(-2*A!H$4))+A!H$3*A!H$3/(4*A!H$4)) -> 149.4175384 | E115: =A!I$2+A!I$3*EXP(A!I$4*B115) -> 147.5524205 | F115: =IF((A!J$2+A!J$3*B115)<A!J$4,A!J$2+A!J$3*B115,A!J$4) -> 150.7130283 | G115: =IF(B115<A!K$4,A!K$2+A!K$3*(3*B115/(2*A!K$4)-0.5*(B115/A!K$4)^3),A!K$3+A!K$2) -> 150.2934959 | H115: =(C115*B$45+'C'!D115*C$45+'C'!E115*D$45+'C'!F115*E$45+'C'!G115*F$45)/SUM(B$45:F$45) -> 150.0155522
A116: 136 | B116: 136 | C116: =A!G$2+A!G$3*B116+A!G$4*B116^2 -> 150.5523864 | D116: =IF(B116<(A!H$3/(-2*A!H$4)),A!H$2+A!H$3*B116+A!H$4*B116^2,A!H$2+A!H$3*(A!H$3/(-2*A!H$4))+A!H$3*A!H$3/(4*A!H$4)) -> 150.3721015 | E116: =A!I$2+A!I$3*EXP(A!I$4*B116) -> 148.3440773 | F116: =IF((A!J$2+A!J$3*B116)<A!J$4,A!J$2+A!J$3*B116,A!J$4) -> 152.3099249 | G116: =IF(B116<A!K$4,A!K$2+A!K$3*(3*B116/(2*A!K$4)-0.5*(B116/A!K$4)^3),A!K$3+A!K$2) -> 151.3722446 | H116: =(C116*B$45+'C'!D116*C$45+'C'!E116*D$45+'C'!F116*E$45+'C'!G116*F$45)/SUM(B$45:F$45) -> 151.1569744
A117: 138 | B117: 138 | C117: =A!G$2+A!G$3*B117+A!G$4*B117^2 -> 151.4852287 | D117: =IF(B117<(A!H$3/(-2*A!H$4)),A!H$2+A!H$3*B117+A!H$4*B117^2,A!H$2+A!H$3*(A!H$3/(-2*A!H$4))+A!H$3*A!H$3/(4*A!H$4)) -> 151.3058717 | E117: =A!I$2+A!I$3*EXP(A!I$4*B117) -> 149.1205759 | F117: =IF((A!J$2+A!J$3*B117)<A!J$4,A!J$2+A!J$3*B117,A!J$4) -> 153.9068215 | G117: =IF(B117<A!K$4,A!K$2+A!K$3*(3*B117/(2*A!K$4)-0.5*(B117/A!K$4)^3),A!K$3+A!K$2) -> 152.4259664 | H117: =(C117*B$45+'C'!D117*C$45+'C'!E117*D$45+'C'!F117*E$45+'C'!G117*F$45)/SUM(B$45:F$45) -> 152.2812429
A118: 140 | B118: 140 | C118: =A!G$2+A!G$3*B118+A!G$4*B118^2 -> 152.3971178 | D118: =IF(B118<(A!H$3/(-2*A!H$4)),A!H$2+A!H$3*B118+A!H$4*B118^2,A!H$2+A!H$3*(A!H$3/(-2*A!H$4))+A!H$3*A!H$3/(4*A!H$4)) -> 152.2188492 | E118: =A!I$2+A!I$3*EXP(A!I$4*B118) -> 149.8822064 | F118: =IF((A!J$2+A!J$3*B118)<A!J$4,A!J$2+A!J$3*B118,A!J$4) -> 155.503718 | G118: =IF(B118<A!K$4,A!K$2+A!K$3*(3*B118/(2*A!K$4)-0.5*(B118/A!K$4)^3),A!K$3+A!K$2) -> 153.4542933 | H118: =(C118*B$45+'C'!D118*C$45+'C'!E118*D$45+'C'!F118*E$45+'C'!G118*F$45)/SUM(B$45:F$45) -> 153.3882513
A119: 142 | B119: 142 | C119: =A!G$2+A!G$3*B119+A!G$4*B119^2 -> 153.2880539 | D119: =IF(B119<(A!H$3/(-2*A!H$4)),A!H$2+A!H$3*B119+A!H$4*B119^2,A!H$2+A!H$3*(A!H$3/(-2*A!H$4))+A!H$3*A!H$3/(4*A!H$4)) -> 153.111034 | E119: =A!I$2+A!I$3*EXP(A!I$4*B119) -> 150.6292536 | F119: =IF((A!J$2+A!J$3*B119)<A!J$4,A!J$2+A!J$3*B119,A!J$4) -> 157.1006146 | G119: =IF(B119<A!K$4,A!K$2+A!K$3*(3*B119/(2*A!K$4)-0.5*(B119/A!K$4)^3),A!K$3+A!K$2) -> 154.4568572 | H119: =(C119*B$45+'C'!D119*C$45+'C'!E119*D$45+'C'!F119*E$45+'C'!G119*F$45)/SUM(B$45:F$45) -> 154.4778927
A120: 144 | B120: 144 | C120: =A!G$2+A!G$3*B120+A!G$4*B120^2 -> 154.1580368 | D120: =IF(B120<(A!H$3/(-2*A!H$4)),A!H$2+A!H$3*B120+A!H$4*B120^2,A!H$2+A!H$3*(A!H$3/(-2*A!H$4))+A!H$3*A!H$3/(4*A!H$4)) -> 153.9824259 | E120: =A!I$2+A!I$3*EXP(A!I$4*B120) -> 151.3619967 | F120: =IF((A!J$2+A!J$3*B120)<A!J$4,A!J$2+A!J$3*B120,A!J$4) -> 158.6975112 | G120: =IF(B120<A!K$4,A!K$2+A!K$3*(3*B120/(2*A!K$4)-0.5*(B120/A!K$4)^3),A!K$3+A!K$2) -> 155.4332902 | H120: =(C120*B$45+'C'!D120*C$45+'C'!E120*D$45+'C'!F120*E$45+'C'!G120*F$45)/SUM(B$45:F$45) -> 155.5500606
A121: 146 | B121: 146 | C121: =A!G$2+A!G$3*B121+A!G$4*B121^2 -> 155.0070666 | D121: =IF(B121<(A!H$3/(-2*A!H$4)),A!H$2+A!H$3*B121+A!H$4*B121^2,A!H$2+A!H$3*(A!H$3/(-2*A!H$4))+A!H$3*A!H$3/(4*A!H$4)) -> 154.8330251 | E121: =A!I$2+A!I$3*EXP(A!I$4*B121) -> 152.0807096 | F121: =IF((A!J$2+A!J$3*B121)<A!J$4,A!J$2+A!J$3*B121,A!J$4) -> 160.2944078 | G121: =IF(B121<A!K$4,A!K$2+A!K$3*(3*B121/(2*A!K$4)-0.5*(B121/A!K$4)^3),A!K$3+A!K$2) -> 156.383224 | H121: =(C121*B$45+'C'!D121*C$45+'C'!E121*D$45+'C'!F121*E$45+'C'!G121*F$45)/SUM(B$45:F$45) -> 156.6046483
A122: 148 | B122: 148 | C122: =A!G$2+A!G$3*B122+A!G$4*B122^2 -> 155.8351433 | D122: =IF(B122<(A!H$3/(-2*A!H$4)),A!H$2+A!H$3*B122+A!H$4*B122^2,A!H$2+A!H$3*(A!H$3/(-2*A!H$4))+A!H$3*A!H$3/(4*A!H$4)) -> 155.6628315 | E122: =A!I$2+A!I$3*EXP(A!I$4*B122) -> 152.7856609 | F122: =IF((A!J$2+A!J$3*B122)<A!J$4,A!J$2+A!J$3*B122,A!J$4) -> 161.8913044 | G122: =IF(B122<A!K$4,A!K$2+A!K$3*(3*B122/(2*A!K$4)-0.5*(B122/A!K$4)^3),A!K$3+A!K$2) -> 157.3062908 | H122: =(C122*B$45+'C'!D122*C$45+'C'!E122*D$45+'C'!F122*E$45+'C'!G122*F$45)/SUM(B$45:F$45) -> 157.6415492
A123: 150 | B123: 150 | C123: =A!G$2+A!G$3*B123+A!G$4*B123^2 -> 156.642267 | D123: =IF(B123<(A!H$3/(-2*A!H$4)),A!H$2+A!H$3*B123+A!H$4*B123^2,A!H$2+A!H$3*(A!H$3/(-2*A!H$4))+A!H$3*A!H$3/(4*A!H$4)) -> 156.4718451 | E123: =A!I$2+A!I$3*EXP(A!I$4*B123) -> 153.4771141 | F123: =IF((A!J$2+A!J$3*B123)<A!J$4,A!J$2+A!J$3*B123,A!J$4) -> 163.488201 | G123: =IF(B123<A!K$4,A!K$2+A!K$3*(3*B123/(2*A!K$4)-0.5*(B123/A!K$4)^3),A!K$3+A!K$2) -> 158.2021224 | H123: =(C123*B$45+'C'!D123*C$45+'C'!E123*D$45+'C'!F123*E$45+'C'!G123*F$45)/SUM(B$45:F$45) -> 158.6606564
A124: 152 | B124: 152 | C124: =A!G$2+A!G$3*B124+A!G$4*B124^2 -> 157.4284374 | D124: =IF(B124<(A!H$3/(-2*A!H$4)),A!H$2+A!H$3*B124+A!H$4*B124^2,A!H$2+A!H$3*(A!H$3/(-2*A!H$4))+A!H$3*A!H$3/(4*A!H$4)) -> 157.2600659 | E124: =A!I$2+A!I$3*EXP(A!I$4*B124) -> 154.1553277 | F124: =IF((A!J$2+A!J$3*B124)<A!J$4,A!J$2+A!J$3*B124,A!J$4) -> 165.0850976 | G124: =IF(B124<A!K$4,A!K$2+A!K$3*(3*B124/(2*A!K$4)-0.5*(B124/A!K$4)^3),A!K$3+A!K$2) -> 159.0703508 | H124: =(C124*B$45+'C'!D124*C$45+'C'!E124*D$45+'C'!F124*E$45+'C'!G124*F$45)/SUM(B$45:F$45) -> 159.6618633
A125: 154 | B125: 154 | C125: =A!G$2+A!G$3*B125+A!G$4*B125^2 -> 158.1936548 | D125: =IF(B125<(A!H$3/(-2*A!H$4)),A!H$2+A!H$3*B125+A!H$4*B125^2,A!H$2+A!H$3*(A!H$3/(-2*A!H$4))+A!H$3*A!H$3/(4*A!H$4)) -> 158.027494 | E125: =A!I$2+A!I$3*EXP(A!I$4*B125) -> 154.8205552 | F125: =IF((A!J$2+A!J$3*B125)<A!J$4,A!J$2+A!J$3*B125,A!J$4) -> 166.6819942 | G125: =IF(B125<A!K$4,A!K$2+A!K$3*(3*B125/(2*A!K$4)-0.5*(B125/A!K$4)^3),A!K$3+A!K$2) -> 159.910608 | H125: =(C125*B$45+'C'!D125*C$45+'C'!E125*D$45+'C'!F125*E$45+'C'!G125*F$45)/SUM(B$45:F$45) -> 160.6450631
A126: 156 | B126: 156 | C126: =A!G$2+A!G$3*B126+A!G$4*B126^2 -> 158.9379191 | D126: =IF(B126<(A!H$3/(-2*A!H$4)),A!H$2+A!H$3*B126+A!H$4*B126^2,A!H$2+A!H$3*(A!H$3/(-2*A!H$4))+A!H$3*A!H$3/(4*A!H$4)) -> 158.7741293 | E126: =A!I$2+A!I$3*EXP(A!I$4*B126) -> 155.4730453 | F126: =IF((A!J$2+A!J$3*B126)<A!J$4,A!J$2+A!J$3*B126,A!J$4) -> 168.2788908 | G126: =IF(B126<A!K$4,A!K$2+A!K$3*(3*B126/(2*A!K$4)-0.5*(B126/A!K$4)^3),A!K$3+A!K$2) -> 160.7225259 | H126: =(C126*B$45+'C'!D126*C$45+'C'!E126*D$45+'C'!F126*E$45+'C'!G126*F$45)/SUM(B$45:F$45) -> 161.6101491
A127: 158 | B127: 158 | C127: =A!G$2+A!G$3*B127+A!G$4*B127^2 -> 159.6612303 | D127: =IF(B127<(A!H$3/(-2*A!H$4)),A!H$2+A!H$3*B127+A!H$4*B127^2,A!H$2+A!H$3*(A!H$3/(-2*A!H$4))+A!H$3*A!H$3/(4*A!H$4)) -> 159.4999718 | E127: =A!I$2+A!I$3*EXP(A!I$4*B127) -> 156.1130417 | F127: =IF((A!J$2+A!J$3*B127)<A!J$4,A!J$2+A!J$3*B127,A!J$4) -> 169.8757874 | G127: =IF(B127<A!K$4,A!K$2+A!K$3*(3*B127/(2*A!K$4)-0.5*(B127/A!K$4)^3),A!K$3+A!K$2) -> 161.5057366 | H127: =(C127*B$45+'C'!D127*C$45+'C'!E127*D$45+'C'!F127*E$45+'C'!G127*F$45)/SUM(B$45:F$45) -> 162.5570145
A128: 160 | B128: 160 | C128: =A!G$2+A!G$3*B128+A!G$4*B128^2 -> 160.3635883 | D128: =IF(B128<(A!H$3/(-2*A!H$4)),A!H$2+A!H$3*B128+A!H$4*B128^2,A!H$2+A!H$3*(A!H$3/(-2*A!H$4))+A!H$3*A!H$3/(4*A!H$4)) -> 160.2050215 | E128: =A!I$2+A!I$3*EXP(A!I$4*B128) -> 156.7407838 | F128: =IF((A!J$2+A!J$3*B128)<A!J$4,A!J$2+A!J$3*B128,A!J$4) -> 169.9998471 | G128: =IF(B128<A!K$4,A!K$2+A!K$3*(3*B128/(2*A!K$4)-0.5*(B128/A!K$4)^3),A!K$3+A!K$2) -> 162.2598718 | H128: =(C128*B$45+'C'!D128*C$45+'C'!E128*D$45+'C'!F128*E$45+'C'!G128*F$45)/SUM(B$45:F$45) -> 163.1387079
A129: 162 | B129: 162 | C129: =A!G$2+A!G$3*B129+A!G$4*B129^2 -> 161.0449933 | D129: =IF(B129<(A!H$3/(-2*A!H$4)),A!H$2+A!H$3*B129+A!H$4*B129^2,A!H$2+A!H$3*(A!H$3/(-2*A!H$4))+A!H$3*A!H$3/(4*A!H$4)) -> 160.8892785 | E129: =A!I$2+A!I$3*EXP(A!I$4*B129) -> 157.3565062 | F129: =IF((A!J$2+A!J$3*B129)<A!J$4,A!J$2+A!J$3*B129,A!J$4) -> 169.9998471 | G129: =IF(B129<A!K$4,A!K$2+A!K$3*(3*B129/(2*A!K$4)-0.5*(B129/A!K$4)^3),A!K$3+A!K$2) -> 162.9845637 | H129: =(C129*B$45+'C'!D129*C$45+'C'!E129*D$45+'C'!F129*E$45+'C'!G129*F$45)/SUM(B$45:F$45) -> 163.6727517
A130: 164 | B130: 164 | C130: =A!G$2+A!G$3*B130+A!G$4*B130^2 -> 161.7054451 | D130: =IF(B130<(A!H$3/(-2*A!H$4)),A!H$2+A!H$3*B130+A!H$4*B130^2,A!H$2+A!H$3*(A!H$3/(-2*A!H$4))+A!H$3*A!H$3/(4*A!H$4)) -> 161.5527427 | E130: =A!I$2+A!I$3*EXP(A!I$4*B130) -> 157.9604391 | F130: =IF((A!J$2+A!J$3*B130)<A!J$4,A!J$2+A!J$3*B130,A!J$4) -> 169.9998471 | G130: =IF(B130<A!K$4,A!K$2+A!K$3*(3*B130/(2*A!K$4)-0.5*(B130/A!K$4)^3),A!K$3+A!K$2) -> 163.6794441 | H130: =(C130*B$45+'C'!D130*C$45+'C'!E130*D$45+'C'!F130*E$45+'C'!G130*F$45)/SUM(B$45:F$45) -> 164.1882546
A131: 166 | B131: 166 | C131: =A!G$2+A!G$3*B131+A!G$4*B131^2 -> 162.3449438 | D131: =IF(B131<(A!H$3/(-2*A!H$4)),A!H$2+A!H$3*B131+A!H$4*B131^2,A!H$2+A!H$3*(A!H$3/(-2*A!H$4))+A!H$3*A!H$3/(4*A!H$4)) -> 162.1954141 | E131: =A!I$2+A!I$3*EXP(A!I$4*B131) -> 158.5528081 | F131: =IF((A!J$2+A!J$3*B131)<A!J$4,A!J$2+A!J$3*B131,A!J$4) -> 169.9998471 | G131: =IF(B131<A!K$4,A!K$2+A!K$3*(3*B131/(2*A!K$4)-0.5*(B131/A!K$4)^3),A!K$3+A!K$2) -> 164.3441451 | H131: =(C131*B$45+'C'!D131*C$45+'C'!E131*D$45+'C'!F131*E$45+'C'!G131*F$45)/SUM(B$45:F$45) -> 164.6851097
A132: 168 | B132: 168 | C132: =A!G$2+A!G$3*B132+A!G$4*B132^2 -> 162.9634895 | D132: =IF(B132<(A!H$3/(-2*A!H$4)),A!H$2+A!H$3*B132+A!H$4*B132^2,A!H$2+A!H$3*(A!H$3/(-2*A!H$4))+A!H$3*A!H$3/(4*A!H$4)) -> 162.8172927 | E132: =A!I$2+A!I$3*EXP(A!I$4*B132) -> 159.1338347 | F132: =IF((A!J$2+A!J$3*B132)<A!J$4,A!J$2+A!J$3*B132,A!J$4) -> 169.9998471 | G132: =IF(B132<A!K$4,A!K$2+A!K$3*(3*B132/(2*A!K$4)-0.5*(B132/A!K$4)^3),A!K$3+A!K$2) -> 164.9782985 | H132: =(C132*B$45+'C'!D132*C$45+'C'!E132*D$45+'C'!F132*E$45+'C'!G132*F$45)/SUM(B$45:F$45) -> 165.1632101
A133: 170 | B133: 170 | C133: =A!G$2+A!G$3*B133+A!G$4*B133^2 -> 163.561082 | D133: =IF(B133<(A!H$3/(-2*A!H$4)),A!H$2+A!H$3*B133+A!H$4*B133^2,A!H$2+A!H$3*(A!H$3/(-2*A!H$4))+A!H$3*A!H$3/(4*A!H$4)) -> 163.4183786 | E133: =A!I$2+A!I$3*EXP(A!I$4*B133) -> 159.7037361 | F133: =IF((A!J$2+A!J$3*B133)<A!J$4,A!J$2+A!J$3*B133,A!J$4) -> 169.9998471 | G133: =IF(B133<A!K$4,A!K$2+A!K$3*(3*B133/(2*A!K$4)-0.5*(B133/A!K$4)^3),A!K$3+A!K$2) -> 165.5815364 | H133: =(C133*B$45+'C'!D133*C$45+'C'!E133*D$45+'C'!F133*E$45+'C'!G133*F$45)/SUM(B$45:F$45) -> 165.622449
A134: 172 | B134: 172 | C134: =A!G$2+A!G$3*B134+A!G$4*B134^2 -> 164.1377214 | D134: =IF(B134<(A!H$3/(-2*A!H$4)),A!H$2+A!H$3*B134+A!H$4*B134^2,A!H$2+A!H$3*(A!H$3/(-2*A!H$4))+A!H$3*A!H$3/(4*A!H$4)) -> 163.9986716 | E134: =A!I$2+A!I$3*EXP(A!I$4*B134) -> 160.2627253 | F134: =IF((A!J$2+A!J$3*B134)<A!J$4,A!J$2+A!J$3*B134,A!J$4) -> 169.9998471 | G134: =IF(B134<A!K$4,A!K$2+A!K$3*(3*B134/(2*A!K$4)-0.5*(B134/A!K$4)^3),A!K$3+A!K$2) -> 166.1534906 | H134: =(C134*B$45+'C'!D134*C$45+'C'!E134*D$45+'C'!F134*E$45+'C'!G134*F$45)/SUM(B$45:F$45) -> 166.0627196
A135: 174 | B135: 174 | C135: =A!G$2+A!G$3*B135+A!G$4*B135^2 -> 164.6934076 | D135: =IF(B135<(A!H$3/(-2*A!H$4)),A!H$2+A!H$3*B135+A!H$4*B135^2,A!H$2+A!H$3*(A!H$3/(-2*A!H$4))+A!H$3*A!H$3/(4*A!H$4)) -> 164.5581719 | E135: =A!I$2+A!I$3*EXP(A!I$4*B135) -> 160.8110113 | F135: =IF((A!J$2+A!J$3*B135)<A!J$4,A!J$2+A!J$3*B135,A!J$4) -> 169.9998471 | G135: =IF(B135<A!K$4,A!K$2+A!K$3*(3*B135/(2*A!K$4)-0.5*(B135/A!K$4)^3),A!K$3+A!K$2) -> 166.6937932 | H135: =(C135*B$45+'C'!D135*C$45+'C'!E135*D$45+'C'!F135*E$45+'C'!G135*F$45)/SUM(B$45:F$45) -> 166.483915
A136: 176 | B136: 176 | C136: =A!G$2+A!G$3*B136+A!G$4*B136^2 -> 165.2281408 | D136: =IF(B136<(A!H$3/(-2*A!H$4)),A!H$2+A!H$3*B136+A!H$4*B136^2,A!H$2+A!H$3*(A!H$3/(-2*A!H$4))+A!H$3*A!H$3/(4*A!H$4)) -> 165.0968795 | E136: =A!I$2+A!I$3*EXP(A!I$4*B136) -> 161.3487989 | F136: =IF((A!J$2+A!J$3*B136)<A!J$4,A!J$2+A!J$3*B136,A!J$4) -> 169.9998471 | G136: =IF(B136<A!K$4,A!K$2+A!K$3*(3*B136/(2*A!K$4)-0.5*(B136/A!K$4)^3),A!K$3+A!K$2) -> 167.2020761 | H136: =(C136*B$45+'C'!D136*C$45+'C'!E136*D$45+'C'!F136*E$45+'C'!G136*F$45)/SUM(B$45:F$45) -> 166.8859282
A137: 178 | B137: 178 | C137: =A!G$2+A!G$3*B137+A!G$4*B137^2 -> 165.7419209 | D137: =IF(B137<(A!H$3/(-2*A!H$4)),A!H$2+A!H$3*B137+A!H$4*B137^2,A!H$2+A!H$3*(A!H$3/(-2*A!H$4))+A!H$3*A!H$3/(4*A!H$4)) -> 165.6147942 | E137: =A!I$2+A!I$3*EXP(A!I$4*B137) -> 161.8762892 | F137: =IF((A!J$2+A!J$3*B137)<A!J$4,A!J$2+A!J$3*B137,A!J$4) -> 169.9998471 | G137: =IF(B137<A!K$4,A!K$2+A!K$3*(3*B137/(2*A!K$4)-0.5*(B137/A!K$4)^3),A!K$3+A!K$2) -> 167.6779713 | H137: =(C137*B$45+'C'!D137*C$45+'C'!E137*D$45+'C'!F137*E$45+'C'!G137*F$45)/SUM(B$45:F$45) -> 167.2686524
A138: 180 | B138: 180 | C138: =A!G$2+A!G$3*B138+A!G$4*B138^2 -> 166.2347479 | D138: =IF(B138<(A!H$3/(-2*A!H$4)),A!H$2+A!H$3*B138+A!H$4*B138^2,A!H$2+A!H$3*(A!H$3/(-2*A!H$4))+A!H$3*A!H$3/(4*A!H$4)) -> 166.1119162 | E138: =A!I$2+A!I$3*EXP(A!I$4*B138) -> 162.3936794 | F138: =IF((A!J$2+A!J$3*B138)<A!J$4,A!J$2+A!J$3*B138,A!J$4) -> 169.9998471 | G138: =IF(B138<A!K$4,A!K$2+A!K$3*(3*B138/(2*A!K$4)-0.5*(B138/A!K$4)^3),A!K$3+A!K$2) -> 168.1211107 | H138: =(C138*B$45+'C'!D138*C$45+'C'!E138*D$45+'C'!F138*E$45+'C'!G138*F$45)/SUM(B$45:F$45) -> 167.6319807
A139: 182 | B139: 182 | C139: =A!G$2+A!G$3*B139+A!G$4*B139^2 -> 166.7066217 | D139: =IF(B139<(A!H$3/(-2*A!H$4)),A!H$2+A!H$3*B139+A!H$4*B139^2,A!H$2+A!H$3*(A!H$3/(-2*A!H$4))+A!H$3*A!H$3/(4*A!H$4)) -> 166.5882454 | E139: =A!I$2+A!I$3*EXP(A!I$4*B139) -> 162.9011628 | F139: =IF((A!J$2+A!J$3*B139)<A!J$4,A!J$2+A!J$3*B139,A!J$4) -> 169.9998471 | G139: =IF(B139<A!K$4,A!K$2+A!K$3*(3*B139/(2*A!K$4)-0.5*(B139/A!K$4)^3),A!K$3+A!K$2) -> 168.5311263 | H139: =(C139*B$45+'C'!D139*C$45+'C'!E139*D$45+'C'!F139*E$45+'C'!G139*F$45)/SUM(B$45:F$45) -> 167.9758061
A140: 184 | B140: 184 | C140: =A!G$2+A!G$3*B140+A!G$4*B140^2 -> 167.1575424 | D140: =IF(B140<(A!H$3/(-2*A!H$4)),A!H$2+A!H$3*B140+A!H$4*B140^2,A!H$2+A!H$3*(A!H$3/(-2*A!H$4))+A!H$3*A!H$3/(4*A!H$4)) -> 167.0437818 | E140: =A!I$2+A!I$3*EXP(A!I$4*B140) -> 163.3989292 | F140: =IF((A!J$2+A!J$3*B140)<A!J$4,A!J$2+A!J$3*B140,A!J$4) -> 169.9998471 | G140: =IF(B140<A!K$4,A!K$2+A!K$3*(3*B140/(2*A!K$4)-0.5*(B140/A!K$4)^3),A!K$3+A!K$2) -> 168.90765 | H140: =(C140*B$45+'C'!D140*C$45+'C'!E140*D$45+'C'!F140*E$45+'C'!G140*F$45)/SUM(B$45:F$45) -> 168.3000218
A141: 186 | B141: 186 | C141: =A!G$2+A!G$3*B141+A!G$4*B141^2 -> 167.5875101 | D141: =IF(B141<(A!H$3/(-2*A!H$4)),A!H$2+A!H$3*B141+A!H$4*B141^2,A!H$2+A!H$3*(A!H$3/(-2*A!H$4))+A!H$3*A!H$3/(4*A!H$4)) -> 167.4785254 | E141: =A!I$2+A!I$3*EXP(A!I$4*B141) -> 163.8871646 | F141: =IF((A!J$2+A!J$3*B141)<A!J$4,A!J$2+A!J$3*B141,A!J$4) -> 169.9998471 | G141: =IF(B141<A!K$4,A!K$2+A!K$3*(3*B141/(2*A!K$4)-0.5*(B141/A!K$4)^3),A!K$3+A!K$2) -> 169.2503138 | H141: =(C141*B$45+'C'!D141*C$45+'C'!E141*D$45+'C'!F141*E$45+'C'!G141*F$45)/SUM(B$45:F$45) -> 168.6045207
A142: 188 | B142: 188 | C142: =A!G$2+A!G$3*B142+A!G$4*B142^2 -> 167.9965246 | D142: =IF(B142<(A!H$3/(-2*A!H$4)),A!H$2+A!H$3*B142+A!H$4*B142^2,A!H$2+A!H$3*(A!H$3/(-2*A!H$4))+A!H$3*A!H$3/(4*A!H$4)) -> 167.8924763 | E142: =A!I$2+A!I$3*EXP(A!I$4*B142) -> 164.3660515 | F142: =IF((A!J$2+A!J$3*B142)<A!J$4,A!J$2+A!J$3*B142,A!J$4) -> 169.9998471 | G142: =IF(B142<A!K$4,A!K$2+A!K$3*(3*B142/(2*A!K$4)-0.5*(B142/A!K$4)^3),A!K$3+A!K$2) -> 169.5587496 | H142: =(C142*B$45+'C'!D142*C$45+'C'!E142*D$45+'C'!F142*E$45+'C'!G142*F$45)/SUM(B$45:F$45) -> 168.8891959
A143: 190 | B143: 190 | C143: =A!G$2+A!G$3*B143+A!G$4*B143^2 -> 168.384586 | D143: =IF(B143<(A!H$3/(-2*A!H$4)),A!H$2+A!H$3*B143+A!H$4*B143^2,A!H$2+A!H$3*(A!H$3/(-2*A!H$4))+A!H$3*A!H$3/(4*A!H$4)) -> 168.2856344 | E143: =A!I$2+A!I$3*EXP(A!I$4*B143) -> 164.8357689 | F143: =IF((A!J$2+A!J$3*B143)<A!J$4,A!J$2+A!J$3*B143,A!J$4) -> 169.9998471 | G143: =IF(B143<A!K$4,A!K$2+A!K$3*(3*B143/(2*A!K$4)-0.5*(B143/A!K$4)^3),A!K$3+A!K$2) -> 169.8325895 | H143: =(C143*B$45+'C'!D143*C$45+'C'!E143*D$45+'C'!F143*E$45+'C'!G143*F$45)/SUM(B$45:F$45) -> 169.1539404
A144: 192 | B144: 192 | C144: =A!G$2+A!G$3*B144+A!G$4*B144^2 -> 168.7516943 | D144: =IF(B144<(A!H$3/(-2*A!H$4)),A!H$2+A!H$3*B144+A!H$4*B144^2,A!H$2+A!H$3*(A!H$3/(-2*A!H$4))+A!H$3*A!H$3/(4*A!H$4)) -> 168.6579997 | E144: =A!I$2+A!I$3*EXP(A!I$4*B144) -> 165.2964924 | F144: =IF((A!J$2+A!J$3*B144)<A!J$4,A!J$2+A!J$3*B144,A!J$4) -> 169.9998471 | G144: =IF(B144<A!K$4,A!K$2+A!K$3*(3*B144/(2*A!K$4)-0.5*(B144/A!K$4)^3),A!K$3+A!K$2) -> 170.0714653 | H144: =(C144*B$45+'C'!D144*C$45+'C'!E144*D$45+'C'!F144*E$45+'C'!G144*F$45)/SUM(B$45:F$45) -> 169.3986473
A145: 194 | B145: 194 | C145: =A!G$2+A!G$3*B145+A!G$4*B145^2 -> 169.0978495 | D145: =IF(B145<(A!H$3/(-2*A!H$4)),A!H$2+A!H$3*B145+A!H$4*B145^2,A!H$2+A!H$3*(A!H$3/(-2*A!H$4))+A!H$3*A!H$3/(4*A!H$4)) -> 169.0095722 | E145: =A!I$2+A!I$3*EXP(A!I$4*B145) -> 165.7483941 | F145: =IF((A!J$2+A!J$3*B145)<A!J$4,A!J$2+A!J$3*B145,A!J$4) -> 169.9998471 | G145: =IF(B145<A!K$4,A!K$2+A!K$3*(3*B145/(2*A!K$4)-0.5*(B145/A!K$4)^3),A!K$3+A!K$2) -> 170.2750091 | H145: =(C145*B$45+'C'!D145*C$45+'C'!E145*D$45+'C'!F145*E$45+'C'!G145*F$45)/SUM(B$45:F$45) -> 169.6232095
A146: 196 | B146: 196 | C146: =A!G$2+A!G$3*B146+A!G$4*B146^2 -> 169.4230516 | D146: =IF(B146<(A!H$3/(-2*A!H$4)),A!H$2+A!H$3*B146+A!H$4*B146^2,A!H$2+A!H$3*(A!H$3/(-2*A!H$4))+A!H$3*A!H$3/(4*A!H$4)) -> 169.340352 | E146: =A!I$2+A!I$3*EXP(A!I$4*B146) -> 166.1916431 | F146: =IF((A!J$2+A!J$3*B146)<A!J$4,A!J$2+A!J$3*B146,A!J$4) -> 169.9998471 | G146: =IF(B146<A!K$4,A!K$2+A!K$3*(3*B146/(2*A!K$4)-0.5*(B146/A!K$4)^3),A!K$3+A!K$2) -> 170.4428527 | H146: =(C146*B$45+'C'!D146*C$45+'C'!E146*D$45+'C'!F146*E$45+'C'!G146*F$45)/SUM(B$45:F$45) -> 169.8275201
A147: 198 | B147: 198 | C147: =A!G$2+A!G$3*B147+A!G$4*B147^2 -> 169.7273006 | D147: =IF(B147<(A!H$3/(-2*A!H$4)),A!H$2+A!H$3*B147+A!H$4*B147^2,A!H$2+A!H$3*(A!H$3/(-2*A!H$4))+A!H$3*A!H$3/(4*A!H$4)) -> 169.650339 | E147: =A!I$2+A!I$3*EXP(A!I$4*B147) -> 166.6264049 | F147: =IF((A!J$2+A!J$3*B147)<A!J$4,A!J$2+A!J$3*B147,A!J$4) -> 169.9998471 | G147: =IF(B147<A!K$4,A!K$2+A!K$3*(3*B147/(2*A!K$4)-0.5*(B147/A!K$4)^3),A!K$3+A!K$2) -> 170.5746282 | H147: =(C147*B$45+'C'!D147*C$45+'C'!E147*D$45+'C'!F147*E$45+'C'!G147*F$45)/SUM(B$45:F$45) -> 170.011472
A148: 200 | B148: 200 | C148: =A!G$2+A!G$3*B148+A!G$4*B148^2 -> 170.0105964 | D148: =IF(B148<(A!H$3/(-2*A!H$4)),A!H$2+A!H$3*B148+A!H$4*B148^2,A!H$2+A!H$3*(A!H$3/(-2*A!H$4))+A!H$3*A!H$3/(4*A!H$4)) -> 169.9395332 | E148: =A!I$2+A!I$3*EXP(A!I$4*B148) -> 167.0528421 | F148: =IF((A!J$2+A!J$3*B148)<A!J$4,A!J$2+A!J$3*B148,A!J$4) -> 169.9998471 | G148: =IF(B148<A!K$4,A!K$2+A!K$3*(3*B148/(2*A!K$4)-0.5*(B148/A!K$4)^3),A!K$3+A!K$2) -> 170.6699675 | H148: =(C148*B$45+'C'!D148*C$45+'C'!E148*D$45+'C'!F148*E$45+'C'!G148*F$45)/SUM(B$45:F$45) -> 170.1749583
A149: 202 | B149: 202 | C149: =A!G$2+A!G$3*B149+A!G$4*B149^2 -> 170.2729392 | D149: =IF(B149<(A!H$3/(-2*A!H$4)),A!H$2+A!H$3*B149+A!H$4*B149^2,A!H$2+A!H$3*(A!H$3/(-2*A!H$4))+A!H$3*A!H$3/(4*A!H$4)) -> 170.2079346 | E149: =A!I$2+A!I$3*EXP(A!I$4*B149) -> 167.4711141 | F149: =IF((A!J$2+A!J$3*B149)<A!J$4,A!J$2+A!J$3*B149,A!J$4) -> 169.9998471 | G149: =IF(B149<A!K$4,A!K$2+A!K$3*(3*B149/(2*A!K$4)-0.5*(B149/A!K$4)^3),A!K$3+A!K$2) -> 170.7285025 | H149: =(C149*B$45+'C'!D149*C$45+'C'!E149*D$45+'C'!F149*E$45+'C'!G149*F$45)/SUM(B$45:F$45) -> 170.3178718
A150: 204 | B150: 204 | C150: =A!G$2+A!G$3*B150+A!G$4*B150^2 -> 170.5143288 | D150: =IF(B150<(A!H$3/(-2*A!H$4)),A!H$2+A!H$3*B150+A!H$4*B150^2,A!H$2+A!H$3*(A!H$3/(-2*A!H$4))+A!H$3*A!H$3/(4*A!H$4)) -> 170.4555432 | E150: =A!I$2+A!I$3*EXP(A!I$4*B150) -> 167.8813773 | F150: =IF((A!J$2+A!J$3*B150)<A!J$4,A!J$2+A!J$3*B150,A!J$4) -> 169.9998471 | G150: =IF(B150<A!K$4,A!K$2+A!K$3*(3*B150/(2*A!K$4)-0.5*(B150/A!K$4)^3),A!K$3+A!K$2) -> 170.7498652 | H150: =(C150*B$45+'C'!D150*C$45+'C'!E150*D$45+'C'!F150*E$45+'C'!G150*F$45)/SUM(B$45:F$45) -> 170.4401056
A151: 206 | B151: 206 | C151: =A!G$2+A!G$3*B151+A!G$4*B151^2 -> 170.7347654 | D151: =IF(B151<(A!H$3/(-2*A!H$4)),A!H$2+A!H$3*B151+A!H$4*B151^2,A!H$2+A!H$3*(A!H$3/(-2*A!H$4))+A!H$3*A!H$3/(4*A!H$4)) -> 170.6823591 | E151: =A!I$2+A!I$3*EXP(A!I$4*B151) -> 168.2837849 | F151: =IF((A!J$2+A!J$3*B151)<A!J$4,A!J$2+A!J$3*B151,A!J$4) -> 169.9998471 | G151: =IF(B151<A!K$4,A!K$2+A!K$3*(3*B151/(2*A!K$4)-0.5*(B151/A!K$4)^3),A!K$3+A!K$2) -> 170.749959 | H151: =(C151*B$45+'C'!D151*C$45+'C'!E151*D$45+'C'!F151*E$45+'C'!G151*F$45)/SUM(B$45:F$45) -> 170.5463065
A152: 208 | B152: 208 | C152: =A!G$2+A!G$3*B152+A!G$4*B152^2 -> 170.9342488 | D152: =IF(B152<(A!H$3/(-2*A!H$4)),A!H$2+A!H$3*B152+A!H$4*B152^2,A!H$2+A!H$3*(A!H$3/(-2*A!H$4))+A!H$3*A!H$3/(4*A!H$4)) -> 170.8883822 | E152: =A!I$2+A!I$3*EXP(A!I$4*B152) -> 168.6784874 | F152: =IF((A!J$2+A!J$3*B152)<A!J$4,A!J$2+A!J$3*B152,A!J$4) -> 169.9998471 | G152: =IF(B152<A!K$4,A!K$2+A!K$3*(3*B152/(2*A!K$4)-0.5*(B152/A!K$4)^3),A!K$3+A!K$2) -> 170.749959 | H152: =(C152*B$45+'C'!D152*C$45+'C'!E152*D$45+'C'!F152*E$45+'C'!G152*F$45)/SUM(B$45:F$45) -> 170.6426614
A153: 210 | B153: 210 | C153: =A!G$2+A!G$3*B153+A!G$4*B153^2 -> 171.1127791 | D153: =IF(B153<(A!H$3/(-2*A!H$4)),A!H$2+A!H$3*B153+A!H$4*B153^2,A!H$2+A!H$3*(A!H$3/(-2*A!H$4))+A!H$3*A!H$3/(4*A!H$4)) -> 171.0736125 | E153: =A!I$2+A!I$3*EXP(A!I$4*B153) -> 169.0656323 | F153: =IF((A!J$2+A!J$3*B153)<A!J$4,A!J$2+A!J$3*B153,A!J$4) -> 169.9998471 | G153: =IF(B153<A!K$4,A!K$2+A!K$3*(3*B153/(2*A!K$4)-0.5*(B153/A!K$4)^3),A!K$3+A!K$2) -> 170.749959 | H153: =(C153*B$45+'C'!D153*C$45+'C'!E153*D$45+'C'!F153*E$45+'C'!G153*F$45)/SUM(B$45:F$45) -> 170.7291983
A154: 212 | B154: 212 | C154: =A!G$2+A!G$3*B154+A!G$4*B154^2 -> 171.2703563 | D154: =IF(B154<(A!H$3/(-2*A!H$4)),A!H$2+A!H$3*B154+A!H$4*B154^2,A!H$2+A!H$3*(A!H$3/(-2*A!H$4))+A!H$3*A!H$3/(4*A!H$4)) -> 171.2380501 | E154: =A!I$2+A!I$3*EXP(A!I$4*B154) -> 169.4453643 | F154: =IF((A!J$2+A!J$3*B154)<A!J$4,A!J$2+A!J$3*B154,A!J$4) -> 169.9998471 | G154: =IF(B154<A!K$4,A!K$2+A!K$3*(3*B154/(2*A!K$4)-0.5*(B154/A!K$4)^3),A!K$3+A!K$2) -> 170.749959 | H154: =(C154*B$45+'C'!D154*C$45+'C'!E154*D$45+'C'!F154*E$45+'C'!G154*F$45)/SUM(B$45:F$45) -> 170.8059175
A155: 214 | B155: 214 | C155: =A!G$2+A!G$3*B155+A!G$4*B155^2 -> 171.4069804 | D155: =IF(B155<(A!H$3/(-2*A!H$4)),A!H$2+A!H$3*B155+A!H$4*B155^2,A!H$2+A!H$3*(A!H$3/(-2*A!H$4))+A!H$3*A!H$3/(4*A!H$4)) -> 171.3816948 | E155: =A!I$2+A!I$3*EXP(A!I$4*B155) -> 169.8178254 | F155: =IF((A!J$2+A!J$3*B155)<A!J$4,A!J$2+A!J$3*B155,A!J$4) -> 169.9998471 | G155: =IF(B155<A!K$4,A!K$2+A!K$3*(3*B155/(2*A!K$4)-0.5*(B155/A!K$4)^3),A!K$3+A!K$2) -> 170.749959 | H155: =(C155*B$45+'C'!D155*C$45+'C'!E155*D$45+'C'!F155*E$45+'C'!G155*F$45)/SUM(B$45:F$45) -> 170.8728195
A156: 216 | B156: 216 | C156: =A!G$2+A!G$3*B156+A!G$4*B156^2 -> 171.5226514 | D156: =IF(B156<(A!H$3/(-2*A!H$4)),A!H$2+A!H$3*B156+A!H$4*B156^2,A!H$2+A!H$3*(A!H$3/(-2*A!H$4))+A!H$3*A!H$3/(4*A!H$4)) -> 171.5045468 | E156: =A!I$2+A!I$3*EXP(A!I$4*B156) -> 170.1831548 | F156: =IF((A!J$2+A!J$3*B156)<A!J$4,A!J$2+A!J$3*B156,A!J$4) -> 169.9998471 | G156: =IF(B156<A!K$4,A!K$2+A!K$3*(3*B156/(2*A!K$4)-0.5*(B156/A!K$4)^3),A!K$3+A!K$2) -> 170.749959 | H156: =(C156*B$45+'C'!D156*C$45+'C'!E156*D$45+'C'!F156*E$45+'C'!G156*F$45)/SUM(B$45:F$45) -> 170.9299048
A157: 218 | B157: 218 | C157: =A!G$2+A!G$3*B157+A!G$4*B157^2 -> 171.6173693 | D157: =IF(B157<(A!H$3/(-2*A!H$4)),A!H$2+A!H$3*B157+A!H$4*B157^2,A!H$2+A!H$3*(A!H$3/(-2*A!H$4))+A!H$3*A!H$3/(4*A!H$4)) -> 171.606606 | E157: =A!I$2+A!I$3*EXP(A!I$4*B157) -> 170.5414891 | F157: =IF((A!J$2+A!J$3*B157)<A!J$4,A!J$2+A!J$3*B157,A!J$4) -> 169.9998471 | G157: =IF(B157<A!K$4,A!K$2+A!K$3*(3*B157/(2*A!K$4)-0.5*(B157/A!K$4)^3),A!K$3+A!K$2) -> 170.749959 | H157: =(C157*B$45+'C'!D157*C$45+'C'!E157*D$45+'C'!F157*E$45+'C'!G157*F$45)/SUM(B$45:F$45) -> 170.9771738
A158: 220 | B158: 220 | C158: =A!G$2+A!G$3*B158+A!G$4*B158^2 -> 171.691134 | D158: =IF(B158<(A!H$3/(-2*A!H$4)),A!H$2+A!H$3*B158+A!H$4*B158^2,A!H$2+A!H$3*(A!H$3/(-2*A!H$4))+A!H$3*A!H$3/(4*A!H$4)) -> 171.6878725 | E158: =A!I$2+A!I$3*EXP(A!I$4*B158) -> 170.8929621 | F158: =IF((A!J$2+A!J$3*B158)<A!J$4,A!J$2+A!J$3*B158,A!J$4) -> 169.9998471 | G158: =IF(B158<A!K$4,A!K$2+A!K$3*(3*B158/(2*A!K$4)-0.5*(B158/A!K$4)^3),A!K$3+A!K$2) -> 170.749959 | H158: =(C158*B$45+'C'!D158*C$45+'C'!E158*D$45+'C'!F158*E$45+'C'!G158*F$45)/SUM(B$45:F$45) -> 171.0146268
A159: 222 | B159: 222 | C159: =A!G$2+A!G$3*B159+A!G$4*B159^2 -> 171.7439457 | D159: =IF(B159<(A!H$3/(-2*A!H$4)),A!H$2+A!H$3*B159+A!H$4*B159^2,A!H$2+A!H$3*(A!H$3/(-2*A!H$4))+A!H$3*A!H$3/(4*A!H$4)) -> 171.7483461 | E159: =A!I$2+A!I$3*EXP(A!I$4*B159) -> 171.2377053 | F159: =IF((A!J$2+A!J$3*B159)<A!J$4,A!J$2+A!J$3*B159,A!J$4) -> 169.9998471 | G159: =IF(B159<A!K$4,A!K$2+A!K$3*(3*B159/(2*A!K$4)-0.5*(B159/A!K$4)^3),A!K$3+A!K$2) -> 170.749959 | H159: =(C159*B$45+'C'!D159*C$45+'C'!E159*D$45+'C'!F159*E$45+'C'!G159*F$45)/SUM(B$45:F$45) -> 171.0422644
A160: 224 | B160: 224 | C160: =A!G$2+A!G$3*B160+A!G$4*B160^2 -> 171.7758042 | D160: =IF(B160<(A!H$3/(-2*A!H$4)),A!H$2+A!H$3*B160+A!H$4*B160^2,A!H$2+A!H$3*(A!H$3/(-2*A!H$4))+A!H$3*A!H$3/(4*A!H$4)) -> 171.788027 | E160: =A!I$2+A!I$3*EXP(A!I$4*B160) -> 171.5758476 | F160: =IF((A!J$2+A!J$3*B160)<A!J$4,A!J$2+A!J$3*B160,A!J$4) -> 169.9998471 | G160: =IF(B160<A!K$4,A!K$2+A!K$3*(3*B160/(2*A!K$4)-0.5*(B160/A!K$4)^3),A!K$3+A!K$2) -> 170.749959 | H160: =(C160*B$45+'C'!D160*C$45+'C'!E160*D$45+'C'!F160*E$45+'C'!G160*F$45)/SUM(B$45:F$45) -> 171.0600869
A161: 226 | B161: 226 | C161: =A!G$2+A!G$3*B161+A!G$4*B161^2 -> 171.7867097 | D161: =IF(B161<(A!H$3/(-2*A!H$4)),A!H$2+A!H$3*B161+A!H$4*B161^2,A!H$2+A!H$3*(A!H$3/(-2*A!H$4))+A!H$3*A!H$3/(4*A!H$4)) -> 171.8069151 | E161: =A!I$2+A!I$3*EXP(A!I$4*B161) -> 171.9075152 | F161: =IF((A!J$2+A!J$3*B161)<A!J$4,A!J$2+A!J$3*B161,A!J$4) -> 169.9998471 | G161: =IF(B161<A!K$4,A!K$2+A!K$3*(3*B161/(2*A!K$4)-0.5*(B161/A!K$4)^3),A!K$3+A!K$2) -> 170.749959 | H161: =(C161*B$45+'C'!D161*C$45+'C'!E161*D$45+'C'!F161*E$45+'C'!G161*F$45)/SUM(B$45:F$45) -> 171.0680946
A162: 228 | B162: 228 | C162: =A!G$2+A!G$3*B162+A!G$4*B162^2 -> 171.776662 | D162: =IF(B162<(A!H$3/(-2*A!H$4)),A!H$2+A!H$3*B162+A!H$4*B162^2,A!H$2+A!H$3*(A!H$3/(-2*A!H$4))+A!H$3*A!H$3/(4*A!H$4)) -> 171.8086491 | E162: =A!I$2+A!I$3*EXP(A!I$4*B162) -> 172.2328322 | F162: =IF((A!J$2+A!J$3*B162)<A!J$4,A!J$2+A!J$3*B162,A!J$4) -> 169.9998471 | G162: =IF(B162<A!K$4,A!K$2+A!K$3*(3*B162/(2*A!K$4)-0.5*(B162/A!K$4)^3),A!K$3+A!K$2) -> 170.749959 | H162: =(C162*B$45+'C'!D162*C$45+'C'!E162*D$45+'C'!F162*E$45+'C'!G162*F$45)/SUM(B$45:F$45) -> 171.0671349
A163: 230 | B163: 230 | C163: =A!G$2+A!G$3*B163+A!G$4*B163^2 -> 171.7456612 | D163: =IF(B163<(A!H$3/(-2*A!H$4)),A!H$2+A!H$3*B163+A!H$4*B163^2,A!H$2+A!H$3*(A!H$3/(-2*A!H$4))+A!H$3*A!H$3/(4*A!H$4)) -> 171.8086491 | E163: =A!I$2+A!I$3*EXP(A!I$4*B163) -> 172.5519202 | F163: =IF((A!J$2+A!J$3*B163)<A!J$4,A!J$2+A!J$3*B163,A!J$4) -> 169.9998471 | G163: =IF(B163<A!K$4,A!K$2+A!K$3*(3*B163/(2*A!K$4)-0.5*(B163/A!K$4)^3),A!K$3+A!K$2) -> 170.749959 | H163: =(C163*B$45+'C'!D163*C$45+'C'!E163*D$45+'C'!F163*E$45+'C'!G163*F$45)/SUM(B$45:F$45) -> 171.0607964
A164: 232 | B164: 232 | C164: =A!G$2+A!G$3*B164+A!G$4*B164^2 -> 171.6937073 | D164: =IF(B164<(A!H$3/(-2*A!H$4)),A!H$2+A!H$3*B164+A!H$4*B164^2,A!H$2+A!H$3*(A!H$3/(-2*A!H$4))+A!H$3*A!H$3/(4*A!H$4)) -> 171.8086491 | E164: =A!I$2+A!I$3*EXP(A!I$4*B164) -> 172.8648985 | F164: =IF((A!J$2+A!J$3*B164)<A!J$4,A!J$2+A!J$3*B164,A!J$4) -> 169.9998471 | G164: =IF(B164<A!K$4,A!K$2+A!K$3*(3*B164/(2*A!K$4)-0.5*(B164/A!K$4)^3),A!K$3+A!K$2) -> 170.749959 | H164: =(C164*B$45+'C'!D164*C$45+'C'!E164*D$45+'C'!F164*E$45+'C'!G164*F$45)/SUM(B$45:F$45) -> 171.0494832
A165: 234 | B165: 234 | C165: =A!G$2+A!G$3*B165+A!G$4*B165^2 -> 171.6208004 | D165: =IF(B165<(A!H$3/(-2*A!H$4)),A!H$2+A!H$3*B165+A!H$4*B165^2,A!H$2+A!H$3*(A!H$3/(-2*A!H$4))+A!H$3*A!H$3/(4*A!H$4)) -> 171.8086491 | E165: =A!I$2+A!I$3*EXP(A!I$4*B165) -> 173.171884 | F165: =IF((A!J$2+A!J$3*B165)<A!J$4,A!J$2+A!J$3*B165,A!J$4) -> 169.9998471 | G165: =IF(B165<A!K$4,A!K$2+A!K$3*(3*B165/(2*A!K$4)-0.5*(B165/A!K$4)^3),A!K$3+A!K$2) -> 170.749959 | H165: =(C165*B$45+'C'!D165*C$45+'C'!E165*D$45+'C'!F165*E$45+'C'!G165*F$45)/SUM(B$45:F$45) -> 171.0331956
A166: 236 | B166: 236 | C166: =A!G$2+A!G$3*B166+A!G$4*B166^2 -> 171.5269402 | D166: =IF(B166<(A!H$3/(-2*A!H$4)),A!H$2+A!H$3*B166+A!H$4*B166^2,A!H$2+A!H$3*(A!H$3/(-2*A!H$4))+A!H$3*A!H$3/(4*A!H$4)) -> 171.8086491 | E166: =A!I$2+A!I$3*EXP(A!I$4*B166) -> 173.4729915 | F166: =IF((A!J$2+A!J$3*B166)<A!J$4,A!J$2+A!J$3*B166,A!J$4) -> 169.9998471 | G166: =IF(B166<A!K$4,A!K$2+A!K$3*(3*B166/(2*A!K$4)-0.5*(B166/A!K$4)^3),A!K$3+A!K$2) -> 170.749959 | H166: =(C166*B$45+'C'!D166*C$45+'C'!E166*D$45+'C'!F166*E$45+'C'!G166*F$45)/SUM(B$45:F$45) -> 171.011934
A167: 238 | B167: 238 | C167: =A!G$2+A!G$3*B167+A!G$4*B167^2 -> 171.412127 | D167: =IF(B167<(A!H$3/(-2*A!H$4)),A!H$2+A!H$3*B167+A!H$4*B167^2,A!H$2+A!H$3*(A!H$3/(-2*A!H$4))+A!H$3*A!H$3/(4*A!H$4)) -> 171.8086491 | E167: =A!I$2+A!I$3*EXP(A!I$4*B167) -> 173.7683335 | F167: =IF((A!J$2+A!J$3*B167)<A!J$4,A!J$2+A!J$3*B167,A!J$4) -> 169.9998471 | G167: =IF(B167<A!K$4,A!K$2+A!K$3*(3*B167/(2*A!K$4)-0.5*(B167/A!K$4)^3),A!K$3+A!K$2) -> 170.749959 | H167: =(C167*B$45+'C'!D167*C$45+'C'!E167*D$45+'C'!F167*E$45+'C'!G167*F$45)/SUM(B$45:F$45) -> 170.9856986
A168: 240 | B168: 240 | C168: =A!G$2+A!G$3*B168+A!G$4*B168^2 -> 171.2763607 | D168: =IF(B168<(A!H$3/(-2*A!H$4)),A!H$2+A!H$3*B168+A!H$4*B168^2,A!H$2+A!H$3*(A!H$3/(-2*A!H$4))+A!H$3*A!H$3/(4*A!H$4)) -> 171.8086491 | E168: =A!I$2+A!I$3*EXP(A!I$4*B168) -> 174.0580204 | F168: =IF((A!J$2+A!J$3*B168)<A!J$4,A!J$2+A!J$3*B168,A!J$4) -> 169.9998471 | G168: =IF(B168<A!K$4,A!K$2+A!K$3*(3*B168/(2*A!K$4)-0.5*(B168/A!K$4)^3),A!K$3+A!K$2) -> 170.749959 | H168: =(C168*B$45+'C'!D168*C$45+'C'!E168*D$45+'C'!F168*E$45+'C'!G168*F$45)/SUM(B$45:F$45) -> 170.9544899
A169: 242 | B169: 242 | C169: =A!G$2+A!G$3*B169+A!G$4*B169^2 -> 171.1196413 | D169: =IF(B169<(A!H$3/(-2*A!H$4)),A!H$2+A!H$3*B169+A!H$4*B169^2,A!H$2+A!H$3*(A!H$3/(-2*A!H$4))+A!H$3*A!H$3/(4*A!H$4)) -> 171.8086491 | E169: =A!I$2+A!I$3*EXP(A!I$4*B169) -> 174.3421606 | F169: =IF((A!J$2+A!J$3*B169)<A!J$4,A!J$2+A!J$3*B169,A!J$4) -> 169.9998471 | G169: =IF(B169<A!K$4,A!K$2+A!K$3*(3*B169/(2*A!K$4)-0.5*(B169/A!K$4)^3),A!K$3+A!K$2) -> 170.749959 | H169: =(C169*B$45+'C'!D169*C$45+'C'!E169*D$45+'C'!F169*E$45+'C'!G169*F$45)/SUM(B$45:F$45) -> 170.9183082
A170: 244 | B170: 244 | C170: =A!G$2+A!G$3*B170+A!G$4*B170^2 -> 170.9419687 | D170: =IF(B170<(A!H$3/(-2*A!H$4)),A!H$2+A!H$3*B170+A!H$4*B170^2,A!H$2+A!H$3*(A!H$3/(-2*A!H$4))+A!H$3*A!H$3/(4*A!H$4)) -> 171.8086491 | E170: =A!I$2+A!I$3*EXP(A!I$4*B170) -> 174.6208602 | F170: =IF((A!J$2+A!J$3*B170)<A!J$4,A!J$2+A!J$3*B170,A!J$4) -> 169.9998471 | G170: =IF(B170<A!K$4,A!K$2+A!K$3*(3*B170/(2*A!K$4)-0.5*(B170/A!K$4)^3),A!K$3+A!K$2) -> 170.749959 | H170: =(C170*B$45+'C'!D170*C$45+'C'!E170*D$45+'C'!F170*E$45+'C'!G170*F$45)/SUM(B$45:F$45) -> 170.8771538
A171: 246 | B171: 246 | C171: =A!G$2+A!G$3*B171+A!G$4*B171^2 -> 170.7433431 | D171: =IF(B171<(A!H$3/(-2*A!H$4)),A!H$2+A!H$3*B171+A!H$4*B171^2,A!H$2+A!H$3*(A!H$3/(-2*A!H$4))+A!H$3*A!H$3/(4*A!H$4)) -> 171.8086491 | E171: =A!I$2+A!I$3*EXP(A!I$4*B171) -> 174.8942234 | F171: =IF((A!J$2+A!J$3*B171)<A!J$4,A!J$2+A!J$3*B171,A!J$4) -> 169.9998471 | G171: =IF(B171<A!K$4,A!K$2+A!K$3*(3*B171/(2*A!K$4)-0.5*(B171/A!K$4)^3),A!K$3+A!K$2) -> 170.749959 | H171: =(C171*B$45+'C'!D171*C$45+'C'!E171*D$45+'C'!F171*E$45+'C'!G171*F$45)/SUM(B$45:F$45) -> 170.8310271
A172: 248 | B172: 248 | C172: =A!G$2+A!G$3*B172+A!G$4*B172^2 -> 170.5237643 | D172: =IF(B172<(A!H$3/(-2*A!H$4)),A!H$2+A!H$3*B172+A!H$4*B172^2,A!H$2+A!H$3*(A!H$3/(-2*A!H$4))+A!H$3*A!H$3/(4*A!H$4)) -> 171.8086491 | E172: =A!I$2+A!I$3*EXP(A!I$4*B172) -> 175.1623523 | F172: =IF((A!J$2+A!J$3*B172)<A!J$4,A!J$2+A!J$3*B172,A!J$4) -> 169.9998471 | G172: =IF(B172<A!K$4,A!K$2+A!K$3*(3*B172/(2*A!K$4)-0.5*(B172/A!K$4)^3),A!K$3+A!K$2) -> 170.749959 | H172: =(C172*B$45+'C'!D172*C$45+'C'!E172*D$45+'C'!F172*E$45+'C'!G172*F$45)/SUM(B$45:F$45) -> 170.7799283
A173: 250 | B173: 250 | C173: =A!G$2+A!G$3*B173+A!G$4*B173^2 -> 170.2832324 | D173: =IF(B173<(A!H$3/(-2*A!H$4)),A!H$2+A!H$3*B173+A!H$4*B173^2,A!H$2+A!H$3*(A!H$3/(-2*A!H$4))+A!H$3*A!H$3/(4*A!H$4)) -> 171.8086491 | E173: =A!I$2+A!I$3*EXP(A!I$4*B173) -> 175.4253473 | F173: =IF((A!J$2+A!J$3*B173)<A!J$4,A!J$2+A!J$3*B173,A!J$4) -> 169.9998471 | G173: =IF(B173<A!K$4,A!K$2+A!K$3*(3*B173/(2*A!K$4)-0.5*(B173/A!K$4)^3),A!K$3+A!K$2) -> 170.749959 | H173: =(C173*B$45+'C'!D173*C$45+'C'!E173*D$45+'C'!F173*E$45+'C'!G173*F$45)/SUM(B$45:F$45) -> 170.7238578
A174: 252 | B174: 252 | C174: =A!G$2+A!G$3*B174+A!G$4*B174^2 -> 170.0217474 | D174: =IF(B174<(A!H$3/(-2*A!H$4)),A!H$2+A!H$3*B174+A!H$4*B174^2,A!H$2+A!H$3*(A!H$3/(-2*A!H$4))+A!H$3*A!H$3/(4*A!H$4)) -> 171.8086491 | E174: =A!I$2+A!I$3*EXP(A!I$4*B174) -> 175.6833065 | F174: =IF((A!J$2+A!J$3*B174)<A!J$4,A!J$2+A!J$3*B174,A!J$4) -> 169.9998471 | G174: =IF(B174<A!K$4,A!K$2+A!K$3*(3*B174/(2*A!K$4)-0.5*(B174/A!K$4)^3),A!K$3+A!K$2) -> 170.749959 | H174: =(C174*B$45+'C'!D174*C$45+'C'!E174*D$45+'C'!F174*E$45+'C'!G174*F$45)/SUM(B$45:F$45) -> 170.6628159
A175: 254 | B175: 254 | C175: =A!G$2+A!G$3*B175+A!G$4*B175^2 -> 169.7393093 | D175: =IF(B175<(A!H$3/(-2*A!H$4)),A!H$2+A!H$3*B175+A!H$4*B175^2,A!H$2+A!H$3*(A!H$3/(-2*A!H$4))+A!H$3*A!H$3/(4*A!H$4)) -> 171.8086491 | E175: =A!I$2+A!I$3*EXP(A!I$4*B175) -> 175.9363265 | F175: =IF((A!J$2+A!J$3*B175)<A!J$4,A!J$2+A!J$3*B175,A!J$4) -> 169.9998471 | G175: =IF(B175<A!K$4,A!K$2+A!K$3*(3*B175/(2*A!K$4)-0.5*(B175/A!K$4)^3),A!K$3+A!K$2) -> 170.749959 | H175: =(C175*B$45+'C'!D175*C$45+'C'!E175*D$45+'C'!F175*E$45+'C'!G175*F$45)/SUM(B$45:F$45) -> 170.5968028
A176: 256 | B176: 254.2405465 | C176: =A!G$2+A!G$3*B176+A!G$4*B176^2 -> 169.703928 | D176: =IF(B176<(A!H$3/(-2*A!H$4)),A!H$2+A!H$3*B176+A!H$4*B176^2,A!H$2+A!H$3*(A!H$3/(-2*A!H$4))+A!H$3*A!H$3/(4*A!H$4)) -> 171.8086491 | E176: =A!I$2+A!I$3*EXP(A!I$4*B176) -> 175.9664298 | F176: =IF((A!J$2+A!J$3*B176)<A!J$4,A!J$2+A!J$3*B176,A!J$4) -> 169.9998471 | G176: =IF(B176<A!K$4,A!K$2+A!K$3*(3*B176/(2*A!K$4)-0.5*(B176/A!K$4)^3),A!K$3+A!K$2) -> 170.749959 | H176: =(C176*B$45+'C'!D176*C$45+'C'!E176*D$45+'C'!F176*E$45+'C'!G176*F$45)/SUM(B$45:F$45) -> 170.5885283
A177: 258 | B177: =IF(A177<MAX($M$48),A177,MAX($M$48)) -> 254.2405465 | C177: =A!G$2+A!G$3*B177+A!G$4*B177^2 -> 169.703928 | D177: =IF(B177<(A!H$3/(-2*A!H$4)),A!H$2+A!H$3*B177+A!H$4*B177^2,A!H$2+A!H$3*(A!H$3/(-2*A!H$4))+A!H$3*A!H$3/(4*A!H$4)) -> 171.8086491 | E177: =A!I$2+A!I$3*EXP(A!I$4*B177) -> 175.9664298 | F177: =IF((A!J$2+A!J$3*B177)<A!J$4,A!J$2+A!J$3*B177,A!J$4) -> 169.9998471 | G177: =IF(B177<A!K$4,A!K$2+A!K$3*(3*B177/(2*A!K$4)-0.5*(B177/A!K$4)^3),A!K$3+A!K$2) -> 170.749959 | H177: =(C177*B$45+'C'!D177*C$45+'C'!E177*D$45+'C'!F177*E$45+'C'!G177*F$45)/SUM(B$45:F$45) -> 170.5885283
A178: 260 | B178: 254.2405465 | C178: =A!G$2+A!G$3*B178+A!G$4*B178^2 -> 169.703928 | D178: =IF(B178<(A!H$3/(-2*A!H$4)),A!H$2+A!H$3*B178+A!H$4*B178^2,A!H$2+A!H$3*(A!H$3/(-2*A!H$4))+A!H$3*A!H$3/(4*A!H$4)) -> 171.8086491 | E178: =A!I$2+A!I$3*EXP(A!I$4*B178) -> 175.9664298 | F178: =IF((A!J$2+A!J$3*B178)<A!J$4,A!J$2+A!J$3*B178,A!J$4) -> 169.9998471 | G178: =IF(B178<A!K$4,A!K$2+A!K$3*(3*B178/(2*A!K$4)-0.5*(B178/A!K$4)^3),A!K$3+A!K$2) -> 170.749959 | H178: =(C178*B$45+'C'!D178*C$45+'C'!E178*D$45+'C'!F178*E$45+'C'!G178*F$45)/SUM(B$45:F$45) -> 170.5885283
A179: 262 | B179: 254.2405465 | C179: =A!G$2+A!G$3*B179+A!G$4*B179^2 -> 169.703928 | D179: =IF(B179<(A!H$3/(-2*A!H$4)),A!H$2+A!H$3*B179+A!H$4*B179^2,A!H$2+A!H$3*(A!H$3/(-2*A!H$4))+A!H$3*A!H$3/(4*A!H$4)) -> 171.8086491 | E179: =A!I$2+A!I$3*EXP(A!I$4*B179) -> 175.9664298 | F179: =IF((A!J$2+A!J$3*B179)<A!J$4,A!J$2+A!J$3*B179,A!J$4) -> 169.9998471 | G179: =IF(B179<A!K$4,A!K$2+A!K$3*(3*B179/(2*A!K$4)-0.5*(B179/A!K$4)^3),A!K$3+A!K$2) -> 170.749959 | H179: =(C179*B$45+'C'!D179*C$45+'C'!E179*D$45+'C'!F179*E$45+'C'!G179*F$45)/SUM(B$45:F$45) -> 170.5885283
A180: 264 | B180: 254.2405465 | C180: =A!G$2+A!G$3*B180+A!G$4*B180^2 -> 169.703928 | D180: =IF(B180<(A!H$3/(-2*A!H$4)),A!H$2+A!H$3*B180+A!H$4*B180^2,A!H$2+A!H$3*(A!H$3/(-2*A!H$4))+A!H$3*A!H$3/(4*A!H$4)) -> 171.8086491 | E180: =A!I$2+A!I$3*EXP(A!I$4*B180) -> 175.9664298 | F180: =IF((A!J$2+A!J$3*B180)<A!J$4,A!J$2+A!J$3*B180,A!J$4) -> 169.9998471 | G180: =IF(B180<A!K$4,A!K$2+A!K$3*(3*B180/(2*A!K$4)-0.5*(B180/A!K$4)^3),A!K$3+A!K$2) -> 170.749959 | H180: =(C180*B$45+'C'!D180*C$45+'C'!E180*D$45+'C'!F180*E$45+'C'!G180*F$45)/SUM(B$45:F$45) -> 170.5885283
A181: 266 | B181: 254.2405465 | C181: =A!G$2+A!G$3*B181+A!G$4*B181^2 -> 169.703928 | D181: =IF(B181<(A!H$3/(-2*A!H$4)),A!H$2+A!H$3*B181+A!H$4*B181^2,A!H$2+A!H$3*(A!H$3/(-2*A!H$4))+A!H$3*A!H$3/(4*A!H$4)) -> 171.8086491 | E181: =A!I$2+A!I$3*EXP(A!I$4*B181) -> 175.9664298 | F181: =IF((A!J$2+A!J$3*B181)<A!J$4,A!J$2+A!J$3*B181,A!J$4) -> 169.9998471 | G181: =IF(B181<A!K$4,A!K$2+A!K$3*(3*B181/(2*A!K$4)-0.5*(B181/A!K$4)^3),A!K$3+A!K$2) -> 170.749959 | H181: =(C181*B$45+'C'!D181*C$45+'C'!E181*D$45+'C'!F181*E$45+'C'!G181*F$45)/SUM(B$45:F$45) -> 170.5885283
A182: 268 | B182: 254.2405465 | C182: =A!G$2+A!G$3*B182+A!G$4*B182^2 -> 169.703928 | D182: =IF(B182<(A!H$3/(-2*A!H$4)),A!H$2+A!H$3*B182+A!H$4*B182^2,A!H$2+A!H$3*(A!H$3/(-2*A!H$4))+A!H$3*A!H$3/(4*A!H$4)) -> 171.8086491 | E182: =A!I$2+A!I$3*EXP(A!I$4*B182) -> 175.9664298 | F182: =IF((A!J$2+A!J$3*B182)<A!J$4,A!J$2+A!J$3*B182,A!J$4) -> 169.9998471 | G182: =IF(B182<A!K$4,A!K$2+A!K$3*(3*B182/(2*A!K$4)-0.5*(B182/A!K$4)^3),A!K$3+A!K$2) -> 170.749959 | H182: =(C182*B$45+'C'!D182*C$45+'C'!E182*D$45+'C'!F182*E$45+'C'!G182*F$45)/SUM(B$45:F$45) -> 170.5885283
A183: 270 | B183: 254.2405465 | C183: =A!G$2+A!G$3*B183+A!G$4*B183^2 -> 169.703928 | D183: =IF(B183<(A!H$3/(-2*A!H$4)),A!H$2+A!H$3*B183+A!H$4*B183^2,A!H$2+A!H$3*(A!H$3/(-2*A!H$4))+A!H$3*A!H$3/(4*A!H$4)) -> 171.8086491 | E183: =A!I$2+A!I$3*EXP(A!I$4*B183) -> 175.9664298 | F183: =IF((A!J$2+A!J$3*B183)<A!J$4,A!J$2+A!J$3*B183,A!J$4) -> 169.9998471 | G183: =IF(B183<A!K$4,A!K$2+A!K$3*(3*B183/(2*A!K$4)-0.5*(B183/A!K$4)^3),A!K$3+A!K$2) -> 170.749959 | H183: =(C183*B$45+'C'!D183*C$45+'C'!E183*D$45+'C'!F183*E$45+'C'!G183*F$45)/SUM(B$45:F$45) -> 170.5885283
A184: 272 | B184: 254.2405465 | C184: =A!G$2+A!G$3*B184+A!G$4*B184^2 -> 169.703928 | D184: =IF(B184<(A!H$3/(-2*A!H$4)),A!H$2+A!H$3*B184+A!H$4*B184^2,A!H$2+A!H$3*(A!H$3/(-2*A!H$4))+A!H$3*A!H$3/(4*A!H$4)) -> 171.8086491 | E184: =A!I$2+A!I$3*EXP(A!I$4*B184) -> 175.9664298 | F184: =IF((A!J$2+A!J$3*B184)<A!J$4,A!J$2+A!J$3*B184,A!J$4) -> 169.9998471 | G184: =IF(B184<A!K$4,A!K$2+A!K$3*(3*B184/(2*A!K$4)-0.5*(B184/A!K$4)^3),A!K$3+A!K$2) -> 170.749959 | H184: =(C184*B$45+'C'!D184*C$45+'C'!E184*D$45+'C'!F184*E$45+'C'!G184*F$45)/SUM(B$45:F$45) -> 170.5885283
A185: 274 | B185: 254.2405465 | C185: =A!G$2+A!G$3*B185+A!G$4*B185^2 -> 169.703928 | D185: =IF(B185<(A!H$3/(-2*A!H$4)),A!H$2+A!H$3*B185+A!H$4*B185^2,A!H$2+A!H$3*(A!H$3/(-2*A!H$4))+A!H$3*A!H$3/(4*A!H$4)) -> 171.8086491 | E185: =A!I$2+A!I$3*EXP(A!I$4*B185) -> 175.9664298 | F185: =IF((A!J$2+A!J$3*B185)<A!J$4,A!J$2+A!J$3*B185,A!J$4) -> 169.9998471 | G185: =IF(B185<A!K$4,A!K$2+A!K$3*(3*B185/(2*A!K$4)-0.5*(B185/A!K$4)^3),A!K$3+A!K$2) -> 170.749959 | H185: =(C185*B$45+'C'!D185*C$45+'C'!E185*D$45+'C'!F185*E$45+'C'!G185*F$45)/SUM(B$45:F$45) -> 170.5885283
A186: 276 | B186: 254.2405465 | C186: =A!G$2+A!G$3*B186+A!G$4*B186^2 -> 169.703928 | D186: =IF(B186<(A!H$3/(-2*A!H$4)),A!H$2+A!H$3*B186+A!H$4*B186^2,A!H$2+A!H$3*(A!H$3/(-2*A!H$4))+A!H$3*A!H$3/(4*A!H$4)) -> 171.8086491 | E186: =A!I$2+A!I$3*EXP(A!I$4*B186) -> 175.9664298 | F186: =IF((A!J$2+A!J$3*B186)<A!J$4,A!J$2+A!J$3*B186,A!J$4) -> 169.9998471 | G186: =IF(B186<A!K$4,A!K$2+A!K$3*(3*B186/(2*A!K$4)-0.5*(B186/A!K$4)^3),A!K$3+A!K$2) -> 170.749959 | H186: =(C186*B$45+'C'!D186*C$45+'C'!E186*D$45+'C'!F186*E$45+'C'!G186*F$45)/SUM(B$45:F$45) -> 170.5885283
A187: 278 | B187: 254.2405465 | C187: =A!G$2+A!G$3*B187+A!G$4*B187^2 -> 169.703928 | D187: =IF(B187<(A!H$3/(-2*A!H$4)),A!H$2+A!H$3*B187+A!H$4*B187^2,A!H$2+A!H$3*(A!H$3/(-2*A!H$4))+A!H$3*A!H$3/(4*A!H$4)) -> 171.8086491 | E187: =A!I$2+A!I$3*EXP(A!I$4*B187) -> 175.9664298 | F187: =IF((A!J$2+A!J$3*B187)<A!J$4,A!J$2+A!J$3*B187,A!J$4) -> 169.9998471 | G187: =IF(B187<A!K$4,A!K$2+A!K$3*(3*B187/(2*A!K$4)-0.5*(B187/A!K$4)^3),A!K$3+A!K$2) -> 170.749959 | H187: =(C187*B$45+'C'!D187*C$45+'C'!E187*D$45+'C'!F187*E$45+'C'!G187*F$45)/SUM(B$45:F$45) -> 170.5885283
A188: 280 | B188: 254.2405465 | C188: =A!G$2+A!G$3*B188+A!G$4*B188^2 -> 169.703928 | D188: =IF(B188<(A!H$3/(-2*A!H$4)),A!H$2+A!H$3*B188+A!H$4*B188^2,A!H$2+A!H$3*(A!H$3/(-2*A!H$4))+A!H$3*A!H$3/(4*A!H$4)) -> 171.8086491 | E188: =A!I$2+A!I$3*EXP(A!I$4*B188) -> 175.9664298 | F188: =IF((A!J$2+A!J$3*B188)<A!J$4,A!J$2+A!J$3*B188,A!J$4) -> 169.9998471 | G188: =IF(B188<A!K$4,A!K$2+A!K$3*(3*B188/(2*A!K$4)-0.5*(B188/A!K$4)^3),A!K$3+A!K$2) -> 170.749959 | H188: =(C188*B$45+'C'!D188*C$45+'C'!E188*D$45+'C'!F188*E$45+'C'!G188*F$45)/SUM(B$45:F$45) -> 170.5885283
A189: 282 | B189: 254.2405465 | C189: =A!G$2+A!G$3*B189+A!G$4*B189^2 -> 169.703928 | D189: =IF(B189<(A!H$3/(-2*A!H$4)),A!H$2+A!H$3*B189+A!H$4*B189^2,A!H$2+A!H$3*(A!H$3/(-2*A!H$4))+A!H$3*A!H$3/(4*A!H$4)) -> 171.8086491 | E189: =A!I$2+A!I$3*EXP(A!I$4*B189) -> 175.9664298 | F189: =IF((A!J$2+A!J$3*B189)<A!J$4,A!J$2+A!J$3*B189,A!J$4) -> 169.9998471 | G189: =IF(B189<A!K$4,A!K$2+A!K$3*(3*B189/(2*A!K$4)-0.5*(B189/A!K$4)^3),A!K$3+A!K$2) -> 170.749959 | H189: =(C189*B$45+'C'!D189*C$45+'C'!E189*D$45+'C'!F189*E$45+'C'!G189*F$45)/SUM(B$45:F$45) -> 170.5885283
A190: 284 | B190: 254.2405465 | C190: =A!G$2+A!G$3*B190+A!G$4*B190^2 -> 169.703928 | D190: =IF(B190<(A!H$3/(-2*A!H$4)),A!H$2+A!H$3*B190+A!H$4*B190^2,A!H$2+A!H$3*(A!H$3/(-2*A!H$4))+A!H$3*A!H$3/(4*A!H$4)) -> 171.8086491 | E190: =A!I$2+A!I$3*EXP(A!I$4*B190) -> 175.9664298 | F190: =IF((A!J$2+A!J$3*B190)<A!J$4,A!J$2+A!J$3*B190,A!J$4) -> 169.9998471 | G190: =IF(B190<A!K$4,A!K$2+A!K$3*(3*B190/(2*A!K$4)-0.5*(B190/A!K$4)^3),A!K$3+A!K$2) -> 170.749959 | H190: =(C190*B$45+'C'!D190*C$45+'C'!E190*D$45+'C'!F190*E$45+'C'!G190*F$45)/SUM(B$45:F$45) -> 170.5885283
A191: 286 | B191: 254.2405465 | C191: =A!G$2+A!G$3*B191+A!G$4*B191^2 -> 169.703928 | D191: =IF(B191<(A!H$3/(-2*A!H$4)),A!H$2+A!H$3*B191+A!H$4*B191^2,A!H$2+A!H$3*(A!H$3/(-2*A!H$4))+A!H$3*A!H$3/(4*A!H$4)) -> 171.8086491 | E191: =A!I$2+A!I$3*EXP(A!I$4*B191) -> 175.9664298 | F191: =IF((A!J$2+A!J$3*B191)<A!J$4,A!J$2+A!J$3*B191,A!J$4) -> 169.9998471 | G191: =IF(B191<A!K$4,A!K$2+A!K$3*(3*B191/(2*A!K$4)-0.5*(B191/A!K$4)^3),A!K$3+A!K$2) -> 170.749959 | H191: =(C191*B$45+'C'!D191*C$45+'C'!E191*D$45+'C'!F191*E$45+'C'!G191*F$45)/SUM(B$45:F$45) -> 170.5885283
A192: 288 | B192: 254.2405465 | C192: =A!G$2+A!G$3*B192+A!G$4*B192^2 -> 169.703928 | D192: =IF(B192<(A!H$3/(-2*A!H$4)),A!H$2+A!H$3*B192+A!H$4*B192^2,A!H$2+A!H$3*(A!H$3/(-2*A!H$4))+A!H$3*A!H$3/(4*A!H$4)) -> 171.8086491 | E192: =A!I$2+A!I$3*EXP(A!I$4*B192) -> 175.9664298 | F192: =IF((A!J$2+A!J$3*B192)<A!J$4,A!J$2+A!J$3*B192,A!J$4) -> 169.9998471 | G192: =IF(B192<A!K$4,A!K$2+A!K$3*(3*B192/(2*A!K$4)-0.5*(B192/A!K$4)^3),A!K$3+A!K$2) -> 170.749959 | H192: =(C192*B$45+'C'!D192*C$45+'C'!E192*D$45+'C'!F192*E$45+'C'!G192*F$45)/SUM(B$45:F$45) -> 170.5885283
A193: 290 | B193: 254.2405465 | C193: =A!G$2+A!G$3*B193+A!G$4*B193^2 -> 169.703928 | D193: =IF(B193<(A!H$3/(-2*A!H$4)),A!H$2+A!H$3*B193+A!H$4*B193^2,A!H$2+A!H$3*(A!H$3/(-2*A!H$4))+A!H$3*A!H$3/(4*A!H$4)) -> 171.8086491 | E193: =A!I$2+A!I$3*EXP(A!I$4*B193) -> 175.9664298 | F193: =IF((A!J$2+A!J$3*B193)<A!J$4,A!J$2+A!J$3*B193,A!J$4) -> 169.9998471 | G193: =IF(B193<A!K$4,A!K$2+A!K$3*(3*B193/(2*A!K$4)-0.5*(B193/A!K$4)^3),A!K$3+A!K$2) -> 170.749959 | H193: =(C193*B$45+'C'!D193*C$45+'C'!E193*D$45+'C'!F193*E$45+'C'!G193*F$45)/SUM(B$45:F$45) -> 170.5885283
A194: 292 | B194: 254.2405465 | C194: =A!G$2+A!G$3*B194+A!G$4*B194^2 -> 169.703928 | D194: =IF(B194<(A!H$3/(-2*A!H$4)),A!H$2+A!H$3*B194+A!H$4*B194^2,A!H$2+A!H$3*(A!H$3/(-2*A!H$4))+A!H$3*A!H$3/(4*A!H$4)) -> 171.8086491 | E194: =A!I$2+A!I$3*EXP(A!I$4*B194) -> 175.9664298 | F194: =IF((A!J$2+A!J$3*B194)<A!J$4,A!J$2+A!J$3*B194,A!J$4) -> 169.9998471 | G194: =IF(B194<A!K$4,A!K$2+A!K$3*(3*B194/(2*A!K$4)-0.5*(B194/A!K$4)^3),A!K$3+A!K$2) -> 170.749959 | H194: =(C194*B$45+'C'!D194*C$45+'C'!E194*D$45+'C'!F194*E$45+'C'!G194*F$45)/SUM(B$45:F$45) -> 170.5885283
A195: 294 | B195: 254.2405465 | C195: =A!G$2+A!G$3*B195+A!G$4*B195^2 -> 169.703928 | D195: =IF(B195<(A!H$3/(-2*A!H$4)),A!H$2+A!H$3*B195+A!H$4*B195^2,A!H$2+A!H$3*(A!H$3/(-2*A!H$4))+A!H$3*A!H$3/(4*A!H$4)) -> 171.8086491 | E195: =A!I$2+A!I$3*EXP(A!I$4*B195) -> 175.9664298 | F195: =IF((A!J$2+A!J$3*B195)<A!J$4,A!J$2+A!J$3*B195,A!J$4) -> 169.9998471 | G195: =IF(B195<A!K$4,A!K$2+A!K$3*(3*B195/(2*A!K$4)-0.5*(B195/A!K$4)^3),A!K$3+A!K$2) -> 170.749959 | H195: =(C195*B$45+'C'!D195*C$45+'C'!E195*D$45+'C'!F195*E$45+'C'!G195*F$45)/SUM(B$45:F$45) -> 170.5885283
A196: 296 | B196: 254.2405465 | C196: =A!G$2+A!G$3*B196+A!G$4*B196^2 -> 169.703928 | D196: =IF(B196<(A!H$3/(-2*A!H$4)),A!H$2+A!H$3*B196+A!H$4*B196^2,A!H$2+A!H$3*(A!H$3/(-2*A!H$4))+A!H$3*A!H$3/(4*A!H$4)) -> 171.8086491 | E196: =A!I$2+A!I$3*EXP(A!I$4*B196) -> 175.9664298 | F196: =IF((A!J$2+A!J$3*B196)<A!J$4,A!J$2+A!J$3*B196,A!J$4) -> 169.9998471 | G196: =IF(B196<A!K$4,A!K$2+A!K$3*(3*B196/(2*A!K$4)-0.5*(B196/A!K$4)^3),A!K$3+A!K$2) -> 170.749959 | H196: =(C196*B$45+'C'!D196*C$45+'C'!E196*D$45+'C'!F196*E$45+'C'!G196*F$45)/SUM(B$45:F$45) -> 170.5885283
A197: 298 | B197: 254.2405465 | C197: =A!G$2+A!G$3*B197+A!G$4*B197^2 -> 169.703928 | D197: =IF(B197<(A!H$3/(-2*A!H$4)),A!H$2+A!H$3*B197+A!H$4*B197^2,A!H$2+A!H$3*(A!H$3/(-2*A!H$4))+A!H$3*A!H$3/(4*A!H$4)) -> 171.8086491 | E197: =A!I$2+A!I$3*EXP(A!I$4*B197) -> 175.9664298 | F197: =IF((A!J$2+A!J$3*B197)<A!J$4,A!J$2+A!J$3*B197,A!J$4) -> 169.9998471 | G197: =IF(B197<A!K$4,A!K$2+A!K$3*(3*B197/(2*A!K$4)-0.5*(B197/A!K$4)^3),A!K$3+A!K$2) -> 170.749959 | H197: =(C197*B$45+'C'!D197*C$45+'C'!E197*D$45+'C'!F197*E$45+'C'!G197*F$45)/SUM(B$45:F$45) -> 170.5885283
A198: 300 | B198: 254.2405465 | C198: =A!G$2+A!G$3*B198+A!G$4*B198^2 -> 169.703928 | D198: =IF(B198<(A!H$3/(-2*A!H$4)),A!H$2+A!H$3*B198+A!H$4*B198^2,A!H$2+A!H$3*(A!H$3/(-2*A!H$4))+A!H$3*A!H$3/(4*A!H$4)) -> 171.8086491 | E198: =A!I$2+A!I$3*EXP(A!I$4*B198) -> 175.9664298 | F198: =IF((A!J$2+A!J$3*B198)<A!J$4,A!J$2+A!J$3*B198,A!J$4) -> 169.9998471 | G198: =IF(B198<A!K$4,A!K$2+A!K$3*(3*B198/(2*A!K$4)-0.5*(B198/A!K$4)^3),A!K$3+A!K$2) -> 170.749959 | H198: =(C198*B$45+'C'!D198*C$45+'C'!E198*D$45+'C'!F198*E$45+'C'!G198*F$45)/SUM(B$45:F$45) -> 170.5885283
A199: 302 | B199: 254.2405465 | C199: =A!G$2+A!G$3*B199+A!G$4*B199^2 -> 169.703928 | D199: =IF(B199<(A!H$3/(-2*A!H$4)),A!H$2+A!H$3*B199+A!H$4*B199^2,A!H$2+A!H$3*(A!H$3/(-2*A!H$4))+A!H$3*A!H$3/(4*A!H$4)) -> 171.8086491 | E199: =A!I$2+A!I$3*EXP(A!I$4*B199) -> 175.9664298 | F199: =IF((A!J$2+A!J$3*B199)<A!J$4,A!J$2+A!J$3*B199,A!J$4) -> 169.9998471 | G199: =IF(B199<A!K$4,A!K$2+A!K$3*(3*B199/(2*A!K$4)-0.5*(B199/A!K$4)^3),A!K$3+A!K$2) -> 170.749959 | H199: =(C199*B$45+'C'!D199*C$45+'C'!E199*D$45+'C'!F199*E$45+'C'!G199*F$45)/SUM(B$45:F$45) -> 170.5885283
A200: 304 | B200: 254.2405465 | C200: =A!G$2+A!G$3*B200+A!G$4*B200^2 -> 169.703928 | D200: =IF(B200<(A!H$3/(-2*A!H$4)),A!H$2+A!H$3*B200+A!H$4*B200^2,A!H$2+A!H$3*(A!H$3/(-2*A!H$4))+A!H$3*A!H$3/(4*A!H$4)) -> 171.8086491 | E200: =A!I$2+A!I$3*EXP(A!I$4*B200) -> 175.9664298 | F200: =IF((A!J$2+A!J$3*B200)<A!J$4,A!J$2+A!J$3*B200,A!J$4) -> 169.9998471 | G200: =IF(B200<A!K$4,A!K$2+A!K$3*(3*B200/(2*A!K$4)-0.5*(B200/A!K$4)^3),A!K$3+A!K$2) -> 170.749959 | H200: =(C200*B$45+'C'!D200*C$45+'C'!E200*D$45+'C'!F200*E$45+'C'!G200*F$45)/SUM(B$45:F$45) -> 170.5885283
A201: 306 | B201: 254.2405465 | C201: =A!G$2+A!G$3*B201+A!G$4*B201^2 -> 169.703928 | D201: =IF(B201<(A!H$3/(-2*A!H$4)),A!H$2+A!H$3*B201+A!H$4*B201^2,A!H$2+A!H$3*(A!H$3/(-2*A!H$4))+A!H$3*A!H$3/(4*A!H$4)) -> 171.8086491 | E201: =A!I$2+A!I$3*EXP(A!I$4*B201) -> 175.9664298 | F201: =IF((A!J$2+A!J$3*B201)<A!J$4,A!J$2+A!J$3*B201,A!J$4) -> 169.9998471 | G201: =IF(B201<A!K$4,A!K$2+A!K$3*(3*B201/(2*A!K$4)-0.5*(B201/A!K$4)^3),A!K$3+A!K$2) -> 170.749959 | H201: =(C201*B$45+'C'!D201*C$45+'C'!E201*D$45+'C'!F201*E$45+'C'!G201*F$45)/SUM(B$45:F$45) -> 170.5885283
A202: 308 | B202: 254.2405465 | C202: =A!G$2+A!G$3*B202+A!G$4*B202^2 -> 169.703928 | D202: =IF(B202<(A!H$3/(-2*A!H$4)),A!H$2+A!H$3*B202+A!H$4*B202^2,A!H$2+A!H$3*(A!H$3/(-2*A!H$4))+A!H$3*A!H$3/(4*A!H$4)) -> 171.8086491 | E202: =A!I$2+A!I$3*EXP(A!I$4*B202) -> 175.9664298 | F202: =IF((A!J$2+A!J$3*B202)<A!J$4,A!J$2+A!J$3*B202,A!J$4) -> 169.9998471 | G202: =IF(B202<A!K$4,A!K$2+A!K$3*(3*B202/(2*A!K$4)-0.5*(B202/A!K$4)^3),A!K$3+A!K$2) -> 170.749959 | H202: =(C202*B$45+'C'!D202*C$45+'C'!E202*D$45+'C'!F202*E$45+'C'!G202*F$45)/SUM(B$45:F$45) -> 170.5885283
... 96 more rows

Sheet D
A1: Calculations worksheet - do not enter data here
B3: Predicted Curve Values | G3: Squared differences predicted less observed
A4: Obs | B4: Q | C4: QP | D4: M | E4: LP | F4: S | G4: Q | H4: QP | I4: M | J4: LP | K4: S | M4: Technical
A5: 1 | B5: =IF(ISNUMBER(B!C5),B!G$2+B!G$3*B!C5+B!G$4*B!C5^2,"") -> 74.02246371 | C5: =IF(ISNUMBER(B!C5),IF(B!C5<(B!H$3/(-2*B!H$4)),B!H$2+B!H$3*B!C5+B!H$4*B!C5^2,B!H$2+B!H$3*(B!H$3/(-2*B!H$4))+B!H$4*(B!H$3/(-2*B!H$4))^2),"") -> 73.62264867 | D5: =IF(ISNUMBER(B!C5),B!I$2+B!I$3*EXP(B!I$4*B!C5),"") -> 71.68376289 | E5: =IF(ISNUMBER(B!C5),IF((B!J$2+B!J$3*B!C5)<B!J$4,B!J$2+B!J$3*B!C5,B!J$4),"") -> 77.49994328 | F5: =IF(ISNUMBER(B!C5),IF(B!C5<B!K$4,B!K$2+B!K$3*(3*B!C5/(2*B!K$4)-0.5*(B!C5/B!K$4)^3),B!K$3+B!K$2),"") -> 75.45471337 | G5: =IF(ISNUMBER(B!$C5),(B5-B!$D5)^2,"") -> 0.9555772035 | H5: =IF(ISNUMBER(B!$C5),(C5-B!$D5)^2,"") -> 1.897096688 | I5: =IF(ISNUMBER(B!$C5),(D5-B!$D5)^2,"") -> 10.99742858 | J5: =IF(ISNUMBER(B!$C5),(E5-B!$D5)^2,"") -> 6.249716412 | K5: =IF(ISNUMBER(B!$C5),(F5-B!$D5)^2,"") -> 0.2067642487 | N5: Constraints:
A6: =A5+1 -> 2 | B6: =IF(ISNUMBER(B!C6),B!G$2+B!G$3*B!C6+B!G$4*B!C6^2,"") -> 106.5300941 | C6: =IF(ISNUMBER(B!C6),IF(B!C6<(B!H$3/(-2*B!H$4)),B!H$2+B!H$3*B!C6+B!H$4*B!C6^2,B!H$2+B!H$3*(B!H$3/(-2*B!H$4))+B!H$4*(B!H$3/(-2*B!H$4))^2),"") -> 106.7645233 | D6: =IF(ISNUMBER(B!C6),B!I$2+B!I$3*EXP(B!I$4*B!C6),"") -> 110.9064521 | E6: =IF(ISNUMBER(B!C6),IF((B!J$2+B!J$3*B!C6)<B!J$4,B!J$2+B!J$3*B!C6,B!J$4),"") -> 102.4999499 | F6: =IF(ISNUMBER(B!C6),IF(B!C6<B!K$4,B!K$2+B!K$3*(3*B!C6/(2*B!K$4)-0.5*(B!C6/B!K$4)^3),B!K$3+B!K$2),"") -> 104.3448926 | G6: =IF(ISNUMBER(B!$C6),(B6-B!$D6)^2,"") -> 2.341188094 | H6: =IF(ISNUMBER(B!$C6),(C6-B!$D6)^2,"") -> 3.113542575 | I6: =IF(ISNUMBER(B!$C6),(D6-B!$D6)^2,"") -> 34.88617637 | J6: =IF(ISNUMBER(B!$C6),(E6-B!$D6)^2,"") -> 6.250250506 | K6: =IF(ISNUMBER(B!$C6),(F6-B!$D6)^2,"") -> 0.4291656688 | N6: Maximum | S6: Minimum | X6: Fitting
A7: =A6+1 -> 3 | B7: =IF(ISNUMBER(B!C7),B!G$2+B!G$3*B!C7+B!G$4*B!C7^2,"") -> 155.9153661 | C7: =IF(ISNUMBER(B!C7),IF(B!C7<(B!H$3/(-2*B!H$4)),B!H$2+B!H$3*B!C7+B!H$4*B!C7^2,B!H$2+B!H$3*(B!H$3/(-2*B!H$4))+B!H$4*(B!H$3/(-2*B!H$4))^2),"") -> 156.5096392 | D7: =IF(ISNUMBER(B!C7),B!I$2+B!I$3*EXP(B!I$4*B!C7),"") -> 157.5635936 | E7: =IF(ISNUMBER(B!C7),IF((B!J$2+B!J$3*B!C7)<B!J$4,B!J$2+B!J$3*B!C7,B!J$4),"") -> 152.4999631 | F7: =IF(ISNUMBER(B!C7),IF(B!C7<B!K$4,B!K$2+B!K$3*(3*B!C7/(2*B!K$4)-0.5*(B!C7/B!K$4)^3),B!K$3+B!K$2),"") -> 155.3786673 | G7: =IF(ISNUMBER(B!$C7),(B7-B!$D7)^2,"") -> 0.8378951194 | H7: =IF(ISNUMBER(B!$C7),(C7-B!$D7)^2,"") -> 2.279010566 | I7: =IF(ISNUMBER(B!$C7),(D7-B!$D7)^2,"") -> 6.572012298 | J7: =IF(ISNUMBER(B!$C7),(E7-B!$D7)^2,"") -> 6.250184329 | K7: =IF(ISNUMBER(B!$C7),(F7-B!$D7)^2,"") -> 0.1433889565 | N7: Q | O7: QP | P7: M | Q7: LP | R7: S | S7: Q | T7: QP | U7: M | V7: LP | W7: S | X7: Tolerance
A8: 4 | B8: =IF(ISNUMBER(B!C8),B!G$2+B!G$3*B!C8+B!G$4*B!C8^2,"") -> 172.7930076 | C8: =IF(ISNUMBER(B!C8),IF(B!C8<(B!H$3/(-2*B!H$4)),B!H$2+B!H$3*B!C8+B!H$4*B!C8^2,B!H$2+B!H$3*(B!H$3/(-2*B!H$4))+B!H$4*(B!H$3/(-2*B!H$4))^2),"") -> 173.1128804 | D8: =IF(ISNUMBER(B!C8),B!I$2+B!I$3*EXP(B!I$4*B!C8),"") -> 171.0060397 | E8: =IF(ISNUMBER(B!C8),IF((B!J$2+B!J$3*B!C8)<B!J$4,B!J$2+B!J$3*B!C8,B!J$4),"") -> 177.4999698 | F8: =IF(ISNUMBER(B!C8),IF(B!C8<B!K$4,B!K$2+B!K$3*(3*B!C8/(2*B!K$4)-0.5*(B!C8/B!K$4)^3),B!K$3+B!K$2),"") -> 174.1489709 | G8: =IF(ISNUMBER(B!$C8),(B8-B!$D8)^2,"") -> 4.870815274 | H8: =IF(ISNUMBER(B!$C8),(C8-B!$D8)^2,"") -> 3.561220206 | I8: =IF(ISNUMBER(B!$C8),(D8-B!$D8)^2,"") -> 15.95171871 | J8: =IF(ISNUMBER(B!$C8),(E8-B!$D8)^2,"") -> 6.249848762 | K8: =IF(ISNUMBER(B!$C8),(F8-B!$D8)^2,"") -> 0.7242505316 | M8: A | N8: =(1+X8)*MIN(B!D5:D44) -> 112.5 | O8: =N8 -> 112.5 | P8: =(1+X8)*MAX(B!D5:D44) -> 286.5 | Q8: =N8 -> 112.5 | R8: =N8 -> 112.5 | S8: =MAX((1-X8)*MIN(B!D5:D44)-(1+X8)*MIN(B!C5:C44)*(1/O20),0.5*MIN(B!D5:D44)) -> 37.5 | T8: =S8 -> 37.5 | U8: =(1-X8)*MAX(B!D5:D44) -> 95.5 | V8: =S8 -> 37.5 | W8: =S8 -> 37.5 | X8: 0.5
A9: 5 | B9: =IF(ISNUMBER(B!C9),B!G$2+B!G$3*B!C9+B!G$4*B!C9^2,"") -> 184.4606529 | C9: =IF(ISNUMBER(B!C9),IF(B!C9<(B!H$3/(-2*B!H$4)),B!H$2+B!H$3*B!C9+B!H$4*B!C9^2,B!H$2+B!H$3*(B!H$3/(-2*B!H$4))+B!H$4*(B!H$3/(-2*B!H$4))^2),"") -> 184.2032439 | D9: =IF(ISNUMBER(B!C9),B!I$2+B!I$3*EXP(B!I$4*B!C9),"") -> 180.4132016 | E9: =IF(ISNUMBER(B!C9),IF((B!J$2+B!J$3*B!C9)<B!J$4,B!J$2+B!J$3*B!C9,B!J$4),"") -> 188.7500056 | F9: =IF(ISNUMBER(B!C9),IF(B!C9<B!K$4,B!K$2+B!K$3*(3*B!C9/(2*B!K$4)-0.5*(B!C9/B!K$4)^3),B!K$3+B!K$2),"") -> 186.1726907 | G9: =IF(ISNUMBER(B!$C9),(B9-B!$D9)^2,"") -> 0.2908953309 | H9: =IF(ISNUMBER(B!$C9),(C9-B!$D9)^2,"") -> 0.6348203335 | I9: =IF(ISNUMBER(B!$C9),(D9-B!$D9)^2,"") -> 21.03871991 | J9: =IF(ISNUMBER(B!$C9),(E9-B!$D9)^2,"") -> 14.06254198 | K9: =IF(ISNUMBER(B!$C9),(F9-B!$D9)^2,"") -> 1.375203366 | M9: B | N9: =O21*(1+X9)/O20 -> 1.536923077 | O9: =N9 -> 1.536923077 | P9: =MIN(-0.0000001,N8-U8) -> -1e-07 | Q9: =O21*(1+0.5*X9)/O20 -> 1.280769231 | R9: =-1*U9 -> 153.5 | S9: 0 | T9: 0 | U9: =S8-Q10 -> -153.5 | V9: =S9 -> 0 | W9: =-1*P9 -> 1e-07 | X9: 0.5
A10: 6 | B10: =IF(ISNUMBER(B!C10),B!G$2+B!G$3*B!C10+B!G$4*B!C10^2,"") -> 190.9183018 | C10: =IF(ISNUMBER(B!C10),IF(B!C10<(B!H$3/(-2*B!H$4)),B!H$2+B!H$3*B!C10+B!H$4*B!C10^2,B!H$2+B!H$3*(B!H$3/(-2*B!H$4))+B!H$4*(B!H$3/(-2*B!H$4))^2),"") -> 189.7807295 | D10: =IF(ISNUMBER(B!C10),B!I$2+B!I$3*EXP(B!I$4*B!C10),"") -> 186.99643 | E10: =IF(ISNUMBER(B!C10),IF((B!J$2+B!J$3*B!C10)<B!J$4,B!J$2+B!J$3*B!C10,B!J$4),"") -> 188.7500056 | F10: =IF(ISNUMBER(B!C10),IF(B!C10<B!K$4,B!K$2+B!K$3*(3*B!C10/(2*B!K$4)-0.5*(B!C10/B!K$4)^3),B!K$3+B!K$2),"") -> 189.8334139 | G10: =IF(ISNUMBER(B!$C10),(B10-B!$D10)^2,"") -> 0.8432781741 | H10: =IF(ISNUMBER(B!$C10),(C10-B!$D10)^2,"") -> 0.04807956107 | I10: =IF(ISNUMBER(B!$C10),(D10-B!$D10)^2,"") -> 9.021432504 | J10: =IF(ISNUMBER(B!$C10),(E10-B!$D10)^2,"") -> 1.562486007 | K10: =IF(ISNUMBER(B!$C10),(F10-B!$D10)^2,"") -> 0.02775093947 | M10: C | N10: -1e-07 | O10: -1e-07 | P10: -1e-07 | Q10: =MAX(B!D5:D44) -> 191 | R10: =M51 -> 2285 | S10: -1 | T10: -1 | U10: =(O21*(1+X10)/O20)/AVERAGE(P9,U9) -> -0.01735504885 | V10: =(1-X8)*MAX(B!D5:D44) -> 95.5 | W10: 0 | X10: 0.3
A11: 7 | B11: =IF(ISNUMBER(B!C11),B!G$2+B!G$3*B!C11+B!G$4*B!C11^2,"") -> 192.1659544 | C11: =IF(ISNUMBER(B!C11),IF(B!C11<(B!H$3/(-2*B!H$4)),B!H$2+B!H$3*B!C11+B!H$4*B!C11^2,B!H$2+B!H$3*(B!H$3/(-2*B!H$4))+B!H$4*(B!H$3/(-2*B!H$4))^2),"") -> 190.5025217 | D11: =IF(ISNUMBER(B!C11),B!I$2+B!I$3*EXP(B!I$4*B!C11),"") -> 191.6034409 | E11: =IF(ISNUMBER(B!C11),IF((B!J$2+B!J$3*B!C11)<B!J$4,B!J$2+B!J$3*B!C11,B!J$4),"") -> 188.7500056 | F11: =IF(ISNUMBER(B!C11),IF(B!C11<B!K$4,B!K$2+B!K$3*(3*B!C11/(2*B!K$4)-0.5*(B!C11/B!K$4)^3),B!K$3+B!K$2),"") -> 189.8334139 | G11: =IF(ISNUMBER(B!$C11),(B11-B!$D11)^2,"") -> 1.359449679 | H11: =IF(ISNUMBER(B!$C11),(C11-B!$D11)^2,"") -> 0.2474846686 | I11: =IF(ISNUMBER(B!$C11),(D11-B!$D11)^2,"") -> 0.3641409744 | J11: =IF(ISNUMBER(B!$C11),(E11-B!$D11)^2,"") -> 5.062474812 | K11: =IF(ISNUMBER(B!$C11),(F11-B!$D11)^2,"") -> 1.360923204
A12: 8 | B12: =IF(ISNUMBER(B!C12),B!G$2+B!G$3*B!C12+B!G$4*B!C12^2,"") -> 188.2036107 | C12: =IF(ISNUMBER(B!C12),IF(B!C12<(B!H$3/(-2*B!H$4)),B!H$2+B!H$3*B!C12+B!H$4*B!C12^2,B!H$2+B!H$3*(B!H$3/(-2*B!H$4))+B!H$4*(B!H$3/(-2*B!H$4))^2),"") -> 190.5025217 | D12: =IF(ISNUMBER(B!C12),B!I$2+B!I$3*EXP(B!I$4*B!C12),"") -> 194.8274745 | E12: =IF(ISNUMBER(B!C12),IF((B!J$2+B!J$3*B!C12)<B!J$4,B!J$2+B!J$3*B!C12,B!J$4),"") -> 188.7500056 | F12: =IF(ISNUMBER(B!C12),IF(B!C12<B!K$4,B!K$2+B!K$3*(3*B!C12/(2*B!K$4)-0.5*(B!C12/B!K$4)^3),B!K$3+B!K$2),"") -> 189.8334139 | G12: =IF(ISNUMBER(B!$C12),(B12-B!$D12)^2,"") -> 0.6342358811 | H12: =IF(ISNUMBER(B!$C12),(C12-B!$D12)^2,"") -> 2.25757143 | I12: =IF(ISNUMBER(B!$C12),(D12-B!$D12)^2,"") -> 33.95945899 | J12: =IF(ISNUMBER(B!$C12),(E12-B!$D12)^2,"") -> 0.06249720137 | K12: =IF(ISNUMBER(B!$C12),(F12-B!$D12)^2,"") -> 0.6945786749
A13: 9 | B13: =IF(ISNUMBER(B!C13),B!G$2+B!G$3*B!C13+B!G$4*B!C13^2,"") ->  | C13: =IF(ISNUMBER(B!C13),IF(B!C13<(B!H$3/(-2*B!H$4)),B!H$2+B!H$3*B!C13+B!H$4*B!C13^2,B!H$2+B!H$3*(B!H$3/(-2*B!H$4))+B!H$4*(B!H$3/(-2*B!H$4))^2),"") ->  | D13: =IF(ISNUMBER(B!C13),B!I$2+B!I$3*EXP(B!I$4*B!C13),"") ->  | E13: =IF(ISNUMBER(B!C13),IF((B!J$2+B!J$3*B!C13)<B!J$4,B!J$2+B!J$3*B!C13,B!J$4),"") ->  | F13: =IF(ISNUMBER(B!C13),IF(B!C13<B!K$4,B!K$2+B!K$3*(3*B!C13/(2*B!K$4)-0.5*(B!C13/B!K$4)^3),B!K$3+B!K$2),"") ->  | G13: =IF(ISNUMBER(B!$C13),(B13-B!$D13)^2,"") ->  | H13: =IF(ISNUMBER(B!$C13),(C13-B!$D13)^2,"") ->  | I13: =IF(ISNUMBER(B!$C13),(D13-B!$D13)^2,"") ->  | J13: =IF(ISNUMBER(B!$C13),(E13-B!$D13)^2,"") ->  | K13: =IF(ISNUMBER(B!$C13),(F13-B!$D13)^2,"") ->  | N13: Data for Graph:
A14: 10 | B14: =IF(ISNUMBER(B!C14),B!G$2+B!G$3*B!C14+B!G$4*B!C14^2,"") ->  | C14: =IF(ISNUMBER(B!C14),IF(B!C14<(B!H$3/(-2*B!H$4)),B!H$2+B!H$3*B!C14+B!H$4*B!C14^2,B!H$2+B!H$3*(B!H$3/(-2*B!H$4))+B!H$4*(B!H$3/(-2*B!H$4))^2),"") ->  | D14: =IF(ISNUMBER(B!C14),B!I$2+B!I$3*EXP(B!I$4*B!C14),"") ->  | E14: =IF(ISNUMBER(B!C14),IF((B!J$2+B!J$3*B!C14)<B!J$4,B!J$2+B!J$3*B!C14,B!J$4),"") ->  | F14: =IF(ISNUMBER(B!C14),IF(B!C14<B!K$4,B!K$2+B!K$3*(3*B!C14/(2*B!K$4)-0.5*(B!C14/B!K$4)^3),B!K$3+B!K$2),"") ->  | G14: =IF(ISNUMBER(B!$C14),(B14-B!$D14)^2,"") ->  | H14: =IF(ISNUMBER(B!$C14),(C14-B!$D14)^2,"") ->  | I14: =IF(ISNUMBER(B!$C14),(D14-B!$D14)^2,"") ->  | J14: =IF(ISNUMBER(B!$C14),(E14-B!$D14)^2,"") ->  | K14: =IF(ISNUMBER(B!$C14),(F14-B!$D14)^2,"") ->  | N14: Most Economic Rate | S14: Yield at Most Economic Rate | X14: Mean | Y14: Mean
A15: 11 | B15: =IF(ISNUMBER(B!C15),B!G$2+B!G$3*B!C15+B!G$4*B!C15^2,"") ->  | C15: =IF(ISNUMBER(B!C15),IF(B!C15<(B!H$3/(-2*B!H$4)),B!H$2+B!H$3*B!C15+B!H$4*B!C15^2,B!H$2+B!H$3*(B!H$3/(-2*B!H$4))+B!H$4*(B!H$3/(-2*B!H$4))^2),"") ->  | D15: =IF(ISNUMBER(B!C15),B!I$2+B!I$3*EXP(B!I$4*B!C15),"") ->  | E15: =IF(ISNUMBER(B!C15),IF((B!J$2+B!J$3*B!C15)<B!J$4,B!J$2+B!J$3*B!C15,B!J$4),"") ->  | F15: =IF(ISNUMBER(B!C15),IF(B!C15<B!K$4,B!K$2+B!K$3*(3*B!C15/(2*B!K$4)-0.5*(B!C15/B!K$4)^3),B!K$3+B!K$2),"") ->  | G15: =IF(ISNUMBER(B!$C15),(B15-B!$D15)^2,"") ->  | H15: =IF(ISNUMBER(B!$C15),(C15-B!$D15)^2,"") ->  | I15: =IF(ISNUMBER(B!$C15),(D15-B!$D15)^2,"") ->  | J15: =IF(ISNUMBER(B!$C15),(E15-B!$D15)^2,"") ->  | K15: =IF(ISNUMBER(B!$C15),(F15-B!$D15)^2,"") ->  | N15: Q | O15: QP | P15: M | Q15: LP | R15: S | S15: Q | T15: QP | U15: M | V15: LP | W15: S | X15: MERN | Y15: Y@mern
A16: 12 | B16: =IF(ISNUMBER(B!C16),B!G$2+B!G$3*B!C16+B!G$4*B!C16^2,"") ->  | C16: =IF(ISNUMBER(B!C16),IF(B!C16<(B!H$3/(-2*B!H$4)),B!H$2+B!H$3*B!C16+B!H$4*B!C16^2,B!H$2+B!H$3*(B!H$3/(-2*B!H$4))+B!H$4*(B!H$3/(-2*B!H$4))^2),"") ->  | D16: =IF(ISNUMBER(B!C16),B!I$2+B!I$3*EXP(B!I$4*B!C16),"") ->  | E16: =IF(ISNUMBER(B!C16),IF((B!J$2+B!J$3*B!C16)<B!J$4,B!J$2+B!J$3*B!C16,B!J$4),"") ->  | F16: =IF(ISNUMBER(B!C16),IF(B!C16<B!K$4,B!K$2+B!K$3*(3*B!C16/(2*B!K$4)-0.5*(B!C16/B!K$4)^3),B!K$3+B!K$2),"") ->  | G16: =IF(ISNUMBER(B!$C16),(B16-B!$D16)^2,"") ->  | H16: =IF(ISNUMBER(B!$C16),(C16-B!$D16)^2,"") ->  | I16: =IF(ISNUMBER(B!$C16),(D16-B!$D16)^2,"") ->  | J16: =IF(ISNUMBER(B!$C16),(E16-B!$D16)^2,"") ->  | K16: =IF(ISNUMBER(B!$C16),(F16-B!$D16)^2,"") ->  | N16: =B!G6 -> 180.5910797 | O16: =B!H6 -> 174.9448183 | P16: =B!I6 -> 211.8529909 | Q16: =B!J6 -> 133.5000394 | R16: =B!K6 -> 164.711171 | S16: 0 | T16: 0 | U16: 0 | V16: 0 | W16: 0 | X16: =B!$F$6 -> 165.75183 | Y16: 0
A17: 13 | B17: =IF(ISNUMBER(B!C17),B!G$2+B!G$3*B!C17+B!G$4*B!C17^2,"") ->  | C17: =IF(ISNUMBER(B!C17),IF(B!C17<(B!H$3/(-2*B!H$4)),B!H$2+B!H$3*B!C17+B!H$4*B!C17^2,B!H$2+B!H$3*(B!H$3/(-2*B!H$4))+B!H$4*(B!H$3/(-2*B!H$4))^2),"") ->  | D17: =IF(ISNUMBER(B!C17),B!I$2+B!I$3*EXP(B!I$4*B!C17),"") ->  | E17: =IF(ISNUMBER(B!C17),IF((B!J$2+B!J$3*B!C17)<B!J$4,B!J$2+B!J$3*B!C17,B!J$4),"") ->  | F17: =IF(ISNUMBER(B!C17),IF(B!C17<B!K$4,B!K$2+B!K$3*(3*B!C17/(2*B!K$4)-0.5*(B!C17/B!K$4)^3),B!K$3+B!K$2),"") ->  | G17: =IF(ISNUMBER(B!$C17),(B17-B!$D17)^2,"") ->  | H17: =IF(ISNUMBER(B!$C17),(C17-B!$D17)^2,"") ->  | I17: =IF(ISNUMBER(B!$C17),(D17-B!$D17)^2,"") ->  | J17: =IF(ISNUMBER(B!$C17),(E17-B!$D17)^2,"") ->  | K17: =IF(ISNUMBER(B!$C17),(F17-B!$D17)^2,"") ->  | N17: =N16 -> 180.5910797 | O17: =B!H6 -> 174.9448183 | P17: =B!I6 -> 211.8529909 | Q17: =B!J6 -> 133.5000394 | R17: =B!K6 -> 164.711171 | S17: =B!G7 -> 190.993198 | T17: =B!H7 -> 189.2270989 | U17: =B!I7 -> 191.837637 | V17: =B!J7 -> 188.7500056 | W17: =B!K7 -> 189.0918305 | X17: =X16 -> 165.75183 | Y17: =B!$F$7 -> 188.3096855
A18: 14 | B18: =IF(ISNUMBER(B!C18),B!G$2+B!G$3*B!C18+B!G$4*B!C18^2,"") ->  | C18: =IF(ISNUMBER(B!C18),IF(B!C18<(B!H$3/(-2*B!H$4)),B!H$2+B!H$3*B!C18+B!H$4*B!C18^2,B!H$2+B!H$3*(B!H$3/(-2*B!H$4))+B!H$4*(B!H$3/(-2*B!H$4))^2),"") ->  | D18: =IF(ISNUMBER(B!C18),B!I$2+B!I$3*EXP(B!I$4*B!C18),"") ->  | E18: =IF(ISNUMBER(B!C18),IF((B!J$2+B!J$3*B!C18)<B!J$4,B!J$2+B!J$3*B!C18,B!J$4),"") ->  | F18: =IF(ISNUMBER(B!C18),IF(B!C18<B!K$4,B!K$2+B!K$3*(3*B!C18/(2*B!K$4)-0.5*(B!C18/B!K$4)^3),B!K$3+B!K$2),"") ->  | G18: =IF(ISNUMBER(B!$C18),(B18-B!$D18)^2,"") ->  | H18: =IF(ISNUMBER(B!$C18),(C18-B!$D18)^2,"") ->  | I18: =IF(ISNUMBER(B!$C18),(D18-B!$D18)^2,"") ->  | J18: =IF(ISNUMBER(B!$C18),(E18-B!$D18)^2,"") ->  | K18: =IF(ISNUMBER(B!$C18),(F18-B!$D18)^2,"") -> 
A19: 15 | B19: =IF(ISNUMBER(B!C19),B!G$2+B!G$3*B!C19+B!G$4*B!C19^2,"") ->  | C19: =IF(ISNUMBER(B!C19),IF(B!C19<(B!H$3/(-2*B!H$4)),B!H$2+B!H$3*B!C19+B!H$4*B!C19^2,B!H$2+B!H$3*(B!H$3/(-2*B!H$4))+B!H$4*(B!H$3/(-2*B!H$4))^2),"") ->  | D19: =IF(ISNUMBER(B!C19),B!I$2+B!I$3*EXP(B!I$4*B!C19),"") ->  | E19: =IF(ISNUMBER(B!C19),IF((B!J$2+B!J$3*B!C19)<B!J$4,B!J$2+B!J$3*B!C19,B!J$4),"") ->  | F19: =IF(ISNUMBER(B!C19),IF(B!C19<B!K$4,B!K$2+B!K$3*(3*B!C19/(2*B!K$4)-0.5*(B!C19/B!K$4)^3),B!K$3+B!K$2),"") ->  | G19: =IF(ISNUMBER(B!$C19),(B19-B!$D19)^2,"") ->  | H19: =IF(ISNUMBER(B!$C19),(C19-B!$D19)^2,"") ->  | I19: =IF(ISNUMBER(B!$C19),(D19-B!$D19)^2,"") ->  | J19: =IF(ISNUMBER(B!$C19),(E19-B!$D19)^2,"") ->  | K19: =IF(ISNUMBER(B!$C19),(F19-B!$D19)^2,"") -> 
A20: 16 | B20: =IF(ISNUMBER(B!C20),B!G$2+B!G$3*B!C20+B!G$4*B!C20^2,"") ->  | C20: =IF(ISNUMBER(B!C20),IF(B!C20<(B!H$3/(-2*B!H$4)),B!H$2+B!H$3*B!C20+B!H$4*B!C20^2,B!H$2+B!H$3*(B!H$3/(-2*B!H$4))+B!H$4*(B!H$3/(-2*B!H$4))^2),"") ->  | D20: =IF(ISNUMBER(B!C20),B!I$2+B!I$3*EXP(B!I$4*B!C20),"") ->  | E20: =IF(ISNUMBER(B!C20),IF((B!J$2+B!J$3*B!C20)<B!J$4,B!J$2+B!J$3*B!C20,B!J$4),"") ->  | F20: =IF(ISNUMBER(B!C20),IF(B!C20<B!K$4,B!K$2+B!K$3*(3*B!C20/(2*B!K$4)-0.5*(B!C20/B!K$4)^3),B!K$3+B!K$2),"") ->  | G20: =IF(ISNUMBER(B!$C20),(B20-B!$D20)^2,"") ->  | H20: =IF(ISNUMBER(B!$C20),(C20-B!$D20)^2,"") ->  | I20: =IF(ISNUMBER(B!$C20),(D20-B!$D20)^2,"") ->  | J20: =IF(ISNUMBER(B!$C20),(E20-B!$D20)^2,"") ->  | K20: =IF(ISNUMBER(B!$C20),(F20-B!$D20)^2,"") ->  | N20: Nutrient content (lb/bu): | O20: =B!B30 -> 0.65 | P20: These two cells, carried from page A, set constraints on initial slope
A21: 17 | B21: =IF(ISNUMBER(B!C21),B!G$2+B!G$3*B!C21+B!G$4*B!C21^2,"") ->  | C21: =IF(ISNUMBER(B!C21),IF(B!C21<(B!H$3/(-2*B!H$4)),B!H$2+B!H$3*B!C21+B!H$4*B!C21^2,B!H$2+B!H$3*(B!H$3/(-2*B!H$4))+B!H$4*(B!H$3/(-2*B!H$4))^2),"") ->  | D21: =IF(ISNUMBER(B!C21),B!I$2+B!I$3*EXP(B!I$4*B!C21),"") ->  | E21: =IF(ISNUMBER(B!C21),IF((B!J$2+B!J$3*B!C21)<B!J$4,B!J$2+B!J$3*B!C21,B!J$4),"") ->  | F21: =IF(ISNUMBER(B!C21),IF(B!C21<B!K$4,B!K$2+B!K$3*(3*B!C21/(2*B!K$4)-0.5*(B!C21/B!K$4)^3),B!K$3+B!K$2),"") ->  | G21: =IF(ISNUMBER(B!$C21),(B21-B!$D21)^2,"") ->  | H21: =IF(ISNUMBER(B!$C21),(C21-B!$D21)^2,"") ->  | I21: =IF(ISNUMBER(B!$C21),(D21-B!$D21)^2,"") ->  | J21: =IF(ISNUMBER(B!$C21),(E21-B!$D21)^2,"") ->  | K21: =IF(ISNUMBER(B!$C21),(F21-B!$D21)^2,"") ->  | N21: NHI: | O21: =B!B31 -> 0.666 | P21: assuming maximum efficiency (REN) is 100% + fitting tolerance.
A22: 18 | B22: =IF(ISNUMBER(B!C22),B!G$2+B!G$3*B!C22+B!G$4*B!C22^2,"") ->  | C22: =IF(ISNUMBER(B!C22),IF(B!C22<(B!H$3/(-2*B!H$4)),B!H$2+B!H$3*B!C22+B!H$4*B!C22^2,B!H$2+B!H$3*(B!H$3/(-2*B!H$4))+B!H$4*(B!H$3/(-2*B!H$4))^2),"") ->  | D22: =IF(ISNUMBER(B!C22),B!I$2+B!I$3*EXP(B!I$4*B!C22),"") ->  | E22: =IF(ISNUMBER(B!C22),IF((B!J$2+B!J$3*B!C22)<B!J$4,B!J$2+B!J$3*B!C22,B!J$4),"") ->  | F22: =IF(ISNUMBER(B!C22),IF(B!C22<B!K$4,B!K$2+B!K$3*(3*B!C22/(2*B!K$4)-0.5*(B!C22/B!K$4)^3),B!K$3+B!K$2),"") ->  | G22: =IF(ISNUMBER(B!$C22),(B22-B!$D22)^2,"") ->  | H22: =IF(ISNUMBER(B!$C22),(C22-B!$D22)^2,"") ->  | I22: =IF(ISNUMBER(B!$C22),(D22-B!$D22)^2,"") ->  | J22: =IF(ISNUMBER(B!$C22),(E22-B!$D22)^2,"") ->  | K22: =IF(ISNUMBER(B!$C22),(F22-B!$D22)^2,"") -> 
A23: 19 | B23: =IF(ISNUMBER(B!C23),B!G$2+B!G$3*B!C23+B!G$4*B!C23^2,"") ->  | C23: =IF(ISNUMBER(B!C23),IF(B!C23<(B!H$3/(-2*B!H$4)),B!H$2+B!H$3*B!C23+B!H$4*B!C23^2,B!H$2+B!H$3*(B!H$3/(-2*B!H$4))+B!H$4*(B!H$3/(-2*B!H$4))^2),"") ->  | D23: =IF(ISNUMBER(B!C23),B!I$2+B!I$3*EXP(B!I$4*B!C23),"") ->  | E23: =IF(ISNUMBER(B!C23),IF((B!J$2+B!J$3*B!C23)<B!J$4,B!J$2+B!J$3*B!C23,B!J$4),"") ->  | F23: =IF(ISNUMBER(B!C23),IF(B!C23<B!K$4,B!K$2+B!K$3*(3*B!C23/(2*B!K$4)-0.5*(B!C23/B!K$4)^3),B!K$3+B!K$2),"") ->  | G23: =IF(ISNUMBER(B!$C23),(B23-B!$D23)^2,"") ->  | H23: =IF(ISNUMBER(B!$C23),(C23-B!$D23)^2,"") ->  | I23: =IF(ISNUMBER(B!$C23),(D23-B!$D23)^2,"") ->  | J23: =IF(ISNUMBER(B!$C23),(E23-B!$D23)^2,"") ->  | K23: =IF(ISNUMBER(B!$C23),(F23-B!$D23)^2,"") -> 
A24: 20 | B24: =IF(ISNUMBER(B!C24),B!G$2+B!G$3*B!C24+B!G$4*B!C24^2,"") ->  | C24: =IF(ISNUMBER(B!C24),IF(B!C24<(B!H$3/(-2*B!H$4)),B!H$2+B!H$3*B!C24+B!H$4*B!C24^2,B!H$2+B!H$3*(B!H$3/(-2*B!H$4))+B!H$4*(B!H$3/(-2*B!H$4))^2),"") ->  | D24: =IF(ISNUMBER(B!C24),B!I$2+B!I$3*EXP(B!I$4*B!C24),"") ->  | E24: =IF(ISNUMBER(B!C24),IF((B!J$2+B!J$3*B!C24)<B!J$4,B!J$2+B!J$3*B!C24,B!J$4),"") ->  | F24: =IF(ISNUMBER(B!C24),IF(B!C24<B!K$4,B!K$2+B!K$3*(3*B!C24/(2*B!K$4)-0.5*(B!C24/B!K$4)^3),B!K$3+B!K$2),"") ->  | G24: =IF(ISNUMBER(B!$C24),(B24-B!$D24)^2,"") ->  | H24: =IF(ISNUMBER(B!$C24),(C24-B!$D24)^2,"") ->  | I24: =IF(ISNUMBER(B!$C24),(D24-B!$D24)^2,"") ->  | J24: =IF(ISNUMBER(B!$C24),(E24-B!$D24)^2,"") ->  | K24: =IF(ISNUMBER(B!$C24),(F24-B!$D24)^2,"") -> 
A25: 21 | B25: =IF(ISNUMBER(B!C25),B!G$2+B!G$3*B!C25+B!G$4*B!C25^2,"") ->  | C25: =IF(ISNUMBER(B!C25),IF(B!C25<(B!H$3/(-2*B!H$4)),B!H$2+B!H$3*B!C25+B!H$4*B!C25^2,B!H$2+B!H$3*(B!H$3/(-2*B!H$4))+B!H$4*(B!H$3/(-2*B!H$4))^2),"") ->  | D25: =IF(ISNUMBER(B!C25),B!I$2+B!I$3*EXP(B!I$4*B!C25),"") ->  | E25: =IF(ISNUMBER(B!C25),IF((B!J$2+B!J$3*B!C25)<B!J$4,B!J$2+B!J$3*B!C25,B!J$4),"") ->  | F25: =IF(ISNUMBER(B!C25),IF(B!C25<B!K$4,B!K$2+B!K$3*(3*B!C25/(2*B!K$4)-0.5*(B!C25/B!K$4)^3),B!K$3+B!K$2),"") ->  | G25: =IF(ISNUMBER(B!$C25),(B25-B!$D25)^2,"") ->  | H25: =IF(ISNUMBER(B!$C25),(C25-B!$D25)^2,"") ->  | I25: =IF(ISNUMBER(B!$C25),(D25-B!$D25)^2,"") ->  | J25: =IF(ISNUMBER(B!$C25),(E25-B!$D25)^2,"") ->  | K25: =IF(ISNUMBER(B!$C25),(F25-B!$D25)^2,"") ->  | N25: Initialization
A26: 22 | B26: =IF(ISNUMBER(B!C26),B!G$2+B!G$3*B!C26+B!G$4*B!C26^2,"") ->  | C26: =IF(ISNUMBER(B!C26),IF(B!C26<(B!H$3/(-2*B!H$4)),B!H$2+B!H$3*B!C26+B!H$4*B!C26^2,B!H$2+B!H$3*(B!H$3/(-2*B!H$4))+B!H$4*(B!H$3/(-2*B!H$4))^2),"") ->  | D26: =IF(ISNUMBER(B!C26),B!I$2+B!I$3*EXP(B!I$4*B!C26),"") ->  | E26: =IF(ISNUMBER(B!C26),IF((B!J$2+B!J$3*B!C26)<B!J$4,B!J$2+B!J$3*B!C26,B!J$4),"") ->  | F26: =IF(ISNUMBER(B!C26),IF(B!C26<B!K$4,B!K$2+B!K$3*(3*B!C26/(2*B!K$4)-0.5*(B!C26/B!K$4)^3),B!K$3+B!K$2),"") ->  | G26: =IF(ISNUMBER(B!$C26),(B26-B!$D26)^2,"") ->  | H26: =IF(ISNUMBER(B!$C26),(C26-B!$D26)^2,"") ->  | I26: =IF(ISNUMBER(B!$C26),(D26-B!$D26)^2,"") ->  | J26: =IF(ISNUMBER(B!$C26),(E26-B!$D26)^2,"") ->  | K26: =IF(ISNUMBER(B!$C26),(F26-B!$D26)^2,"") ->  | N26: Mean
A27: 23 | B27: =IF(ISNUMBER(B!C27),B!G$2+B!G$3*B!C27+B!G$4*B!C27^2,"") ->  | C27: =IF(ISNUMBER(B!C27),IF(B!C27<(B!H$3/(-2*B!H$4)),B!H$2+B!H$3*B!C27+B!H$4*B!C27^2,B!H$2+B!H$3*(B!H$3/(-2*B!H$4))+B!H$4*(B!H$3/(-2*B!H$4))^2),"") ->  | D27: =IF(ISNUMBER(B!C27),B!I$2+B!I$3*EXP(B!I$4*B!C27),"") ->  | E27: =IF(ISNUMBER(B!C27),IF((B!J$2+B!J$3*B!C27)<B!J$4,B!J$2+B!J$3*B!C27,B!J$4),"") ->  | F27: =IF(ISNUMBER(B!C27),IF(B!C27<B!K$4,B!K$2+B!K$3*(3*B!C27/(2*B!K$4)-0.5*(B!C27/B!K$4)^3),B!K$3+B!K$2),"") ->  | G27: =IF(ISNUMBER(B!$C27),(B27-B!$D27)^2,"") ->  | H27: =IF(ISNUMBER(B!$C27),(C27-B!$D27)^2,"") ->  | I27: =IF(ISNUMBER(B!$C27),(D27-B!$D27)^2,"") ->  | J27: =IF(ISNUMBER(B!$C27),(E27-B!$D27)^2,"") ->  | K27: =IF(ISNUMBER(B!$C27),(F27-B!$D27)^2,"") ->  | N27: Q | O27: QP | P27: M | Q27: LP | R27: S
A28: 24 | B28: =IF(ISNUMBER(B!C28),B!G$2+B!G$3*B!C28+B!G$4*B!C28^2,"") ->  | C28: =IF(ISNUMBER(B!C28),IF(B!C28<(B!H$3/(-2*B!H$4)),B!H$2+B!H$3*B!C28+B!H$4*B!C28^2,B!H$2+B!H$3*(B!H$3/(-2*B!H$4))+B!H$4*(B!H$3/(-2*B!H$4))^2),"") ->  | D28: =IF(ISNUMBER(B!C28),B!I$2+B!I$3*EXP(B!I$4*B!C28),"") ->  | E28: =IF(ISNUMBER(B!C28),IF((B!J$2+B!J$3*B!C28)<B!J$4,B!J$2+B!J$3*B!C28,B!J$4),"") ->  | F28: =IF(ISNUMBER(B!C28),IF(B!C28<B!K$4,B!K$2+B!K$3*(3*B!C28/(2*B!K$4)-0.5*(B!C28/B!K$4)^3),B!K$3+B!K$2),"") ->  | G28: =IF(ISNUMBER(B!$C28),(B28-B!$D28)^2,"") ->  | H28: =IF(ISNUMBER(B!$C28),(C28-B!$D28)^2,"") ->  | I28: =IF(ISNUMBER(B!$C28),(D28-B!$D28)^2,"") ->  | J28: =IF(ISNUMBER(B!$C28),(E28-B!$D28)^2,"") ->  | K28: =IF(ISNUMBER(B!$C28),(F28-B!$D28)^2,"") ->  | M28: A | N28: =AVERAGE(N8,S8) -> 75 | O28: =N28 -> 75 | P28: =AVERAGE(P8,U8) -> 191 | Q28: 75 | R28: 75
A29: 25 | B29: =IF(ISNUMBER(B!C29),B!G$2+B!G$3*B!C29+B!G$4*B!C29^2,"") ->  | C29: =IF(ISNUMBER(B!C29),IF(B!C29<(B!H$3/(-2*B!H$4)),B!H$2+B!H$3*B!C29+B!H$4*B!C29^2,B!H$2+B!H$3*(B!H$3/(-2*B!H$4))+B!H$4*(B!H$3/(-2*B!H$4))^2),"") ->  | D29: =IF(ISNUMBER(B!C29),B!I$2+B!I$3*EXP(B!I$4*B!C29),"") ->  | E29: =IF(ISNUMBER(B!C29),IF((B!J$2+B!J$3*B!C29)<B!J$4,B!J$2+B!J$3*B!C29,B!J$4),"") ->  | F29: =IF(ISNUMBER(B!C29),IF(B!C29<B!K$4,B!K$2+B!K$3*(3*B!C29/(2*B!K$4)-0.5*(B!C29/B!K$4)^3),B!K$3+B!K$2),"") ->  | G29: =IF(ISNUMBER(B!$C29),(B29-B!$D29)^2,"") ->  | H29: =IF(ISNUMBER(B!$C29),(C29-B!$D29)^2,"") ->  | I29: =IF(ISNUMBER(B!$C29),(D29-B!$D29)^2,"") ->  | J29: =IF(ISNUMBER(B!$C29),(E29-B!$D29)^2,"") ->  | K29: =IF(ISNUMBER(B!$C29),(F29-B!$D29)^2,"") ->  | M29: B | N29: =AVERAGE(N9,S9) -> 0.7684615385 | O29: =N29 -> 0.7684615385 | P29: -76.75000005 | Q29: 0.6403846154 | R29: 76.75000005
A30: 26 | B30: =IF(ISNUMBER(B!C30),B!G$2+B!G$3*B!C30+B!G$4*B!C30^2,"") ->  | C30: =IF(ISNUMBER(B!C30),IF(B!C30<(B!H$3/(-2*B!H$4)),B!H$2+B!H$3*B!C30+B!H$4*B!C30^2,B!H$2+B!H$3*(B!H$3/(-2*B!H$4))+B!H$4*(B!H$3/(-2*B!H$4))^2),"") ->  | D30: =IF(ISNUMBER(B!C30),B!I$2+B!I$3*EXP(B!I$4*B!C30),"") ->  | E30: =IF(ISNUMBER(B!C30),IF((B!J$2+B!J$3*B!C30)<B!J$4,B!J$2+B!J$3*B!C30,B!J$4),"") ->  | F30: =IF(ISNUMBER(B!C30),IF(B!C30<B!K$4,B!K$2+B!K$3*(3*B!C30/(2*B!K$4)-0.5*(B!C30/B!K$4)^3),B!K$3+B!K$2),"") ->  | G30: =IF(ISNUMBER(B!$C30),(B30-B!$D30)^2,"") ->  | H30: =IF(ISNUMBER(B!$C30),(C30-B!$D30)^2,"") ->  | I30: =IF(ISNUMBER(B!$C30),(D30-B!$D30)^2,"") ->  | J30: =IF(ISNUMBER(B!$C30),(E30-B!$D30)^2,"") ->  | K30: =IF(ISNUMBER(B!$C30),(F30-B!$D30)^2,"") ->  | M30: C | N30: =AVERAGE(N10,S10)/10 -> -0.050000005 | O30: =N30 -> -0.050000005 | P30: =AVERAGE(P10,U10) -> -0.008677574424 | Q30: =AVERAGE(Q10,V10) -> 143.25 | R30: =M48 -> 240
A31: 27 | B31: =IF(ISNUMBER(B!C31),B!G$2+B!G$3*B!C31+B!G$4*B!C31^2,"") ->  | C31: =IF(ISNUMBER(B!C31),IF(B!C31<(B!H$3/(-2*B!H$4)),B!H$2+B!H$3*B!C31+B!H$4*B!C31^2,B!H$2+B!H$3*(B!H$3/(-2*B!H$4))+B!H$4*(B!H$3/(-2*B!H$4))^2),"") ->  | D31: =IF(ISNUMBER(B!C31),B!I$2+B!I$3*EXP(B!I$4*B!C31),"") ->  | E31: =IF(ISNUMBER(B!C31),IF((B!J$2+B!J$3*B!C31)<B!J$4,B!J$2+B!J$3*B!C31,B!J$4),"") ->  | F31: =IF(ISNUMBER(B!C31),IF(B!C31<B!K$4,B!K$2+B!K$3*(3*B!C31/(2*B!K$4)-0.5*(B!C31/B!K$4)^3),B!K$3+B!K$2),"") ->  | G31: =IF(ISNUMBER(B!$C31),(B31-B!$D31)^2,"") ->  | H31: =IF(ISNUMBER(B!$C31),(C31-B!$D31)^2,"") ->  | I31: =IF(ISNUMBER(B!$C31),(D31-B!$D31)^2,"") ->  | J31: =IF(ISNUMBER(B!$C31),(E31-B!$D31)^2,"") ->  | K31: =IF(ISNUMBER(B!$C31),(F31-B!$D31)^2,"") -> 
A32: 28 | B32: =IF(ISNUMBER(B!C32),B!G$2+B!G$3*B!C32+B!G$4*B!C32^2,"") ->  | C32: =IF(ISNUMBER(B!C32),IF(B!C32<(B!H$3/(-2*B!H$4)),B!H$2+B!H$3*B!C32+B!H$4*B!C32^2,B!H$2+B!H$3*(B!H$3/(-2*B!H$4))+B!H$4*(B!H$3/(-2*B!H$4))^2),"") ->  | D32: =IF(ISNUMBER(B!C32),B!I$2+B!I$3*EXP(B!I$4*B!C32),"") ->  | E32: =IF(ISNUMBER(B!C32),IF((B!J$2+B!J$3*B!C32)<B!J$4,B!J$2+B!J$3*B!C32,B!J$4),"") ->  | F32: =IF(ISNUMBER(B!C32),IF(B!C32<B!K$4,B!K$2+B!K$3*(3*B!C32/(2*B!K$4)-0.5*(B!C32/B!K$4)^3),B!K$3+B!K$2),"") ->  | G32: =IF(ISNUMBER(B!$C32),(B32-B!$D32)^2,"") ->  | H32: =IF(ISNUMBER(B!$C32),(C32-B!$D32)^2,"") ->  | I32: =IF(ISNUMBER(B!$C32),(D32-B!$D32)^2,"") ->  | J32: =IF(ISNUMBER(B!$C32),(E32-B!$D32)^2,"") ->  | K32: =IF(ISNUMBER(B!$C32),(F32-B!$D32)^2,"") -> 
A33: 29 | B33: =IF(ISNUMBER(B!C33),B!G$2+B!G$3*B!C33+B!G$4*B!C33^2,"") ->  | C33: =IF(ISNUMBER(B!C33),IF(B!C33<(B!H$3/(-2*B!H$4)),B!H$2+B!H$3*B!C33+B!H$4*B!C33^2,B!H$2+B!H$3*(B!H$3/(-2*B!H$4))+B!H$4*(B!H$3/(-2*B!H$4))^2),"") ->  | D33: =IF(ISNUMBER(B!C33),B!I$2+B!I$3*EXP(B!I$4*B!C33),"") ->  | E33: =IF(ISNUMBER(B!C33),IF((B!J$2+B!J$3*B!C33)<B!J$4,B!J$2+B!J$3*B!C33,B!J$4),"") ->  | F33: =IF(ISNUMBER(B!C33),IF(B!C33<B!K$4,B!K$2+B!K$3*(3*B!C33/(2*B!K$4)-0.5*(B!C33/B!K$4)^3),B!K$3+B!K$2),"") ->  | G33: =IF(ISNUMBER(B!$C33),(B33-B!$D33)^2,"") ->  | H33: =IF(ISNUMBER(B!$C33),(C33-B!$D33)^2,"") ->  | I33: =IF(ISNUMBER(B!$C33),(D33-B!$D33)^2,"") ->  | J33: =IF(ISNUMBER(B!$C33),(E33-B!$D33)^2,"") ->  | K33: =IF(ISNUMBER(B!$C33),(F33-B!$D33)^2,"") -> 
A34: 30 | B34: =IF(ISNUMBER(B!C34),B!G$2+B!G$3*B!C34+B!G$4*B!C34^2,"") ->  | C34: =IF(ISNUMBER(B!C34),IF(B!C34<(B!H$3/(-2*B!H$4)),B!H$2+B!H$3*B!C34+B!H$4*B!C34^2,B!H$2+B!H$3*(B!H$3/(-2*B!H$4))+B!H$4*(B!H$3/(-2*B!H$4))^2),"") ->  | D34: =IF(ISNUMBER(B!C34),B!I$2+B!I$3*EXP(B!I$4*B!C34),"") ->  | E34: =IF(ISNUMBER(B!C34),IF((B!J$2+B!J$3*B!C34)<B!J$4,B!J$2+B!J$3*B!C34,B!J$4),"") ->  | F34: =IF(ISNUMBER(B!C34),IF(B!C34<B!K$4,B!K$2+B!K$3*(3*B!C34/(2*B!K$4)-0.5*(B!C34/B!K$4)^3),B!K$3+B!K$2),"") ->  | G34: =IF(ISNUMBER(B!$C34),(B34-B!$D34)^2,"") ->  | H34: =IF(ISNUMBER(B!$C34),(C34-B!$D34)^2,"") ->  | I34: =IF(ISNUMBER(B!$C34),(D34-B!$D34)^2,"") ->  | J34: =IF(ISNUMBER(B!$C34),(E34-B!$D34)^2,"") ->  | K34: =IF(ISNUMBER(B!$C34),(F34-B!$D34)^2,"") -> 
A35: 31 | B35: =IF(ISNUMBER(B!C35),B!G$2+B!G$3*B!C35+B!G$4*B!C35^2,"") ->  | C35: =IF(ISNUMBER(B!C35),IF(B!C35<(B!H$3/(-2*B!H$4)),B!H$2+B!H$3*B!C35+B!H$4*B!C35^2,B!H$2+B!H$3*(B!H$3/(-2*B!H$4))+B!H$4*(B!H$3/(-2*B!H$4))^2),"") ->  | D35: =IF(ISNUMBER(B!C35),B!I$2+B!I$3*EXP(B!I$4*B!C35),"") ->  | E35: =IF(ISNUMBER(B!C35),IF((B!J$2+B!J$3*B!C35)<B!J$4,B!J$2+B!J$3*B!C35,B!J$4),"") ->  | F35: =IF(ISNUMBER(B!C35),IF(B!C35<B!K$4,B!K$2+B!K$3*(3*B!C35/(2*B!K$4)-0.5*(B!C35/B!K$4)^3),B!K$3+B!K$2),"") ->  | G35: =IF(ISNUMBER(B!$C35),(B35-B!$D35)^2,"") ->  | H35: =IF(ISNUMBER(B!$C35),(C35-B!$D35)^2,"") ->  | I35: =IF(ISNUMBER(B!$C35),(D35-B!$D35)^2,"") ->  | J35: =IF(ISNUMBER(B!$C35),(E35-B!$D35)^2,"") ->  | K35: =IF(ISNUMBER(B!$C35),(F35-B!$D35)^2,"") -> 
A36: 32 | B36: =IF(ISNUMBER(B!C36),B!G$2+B!G$3*B!C36+B!G$4*B!C36^2,"") ->  | C36: =IF(ISNUMBER(B!C36),IF(B!C36<(B!H$3/(-2*B!H$4)),B!H$2+B!H$3*B!C36+B!H$4*B!C36^2,B!H$2+B!H$3*(B!H$3/(-2*B!H$4))+B!H$4*(B!H$3/(-2*B!H$4))^2),"") ->  | D36: =IF(ISNUMBER(B!C36),B!I$2+B!I$3*EXP(B!I$4*B!C36),"") ->  | E36: =IF(ISNUMBER(B!C36),IF((B!J$2+B!J$3*B!C36)<B!J$4,B!J$2+B!J$3*B!C36,B!J$4),"") ->  | F36: =IF(ISNUMBER(B!C36),IF(B!C36<B!K$4,B!K$2+B!K$3*(3*B!C36/(2*B!K$4)-0.5*(B!C36/B!K$4)^3),B!K$3+B!K$2),"") ->  | G36: =IF(ISNUMBER(B!$C36),(B36-B!$D36)^2,"") ->  | H36: =IF(ISNUMBER(B!$C36),(C36-B!$D36)^2,"") ->  | I36: =IF(ISNUMBER(B!$C36),(D36-B!$D36)^2,"") ->  | J36: =IF(ISNUMBER(B!$C36),(E36-B!$D36)^2,"") ->  | K36: =IF(ISNUMBER(B!$C36),(F36-B!$D36)^2,"") -> 
A37: 33 | B37: =IF(ISNUMBER(B!C37),B!G$2+B!G$3*B!C37+B!G$4*B!C37^2,"") ->  | C37: =IF(ISNUMBER(B!C37),IF(B!C37<(B!H$3/(-2*B!H$4)),B!H$2+B!H$3*B!C37+B!H$4*B!C37^2,B!H$2+B!H$3*(B!H$3/(-2*B!H$4))+B!H$4*(B!H$3/(-2*B!H$4))^2),"") ->  | D37: =IF(ISNUMBER(B!C37),B!I$2+B!I$3*EXP(B!I$4*B!C37),"") ->  | E37: =IF(ISNUMBER(B!C37),IF((B!J$2+B!J$3*B!C37)<B!J$4,B!J$2+B!J$3*B!C37,B!J$4),"") ->  | F37: =IF(ISNUMBER(B!C37),IF(B!C37<B!K$4,B!K$2+B!K$3*(3*B!C37/(2*B!K$4)-0.5*(B!C37/B!K$4)^3),B!K$3+B!K$2),"") ->  | G37: =IF(ISNUMBER(B!$C37),(B37-B!$D37)^2,"") ->  | H37: =IF(ISNUMBER(B!$C37),(C37-B!$D37)^2,"") ->  | I37: =IF(ISNUMBER(B!$C37),(D37-B!$D37)^2,"") ->  | J37: =IF(ISNUMBER(B!$C37),(E37-B!$D37)^2,"") ->  | K37: =IF(ISNUMBER(B!$C37),(F37-B!$D37)^2,"") -> 
A38: 34 | B38: =IF(ISNUMBER(B!C38),B!G$2+B!G$3*B!C38+B!G$4*B!C38^2,"") ->  | C38: =IF(ISNUMBER(B!C38),IF(B!C38<(B!H$3/(-2*B!H$4)),B!H$2+B!H$3*B!C38+B!H$4*B!C38^2,B!H$2+B!H$3*(B!H$3/(-2*B!H$4))+B!H$4*(B!H$3/(-2*B!H$4))^2),"") ->  | D38: =IF(ISNUMBER(B!C38),B!I$2+B!I$3*EXP(B!I$4*B!C38),"") ->  | E38: =IF(ISNUMBER(B!C38),IF((B!J$2+B!J$3*B!C38)<B!J$4,B!J$2+B!J$3*B!C38,B!J$4),"") ->  | F38: =IF(ISNUMBER(B!C38),IF(B!C38<B!K$4,B!K$2+B!K$3*(3*B!C38/(2*B!K$4)-0.5*(B!C38/B!K$4)^3),B!K$3+B!K$2),"") ->  | G38: =IF(ISNUMBER(B!$C38),(B38-B!$D38)^2,"") ->  | H38: =IF(ISNUMBER(B!$C38),(C38-B!$D38)^2,"") ->  | I38: =IF(ISNUMBER(B!$C38),(D38-B!$D38)^2,"") ->  | J38: =IF(ISNUMBER(B!$C38),(E38-B!$D38)^2,"") ->  | K38: =IF(ISNUMBER(B!$C38),(F38-B!$D38)^2,"") -> 
A39: 35 | B39: =IF(ISNUMBER(B!C39),B!G$2+B!G$3*B!C39+B!G$4*B!C39^2,"") ->  | C39: =IF(ISNUMBER(B!C39),IF(B!C39<(B!H$3/(-2*B!H$4)),B!H$2+B!H$3*B!C39+B!H$4*B!C39^2,B!H$2+B!H$3*(B!H$3/(-2*B!H$4))+B!H$4*(B!H$3/(-2*B!H$4))^2),"") ->  | D39: =IF(ISNUMBER(B!C39),B!I$2+B!I$3*EXP(B!I$4*B!C39),"") ->  | E39: =IF(ISNUMBER(B!C39),IF((B!J$2+B!J$3*B!C39)<B!J$4,B!J$2+B!J$3*B!C39,B!J$4),"") ->  | F39: =IF(ISNUMBER(B!C39),IF(B!C39<B!K$4,B!K$2+B!K$3*(3*B!C39/(2*B!K$4)-0.5*(B!C39/B!K$4)^3),B!K$3+B!K$2),"") ->  | G39: =IF(ISNUMBER(B!$C39),(B39-B!$D39)^2,"") ->  | H39: =IF(ISNUMBER(B!$C39),(C39-B!$D39)^2,"") ->  | I39: =IF(ISNUMBER(B!$C39),(D39-B!$D39)^2,"") ->  | J39: =IF(ISNUMBER(B!$C39),(E39-B!$D39)^2,"") ->  | K39: =IF(ISNUMBER(B!$C39),(F39-B!$D39)^2,"") -> 
A40: 36 | B40: =IF(ISNUMBER(B!C40),B!G$2+B!G$3*B!C40+B!G$4*B!C40^2,"") ->  | C40: =IF(ISNUMBER(B!C40),IF(B!C40<(B!H$3/(-2*B!H$4)),B!H$2+B!H$3*B!C40+B!H$4*B!C40^2,B!H$2+B!H$3*(B!H$3/(-2*B!H$4))+B!H$4*(B!H$3/(-2*B!H$4))^2),"") ->  | D40: =IF(ISNUMBER(B!C40),B!I$2+B!I$3*EXP(B!I$4*B!C40),"") ->  | E40: =IF(ISNUMBER(B!C40),IF((B!J$2+B!J$3*B!C40)<B!J$4,B!J$2+B!J$3*B!C40,B!J$4),"") ->  | F40: =IF(ISNUMBER(B!C40),IF(B!C40<B!K$4,B!K$2+B!K$3*(3*B!C40/(2*B!K$4)-0.5*(B!C40/B!K$4)^3),B!K$3+B!K$2),"") ->  | G40: =IF(ISNUMBER(B!$C40),(B40-B!$D40)^2,"") ->  | H40: =IF(ISNUMBER(B!$C40),(C40-B!$D40)^2,"") ->  | I40: =IF(ISNUMBER(B!$C40),(D40-B!$D40)^2,"") ->  | J40: =IF(ISNUMBER(B!$C40),(E40-B!$D40)^2,"") ->  | K40: =IF(ISNUMBER(B!$C40),(F40-B!$D40)^2,"") -> 
A41: 37 | B41: =IF(ISNUMBER(B!C41),B!G$2+B!G$3*B!C41+B!G$4*B!C41^2,"") ->  | C41: =IF(ISNUMBER(B!C41),IF(B!C41<(B!H$3/(-2*B!H$4)),B!H$2+B!H$3*B!C41+B!H$4*B!C41^2,B!H$2+B!H$3*(B!H$3/(-2*B!H$4))+B!H$4*(B!H$3/(-2*B!H$4))^2),"") ->  | D41: =IF(ISNUMBER(B!C41),B!I$2+B!I$3*EXP(B!I$4*B!C41),"") ->  | E41: =IF(ISNUMBER(B!C41),IF((B!J$2+B!J$3*B!C41)<B!J$4,B!J$2+B!J$3*B!C41,B!J$4),"") ->  | F41: =IF(ISNUMBER(B!C41),IF(B!C41<B!K$4,B!K$2+B!K$3*(3*B!C41/(2*B!K$4)-0.5*(B!C41/B!K$4)^3),B!K$3+B!K$2),"") ->  | G41: =IF(ISNUMBER(B!$C41),(B41-B!$D41)^2,"") ->  | H41: =IF(ISNUMBER(B!$C41),(C41-B!$D41)^2,"") ->  | I41: =IF(ISNUMBER(B!$C41),(D41-B!$D41)^2,"") ->  | J41: =IF(ISNUMBER(B!$C41),(E41-B!$D41)^2,"") ->  | K41: =IF(ISNUMBER(B!$C41),(F41-B!$D41)^2,"") -> 
A42: 38 | B42: =IF(ISNUMBER(B!C42),B!G$2+B!G$3*B!C42+B!G$4*B!C42^2,"") ->  | C42: =IF(ISNUMBER(B!C42),IF(B!C42<(B!H$3/(-2*B!H$4)),B!H$2+B!H$3*B!C42+B!H$4*B!C42^2,B!H$2+B!H$3*(B!H$3/(-2*B!H$4))+B!H$4*(B!H$3/(-2*B!H$4))^2),"") ->  | D42: =IF(ISNUMBER(B!C42),B!I$2+B!I$3*EXP(B!I$4*B!C42),"") ->  | E42: =IF(ISNUMBER(B!C42),IF((B!J$2+B!J$3*B!C42)<B!J$4,B!J$2+B!J$3*B!C42,B!J$4),"") ->  | F42: =IF(ISNUMBER(B!C42),IF(B!C42<B!K$4,B!K$2+B!K$3*(3*B!C42/(2*B!K$4)-0.5*(B!C42/B!K$4)^3),B!K$3+B!K$2),"") ->  | G42: =IF(ISNUMBER(B!$C42),(B42-B!$D42)^2,"") ->  | H42: =IF(ISNUMBER(B!$C42),(C42-B!$D42)^2,"") ->  | I42: =IF(ISNUMBER(B!$C42),(D42-B!$D42)^2,"") ->  | J42: =IF(ISNUMBER(B!$C42),(E42-B!$D42)^2,"") ->  | K42: =IF(ISNUMBER(B!$C42),(F42-B!$D42)^2,"") -> 
A43: 39 | B43: =IF(ISNUMBER(B!C43),B!G$2+B!G$3*B!C43+B!G$4*B!C43^2,"") ->  | C43: =IF(ISNUMBER(B!C43),IF(B!C43<(B!H$3/(-2*B!H$4)),B!H$2+B!H$3*B!C43+B!H$4*B!C43^2,B!H$2+B!H$3*(B!H$3/(-2*B!H$4))+B!H$4*(B!H$3/(-2*B!H$4))^2),"") ->  | D43: =IF(ISNUMBER(B!C43),B!I$2+B!I$3*EXP(B!I$4*B!C43),"") ->  | E43: =IF(ISNUMBER(B!C43),IF((B!J$2+B!J$3*B!C43)<B!J$4,B!J$2+B!J$3*B!C43,B!J$4),"") ->  | F43: =IF(ISNUMBER(B!C43),IF(B!C43<B!K$4,B!K$2+B!K$3*(3*B!C43/(2*B!K$4)-0.5*(B!C43/B!K$4)^3),B!K$3+B!K$2),"") ->  | G43: =IF(ISNUMBER(B!$C43),(B43-B!$D43)^2,"") ->  | H43: =IF(ISNUMBER(B!$C43),(C43-B!$D43)^2,"") ->  | I43: =IF(ISNUMBER(B!$C43),(D43-B!$D43)^2,"") ->  | J43: =IF(ISNUMBER(B!$C43),(E43-B!$D43)^2,"") ->  | K43: =IF(ISNUMBER(B!$C43),(F43-B!$D43)^2,"") -> 
A44: 40 | B44: =IF(ISNUMBER(B!C44),B!G$2+B!G$3*B!C44+B!G$4*B!C44^2,"") ->  | C44: =IF(ISNUMBER(B!C44),IF(B!C44<(B!H$3/(-2*B!H$4)),B!H$2+B!H$3*B!C44+B!H$4*B!C44^2,B!H$2+B!H$3*(B!H$3/(-2*B!H$4))+B!H$4*(B!H$3/(-2*B!H$4))^2),"") ->  | D44: =IF(ISNUMBER(B!C44),B!I$2+B!I$3*EXP(B!I$4*B!C44),"") ->  | E44: =IF(ISNUMBER(B!C44),IF((B!J$2+B!J$3*B!C44)<B!J$4,B!J$2+B!J$3*B!C44,B!J$4),"") ->  | F44: =IF(ISNUMBER(B!C44),IF(B!C44<B!K$4,B!K$2+B!K$3*(3*B!C44/(2*B!K$4)-0.5*(B!C44/B!K$4)^3),B!K$3+B!K$2),"") ->  | G44: =IF(ISNUMBER(B!$C44),(B44-B!$D44)^2,"") ->  | H44: =IF(ISNUMBER(B!$C44),(C44-B!$D44)^2,"") ->  | I44: =IF(ISNUMBER(B!$C44),(D44-B!$D44)^2,"") ->  | J44: =IF(ISNUMBER(B!$C44),(E44-B!$D44)^2,"") ->  | K44: =IF(ISNUMBER(B!$C44),(F44-B!$D44)^2,"") -> 
A45: WEIGHTS | B45: =(0.0001+(B!G5-MIN(B!$G5:$K5)))/(0.0001+(MAX(B!$G5:$K5)-MIN(B!$G5:$K5))) -> 0.9445829027 | C45: =(0.0001+(B!H5-MIN(B!$G5:$K5)))/(0.0001+(MAX(B!$G5:$K5)-MIN(B!$G5:$K5))) -> 0.9298580048 | D45: =(0.0001+(B!I5-MIN(B!$G5:$K5)))/(0.0001+(MAX(B!$G5:$K5)-MIN(B!$G5:$K5))) -> 0.01218655508 | E45: =(0.0001+(B!J5-MIN(B!$G5:$K5)))/(0.0001+(MAX(B!$G5:$K5)-MIN(B!$G5:$K5))) -> 0.6848063449 | F45: =(0.0001+(B!K5-MIN(B!$G5:$K5)))/(0.0001+(MAX(B!$G5:$K5)-MIN(B!$G5:$K5))) -> 1
B47: Nrate | C47: Q yield | D47: QP yield | E47: M yield | F47: LP yield | G47: S yield | H47: mean yield | M47: Maximum rate for curves
A48: 0 | B48: =IF(A48<MAX($M$48),A48,MAX($M$48)) -> 0 | C48: =B!G$2+B!G$3*B48+B!G$4*B48^2 -> 74.02246371 | D48: =IF(B48<(B!H$3/(-2*B!H$4)),B!H$2+B!H$3*B48+B!H$4*B48^2,B!H$2+B!H$3*(B!H$3/(-2*B!H$4))+B!H$3*B!H$3/(4*B!H$4)) -> 73.62264867 | E48: =B!I$2+B!I$3*EXP(B!I$4*B48) -> 71.68376289 | F48: =IF((B!J$2+B!J$3*B48)<B!J$4,B!J$2+B!J$3*B48,B!J$4) -> 77.49994328 | G48: =IF(B48<B!K$4,B!K$2+B!K$3*(3*B48/(2*B!K$4)-0.5*(B48/B!K$4)^3),B!K$3+B!K$2) -> 75.45471337 | H48: =(C48*B$45+D!D48*C$45+D!E48*D$45+D!F48*E$45+D!G48*F$45)/SUM(B$45:F$45) -> 74.9782081 | M48: =MAX(B!C5:C44,B!G6:K6) -> 240
A49: 2 | B49: =IF(A49<MAX($M$48),A49,MAX($M$48)) -> 2 | C49: =B!G$2+B!G$3*B49+B!G$4*B49^2 -> 76.35172784 | D49: =IF(B49<(B!H$3/(-2*B!H$4)),B!H$2+B!H$3*B49+B!H$4*B49^2,B!H$2+B!H$3*(B!H$3/(-2*B!H$4))+B!H$3*B!H$3/(4*B!H$4)) -> 76.00361873 | E49: =B!I$2+B!I$3*EXP(B!I$4*B49) -> 74.75629018 | F49: =IF((B!J$2+B!J$3*B49)<B!J$4,B!J$2+B!J$3*B49,B!J$4) -> 79.16661039 | G49: =IF(B49<B!K$4,B!K$2+B!K$3*(3*B49/(2*B!K$4)-0.5*(B49/B!K$4)^3),B!K$3+B!K$2) -> 77.39938254 | H49: =(C49*B$45+D!D49*C$45+D!E49*D$45+D!F49*E$45+D!G49*F$45)/SUM(B$45:F$45) -> 77.08873414
A50: 4 | B50: 4 | C50: =B!G$2+B!G$3*B50+B!G$4*B50^2 -> 78.65783644 | D50: =IF(B50<(B!H$3/(-2*B!H$4)),B!H$2+B!H$3*B50+B!H$4*B50^2,B!H$2+B!H$3*(B!H$3/(-2*B!H$4))+B!H$3*B!H$3/(4*B!H$4)) -> 78.36008712 | E50: =B!I$2+B!I$3*EXP(B!I$4*B50) -> 77.75656546 | F50: =IF((B!J$2+B!J$3*B50)<B!J$4,B!J$2+B!J$3*B50,B!J$4) -> 80.8332775 | G50: =IF(B50<B!K$4,B!K$2+B!K$3*(3*B50/(2*B!K$4)-0.5*(B50/B!K$4)^3),B!K$3+B!K$2) -> 79.34355196 | H50: =(C50*B$45+D!D50*C$45+D!E50*D$45+D!F50*E$45+D!G50*F$45)/SUM(B$45:F$45) -> 79.18637021
A51: 6 | B51: 6 | C51: =B!G$2+B!G$3*B51+B!G$4*B51^2 -> 80.9407895 | D51: =IF(B51<(B!H$3/(-2*B!H$4)),B!H$2+B!H$3*B51+B!H$4*B51^2,B!H$2+B!H$3*(B!H$3/(-2*B!H$4))+B!H$3*B!H$3/(4*B!H$4)) -> 80.69205383 | E51: =B!I$2+B!I$3*EXP(B!I$4*B51) -> 80.68628776 | F51: =IF((B!J$2+B!J$3*B51)<B!J$4,B!J$2+B!J$3*B51,B!J$4) -> 82.49994461 | G51: =IF(B51<B!K$4,B!K$2+B!K$3*(3*B51/(2*B!K$4)-0.5*(B51/B!K$4)^3),B!K$3+B!K$2) -> 81.28672189 | H51: =(C51*B$45+D!D51*C$45+D!E51*D$45+D!F51*E$45+D!G51*F$45)/SUM(B$45:F$45) -> 81.27098219 | M51: =ROUND(SUM(B!C5:D44),0) -> 2285 | N51: sum of yields and rates entered (to detect new data entry)
A52: 8 | B52: 8 | C52: =B!G$2+B!G$3*B52+B!G$4*B52^2 -> 83.20058702 | D52: =IF(B52<(B!H$3/(-2*B!H$4)),B!H$2+B!H$3*B52+B!H$4*B52^2,B!H$2+B!H$3*(B!H$3/(-2*B!H$4))+B!H$3*B!H$3/(4*B!H$4)) -> 82.99951885 | E52: =B!I$2+B!I$3*EXP(B!I$4*B52) -> 83.54711619 | F52: =IF((B!J$2+B!J$3*B52)<B!J$4,B!J$2+B!J$3*B52,B!J$4) -> 84.16661171 | G52: =IF(B52<B!K$4,B!K$2+B!K$3*(3*B52/(2*B!K$4)-0.5*(B52/B!K$4)^3),B!K$3+B!K$2) -> 83.22839258 | H52: =(C52*B$45+D!D52*C$45+D!E52*D$45+D!F52*E$45+D!G52*F$45)/SUM(B$45:F$45) -> 83.34243581 | M52: 2285 | N52: set by the FIT macro when finished
A53: 10 | B53: 10 | C53: =B!G$2+B!G$3*B53+B!G$4*B53^2 -> 85.437229 | D53: =IF(B53<(B!H$3/(-2*B!H$4)),B!H$2+B!H$3*B53+B!H$4*B53^2,B!H$2+B!H$3*(B!H$3/(-2*B!H$4))+B!H$3*B!H$3/(4*B!H$4)) -> 85.2824822 | E53: =B!I$2+B!I$3*EXP(B!I$4*B53) -> 86.3406708 | F53: =IF((B!J$2+B!J$3*B53)<B!J$4,B!J$2+B!J$3*B53,B!J$4) -> 85.83327882 | G53: =IF(B53<B!K$4,B!K$2+B!K$3*(3*B53/(2*B!K$4)-0.5*(B53/B!K$4)^3),B!K$3+B!K$2) -> 85.16806428 | H53: =(C53*B$45+D!D53*C$45+D!E53*D$45+D!F53*E$45+D!G53*F$45)/SUM(B$45:F$45) -> 85.40059665 | M53: =M51=M52 -> TRUE | N53: detects whether the FIT macro has been run on the latest data entered.
A54: 12 | B54: 12 | C54: =B!G$2+B!G$3*B54+B!G$4*B54^2 -> 87.65071544 | D54: =IF(B54<(B!H$3/(-2*B!H$4)),B!H$2+B!H$3*B54+B!H$4*B54^2,B!H$2+B!H$3*(B!H$3/(-2*B!H$4))+B!H$3*B!H$3/(4*B!H$4)) -> 87.54094387 | E54: =B!I$2+B!I$3*EXP(B!I$4*B54) -> 89.06853358 | F54: =IF((B!J$2+B!J$3*B54)<B!J$4,B!J$2+B!J$3*B54,B!J$4) -> 87.49994593 | G54: =IF(B54<B!K$4,B!K$2+B!K$3*(3*B54/(2*B!K$4)-0.5*(B54/B!K$4)^3),B!K$3+B!K$2) -> 87.10523725 | H54: =(C54*B$45+D!D54*C$45+D!E54*D$45+D!F54*E$45+D!G54*F$45)/SUM(B$45:F$45) -> 87.44533021
A55: 14 | B55: 14 | C55: =B!G$2+B!G$3*B55+B!G$4*B55^2 -> 89.84104634 | D55: =IF(B55<(B!H$3/(-2*B!H$4)),B!H$2+B!H$3*B55+B!H$4*B55^2,B!H$2+B!H$3*(B!H$3/(-2*B!H$4))+B!H$3*B!H$3/(4*B!H$4)) -> 89.77490386 | E55: =B!I$2+B!I$3*EXP(B!I$4*B55) -> 91.7322493 | F55: =IF((B!J$2+B!J$3*B55)<B!J$4,B!J$2+B!J$3*B55,B!J$4) -> 89.16661304 | G55: =IF(B55<B!K$4,B!K$2+B!K$3*(3*B55/(2*B!K$4)-0.5*(B55/B!K$4)^3),B!K$3+B!K$2) -> 89.03941173 | H55: =(C55*B$45+D!D55*C$45+D!E55*D$45+D!F55*E$45+D!G55*F$45)/SUM(B$45:F$45) -> 89.4765018
A56: 16 | B56: 16 | C56: =B!G$2+B!G$3*B56+B!G$4*B56^2 -> 92.0082217 | D56: =IF(B56<(B!H$3/(-2*B!H$4)),B!H$2+B!H$3*B56+B!H$4*B56^2,B!H$2+B!H$3*(B!H$3/(-2*B!H$4))+B!H$3*B!H$3/(4*B!H$4)) -> 91.98436217 | E56: =B!I$2+B!I$3*EXP(B!I$4*B56) -> 94.33332642 | F56: =IF((B!J$2+B!J$3*B56)<B!J$4,B!J$2+B!J$3*B56,B!J$4) -> 90.83328014 | G56: =IF(B56<B!K$4,B!K$2+B!K$3*(3*B56/(2*B!K$4)-0.5*(B56/B!K$4)^3),B!K$3+B!K$2) -> 90.97008799 | H56: =(C56*B$45+D!D56*C$45+D!E56*D$45+D!F56*E$45+D!G56*F$45)/SUM(B$45:F$45) -> 91.49397667
A57: 18 | B57: 18 | C57: =B!G$2+B!G$3*B57+B!G$4*B57^2 -> 94.15224153 | D57: =IF(B57<(B!H$3/(-2*B!H$4)),B!H$2+B!H$3*B57+B!H$4*B57^2,B!H$2+B!H$3*(B!H$3/(-2*B!H$4))+B!H$3*B!H$3/(4*B!H$4)) -> 94.1693188 | E57: =B!I$2+B!I$3*EXP(B!I$4*B57) -> 96.87323791 | F57: =IF((B!J$2+B!J$3*B57)<B!J$4,B!J$2+B!J$3*B57,B!J$4) -> 92.49994725 | G57: =IF(B57<B!K$4,B!K$2+B!K$3*(3*B57/(2*B!K$4)-0.5*(B57/B!K$4)^3),B!K$3+B!K$2) -> 92.89676627 | H57: =(C57*B$45+D!D57*C$45+D!E57*D$45+D!F57*E$45+D!G57*F$45)/SUM(B$45:F$45) -> 93.49761989
A58: 20 | B58: 20 | C58: =B!G$2+B!G$3*B58+B!G$4*B58^2 -> 96.27310581 | D58: =IF(B58<(B!H$3/(-2*B!H$4)),B!H$2+B!H$3*B58+B!H$4*B58^2,B!H$2+B!H$3*(B!H$3/(-2*B!H$4))+B!H$3*B!H$3/(4*B!H$4)) -> 96.32977375 | E58: =B!I$2+B!I$3*EXP(B!I$4*B58) -> 99.35342211 | F58: =IF((B!J$2+B!J$3*B58)<B!J$4,B!J$2+B!J$3*B58,B!J$4) -> 94.16661436 | G58: =IF(B58<B!K$4,B!K$2+B!K$3*(3*B58/(2*B!K$4)-0.5*(B58/B!K$4)^3),B!K$3+B!K$2) -> 94.81894682 | H58: =(C58*B$45+D!D58*C$45+D!E58*D$45+D!F58*E$45+D!G58*F$45)/SUM(B$45:F$45) -> 95.48729645
A59: 22 | B59: 22 | C59: =B!G$2+B!G$3*B59+B!G$4*B59^2 -> 98.37081456 | D59: =IF(B59<(B!H$3/(-2*B!H$4)),B!H$2+B!H$3*B59+B!H$4*B59^2,B!H$2+B!H$3*(B!H$3/(-2*B!H$4))+B!H$3*B!H$3/(4*B!H$4)) -> 98.46572703 | E59: =B!I$2+B!I$3*EXP(B!I$4*B59) -> 101.7752835 | F59: =IF((B!J$2+B!J$3*B59)<B!J$4,B!J$2+B!J$3*B59,B!J$4) -> 95.83328147 | G59: =IF(B59<B!K$4,B!K$2+B!K$3*(3*B59/(2*B!K$4)-0.5*(B59/B!K$4)^3),B!K$3+B!K$2) -> 96.73612991 | H59: =(C59*B$45+D!D59*C$45+D!E59*D$45+D!F59*E$45+D!G59*F$45)/SUM(B$45:F$45) -> 97.46287122
A60: 24 | B60: 24 | C60: =B!G$2+B!G$3*B60+B!G$4*B60^2 -> 100.4453678 | D60: =IF(B60<(B!H$3/(-2*B!H$4)),B!H$2+B!H$3*B60+B!H$4*B60^2,B!H$2+B!H$3*(B!H$3/(-2*B!H$4))+B!H$3*B!H$3/(4*B!H$4)) -> 100.5771786 | E60: =B!I$2+B!I$3*EXP(B!I$4*B60) -> 104.1401937 | F60: =IF((B!J$2+B!J$3*B60)<B!J$4,B!J$2+B!J$3*B60,B!J$4) -> 97.49994858 | G60: =IF(B60<B!K$4,B!K$2+B!K$3*(3*B60/(2*B!K$4)-0.5*(B60/B!K$4)^3),B!K$3+B!K$2) -> 98.64781578 | H60: =(C60*B$45+D!D60*C$45+D!E60*D$45+D!F60*E$45+D!G60*F$45)/SUM(B$45:F$45) -> 99.42420894
A61: 26 | B61: 26 | C61: =B!G$2+B!G$3*B61+B!G$4*B61^2 -> 102.4967654 | D61: =IF(B61<(B!H$3/(-2*B!H$4)),B!H$2+B!H$3*B61+B!H$4*B61^2,B!H$2+B!H$3*(B!H$3/(-2*B!H$4))+B!H$3*B!H$3/(4*B!H$4)) -> 102.6641285 | E61: =B!I$2+B!I$3*EXP(B!I$4*B61) -> 106.4494918 | F61: =IF((B!J$2+B!J$3*B61)<B!J$4,B!J$2+B!J$3*B61,B!J$4) -> 99.16661568 | G61: =IF(B61<B!K$4,B!K$2+B!K$3*(3*B61/(2*B!K$4)-0.5*(B61/B!K$4)^3),B!K$3+B!K$2) -> 100.5535047 | H61: =(C61*B$45+D!D61*C$45+D!E61*D$45+D!F61*E$45+D!G61*F$45)/SUM(B$45:F$45) -> 101.3711743
A62: 28 | B62: 28 | C62: =B!G$2+B!G$3*B62+B!G$4*B62^2 -> 104.5250076 | D62: =IF(B62<(B!H$3/(-2*B!H$4)),B!H$2+B!H$3*B62+B!H$4*B62^2,B!H$2+B!H$3*(B!H$3/(-2*B!H$4))+B!H$3*B!H$3/(4*B!H$4)) -> 104.7265768 | E62: =B!I$2+B!I$3*EXP(B!I$4*B62) -> 108.7044856 | F62: =IF((B!J$2+B!J$3*B62)<B!J$4,B!J$2+B!J$3*B62,B!J$4) -> 100.8332828 | G62: =IF(B62<B!K$4,B!K$2+B!K$3*(3*B62/(2*B!K$4)-0.5*(B62/B!K$4)^3),B!K$3+B!K$2) -> 102.4526969 | H62: =(C62*B$45+D!D62*C$45+D!E62*D$45+D!F62*E$45+D!G62*F$45)/SUM(B$45:F$45) -> 103.3036317
A63: 30 | B63: 30 | C63: =B!G$2+B!G$3*B63+B!G$4*B63^2 -> 106.5300941 | D63: =IF(B63<(B!H$3/(-2*B!H$4)),B!H$2+B!H$3*B63+B!H$4*B63^2,B!H$2+B!H$3*(B!H$3/(-2*B!H$4))+B!H$3*B!H$3/(4*B!H$4)) -> 106.7645233 | E63: =B!I$2+B!I$3*EXP(B!I$4*B63) -> 110.9064521 | F63: =IF((B!J$2+B!J$3*B63)<B!J$4,B!J$2+B!J$3*B63,B!J$4) -> 102.4999499 | G63: =IF(B63<B!K$4,B!K$2+B!K$3*(3*B63/(2*B!K$4)-0.5*(B63/B!K$4)^3),B!K$3+B!K$2) -> 104.3448926 | H63: =(C63*B$45+D!D63*C$45+D!E63*D$45+D!F63*E$45+D!G63*F$45)/SUM(B$45:F$45) -> 105.2214457
A64: 32 | B64: 32 | C64: =B!G$2+B!G$3*B64+B!G$4*B64^2 -> 108.5120252 | D64: =IF(B64<(B!H$3/(-2*B!H$4)),B!H$2+B!H$3*B64+B!H$4*B64^2,B!H$2+B!H$3*(B!H$3/(-2*B!H$4))+B!H$3*B!H$3/(4*B!H$4)) -> 108.7779682 | E64: =B!I$2+B!I$3*EXP(B!I$4*B64) -> 113.0566383 | F64: =IF((B!J$2+B!J$3*B64)<B!J$4,B!J$2+B!J$3*B64,B!J$4) -> 104.166617 | G64: =IF(B64<B!K$4,B!K$2+B!K$3*(3*B64/(2*B!K$4)-0.5*(B64/B!K$4)^3),B!K$3+B!K$2) -> 106.2295922 | H64: =(C64*B$45+D!D64*C$45+D!E64*D$45+D!F64*E$45+D!G64*F$45)/SUM(B$45:F$45) -> 107.1244806
A65: 34 | B65: 34 | C65: =B!G$2+B!G$3*B65+B!G$4*B65^2 -> 110.4708007 | D65: =IF(B65<(B!H$3/(-2*B!H$4)),B!H$2+B!H$3*B65+B!H$4*B65^2,B!H$2+B!H$3*(B!H$3/(-2*B!H$4))+B!H$3*B!H$3/(4*B!H$4)) -> 110.7669114 | E65: =B!I$2+B!I$3*EXP(B!I$4*B65) -> 115.1562617 | F65: =IF((B!J$2+B!J$3*B65)<B!J$4,B!J$2+B!J$3*B65,B!J$4) -> 105.8332841 | G65: =IF(B65<B!K$4,B!K$2+B!K$3*(3*B65/(2*B!K$4)-0.5*(B65/B!K$4)^3),B!K$3+B!K$2) -> 108.1062957 | H65: =(C65*B$45+D!D65*C$45+D!E65*D$45+D!F65*E$45+D!G65*F$45)/SUM(B$45:F$45) -> 109.0126006
A66: 36 | B66: 36 | C66: =B!G$2+B!G$3*B66+B!G$4*B66^2 -> 112.4064207 | D66: =IF(B66<(B!H$3/(-2*B!H$4)),B!H$2+B!H$3*B66+B!H$4*B66^2,B!H$2+B!H$3*(B!H$3/(-2*B!H$4))+B!H$3*B!H$3/(4*B!H$4)) -> 112.7313529 | E66: =B!I$2+B!I$3*EXP(B!I$4*B66) -> 117.2065115 | F66: =IF((B!J$2+B!J$3*B66)<B!J$4,B!J$2+B!J$3*B66,B!J$4) -> 107.4999512 | G66: =IF(B66<B!K$4,B!K$2+B!K$3*(3*B66/(2*B!K$4)-0.5*(B66/B!K$4)^3),B!K$3+B!K$2) -> 109.9745036 | H66: =(C66*B$45+D!D66*C$45+D!E66*D$45+D!F66*E$45+D!G66*F$45)/SUM(B$45:F$45) -> 110.8856698
A67: 38 | B67: 38 | C67: =B!G$2+B!G$3*B67+B!G$4*B67^2 -> 114.3188851 | D67: =IF(B67<(B!H$3/(-2*B!H$4)),B!H$2+B!H$3*B67+B!H$4*B67^2,B!H$2+B!H$3*(B!H$3/(-2*B!H$4))+B!H$3*B!H$3/(4*B!H$4)) -> 114.6712928 | E67: =B!I$2+B!I$3*EXP(B!I$4*B67) -> 119.2085486 | F67: =IF((B!J$2+B!J$3*B67)<B!J$4,B!J$2+B!J$3*B67,B!J$4) -> 109.1666183 | G67: =IF(B67<B!K$4,B!K$2+B!K$3*(3*B67/(2*B!K$4)-0.5*(B67/B!K$4)^3),B!K$3+B!K$2) -> 111.8337161 | H67: =(C67*B$45+D!D67*C$45+D!E67*D$45+D!F67*E$45+D!G67*F$45)/SUM(B$45:F$45) -> 112.7435523
A68: 40 | B68: 40 | C68: =B!G$2+B!G$3*B68+B!G$4*B68^2 -> 116.208194 | D68: =IF(B68<(B!H$3/(-2*B!H$4)),B!H$2+B!H$3*B68+B!H$4*B68^2,B!H$2+B!H$3*(B!H$3/(-2*B!H$4))+B!H$3*B!H$3/(4*B!H$4)) -> 116.5867309 | E68: =B!I$2+B!I$3*EXP(B!I$4*B68) -> 121.1635068 | F68: =IF((B!J$2+B!J$3*B68)<B!J$4,B!J$2+B!J$3*B68,B!J$4) -> 110.8332854 | G68: =IF(B68<B!K$4,B!K$2+B!K$3*(3*B68/(2*B!K$4)-0.5*(B68/B!K$4)^3),B!K$3+B!K$2) -> 113.6834333 | H68: =(C68*B$45+D!D68*C$45+D!E68*D$45+D!F68*E$45+D!G68*F$45)/SUM(B$45:F$45) -> 114.586112
A69: 42 | B69: 42 | C69: =B!G$2+B!G$3*B69+B!G$4*B69^2 -> 118.0743474 | D69: =IF(B69<(B!H$3/(-2*B!H$4)),B!H$2+B!H$3*B69+B!H$4*B69^2,B!H$2+B!H$3*(B!H$3/(-2*B!H$4))+B!H$3*B!H$3/(4*B!H$4)) -> 118.4776674 | E69: =B!I$2+B!I$3*EXP(B!I$4*B69) -> 123.0724932 | F69: =IF((B!J$2+B!J$3*B69)<B!J$4,B!J$2+B!J$3*B69,B!J$4) -> 112.4999525 | G69: =IF(B69<B!K$4,B!K$2+B!K$3*(3*B69/(2*B!K$4)-0.5*(B69/B!K$4)^3),B!K$3+B!K$2) -> 115.5231556 | H69: =(C69*B$45+D!D69*C$45+D!E69*D$45+D!F69*E$45+D!G69*F$45)/SUM(B$45:F$45) -> 116.4132128
A70: 44 | B70: 44 | C70: =B!G$2+B!G$3*B70+B!G$4*B70^2 -> 119.9173452 | D70: =IF(B70<(B!H$3/(-2*B!H$4)),B!H$2+B!H$3*B70+B!H$4*B70^2,B!H$2+B!H$3*(B!H$3/(-2*B!H$4))+B!H$3*B!H$3/(4*B!H$4)) -> 120.3441022 | E70: =B!I$2+B!I$3*EXP(B!I$4*B70) -> 124.9365888 | F70: =IF((B!J$2+B!J$3*B70)<B!J$4,B!J$2+B!J$3*B70,B!J$4) -> 114.1666197 | G70: =IF(B70<B!K$4,B!K$2+B!K$3*(3*B70/(2*B!K$4)-0.5*(B70/B!K$4)^3),B!K$3+B!K$2) -> 117.3523833 | H70: =(C70*B$45+D!D70*C$45+D!E70*D$45+D!F70*E$45+D!G70*F$45)/SUM(B$45:F$45) -> 118.2247184
A71: 46 | B71: 46 | C71: =B!G$2+B!G$3*B71+B!G$4*B71^2 -> 121.7371874 | D71: =IF(B71<(B!H$3/(-2*B!H$4)),B!H$2+B!H$3*B71+B!H$4*B71^2,B!H$2+B!H$3*(B!H$3/(-2*B!H$4))+B!H$3*B!H$3/(4*B!H$4)) -> 122.1860353 | E71: =B!I$2+B!I$3*EXP(B!I$4*B71) -> 126.7568493 | F71: =IF((B!J$2+B!J$3*B71)<B!J$4,B!J$2+B!J$3*B71,B!J$4) -> 115.8332868 | G71: =IF(B71<B!K$4,B!K$2+B!K$3*(3*B71/(2*B!K$4)-0.5*(B71/B!K$4)^3),B!K$3+B!K$2) -> 119.1706165 | H71: =(C71*B$45+D!D71*C$45+D!E71*D$45+D!F71*E$45+D!G71*F$45)/SUM(B$45:F$45) -> 120.0204925
A72: 48 | B72: 48 | C72: =B!G$2+B!G$3*B72+B!G$4*B72^2 -> 123.5338742 | D72: =IF(B72<(B!H$3/(-2*B!H$4)),B!H$2+B!H$3*B72+B!H$4*B72^2,B!H$2+B!H$3*(B!H$3/(-2*B!H$4))+B!H$3*B!H$3/(4*B!H$4)) -> 124.0034668 | E72: =B!I$2+B!I$3*EXP(B!I$4*B72) -> 128.5343054 | F72: =IF((B!J$2+B!J$3*B72)<B!J$4,B!J$2+B!J$3*B72,B!J$4) -> 117.4999539 | G72: =IF(B72<B!K$4,B!K$2+B!K$3*(3*B72/(2*B!K$4)-0.5*(B72/B!K$4)^3),B!K$3+B!K$2) -> 120.9773555 | H72: =(C72*B$45+D!D72*C$45+D!E72*D$45+D!F72*E$45+D!G72*F$45)/SUM(B$45:F$45) -> 121.8003986
A73: 50 | B73: 50 | C73: =B!G$2+B!G$3*B73+B!G$4*B73^2 -> 125.3074054 | D73: =IF(B73<(B!H$3/(-2*B!H$4)),B!H$2+B!H$3*B73+B!H$4*B73^2,B!H$2+B!H$3*(B!H$3/(-2*B!H$4))+B!H$3*B!H$3/(4*B!H$4)) -> 125.7963965 | E73: =B!I$2+B!I$3*EXP(B!I$4*B73) -> 130.2699638 | F73: =IF((B!J$2+B!J$3*B73)<B!J$4,B!J$2+B!J$3*B73,B!J$4) -> 119.166621 | G73: =IF(B73<B!K$4,B!K$2+B!K$3*(3*B73/(2*B!K$4)-0.5*(B73/B!K$4)^3),B!K$3+B!K$2) -> 122.7721006 | H73: =(C73*B$45+D!D73*C$45+D!E73*D$45+D!F73*E$45+D!G73*F$45)/SUM(B$45:F$45) -> 123.5643004
A74: 52 | B74: 52 | C74: =B!G$2+B!G$3*B74+B!G$4*B74^2 -> 127.057781 | D74: =IF(B74<(B!H$3/(-2*B!H$4)),B!H$2+B!H$3*B74+B!H$4*B74^2,B!H$2+B!H$3*(B!H$3/(-2*B!H$4))+B!H$3*B!H$3/(4*B!H$4)) -> 127.5648246 | E74: =B!I$2+B!I$3*EXP(B!I$4*B74) -> 131.9648073 | F74: =IF((B!J$2+B!J$3*B74)<B!J$4,B!J$2+B!J$3*B74,B!J$4) -> 120.8332881 | G74: =IF(B74<B!K$4,B!K$2+B!K$3*(3*B74/(2*B!K$4)-0.5*(B74/B!K$4)^3),B!K$3+B!K$2) -> 124.554352 | H74: =(C74*B$45+D!D74*C$45+D!E74*D$45+D!F74*E$45+D!G74*F$45)/SUM(B$45:F$45) -> 125.3120611
A75: 54 | B75: 54 | C75: =B!G$2+B!G$3*B75+B!G$4*B75^2 -> 128.7850012 | D75: =IF(B75<(B!H$3/(-2*B!H$4)),B!H$2+B!H$3*B75+B!H$4*B75^2,B!H$2+B!H$3*(B!H$3/(-2*B!H$4))+B!H$3*B!H$3/(4*B!H$4)) -> 129.308751 | E75: =B!I$2+B!I$3*EXP(B!I$4*B75) -> 133.6197957 | F75: =IF((B!J$2+B!J$3*B75)<B!J$4,B!J$2+B!J$3*B75,B!J$4) -> 122.4999552 | G75: =IF(B75<B!K$4,B!K$2+B!K$3*(3*B75/(2*B!K$4)-0.5*(B75/B!K$4)^3),B!K$3+B!K$2) -> 126.32361 | H75: =(C75*B$45+D!D75*C$45+D!E75*D$45+D!F75*E$45+D!G75*F$45)/SUM(B$45:F$45) -> 127.0435443
A76: 56 | B76: 56 | C76: =B!G$2+B!G$3*B76+B!G$4*B76^2 -> 130.4890657 | D76: =IF(B76<(B!H$3/(-2*B!H$4)),B!H$2+B!H$3*B76+B!H$4*B76^2,B!H$2+B!H$3*(B!H$3/(-2*B!H$4))+B!H$3*B!H$3/(4*B!H$4)) -> 131.0281758 | E76: =B!I$2+B!I$3*EXP(B!I$4*B76) -> 135.2358663 | F76: =IF((B!J$2+B!J$3*B76)<B!J$4,B!J$2+B!J$3*B76,B!J$4) -> 124.1666223 | G76: =IF(B76<B!K$4,B!K$2+B!K$3*(3*B76/(2*B!K$4)-0.5*(B76/B!K$4)^3),B!K$3+B!K$2) -> 128.0793748 | H76: =(C76*B$45+D!D76*C$45+D!E76*D$45+D!F76*E$45+D!G76*F$45)/SUM(B$45:F$45) -> 128.758613
A77: 58 | B77: 58 | C77: =B!G$2+B!G$3*B77+B!G$4*B77^2 -> 132.1699748 | D77: =IF(B77<(B!H$3/(-2*B!H$4)),B!H$2+B!H$3*B77+B!H$4*B77^2,B!H$2+B!H$3*(B!H$3/(-2*B!H$4))+B!H$3*B!H$3/(4*B!H$4)) -> 132.7230988 | E77: =B!I$2+B!I$3*EXP(B!I$4*B77) -> 136.8139341 | F77: =IF((B!J$2+B!J$3*B77)<B!J$4,B!J$2+B!J$3*B77,B!J$4) -> 125.8332894 | G77: =IF(B77<B!K$4,B!K$2+B!K$3*(3*B77/(2*B!K$4)-0.5*(B77/B!K$4)^3),B!K$3+B!K$2) -> 129.8211467 | H77: =(C77*B$45+D!D77*C$45+D!E77*D$45+D!F77*E$45+D!G77*F$45)/SUM(B$45:F$45) -> 130.4571306
A78: 60 | B78: 60 | C78: =B!G$2+B!G$3*B78+B!G$4*B78^2 -> 133.8277283 | D78: =IF(B78<(B!H$3/(-2*B!H$4)),B!H$2+B!H$3*B78+B!H$4*B78^2,B!H$2+B!H$3*(B!H$3/(-2*B!H$4))+B!H$3*B!H$3/(4*B!H$4)) -> 134.3935202 | E78: =B!I$2+B!I$3*EXP(B!I$4*B78) -> 138.3548929 | F78: =IF((B!J$2+B!J$3*B78)<B!J$4,B!J$2+B!J$3*B78,B!J$4) -> 127.4999565 | G78: =IF(B78<B!K$4,B!K$2+B!K$3*(3*B78/(2*B!K$4)-0.5*(B78/B!K$4)^3),B!K$3+B!K$2) -> 131.5484259 | H78: =(C78*B$45+D!D78*C$45+D!E78*D$45+D!F78*E$45+D!G78*F$45)/SUM(B$45:F$45) -> 132.1389601
A79: 62 | B79: 62 | C79: =B!G$2+B!G$3*B79+B!G$4*B79^2 -> 135.4623262 | D79: =IF(B79<(B!H$3/(-2*B!H$4)),B!H$2+B!H$3*B79+B!H$4*B79^2,B!H$2+B!H$3*(B!H$3/(-2*B!H$4))+B!H$3*B!H$3/(4*B!H$4)) -> 136.0394399 | E79: =B!I$2+B!I$3*EXP(B!I$4*B79) -> 139.8596152 | F79: =IF((B!J$2+B!J$3*B79)<B!J$4,B!J$2+B!J$3*B79,B!J$4) -> 129.1666236 | G79: =IF(B79<B!K$4,B!K$2+B!K$3*(3*B79/(2*B!K$4)-0.5*(B79/B!K$4)^3),B!K$3+B!K$2) -> 133.2607128 | H79: =(C79*B$45+D!D79*C$45+D!E79*D$45+D!F79*E$45+D!G79*F$45)/SUM(B$45:F$45) -> 133.8039645
A80: 64 | B80: 64 | C80: =B!G$2+B!G$3*B80+B!G$4*B80^2 -> 137.0737687 | D80: =IF(B80<(B!H$3/(-2*B!H$4)),B!H$2+B!H$3*B80+B!H$4*B80^2,B!H$2+B!H$3*(B!H$3/(-2*B!H$4))+B!H$3*B!H$3/(4*B!H$4)) -> 137.6608579 | E80: =B!I$2+B!I$3*EXP(B!I$4*B80) -> 141.3289533 | F80: =IF((B!J$2+B!J$3*B80)<B!J$4,B!J$2+B!J$3*B80,B!J$4) -> 130.8332907 | G80: =IF(B80<B!K$4,B!K$2+B!K$3*(3*B80/(2*B!K$4)-0.5*(B80/B!K$4)^3),B!K$3+B!K$2) -> 134.9575075 | H80: =(C80*B$45+D!D80*C$45+D!E80*D$45+D!F80*E$45+D!G80*F$45)/SUM(B$45:F$45) -> 135.452007
A81: 66 | B81: 66 | C81: =B!G$2+B!G$3*B81+B!G$4*B81^2 -> 138.6620556 | D81: =IF(B81<(B!H$3/(-2*B!H$4)),B!H$2+B!H$3*B81+B!H$4*B81^2,B!H$2+B!H$3*(B!H$3/(-2*B!H$4))+B!H$3*B!H$3/(4*B!H$4)) -> 139.2577742 | E81: =B!I$2+B!I$3*EXP(B!I$4*B81) -> 142.7637391 | F81: =IF((B!J$2+B!J$3*B81)<B!J$4,B!J$2+B!J$3*B81,B!J$4) -> 132.4999578 | G81: =IF(B81<B!K$4,B!K$2+B!K$3*(3*B81/(2*B!K$4)-0.5*(B81/B!K$4)^3),B!K$3+B!K$2) -> 136.6383102 | H81: =(C81*B$45+D!D81*C$45+D!E81*D$45+D!F81*E$45+D!G81*F$45)/SUM(B$45:F$45) -> 137.0829503
A82: 68 | B82: 68 | C82: =B!G$2+B!G$3*B82+B!G$4*B82^2 -> 140.2271869 | D82: =IF(B82<(B!H$3/(-2*B!H$4)),B!H$2+B!H$3*B82+B!H$4*B82^2,B!H$2+B!H$3*(B!H$3/(-2*B!H$4))+B!H$3*B!H$3/(4*B!H$4)) -> 140.8301889 | E82: =B!I$2+B!I$3*EXP(B!I$4*B82) -> 144.1647853 | F82: =IF((B!J$2+B!J$3*B82)<B!J$4,B!J$2+B!J$3*B82,B!J$4) -> 134.1666249 | G82: =IF(B82<B!K$4,B!K$2+B!K$3*(3*B82/(2*B!K$4)-0.5*(B82/B!K$4)^3),B!K$3+B!K$2) -> 138.3026214 | H82: =(C82*B$45+D!D82*C$45+D!E82*D$45+D!F82*E$45+D!G82*F$45)/SUM(B$45:F$45) -> 138.6966574
A83: 70 | B83: 70 | C83: =B!G$2+B!G$3*B83+B!G$4*B83^2 -> 141.7691627 | D83: =IF(B83<(B!H$3/(-2*B!H$4)),B!H$2+B!H$3*B83+B!H$4*B83^2,B!H$2+B!H$3*(B!H$3/(-2*B!H$4))+B!H$3*B!H$3/(4*B!H$4)) -> 142.3781018 | E83: =B!I$2+B!I$3*EXP(B!I$4*B83) -> 145.5328851 | F83: =IF((B!J$2+B!J$3*B83)<B!J$4,B!J$2+B!J$3*B83,B!J$4) -> 135.8332921 | G83: =IF(B83<B!K$4,B!K$2+B!K$3*(3*B83/(2*B!K$4)-0.5*(B83/B!K$4)^3),B!K$3+B!K$2) -> 139.9499411 | H83: =(C83*B$45+D!D83*C$45+D!E83*D$45+D!F83*E$45+D!G83*F$45)/SUM(B$45:F$45) -> 140.2929909
A84: 72 | B84: 72 | C84: =B!G$2+B!G$3*B84+B!G$4*B84^2 -> 143.287983 | D84: =IF(B84<(B!H$3/(-2*B!H$4)),B!H$2+B!H$3*B84+B!H$4*B84^2,B!H$2+B!H$3*(B!H$3/(-2*B!H$4))+B!H$3*B!H$3/(4*B!H$4)) -> 143.9015131 | E84: =B!I$2+B!I$3*EXP(B!I$4*B84) -> 146.8688134 | F84: =IF((B!J$2+B!J$3*B84)<B!J$4,B!J$2+B!J$3*B84,B!J$4) -> 137.4999592 | G84: =IF(B84<B!K$4,B!K$2+B!K$3*(3*B84/(2*B!K$4)-0.5*(B84/B!K$4)^3),B!K$3+B!K$2) -> 141.5797697 | H84: =(C84*B$45+D!D84*C$45+D!E84*D$45+D!F84*E$45+D!G84*F$45)/SUM(B$45:F$45) -> 141.8718137
A85: 74 | B85: 74 | C85: =B!G$2+B!G$3*B85+B!G$4*B85^2 -> 144.7836477 | D85: =IF(B85<(B!H$3/(-2*B!H$4)),B!H$2+B!H$3*B85+B!H$4*B85^2,B!H$2+B!H$3*(B!H$3/(-2*B!H$4))+B!H$3*B!H$3/(4*B!H$4)) -> 145.4004227 | E85: =B!I$2+B!I$3*EXP(B!I$4*B85) -> 148.1733266 | F85: =IF((B!J$2+B!J$3*B85)<B!J$4,B!J$2+B!J$3*B85,B!J$4) -> 139.1666263 | G85: =IF(B85<B!K$4,B!K$2+B!K$3*(3*B85/(2*B!K$4)-0.5*(B85/B!K$4)^3),B!K$3+B!K$2) -> 143.1916074 | H85: =(C85*B$45+D!D85*C$45+D!E85*D$45+D!F85*E$45+D!G85*F$45)/SUM(B$45:F$45) -> 143.4329883
A86: 76 | B86: 76 | C86: =B!G$2+B!G$3*B86+B!G$4*B86^2 -> 146.2561569 | D86: =IF(B86<(B!H$3/(-2*B!H$4)),B!H$2+B!H$3*B86+B!H$4*B86^2,B!H$2+B!H$3*(B!H$3/(-2*B!H$4))+B!H$3*B!H$3/(4*B!H$4)) -> 146.8748307 | E86: =B!I$2+B!I$3*EXP(B!I$4*B86) -> 149.4471636 | F86: =IF((B!J$2+B!J$3*B86)<B!J$4,B!J$2+B!J$3*B86,B!J$4) -> 140.8332934 | G86: =IF(B86<B!K$4,B!K$2+B!K$3*(3*B86/(2*B!K$4)-0.5*(B86/B!K$4)^3),B!K$3+B!K$2) -> 144.7849545 | H86: =(C86*B$45+D!D86*C$45+D!E86*D$45+D!F86*E$45+D!G86*F$45)/SUM(B$45:F$45) -> 144.9763774
A87: 78 | B87: 78 | C87: =B!G$2+B!G$3*B87+B!G$4*B87^2 -> 147.7055105 | D87: =IF(B87<(B!H$3/(-2*B!H$4)),B!H$2+B!H$3*B87+B!H$4*B87^2,B!H$2+B!H$3*(B!H$3/(-2*B!H$4))+B!H$3*B!H$3/(4*B!H$4)) -> 148.3247369 | E87: =B!I$2+B!I$3*EXP(B!I$4*B87) -> 150.6910457 | F87: =IF((B!J$2+B!J$3*B87)<B!J$4,B!J$2+B!J$3*B87,B!J$4) -> 142.4999605 | G87: =IF(B87<B!K$4,B!K$2+B!K$3*(3*B87/(2*B!K$4)-0.5*(B87/B!K$4)^3),B!K$3+B!K$2) -> 146.3593111 | H87: =(C87*B$45+D!D87*C$45+D!E87*D$45+D!F87*E$45+D!G87*F$45)/SUM(B$45:F$45) -> 146.5018435
A88: 80 | B88: 80 | C88: =B!G$2+B!G$3*B88+B!G$4*B88^2 -> 149.1317086 | D88: =IF(B88<(B!H$3/(-2*B!H$4)),B!H$2+B!H$3*B88+B!H$4*B88^2,B!H$2+B!H$3*(B!H$3/(-2*B!H$4))+B!H$3*B!H$3/(4*B!H$4)) -> 149.7501415 | E88: =B!I$2+B!I$3*EXP(B!I$4*B88) -> 151.9056772 | F88: =IF((B!J$2+B!J$3*B88)<B!J$4,B!J$2+B!J$3*B88,B!J$4) -> 144.1666276 | G88: =IF(B88<B!K$4,B!K$2+B!K$3*(3*B88/(2*B!K$4)-0.5*(B88/B!K$4)^3),B!K$3+B!K$2) -> 147.9141777 | H88: =(C88*B$45+D!D88*C$45+D!E88*D$45+D!F88*E$45+D!G88*F$45)/SUM(B$45:F$45) -> 148.0092491
A89: 82 | B89: 82 | C89: =B!G$2+B!G$3*B89+B!G$4*B89^2 -> 150.5347512 | D89: =IF(B89<(B!H$3/(-2*B!H$4)),B!H$2+B!H$3*B89+B!H$4*B89^2,B!H$2+B!H$3*(B!H$3/(-2*B!H$4))+B!H$3*B!H$3/(4*B!H$4)) -> 151.1510444 | E89: =B!I$2+B!I$3*EXP(B!I$4*B89) -> 153.0917461 | F89: =IF((B!J$2+B!J$3*B89)<B!J$4,B!J$2+B!J$3*B89,B!J$4) -> 145.8332947 | G89: =IF(B89<B!K$4,B!K$2+B!K$3*(3*B89/(2*B!K$4)-0.5*(B89/B!K$4)^3),B!K$3+B!K$2) -> 149.4490544 | H89: =(C89*B$45+D!D89*C$45+D!E89*D$45+D!F89*E$45+D!G89*F$45)/SUM(B$45:F$45) -> 149.4984565
A90: 84 | B90: 84 | C90: =B!G$2+B!G$3*B90+B!G$4*B90^2 -> 151.9146383 | D90: =IF(B90<(B!H$3/(-2*B!H$4)),B!H$2+B!H$3*B90+B!H$4*B90^2,B!H$2+B!H$3*(B!H$3/(-2*B!H$4))+B!H$3*B!H$3/(4*B!H$4)) -> 152.5274456 | E90: =B!I$2+B!I$3*EXP(B!I$4*B90) -> 154.249924 | F90: =IF((B!J$2+B!J$3*B90)<B!J$4,B!J$2+B!J$3*B90,B!J$4) -> 147.4999618 | G90: =IF(B90<B!K$4,B!K$2+B!K$3*(3*B90/(2*B!K$4)-0.5*(B90/B!K$4)^3),B!K$3+B!K$2) -> 150.9634414 | H90: =(C90*B$45+D!D90*C$45+D!E90*D$45+D!F90*E$45+D!G90*F$45)/SUM(B$45:F$45) -> 150.9693282
A91: 86 | B91: 86 | C91: =B!G$2+B!G$3*B91+B!G$4*B91^2 -> 153.2713697 | D91: =IF(B91<(B!H$3/(-2*B!H$4)),B!H$2+B!H$3*B91+B!H$4*B91^2,B!H$2+B!H$3*(B!H$3/(-2*B!H$4))+B!H$3*B!H$3/(4*B!H$4)) -> 153.8793452 | E91: =B!I$2+B!I$3*EXP(B!I$4*B91) -> 155.3808668 | F91: =IF((B!J$2+B!J$3*B91)<B!J$4,B!J$2+B!J$3*B91,B!J$4) -> 149.1666289 | G91: =IF(B91<B!K$4,B!K$2+B!K$3*(3*B91/(2*B!K$4)-0.5*(B91/B!K$4)^3),B!K$3+B!K$2) -> 152.4568391 | H91: =(C91*B$45+D!D91*C$45+D!E91*D$45+D!F91*E$45+D!G91*F$45)/SUM(B$45:F$45) -> 152.4217264
A92: 88 | B92: 88 | C92: =B!G$2+B!G$3*B92+B!G$4*B92^2 -> 154.6049457 | D92: =IF(B92<(B!H$3/(-2*B!H$4)),B!H$2+B!H$3*B92+B!H$4*B92^2,B!H$2+B!H$3*(B!H$3/(-2*B!H$4))+B!H$3*B!H$3/(4*B!H$4)) -> 155.206743 | E92: =B!I$2+B!I$3*EXP(B!I$4*B92) -> 156.4852149 | F92: =IF((B!J$2+B!J$3*B92)<B!J$4,B!J$2+B!J$3*B92,B!J$4) -> 150.833296 | G92: =IF(B92<B!K$4,B!K$2+B!K$3*(3*B92/(2*B!K$4)-0.5*(B92/B!K$4)^3),B!K$3+B!K$2) -> 153.9287477 | H92: =(C92*B$45+D!D92*C$45+D!E92*D$45+D!F92*E$45+D!G92*F$45)/SUM(B$45:F$45) -> 153.8555135
A93: 90 | B93: 90 | C93: =B!G$2+B!G$3*B93+B!G$4*B93^2 -> 155.9153661 | D93: =IF(B93<(B!H$3/(-2*B!H$4)),B!H$2+B!H$3*B93+B!H$4*B93^2,B!H$2+B!H$3*(B!H$3/(-2*B!H$4))+B!H$3*B!H$3/(4*B!H$4)) -> 156.5096392 | E93: =B!I$2+B!I$3*EXP(B!I$4*B93) -> 157.5635936 | F93: =IF((B!J$2+B!J$3*B93)<B!J$4,B!J$2+B!J$3*B93,B!J$4) -> 152.4999631 | G93: =IF(B93<B!K$4,B!K$2+B!K$3*(3*B93/(2*B!K$4)-0.5*(B93/B!K$4)^3),B!K$3+B!K$2) -> 155.3786673 | H93: =(C93*B$45+D!D93*C$45+D!E93*D$45+D!F93*E$45+D!G93*F$45)/SUM(B$45:F$45) -> 155.2705515
A94: 92 | B94: 92 | C94: =B!G$2+B!G$3*B94+B!G$4*B94^2 -> 157.202631 | D94: =IF(B94<(B!H$3/(-2*B!H$4)),B!H$2+B!H$3*B94+B!H$4*B94^2,B!H$2+B!H$3*(B!H$3/(-2*B!H$4))+B!H$3*B!H$3/(4*B!H$4)) -> 157.7880337 | E94: =B!I$2+B!I$3*EXP(B!I$4*B94) -> 158.6166138 | F94: =IF((B!J$2+B!J$3*B94)<B!J$4,B!J$2+B!J$3*B94,B!J$4) -> 154.1666302 | G94: =IF(B94<B!K$4,B!K$2+B!K$3*(3*B94/(2*B!K$4)-0.5*(B94/B!K$4)^3),B!K$3+B!K$2) -> 156.8060984 | H94: =(C94*B$45+D!D94*C$45+D!E94*D$45+D!F94*E$45+D!G94*F$45)/SUM(B$45:F$45) -> 156.6667028
A95: 94 | B95: 94 | C95: =B!G$2+B!G$3*B95+B!G$4*B95^2 -> 158.4667403 | D95: =IF(B95<(B!H$3/(-2*B!H$4)),B!H$2+B!H$3*B95+B!H$4*B95^2,B!H$2+B!H$3*(B!H$3/(-2*B!H$4))+B!H$3*B!H$3/(4*B!H$4)) -> 159.0419265 | E95: =B!I$2+B!I$3*EXP(B!I$4*B95) -> 159.6448717 | F95: =IF((B!J$2+B!J$3*B95)<B!J$4,B!J$2+B!J$3*B95,B!J$4) -> 155.8332974 | G95: =IF(B95<B!K$4,B!K$2+B!K$3*(3*B95/(2*B!K$4)-0.5*(B95/B!K$4)^3),B!K$3+B!K$2) -> 158.2105411 | H95: =(C95*B$45+D!D95*C$45+D!E95*D$45+D!F95*E$45+D!G95*F$45)/SUM(B$45:F$45) -> 158.0438293
A96: 96 | B96: 96 | C96: =B!G$2+B!G$3*B96+B!G$4*B96^2 -> 159.7076941 | D96: =IF(B96<(B!H$3/(-2*B!H$4)),B!H$2+B!H$3*B96+B!H$4*B96^2,B!H$2+B!H$3*(B!H$3/(-2*B!H$4))+B!H$3*B!H$3/(4*B!H$4)) -> 160.2713177 | E96: =B!I$2+B!I$3*EXP(B!I$4*B96) -> 160.6489495 | F96: =IF((B!J$2+B!J$3*B96)<B!J$4,B!J$2+B!J$3*B96,B!J$4) -> 157.4999645 | G96: =IF(B96<B!K$4,B!K$2+B!K$3*(3*B96/(2*B!K$4)-0.5*(B96/B!K$4)^3),B!K$3+B!K$2) -> 159.5914958 | H96: =(C96*B$45+D!D96*C$45+D!E96*D$45+D!F96*E$45+D!G96*F$45)/SUM(B$45:F$45) -> 159.4017931
A97: 98 | B97: 98 | C97: =B!G$2+B!G$3*B97+B!G$4*B97^2 -> 160.9254924 | D97: =IF(B97<(B!H$3/(-2*B!H$4)),B!H$2+B!H$3*B97+B!H$4*B97^2,B!H$2+B!H$3*(B!H$3/(-2*B!H$4))+B!H$3*B!H$3/(4*B!H$4)) -> 161.4762072 | E97: =B!I$2+B!I$3*EXP(B!I$4*B97) -> 161.629416 | F97: =IF((B!J$2+B!J$3*B97)<B!J$4,B!J$2+B!J$3*B97,B!J$4) -> 159.1666316 | G97: =IF(B97<B!K$4,B!K$2+B!K$3*(3*B97/(2*B!K$4)-0.5*(B97/B!K$4)^3),B!K$3+B!K$2) -> 160.9484625 | H97: =(C97*B$45+D!D97*C$45+D!E97*D$45+D!F97*E$45+D!G97*F$45)/SUM(B$45:F$45) -> 160.7404563
A98: 100 | B98: 100 | C98: =B!G$2+B!G$3*B98+B!G$4*B98^2 -> 162.1201351 | D98: =IF(B98<(B!H$3/(-2*B!H$4)),B!H$2+B!H$3*B98+B!H$4*B98^2,B!H$2+B!H$3*(B!H$3/(-2*B!H$4))+B!H$3*B!H$3/(4*B!H$4)) -> 162.6565949 | E98: =B!I$2+B!I$3*EXP(B!I$4*B98) -> 162.5868263 | F98: =IF((B!J$2+B!J$3*B98)<B!J$4,B!J$2+B!J$3*B98,B!J$4) -> 160.8332987 | G98: =IF(B98<B!K$4,B!K$2+B!K$3*(3*B98/(2*B!K$4)-0.5*(B98/B!K$4)^3),B!K$3+B!K$2) -> 162.2809417 | H98: =(C98*B$45+D!D98*C$45+D!E98*D$45+D!F98*E$45+D!G98*F$45)/SUM(B$45:F$45) -> 162.0596809
A99: 102 | B99: 102 | C99: =B!G$2+B!G$3*B99+B!G$4*B99^2 -> 163.2916223 | D99: =IF(B99<(B!H$3/(-2*B!H$4)),B!H$2+B!H$3*B99+B!H$4*B99^2,B!H$2+B!H$3*(B!H$3/(-2*B!H$4))+B!H$3*B!H$3/(4*B!H$4)) -> 163.812481 | E99: =B!I$2+B!I$3*EXP(B!I$4*B99) -> 163.5217226 | F99: =IF((B!J$2+B!J$3*B99)<B!J$4,B!J$2+B!J$3*B99,B!J$4) -> 162.4999658 | G99: =IF(B99<B!K$4,B!K$2+B!K$3*(3*B99/(2*B!K$4)-0.5*(B99/B!K$4)^3),B!K$3+B!K$2) -> 163.5884335 | H99: =(C99*B$45+D!D99*C$45+D!E99*D$45+D!F99*E$45+D!G99*F$45)/SUM(B$45:F$45) -> 163.3593286
A100: 104 | B100: 104 | C100: =B!G$2+B!G$3*B100+B!G$4*B100^2 -> 164.4399539 | D100: =IF(B100<(B!H$3/(-2*B!H$4)),B!H$2+B!H$3*B100+B!H$4*B100^2,B!H$2+B!H$3*(B!H$3/(-2*B!H$4))+B!H$3*B!H$3/(4*B!H$4)) -> 164.9438655 | E100: =B!I$2+B!I$3*EXP(B!I$4*B100) -> 164.4346344 | F100: =IF((B!J$2+B!J$3*B100)<B!J$4,B!J$2+B!J$3*B100,B!J$4) -> 164.1666329 | G100: =IF(B100<B!K$4,B!K$2+B!K$3*(3*B100/(2*B!K$4)-0.5*(B100/B!K$4)^3),B!K$3+B!K$2) -> 164.8704382 | H100: =(C100*B$45+D!D100*C$45+D!E100*D$45+D!F100*E$45+D!G100*F$45)/SUM(B$45:F$45) -> 164.6392615
A101: 106 | B101: 106 | C101: =B!G$2+B!G$3*B101+B!G$4*B101^2 -> 165.56513 | D101: =IF(B101<(B!H$3/(-2*B!H$4)),B!H$2+B!H$3*B101+B!H$4*B101^2,B!H$2+B!H$3*(B!H$3/(-2*B!H$4))+B!H$3*B!H$3/(4*B!H$4)) -> 166.0507482 | E101: =B!I$2+B!I$3*EXP(B!I$4*B101) -> 165.3260786 | F101: =IF((B!J$2+B!J$3*B101)<B!J$4,B!J$2+B!J$3*B101,B!J$4) -> 165.8333 | G101: =IF(B101<B!K$4,B!K$2+B!K$3*(3*B101/(2*B!K$4)-0.5*(B101/B!K$4)^3),B!K$3+B!K$2) -> 166.1264561 | H101: =(C101*B$45+D!D101*C$45+D!E101*D$45+D!F101*E$45+D!G101*F$45)/SUM(B$45:F$45) -> 165.8993413
A102: 108 | B102: 108 | C102: =B!G$2+B!G$3*B102+B!G$4*B102^2 -> 166.6671506 | D102: =IF(B102<(B!H$3/(-2*B!H$4)),B!H$2+B!H$3*B102+B!H$4*B102^2,B!H$2+B!H$3*(B!H$3/(-2*B!H$4))+B!H$3*B!H$3/(4*B!H$4)) -> 167.1331293 | E102: =B!I$2+B!I$3*EXP(B!I$4*B102) -> 166.1965601 | F102: =IF((B!J$2+B!J$3*B102)<B!J$4,B!J$2+B!J$3*B102,B!J$4) -> 167.4999671 | G102: =IF(B102<B!K$4,B!K$2+B!K$3*(3*B102/(2*B!K$4)-0.5*(B102/B!K$4)^3),B!K$3+B!K$2) -> 167.3559874 | H102: =(C102*B$45+D!D102*C$45+D!E102*D$45+D!F102*E$45+D!G102*F$45)/SUM(B$45:F$45) -> 167.1394298
A103: 110 | B103: 110 | C103: =B!G$2+B!G$3*B103+B!G$4*B103^2 -> 167.7460156 | D103: =IF(B103<(B!H$3/(-2*B!H$4)),B!H$2+B!H$3*B103+B!H$4*B103^2,B!H$2+B!H$3*(B!H$3/(-2*B!H$4))+B!H$3*B!H$3/(4*B!H$4)) -> 168.1910087 | E103: =B!I$2+B!I$3*EXP(B!I$4*B103) -> 167.0465717 | F103: =IF((B!J$2+B!J$3*B103)<B!J$4,B!J$2+B!J$3*B103,B!J$4) -> 169.1666342 | G103: =IF(B103<B!K$4,B!K$2+B!K$3*(3*B103/(2*B!K$4)-0.5*(B103/B!K$4)^3),B!K$3+B!K$2) -> 168.5585323 | H103: =(C103*B$45+D!D103*C$45+D!E103*D$45+D!F103*E$45+D!G103*F$45)/SUM(B$45:F$45) -> 168.3593888
A104: 112 | B104: 112 | C104: =B!G$2+B!G$3*B104+B!G$4*B104^2 -> 168.8017251 | D104: =IF(B104<(B!H$3/(-2*B!H$4)),B!H$2+B!H$3*B104+B!H$4*B104^2,B!H$2+B!H$3*(B!H$3/(-2*B!H$4))+B!H$3*B!H$3/(4*B!H$4)) -> 169.2243864 | E104: =B!I$2+B!I$3*EXP(B!I$4*B104) -> 167.8765949 | F104: =IF((B!J$2+B!J$3*B104)<B!J$4,B!J$2+B!J$3*B104,B!J$4) -> 170.8333013 | G104: =IF(B104<B!K$4,B!K$2+B!K$3*(3*B104/(2*B!K$4)-0.5*(B104/B!K$4)^3),B!K$3+B!K$2) -> 169.7335912 | H104: =(C104*B$45+D!D104*C$45+D!E104*D$45+D!F104*E$45+D!G104*F$45)/SUM(B$45:F$45) -> 169.5590801
A105: 114 | B105: 114 | C105: =B!G$2+B!G$3*B105+B!G$4*B105^2 -> 169.834279 | D105: =IF(B105<(B!H$3/(-2*B!H$4)),B!H$2+B!H$3*B105+B!H$4*B105^2,B!H$2+B!H$3*(B!H$3/(-2*B!H$4))+B!H$3*B!H$3/(4*B!H$4)) -> 170.2332624 | E105: =B!I$2+B!I$3*EXP(B!I$4*B105) -> 168.6870997 | F105: =IF((B!J$2+B!J$3*B105)<B!J$4,B!J$2+B!J$3*B105,B!J$4) -> 172.4999684 | G105: =IF(B105<B!K$4,B!K$2+B!K$3*(3*B105/(2*B!K$4)-0.5*(B105/B!K$4)^3),B!K$3+B!K$2) -> 170.8806642 | H105: =(C105*B$45+D!D105*C$45+D!E105*D$45+D!F105*E$45+D!G105*F$45)/SUM(B$45:F$45) -> 170.7383652
A106: 116 | B106: 116 | C106: =B!G$2+B!G$3*B106+B!G$4*B106^2 -> 170.8436774 | D106: =IF(B106<(B!H$3/(-2*B!H$4)),B!H$2+B!H$3*B106+B!H$4*B106^2,B!H$2+B!H$3*(B!H$3/(-2*B!H$4))+B!H$3*B!H$3/(4*B!H$4)) -> 171.2176368 | E106: =B!I$2+B!I$3*EXP(B!I$4*B106) -> 169.4785451 | F106: =IF((B!J$2+B!J$3*B106)<B!J$4,B!J$2+B!J$3*B106,B!J$4) -> 174.1666355 | G106: =IF(B106<B!K$4,B!K$2+B!K$3*(3*B106/(2*B!K$4)-0.5*(B106/B!K$4)^3),B!K$3+B!K$2) -> 171.9992517 | H106: =(C106*B$45+D!D106*C$45+D!E106*D$45+D!F106*E$45+D!G106*F$45)/SUM(B$45:F$45) -> 171.8971059
A107: 118 | B107: 118 | C107: =B!G$2+B!G$3*B107+B!G$4*B107^2 -> 171.8299203 | D107: =IF(B107<(B!H$3/(-2*B!H$4)),B!H$2+B!H$3*B107+B!H$4*B107^2,B!H$2+B!H$3*(B!H$3/(-2*B!H$4))+B!H$3*B!H$3/(4*B!H$4)) -> 172.1775095 | E107: =B!I$2+B!I$3*EXP(B!I$4*B107) -> 170.2513792 | F107: =IF((B!J$2+B!J$3*B107)<B!J$4,B!J$2+B!J$3*B107,B!J$4) -> 175.8333026 | G107: =IF(B107<B!K$4,B!K$2+B!K$3*(3*B107/(2*B!K$4)-0.5*(B107/B!K$4)^3),B!K$3+B!K$2) -> 173.0888538 | H107: =(C107*B$45+D!D107*C$45+D!E107*D$45+D!F107*E$45+D!G107*F$45)/SUM(B$45:F$45) -> 173.0351636
A108: 120 | B108: 120 | C108: =B!G$2+B!G$3*B108+B!G$4*B108^2 -> 172.7930076 | D108: =IF(B108<(B!H$3/(-2*B!H$4)),B!H$2+B!H$3*B108+B!H$4*B108^2,B!H$2+B!H$3*(B!H$3/(-2*B!H$4))+B!H$3*B!H$3/(4*B!H$4)) -> 173.1128804 | E108: =B!I$2+B!I$3*EXP(B!I$4*B108) -> 171.0060397 | F108: =IF((B!J$2+B!J$3*B108)<B!J$4,B!J$2+B!J$3*B108,B!J$4) -> 177.4999698 | G108: =IF(B108<B!K$4,B!K$2+B!K$3*(3*B108/(2*B!K$4)-0.5*(B108/B!K$4)^3),B!K$3+B!K$2) -> 174.1489709 | H108: =(C108*B$45+D!D108*C$45+D!E108*D$45+D!F108*E$45+D!G108*F$45)/SUM(B$45:F$45) -> 174.1524001
A109: 122 | B109: 122 | C109: =B!G$2+B!G$3*B109+B!G$4*B109^2 -> 173.7329394 | D109: =IF(B109<(B!H$3/(-2*B!H$4)),B!H$2+B!H$3*B109+B!H$4*B109^2,B!H$2+B!H$3*(B!H$3/(-2*B!H$4))+B!H$3*B!H$3/(4*B!H$4)) -> 174.0237498 | E109: =B!I$2+B!I$3*EXP(B!I$4*B109) -> 171.742954 | F109: =IF((B!J$2+B!J$3*B109)<B!J$4,B!J$2+B!J$3*B109,B!J$4) -> 179.1666369 | G109: =IF(B109<B!K$4,B!K$2+B!K$3*(3*B109/(2*B!K$4)-0.5*(B109/B!K$4)^3),B!K$3+B!K$2) -> 175.1791032 | H109: =(C109*B$45+D!D109*C$45+D!E109*D$45+D!F109*E$45+D!G109*F$45)/SUM(B$45:F$45) -> 175.2486767
A110: 124 | B110: 124 | C110: =B!G$2+B!G$3*B110+B!G$4*B110^2 -> 174.6497157 | D110: =IF(B110<(B!H$3/(-2*B!H$4)),B!H$2+B!H$3*B110+B!H$4*B110^2,B!H$2+B!H$3*(B!H$3/(-2*B!H$4))+B!H$3*B!H$3/(4*B!H$4)) -> 174.9101174 | E110: =B!I$2+B!I$3*EXP(B!I$4*B110) -> 172.4625395 | F110: =IF((B!J$2+B!J$3*B110)<B!J$4,B!J$2+B!J$3*B110,B!J$4) -> 180.833304 | G110: =IF(B110<B!K$4,B!K$2+B!K$3*(3*B110/(2*B!K$4)-0.5*(B110/B!K$4)^3),B!K$3+B!K$2) -> 176.1787508 | H110: =(C110*B$45+D!D110*C$45+D!E110*D$45+D!F110*E$45+D!G110*F$45)/SUM(B$45:F$45) -> 176.3238551
A111: 126 | B111: 126 | C111: =B!G$2+B!G$3*B111+B!G$4*B111^2 -> 175.5433364 | D111: =IF(B111<(B!H$3/(-2*B!H$4)),B!H$2+B!H$3*B111+B!H$4*B111^2,B!H$2+B!H$3*(B!H$3/(-2*B!H$4))+B!H$3*B!H$3/(4*B!H$4)) -> 175.7719834 | E111: =B!I$2+B!I$3*EXP(B!I$4*B111) -> 173.1652035 | F111: =IF((B!J$2+B!J$3*B111)<B!J$4,B!J$2+B!J$3*B111,B!J$4) -> 182.4999711 | G111: =IF(B111<B!K$4,B!K$2+B!K$3*(3*B111/(2*B!K$4)-0.5*(B111/B!K$4)^3),B!K$3+B!K$2) -> 177.1474142 | H111: =(C111*B$45+D!D111*C$45+D!E111*D$45+D!F111*E$45+D!G111*F$45)/SUM(B$45:F$45) -> 177.3777966
A112: 128 | B112: 128 | C112: =B!G$2+B!G$3*B112+B!G$4*B112^2 -> 176.4138016 | D112: =IF(B112<(B!H$3/(-2*B!H$4)),B!H$2+B!H$3*B112+B!H$4*B112^2,B!H$2+B!H$3*(B!H$3/(-2*B!H$4))+B!H$3*B!H$3/(4*B!H$4)) -> 176.6093476 | E112: =B!I$2+B!I$3*EXP(B!I$4*B112) -> 173.851344 | F112: =IF((B!J$2+B!J$3*B112)<B!J$4,B!J$2+B!J$3*B112,B!J$4) -> 184.1666382 | G112: =IF(B112<B!K$4,B!K$2+B!K$3*(3*B112/(2*B!K$4)-0.5*(B112/B!K$4)^3),B!K$3+B!K$2) -> 178.0845935 | H112: =(C112*B$45+D!D112*C$45+D!E112*D$45+D!F112*E$45+D!G112*F$45)/SUM(B$45:F$45) -> 178.4103628
A113: 130 | B113: =IF(A113<MAX($M$48),A113,MAX($M$48)) -> 130 | C113: =B!G$2+B!G$3*B113+B!G$4*B113^2 -> 177.2611112 | D113: =IF(B113<(B!H$3/(-2*B!H$4)),B!H$2+B!H$3*B113+B!H$4*B113^2,B!H$2+B!H$3*(B!H$3/(-2*B!H$4))+B!H$3*B!H$3/(4*B!H$4)) -> 177.4222102 | E113: =B!I$2+B!I$3*EXP(B!I$4*B113) -> 174.5213495 | F113: =IF((B!J$2+B!J$3*B113)<B!J$4,B!J$2+B!J$3*B113,B!J$4) -> 185.8333053 | G113: =IF(B113<B!K$4,B!K$2+B!K$3*(3*B113/(2*B!K$4)-0.5*(B113/B!K$4)^3),B!K$3+B!K$2) -> 178.9897891 | H113: =(C113*B$45+D!D113*C$45+D!E113*D$45+D!F113*E$45+D!G113*F$45)/SUM(B$45:F$45) -> 179.4214149
A114: 132 | B114: 132 | C114: =B!G$2+B!G$3*B114+B!G$4*B114^2 -> 178.0852653 | D114: =IF(B114<(B!H$3/(-2*B!H$4)),B!H$2+B!H$3*B114+B!H$4*B114^2,B!H$2+B!H$3*(B!H$3/(-2*B!H$4))+B!H$3*B!H$3/(4*B!H$4)) -> 178.2105712 | E114: =B!I$2+B!I$3*EXP(B!I$4*B114) -> 175.1755996 | F114: =IF((B!J$2+B!J$3*B114)<B!J$4,B!J$2+B!J$3*B114,B!J$4) -> 187.4999724 | G114: =IF(B114<B!K$4,B!K$2+B!K$3*(3*B114/(2*B!K$4)-0.5*(B114/B!K$4)^3),B!K$3+B!K$2) -> 179.862501 | H114: =(C114*B$45+D!D114*C$45+D!E114*D$45+D!F114*E$45+D!G114*F$45)/SUM(B$45:F$45) -> 180.4108144
A115: 134 | B115: 134 | C115: =B!G$2+B!G$3*B115+B!G$4*B115^2 -> 178.8862638 | D115: =IF(B115<(B!H$3/(-2*B!H$4)),B!H$2+B!H$3*B115+B!H$4*B115^2,B!H$2+B!H$3*(B!H$3/(-2*B!H$4))+B!H$3*B!H$3/(4*B!H$4)) -> 178.9744304 | E115: =B!I$2+B!I$3*EXP(B!I$4*B115) -> 175.8144646 | F115: =IF((B!J$2+B!J$3*B115)<B!J$4,B!J$2+B!J$3*B115,B!J$4) -> 188.7500056 | G115: =IF(B115<B!K$4,B!K$2+B!K$3*(3*B115/(2*B!K$4)-0.5*(B115/B!K$4)^3),B!K$3+B!K$2) -> 180.7022297 | H115: =(C115*B$45+D!D115*C$45+D!E115*D$45+D!F115*E$45+D!G115*F$45)/SUM(B$45:F$45) -> 181.2985349
A116: 136 | B116: 136 | C116: =B!G$2+B!G$3*B116+B!G$4*B116^2 -> 179.6641069 | D116: =IF(B116<(B!H$3/(-2*B!H$4)),B!H$2+B!H$3*B116+B!H$4*B116^2,B!H$2+B!H$3*(B!H$3/(-2*B!H$4))+B!H$3*B!H$3/(4*B!H$4)) -> 179.713788 | E116: =B!I$2+B!I$3*EXP(B!I$4*B116) -> 176.4383065 | F116: =IF((B!J$2+B!J$3*B116)<B!J$4,B!J$2+B!J$3*B116,B!J$4) -> 188.7500056 | G116: =IF(B116<B!K$4,B!K$2+B!K$3*(3*B116/(2*B!K$4)-0.5*(B116/B!K$4)^3),B!K$3+B!K$2) -> 181.5084753 | H116: =(C116*B$45+D!D116*C$45+D!E116*D$45+D!F116*E$45+D!G116*F$45)/SUM(B$45:F$45) -> 181.9246372
A117: 138 | B117: 138 | C117: =B!G$2+B!G$3*B117+B!G$4*B117^2 -> 180.4187943 | D117: =IF(B117<(B!H$3/(-2*B!H$4)),B!H$2+B!H$3*B117+B!H$4*B117^2,B!H$2+B!H$3*(B!H$3/(-2*B!H$4))+B!H$3*B!H$3/(4*B!H$4)) -> 180.4286438 | E117: =B!I$2+B!I$3*EXP(B!I$4*B117) -> 177.0474783 | F117: =IF((B!J$2+B!J$3*B117)<B!J$4,B!J$2+B!J$3*B117,B!J$4) -> 188.7500056 | G117: =IF(B117<B!K$4,B!K$2+B!K$3*(3*B117/(2*B!K$4)-0.5*(B117/B!K$4)^3),B!K$3+B!K$2) -> 182.2807381 | H117: =(C117*B$45+D!D117*C$45+D!E117*D$45+D!F117*E$45+D!G117*F$45)/SUM(B$45:F$45) -> 182.5286708
A118: 140 | B118: 140 | C118: =B!G$2+B!G$3*B118+B!G$4*B118^2 -> 181.1503263 | D118: =IF(B118<(B!H$3/(-2*B!H$4)),B!H$2+B!H$3*B118+B!H$4*B118^2,B!H$2+B!H$3*(B!H$3/(-2*B!H$4))+B!H$3*B!H$3/(4*B!H$4)) -> 181.118998 | E118: =B!I$2+B!I$3*EXP(B!I$4*B118) -> 177.6423252 | F118: =IF((B!J$2+B!J$3*B118)<B!J$4,B!J$2+B!J$3*B118,B!J$4) -> 188.7500056 | G118: =IF(B118<B!K$4,B!K$2+B!K$3*(3*B118/(2*B!K$4)-0.5*(B118/B!K$4)^3),B!K$3+B!K$2) -> 183.0185184 | H118: =(C118*B$45+D!D118*C$45+D!E118*D$45+D!F118*E$45+D!G118*F$45)/SUM(B$45:F$45) -> 183.1104969
A119: 142 | B119: 142 | C119: =B!G$2+B!G$3*B119+B!G$4*B119^2 -> 181.8587027 | D119: =IF(B119<(B!H$3/(-2*B!H$4)),B!H$2+B!H$3*B119+B!H$4*B119^2,B!H$2+B!H$3*(B!H$3/(-2*B!H$4))+B!H$3*B!H$3/(4*B!H$4)) -> 181.7848506 | E119: =B!I$2+B!I$3*EXP(B!I$4*B119) -> 178.2231839 | F119: =IF((B!J$2+B!J$3*B119)<B!J$4,B!J$2+B!J$3*B119,B!J$4) -> 188.7500056 | G119: =IF(B119<B!K$4,B!K$2+B!K$3*(3*B119/(2*B!K$4)-0.5*(B119/B!K$4)^3),B!K$3+B!K$2) -> 183.7213164 | H119: =(C119*B$45+D!D119*C$45+D!E119*D$45+D!F119*E$45+D!G119*F$45)/SUM(B$45:F$45) -> 183.6699767
A120: 144 | B120: 144 | C120: =B!G$2+B!G$3*B120+B!G$4*B120^2 -> 182.5439235 | D120: =IF(B120<(B!H$3/(-2*B!H$4)),B!H$2+B!H$3*B120+B!H$4*B120^2,B!H$2+B!H$3*(B!H$3/(-2*B!H$4))+B!H$3*B!H$3/(4*B!H$4)) -> 182.4262014 | E120: =B!I$2+B!I$3*EXP(B!I$4*B120) -> 178.7903835 | F120: =IF((B!J$2+B!J$3*B120)<B!J$4,B!J$2+B!J$3*B120,B!J$4) -> 188.7500056 | G120: =IF(B120<B!K$4,B!K$2+B!K$3*(3*B120/(2*B!K$4)-0.5*(B120/B!K$4)^3),B!K$3+B!K$2) -> 184.3886324 | H120: =(C120*B$45+D!D120*C$45+D!E120*D$45+D!F120*E$45+D!G120*F$45)/SUM(B$45:F$45) -> 184.2069715
A121: 146 | B121: 146 | C121: =B!G$2+B!G$3*B121+B!G$4*B121^2 -> 183.2059888 | D121: =IF(B121<(B!H$3/(-2*B!H$4)),B!H$2+B!H$3*B121+B!H$4*B121^2,B!H$2+B!H$3*(B!H$3/(-2*B!H$4))+B!H$3*B!H$3/(4*B!H$4)) -> 183.0430506 | E121: =B!I$2+B!I$3*EXP(B!I$4*B121) -> 179.3442451 | F121: =IF((B!J$2+B!J$3*B121)<B!J$4,B!J$2+B!J$3*B121,B!J$4) -> 188.7500056 | G121: =IF(B121<B!K$4,B!K$2+B!K$3*(3*B121/(2*B!K$4)-0.5*(B121/B!K$4)^3),B!K$3+B!K$2) -> 185.0199666 | H121: =(C121*B$45+D!D121*C$45+D!E121*D$45+D!F121*E$45+D!G121*F$45)/SUM(B$45:F$45) -> 184.7213424
A122: 148 | B122: 148 | C122: =B!G$2+B!G$3*B122+B!G$4*B122^2 -> 183.8448986 | D122: =IF(B122<(B!H$3/(-2*B!H$4)),B!H$2+B!H$3*B122+B!H$4*B122^2,B!H$2+B!H$3*(B!H$3/(-2*B!H$4))+B!H$3*B!H$3/(4*B!H$4)) -> 183.6353981 | E122: =B!I$2+B!I$3*EXP(B!I$4*B122) -> 179.8850824 | F122: =IF((B!J$2+B!J$3*B122)<B!J$4,B!J$2+B!J$3*B122,B!J$4) -> 188.7500056 | G122: =IF(B122<B!K$4,B!K$2+B!K$3*(3*B122/(2*B!K$4)-0.5*(B122/B!K$4)^3),B!K$3+B!K$2) -> 185.6148193 | H122: =(C122*B$45+D!D122*C$45+D!E122*D$45+D!F122*E$45+D!G122*F$45)/SUM(B$45:F$45) -> 185.2129505
A123: 150 | B123: 150 | C123: =B!G$2+B!G$3*B123+B!G$4*B123^2 -> 184.4606529 | D123: =IF(B123<(B!H$3/(-2*B!H$4)),B!H$2+B!H$3*B123+B!H$4*B123^2,B!H$2+B!H$3*(B!H$3/(-2*B!H$4))+B!H$3*B!H$3/(4*B!H$4)) -> 184.2032439 | E123: =B!I$2+B!I$3*EXP(B!I$4*B123) -> 180.4132016 | F123: =IF((B!J$2+B!J$3*B123)<B!J$4,B!J$2+B!J$3*B123,B!J$4) -> 188.7500056 | G123: =IF(B123<B!K$4,B!K$2+B!K$3*(3*B123/(2*B!K$4)-0.5*(B123/B!K$4)^3),B!K$3+B!K$2) -> 186.1726907 | H123: =(C123*B$45+D!D123*C$45+D!E123*D$45+D!F123*E$45+D!G123*F$45)/SUM(B$45:F$45) -> 185.681657
A124: 152 | B124: 152 | C124: =B!G$2+B!G$3*B124+B!G$4*B124^2 -> 185.0532516 | D124: =IF(B124<(B!H$3/(-2*B!H$4)),B!H$2+B!H$3*B124+B!H$4*B124^2,B!H$2+B!H$3*(B!H$3/(-2*B!H$4))+B!H$3*B!H$3/(4*B!H$4)) -> 184.746588 | E124: =B!I$2+B!I$3*EXP(B!I$4*B124) -> 180.9289018 | F124: =IF((B!J$2+B!J$3*B124)<B!J$4,B!J$2+B!J$3*B124,B!J$4) -> 188.7500056 | G124: =IF(B124<B!K$4,B!K$2+B!K$3*(3*B124/(2*B!K$4)-0.5*(B124/B!K$4)^3),B!K$3+B!K$2) -> 186.693081 | H124: =(C124*B$45+D!D124*C$45+D!E124*D$45+D!F124*E$45+D!G124*F$45)/SUM(B$45:F$45) -> 186.127323
A125: 154 | B125: 154 | C125: =B!G$2+B!G$3*B125+B!G$4*B125^2 -> 185.6226947 | D125: =IF(B125<(B!H$3/(-2*B!H$4)),B!H$2+B!H$3*B125+B!H$4*B125^2,B!H$2+B!H$3*(B!H$3/(-2*B!H$4))+B!H$3*B!H$3/(4*B!H$4)) -> 185.2654304 | E125: =B!I$2+B!I$3*EXP(B!I$4*B125) -> 181.432475 | F125: =IF((B!J$2+B!J$3*B125)<B!J$4,B!J$2+B!J$3*B125,B!J$4) -> 188.7500056 | G125: =IF(B125<B!K$4,B!K$2+B!K$3*(3*B125/(2*B!K$4)-0.5*(B125/B!K$4)^3),B!K$3+B!K$2) -> 187.1754906 | H125: =(C125*B$45+D!D125*C$45+D!E125*D$45+D!F125*E$45+D!G125*F$45)/SUM(B$45:F$45) -> 186.5498094
A126: 156 | B126: 156 | C126: =B!G$2+B!G$3*B126+B!G$4*B126^2 -> 186.1689824 | D126: =IF(B126<(B!H$3/(-2*B!H$4)),B!H$2+B!H$3*B126+B!H$4*B126^2,B!H$2+B!H$3*(B!H$3/(-2*B!H$4))+B!H$3*B!H$3/(4*B!H$4)) -> 185.7597712 | E126: =B!I$2+B!I$3*EXP(B!I$4*B126) -> 181.9242065 | F126: =IF((B!J$2+B!J$3*B126)<B!J$4,B!J$2+B!J$3*B126,B!J$4) -> 188.7500056 | G126: =IF(B126<B!K$4,B!K$2+B!K$3*(3*B126/(2*B!K$4)-0.5*(B126/B!K$4)^3),B!K$3+B!K$2) -> 187.6194197 | H126: =(C126*B$45+D!D126*C$45+D!E126*D$45+D!F126*E$45+D!G126*F$45)/SUM(B$45:F$45) -> 186.9489775
A127: 158 | B127: 158 | C127: =B!G$2+B!G$3*B127+B!G$4*B127^2 -> 186.6921144 | D127: =IF(B127<(B!H$3/(-2*B!H$4)),B!H$2+B!H$3*B127+B!H$4*B127^2,B!H$2+B!H$3*(B!H$3/(-2*B!H$4))+B!H$3*B!H$3/(4*B!H$4)) -> 186.2296103 | E127: =B!I$2+B!I$3*EXP(B!I$4*B127) -> 182.4043747 | F127: =IF((B!J$2+B!J$3*B127)<B!J$4,B!J$2+B!J$3*B127,B!J$4) -> 188.7500056 | G127: =IF(B127<B!K$4,B!K$2+B!K$3*(3*B127/(2*B!K$4)-0.5*(B127/B!K$4)^3),B!K$3+B!K$2) -> 188.0243685 | H127: =(C127*B$45+D!D127*C$45+D!E127*D$45+D!F127*E$45+D!G127*F$45)/SUM(B$45:F$45) -> 187.3246881
A128: 160 | B128: 160 | C128: =B!G$2+B!G$3*B128+B!G$4*B128^2 -> 187.192091 | D128: =IF(B128<(B!H$3/(-2*B!H$4)),B!H$2+B!H$3*B128+B!H$4*B128^2,B!H$2+B!H$3*(B!H$3/(-2*B!H$4))+B!H$3*B!H$3/(4*B!H$4)) -> 186.6749477 | E128: =B!I$2+B!I$3*EXP(B!I$4*B128) -> 182.8732515 | F128: =IF((B!J$2+B!J$3*B128)<B!J$4,B!J$2+B!J$3*B128,B!J$4) -> 188.7500056 | G128: =IF(B128<B!K$4,B!K$2+B!K$3*(3*B128/(2*B!K$4)-0.5*(B128/B!K$4)^3),B!K$3+B!K$2) -> 188.3898373 | H128: =(C128*B$45+D!D128*C$45+D!E128*D$45+D!F128*E$45+D!G128*F$45)/SUM(B$45:F$45) -> 187.6768024
A129: 162 | B129: 162 | C129: =B!G$2+B!G$3*B129+B!G$4*B129^2 -> 187.668912 | D129: =IF(B129<(B!H$3/(-2*B!H$4)),B!H$2+B!H$3*B129+B!H$4*B129^2,B!H$2+B!H$3*(B!H$3/(-2*B!H$4))+B!H$3*B!H$3/(4*B!H$4)) -> 187.0957834 | E129: =B!I$2+B!I$3*EXP(B!I$4*B129) -> 183.3311024 | F129: =IF((B!J$2+B!J$3*B129)<B!J$4,B!J$2+B!J$3*B129,B!J$4) -> 188.7500056 | G129: =IF(B129<B!K$4,B!K$2+B!K$3*(3*B129/(2*B!K$4)-0.5*(B129/B!K$4)^3),B!K$3+B!K$2) -> 188.7153264 | H129: =(C129*B$45+D!D129*C$45+D!E129*D$45+D!F129*E$45+D!G129*F$45)/SUM(B$45:F$45) -> 188.0051812
A130: 164 | B130: 164 | C130: =B!G$2+B!G$3*B130+B!G$4*B130^2 -> 188.1225775 | D130: =IF(B130<(B!H$3/(-2*B!H$4)),B!H$2+B!H$3*B130+B!H$4*B130^2,B!H$2+B!H$3*(B!H$3/(-2*B!H$4))+B!H$3*B!H$3/(4*B!H$4)) -> 187.4921175 | E130: =B!I$2+B!I$3*EXP(B!I$4*B130) -> 183.7781867 | F130: =IF((B!J$2+B!J$3*B130)<B!J$4,B!J$2+B!J$3*B130,B!J$4) -> 188.7500056 | G130: =IF(B130<B!K$4,B!K$2+B!K$3*(3*B130/(2*B!K$4)-0.5*(B130/B!K$4)^3),B!K$3+B!K$2) -> 189.000336 | H130: =(C130*B$45+D!D130*C$45+D!E130*D$45+D!F130*E$45+D!G130*F$45)/SUM(B$45:F$45) -> 188.3096855
A131: 166 | B131: 166 | C131: =B!G$2+B!G$3*B131+B!G$4*B131^2 -> 188.5530874 | D131: =IF(B131<(B!H$3/(-2*B!H$4)),B!H$2+B!H$3*B131+B!H$4*B131^2,B!H$2+B!H$3*(B!H$3/(-2*B!H$4))+B!H$3*B!H$3/(4*B!H$4)) -> 187.8639499 | E131: =B!I$2+B!I$3*EXP(B!I$4*B131) -> 184.2147576 | F131: =IF((B!J$2+B!J$3*B131)<B!J$4,B!J$2+B!J$3*B131,B!J$4) -> 188.7500056 | G131: =IF(B131<B!K$4,B!K$2+B!K$3*(3*B131/(2*B!K$4)-0.5*(B131/B!K$4)^3),B!K$3+B!K$2) -> 189.2443663 | H131: =(C131*B$45+D!D131*C$45+D!E131*D$45+D!F131*E$45+D!G131*F$45)/SUM(B$45:F$45) -> 188.5901762
A132: 168 | B132: 168 | C132: =B!G$2+B!G$3*B132+B!G$4*B132^2 -> 188.9604418 | D132: =IF(B132<(B!H$3/(-2*B!H$4)),B!H$2+B!H$3*B132+B!H$4*B132^2,B!H$2+B!H$3*(B!H$3/(-2*B!H$4))+B!H$3*B!H$3/(4*B!H$4)) -> 188.2112806 | E132: =B!I$2+B!I$3*EXP(B!I$4*B132) -> 184.6410623 | F132: =IF((B!J$2+B!J$3*B132)<B!J$4,B!J$2+B!J$3*B132,B!J$4) -> 188.7500056 | G132: =IF(B132<B!K$4,B!K$2+B!K$3*(3*B132/(2*B!K$4)-0.5*(B132/B!K$4)^3),B!K$3+B!K$2) -> 189.4469176 | H132: =(C132*B$45+D!D132*C$45+D!E132*D$45+D!F132*E$45+D!G132*F$45)/SUM(B$45:F$45) -> 188.8465144
A133: 170 | B133: 170 | C133: =B!G$2+B!G$3*B133+B!G$4*B133^2 -> 189.3446406 | D133: =IF(B133<(B!H$3/(-2*B!H$4)),B!H$2+B!H$3*B133+B!H$4*B133^2,B!H$2+B!H$3*(B!H$3/(-2*B!H$4))+B!H$3*B!H$3/(4*B!H$4)) -> 188.5341096 | E133: =B!I$2+B!I$3*EXP(B!I$4*B133) -> 185.0573423 | F133: =IF((B!J$2+B!J$3*B133)<B!J$4,B!J$2+B!J$3*B133,B!J$4) -> 188.7500056 | G133: =IF(B133<B!K$4,B!K$2+B!K$3*(3*B133/(2*B!K$4)-0.5*(B133/B!K$4)^3),B!K$3+B!K$2) -> 189.6074901 | H133: =(C133*B$45+D!D133*C$45+D!E133*D$45+D!F133*E$45+D!G133*F$45)/SUM(B$45:F$45) -> 189.0785608
A134: 172 | B134: 172 | C134: =B!G$2+B!G$3*B134+B!G$4*B134^2 -> 189.7056839 | D134: =IF(B134<(B!H$3/(-2*B!H$4)),B!H$2+B!H$3*B134+B!H$4*B134^2,B!H$2+B!H$3*(B!H$3/(-2*B!H$4))+B!H$3*B!H$3/(4*B!H$4)) -> 188.8324369 | E134: =B!I$2+B!I$3*EXP(B!I$4*B134) -> 185.4638332 | F134: =IF((B!J$2+B!J$3*B134)<B!J$4,B!J$2+B!J$3*B134,B!J$4) -> 188.7500056 | G134: =IF(B134<B!K$4,B!K$2+B!K$3*(3*B134/(2*B!K$4)-0.5*(B134/B!K$4)^3),B!K$3+B!K$2) -> 189.7255842 | H134: =(C134*B$45+D!D134*C$45+D!E134*D$45+D!F134*E$45+D!G134*F$45)/SUM(B$45:F$45) -> 189.2861763
A135: 174 | B135: 174 | C135: =B!G$2+B!G$3*B135+B!G$4*B135^2 -> 190.0435717 | D135: =IF(B135<(B!H$3/(-2*B!H$4)),B!H$2+B!H$3*B135+B!H$4*B135^2,B!H$2+B!H$3*(B!H$3/(-2*B!H$4))+B!H$3*B!H$3/(4*B!H$4)) -> 189.1062626 | E135: =B!I$2+B!I$3*EXP(B!I$4*B135) -> 185.8607653 | F135: =IF((B!J$2+B!J$3*B135)<B!J$4,B!J$2+B!J$3*B135,B!J$4) -> 188.7500056 | G135: =IF(B135<B!K$4,B!K$2+B!K$3*(3*B135/(2*B!K$4)-0.5*(B135/B!K$4)^3),B!K$3+B!K$2) -> 189.8007 | H135: =(C135*B$45+D!D135*C$45+D!E135*D$45+D!F135*E$45+D!G135*F$45)/SUM(B$45:F$45) -> 189.4692219
A136: 176 | B136: 176 | C136: =B!G$2+B!G$3*B136+B!G$4*B136^2 -> 190.3583039 | D136: =IF(B136<(B!H$3/(-2*B!H$4)),B!H$2+B!H$3*B136+B!H$4*B136^2,B!H$2+B!H$3*(B!H$3/(-2*B!H$4))+B!H$3*B!H$3/(4*B!H$4)) -> 189.3555866 | E136: =B!I$2+B!I$3*EXP(B!I$4*B136) -> 186.2483633 | F136: =IF((B!J$2+B!J$3*B136)<B!J$4,B!J$2+B!J$3*B136,B!J$4) -> 188.7500056 | G136: =IF(B136<B!K$4,B!K$2+B!K$3*(3*B136/(2*B!K$4)-0.5*(B136/B!K$4)^3),B!K$3+B!K$2) -> 189.8323379 | H136: =(C136*B$45+D!D136*C$45+D!E136*D$45+D!F136*E$45+D!G136*F$45)/SUM(B$45:F$45) -> 189.6275583
A137: 178 | B137: 178 | C137: =B!G$2+B!G$3*B137+B!G$4*B137^2 -> 190.6498806 | D137: =IF(B137<(B!H$3/(-2*B!H$4)),B!H$2+B!H$3*B137+B!H$4*B137^2,B!H$2+B!H$3*(B!H$3/(-2*B!H$4))+B!H$3*B!H$3/(4*B!H$4)) -> 189.5804089 | E137: =B!I$2+B!I$3*EXP(B!I$4*B137) -> 186.6268468 | F137: =IF((B!J$2+B!J$3*B137)<B!J$4,B!J$2+B!J$3*B137,B!J$4) -> 188.7500056 | G137: =IF(B137<B!K$4,B!K$2+B!K$3*(3*B137/(2*B!K$4)-0.5*(B137/B!K$4)^3),B!K$3+B!K$2) -> 189.8334139 | H137: =(C137*B$45+D!D137*C$45+D!E137*D$45+D!F137*E$45+D!G137*F$45)/SUM(B$45:F$45) -> 189.7648028
A138: 180 | B138: 180 | C138: =B!G$2+B!G$3*B138+B!G$4*B138^2 -> 190.9183018 | D138: =IF(B138<(B!H$3/(-2*B!H$4)),B!H$2+B!H$3*B138+B!H$4*B138^2,B!H$2+B!H$3*(B!H$3/(-2*B!H$4))+B!H$3*B!H$3/(4*B!H$4)) -> 189.7807295 | E138: =B!I$2+B!I$3*EXP(B!I$4*B138) -> 186.99643 | F138: =IF((B!J$2+B!J$3*B138)<B!J$4,B!J$2+B!J$3*B138,B!J$4) -> 188.7500056 | G138: =IF(B138<B!K$4,B!K$2+B!K$3*(3*B138/(2*B!K$4)-0.5*(B138/B!K$4)^3),B!K$3+B!K$2) -> 189.8334139 | H138: =(C138*B$45+D!D138*C$45+D!E138*D$45+D!F138*E$45+D!G138*F$45)/SUM(B$45:F$45) -> 189.8892121
A139: 182 | B139: 182 | C139: =B!G$2+B!G$3*B139+B!G$4*B139^2 -> 191.1635674 | D139: =IF(B139<(B!H$3/(-2*B!H$4)),B!H$2+B!H$3*B139+B!H$4*B139^2,B!H$2+B!H$3*(B!H$3/(-2*B!H$4))+B!H$3*B!H$3/(4*B!H$4)) -> 189.9565484 | E139: =B!I$2+B!I$3*EXP(B!I$4*B139) -> 187.3573223 | F139: =IF((B!J$2+B!J$3*B139)<B!J$4,B!J$2+B!J$3*B139,B!J$4) -> 188.7500056 | G139: =IF(B139<B!K$4,B!K$2+B!K$3*(3*B139/(2*B!K$4)-0.5*(B139/B!K$4)^3),B!K$3+B!K$2) -> 189.8334139 | H139: =(C139*B$45+D!D139*C$45+D!E139*D$45+D!F139*E$45+D!G139*F$45)/SUM(B$45:F$45) -> 190.0010883
A140: 184 | B140: 184 | C140: =B!G$2+B!G$3*B140+B!G$4*B140^2 -> 191.3856775 | D140: =IF(B140<(B!H$3/(-2*B!H$4)),B!H$2+B!H$3*B140+B!H$4*B140^2,B!H$2+B!H$3*(B!H$3/(-2*B!H$4))+B!H$3*B!H$3/(4*B!H$4)) -> 190.1078657 | E140: =B!I$2+B!I$3*EXP(B!I$4*B140) -> 187.7097281 | F140: =IF((B!J$2+B!J$3*B140)<B!J$4,B!J$2+B!J$3*B140,B!J$4) -> 188.7500056 | G140: =IF(B140<B!K$4,B!K$2+B!K$3*(3*B140/(2*B!K$4)-0.5*(B140/B!K$4)^3),B!K$3+B!K$2) -> 189.8334139 | H140: =(C140*B$45+D!D140*C$45+D!E140*D$45+D!F140*E$45+D!G140*F$45)/SUM(B$45:F$45) -> 190.100432
A141: 186 | B141: 186 | C141: =B!G$2+B!G$3*B141+B!G$4*B141^2 -> 191.584632 | D141: =IF(B141<(B!H$3/(-2*B!H$4)),B!H$2+B!H$3*B141+B!H$4*B141^2,B!H$2+B!H$3*(B!H$3/(-2*B!H$4))+B!H$3*B!H$3/(4*B!H$4)) -> 190.2346813 | E141: =B!I$2+B!I$3*EXP(B!I$4*B141) -> 188.0538468 | F141: =IF((B!J$2+B!J$3*B141)<B!J$4,B!J$2+B!J$3*B141,B!J$4) -> 188.7500056 | G141: =IF(B141<B!K$4,B!K$2+B!K$3*(3*B141/(2*B!K$4)-0.5*(B141/B!K$4)^3),B!K$3+B!K$2) -> 189.8334139 | H141: =(C141*B$45+D!D141*C$45+D!E141*D$45+D!F141*E$45+D!G141*F$45)/SUM(B$45:F$45) -> 190.187244
A142: 188 | B142: 188 | C142: =B!G$2+B!G$3*B142+B!G$4*B142^2 -> 191.760431 | D142: =IF(B142<(B!H$3/(-2*B!H$4)),B!H$2+B!H$3*B142+B!H$4*B142^2,B!H$2+B!H$3*(B!H$3/(-2*B!H$4))+B!H$3*B!H$3/(4*B!H$4)) -> 190.3369952 | E142: =B!I$2+B!I$3*EXP(B!I$4*B142) -> 188.3898735 | F142: =IF((B!J$2+B!J$3*B142)<B!J$4,B!J$2+B!J$3*B142,B!J$4) -> 188.7500056 | G142: =IF(B142<B!K$4,B!K$2+B!K$3*(3*B142/(2*B!K$4)-0.5*(B142/B!K$4)^3),B!K$3+B!K$2) -> 189.8334139 | H142: =(C142*B$45+D!D142*C$45+D!E142*D$45+D!F142*E$45+D!G142*F$45)/SUM(B$45:F$45) -> 190.2615248
A143: 190 | B143: 190 | C143: =B!G$2+B!G$3*B143+B!G$4*B143^2 -> 191.9130745 | D143: =IF(B143<(B!H$3/(-2*B!H$4)),B!H$2+B!H$3*B143+B!H$4*B143^2,B!H$2+B!H$3*(B!H$3/(-2*B!H$4))+B!H$3*B!H$3/(4*B!H$4)) -> 190.4148074 | E143: =B!I$2+B!I$3*EXP(B!I$4*B143) -> 188.7179982 | F143: =IF((B!J$2+B!J$3*B143)<B!J$4,B!J$2+B!J$3*B143,B!J$4) -> 188.7500056 | G143: =IF(B143<B!K$4,B!K$2+B!K$3*(3*B143/(2*B!K$4)-0.5*(B143/B!K$4)^3),B!K$3+B!K$2) -> 189.8334139 | H143: =(C143*B$45+D!D143*C$45+D!E143*D$45+D!F143*E$45+D!G143*F$45)/SUM(B$45:F$45) -> 190.3232752
A144: 192 | B144: 192 | C144: =B!G$2+B!G$3*B144+B!G$4*B144^2 -> 192.0425624 | D144: =IF(B144<(B!H$3/(-2*B!H$4)),B!H$2+B!H$3*B144+B!H$4*B144^2,B!H$2+B!H$3*(B!H$3/(-2*B!H$4))+B!H$3*B!H$3/(4*B!H$4)) -> 190.4681179 | E144: =B!I$2+B!I$3*EXP(B!I$4*B144) -> 189.038407 | F144: =IF((B!J$2+B!J$3*B144)<B!J$4,B!J$2+B!J$3*B144,B!J$4) -> 188.7500056 | G144: =IF(B144<B!K$4,B!K$2+B!K$3*(3*B144/(2*B!K$4)-0.5*(B144/B!K$4)^3),B!K$3+B!K$2) -> 189.8334139 | H144: =(C144*B$45+D!D144*C$45+D!E144*D$45+D!F144*E$45+D!G144*F$45)/SUM(B$45:F$45) -> 190.3724958
A145: 194 | B145: 194 | C145: =B!G$2+B!G$3*B145+B!G$4*B145^2 -> 192.1488948 | D145: =IF(B145<(B!H$3/(-2*B!H$4)),B!H$2+B!H$3*B145+B!H$4*B145^2,B!H$2+B!H$3*(B!H$3/(-2*B!H$4))+B!H$3*B!H$3/(4*B!H$4)) -> 190.4969268 | E145: =B!I$2+B!I$3*EXP(B!I$4*B145) -> 189.3512812 | F145: =IF((B!J$2+B!J$3*B145)<B!J$4,B!J$2+B!J$3*B145,B!J$4) -> 188.7500056 | G145: =IF(B145<B!K$4,B!K$2+B!K$3*(3*B145/(2*B!K$4)-0.5*(B145/B!K$4)^3),B!K$3+B!K$2) -> 189.8334139 | H145: =(C145*B$45+D!D145*C$45+D!E145*D$45+D!F145*E$45+D!G145*F$45)/SUM(B$45:F$45) -> 190.4091871
A146: 196 | B146: 196 | C146: =B!G$2+B!G$3*B146+B!G$4*B146^2 -> 192.2320716 | D146: =IF(B146<(B!H$3/(-2*B!H$4)),B!H$2+B!H$3*B146+B!H$4*B146^2,B!H$2+B!H$3*(B!H$3/(-2*B!H$4))+B!H$3*B!H$3/(4*B!H$4)) -> 190.5025217 | E146: =B!I$2+B!I$3*EXP(B!I$4*B146) -> 189.656798 | F146: =IF((B!J$2+B!J$3*B146)<B!J$4,B!J$2+B!J$3*B146,B!J$4) -> 188.7500056 | G146: =IF(B146<B!K$4,B!K$2+B!K$3*(3*B146/(2*B!K$4)-0.5*(B146/B!K$4)^3),B!K$3+B!K$2) -> 189.8334139 | H146: =(C146*B$45+D!D146*C$45+D!E146*D$45+D!F146*E$45+D!G146*F$45)/SUM(B$45:F$45) -> 190.4336852
A147: 198 | B147: 198 | C147: =B!G$2+B!G$3*B147+B!G$4*B147^2 -> 192.2920929 | D147: =IF(B147<(B!H$3/(-2*B!H$4)),B!H$2+B!H$3*B147+B!H$4*B147^2,B!H$2+B!H$3*(B!H$3/(-2*B!H$4))+B!H$3*B!H$3/(4*B!H$4)) -> 190.5025217 | E147: =B!I$2+B!I$3*EXP(B!I$4*B147) -> 189.9551304 | F147: =IF((B!J$2+B!J$3*B147)<B!J$4,B!J$2+B!J$3*B147,B!J$4) -> 188.7500056 | G147: =IF(B147<B!K$4,B!K$2+B!K$3*(3*B147/(2*B!K$4)-0.5*(B147/B!K$4)^3),B!K$3+B!K$2) -> 189.8334139 | H147: =(C147*B$45+D!D147*C$45+D!E147*D$45+D!F147*E$45+D!G147*F$45)/SUM(B$45:F$45) -> 190.4505777
A148: 200 | B148: 200 | C148: =B!G$2+B!G$3*B148+B!G$4*B148^2 -> 192.3289587 | D148: =IF(B148<(B!H$3/(-2*B!H$4)),B!H$2+B!H$3*B148+B!H$4*B148^2,B!H$2+B!H$3*(B!H$3/(-2*B!H$4))+B!H$3*B!H$3/(4*B!H$4)) -> 190.5025217 | E148: =B!I$2+B!I$3*EXP(B!I$4*B148) -> 190.2464474 | F148: =IF((B!J$2+B!J$3*B148)<B!J$4,B!J$2+B!J$3*B148,B!J$4) -> 188.7500056 | G148: =IF(B148<B!K$4,B!K$2+B!K$3*(3*B148/(2*B!K$4)-0.5*(B148/B!K$4)^3),B!K$3+B!K$2) -> 189.8334139 | H148: =(C148*B$45+D!D148*C$45+D!E148*D$45+D!F148*E$45+D!G148*F$45)/SUM(B$45:F$45) -> 190.4613221
A149: 202 | B149: 202 | C149: =B!G$2+B!G$3*B149+B!G$4*B149^2 -> 192.3426689 | D149: =IF(B149<(B!H$3/(-2*B!H$4)),B!H$2+B!H$3*B149+B!H$4*B149^2,B!H$2+B!H$3*(B!H$3/(-2*B!H$4))+B!H$3*B!H$3/(4*B!H$4)) -> 190.5025217 | E149: =B!I$2+B!I$3*EXP(B!I$4*B149) -> 190.5309139 | F149: =IF((B!J$2+B!J$3*B149)<B!J$4,B!J$2+B!J$3*B149,B!J$4) -> 188.7500056 | G149: =IF(B149<B!K$4,B!K$2+B!K$3*(3*B149/(2*B!K$4)-0.5*(B149/B!K$4)^3),B!K$3+B!K$2) -> 189.8334139 | H149: =(C149*B$45+D!D149*C$45+D!E149*D$45+D!F149*E$45+D!G149*F$45)/SUM(B$45:F$45) -> 190.4659189
A150: 204 | B150: 204 | C150: =B!G$2+B!G$3*B150+B!G$4*B150^2 -> 192.3332236 | D150: =IF(B150<(B!H$3/(-2*B!H$4)),B!H$2+B!H$3*B150+B!H$4*B150^2,B!H$2+B!H$3*(B!H$3/(-2*B!H$4))+B!H$3*B!H$3/(4*B!H$4)) -> 190.5025217 | E150: =B!I$2+B!I$3*EXP(B!I$4*B150) -> 190.8086911 | F150: =IF((B!J$2+B!J$3*B150)<B!J$4,B!J$2+B!J$3*B150,B!J$4) -> 188.7500056 | G150: =IF(B150<B!K$4,B!K$2+B!K$3*(3*B150/(2*B!K$4)-0.5*(B150/B!K$4)^3),B!K$3+B!K$2) -> 189.8334139 | H150: =(C150*B$45+D!D150*C$45+D!E150*D$45+D!F150*E$45+D!G150*F$45)/SUM(B$45:F$45) -> 190.4643686
A151: 206 | B151: 206 | C151: =B!G$2+B!G$3*B151+B!G$4*B151^2 -> 192.3006227 | D151: =IF(B151<(B!H$3/(-2*B!H$4)),B!H$2+B!H$3*B151+B!H$4*B151^2,B!H$2+B!H$3*(B!H$3/(-2*B!H$4))+B!H$3*B!H$3/(4*B!H$4)) -> 190.5025217 | E151: =B!I$2+B!I$3*EXP(B!I$4*B151) -> 191.0799362 | F151: =IF((B!J$2+B!J$3*B151)<B!J$4,B!J$2+B!J$3*B151,B!J$4) -> 188.7500056 | G151: =IF(B151<B!K$4,B!K$2+B!K$3*(3*B151/(2*B!K$4)-0.5*(B151/B!K$4)^3),B!K$3+B!K$2) -> 189.8334139 | H151: =(C151*B$45+D!D151*C$45+D!E151*D$45+D!F151*E$45+D!G151*F$45)/SUM(B$45:F$45) -> 190.4566718
A152: 208 | B152: 208 | C152: =B!G$2+B!G$3*B152+B!G$4*B152^2 -> 192.2448663 | D152: =IF(B152<(B!H$3/(-2*B!H$4)),B!H$2+B!H$3*B152+B!H$4*B152^2,B!H$2+B!H$3*(B!H$3/(-2*B!H$4))+B!H$3*B!H$3/(4*B!H$4)) -> 190.5025217 | E152: =B!I$2+B!I$3*EXP(B!I$4*B152) -> 191.3448028 | F152: =IF((B!J$2+B!J$3*B152)<B!J$4,B!J$2+B!J$3*B152,B!J$4) -> 188.7500056 | G152: =IF(B152<B!K$4,B!K$2+B!K$3*(3*B152/(2*B!K$4)-0.5*(B152/B!K$4)^3),B!K$3+B!K$2) -> 189.8334139 | H152: =(C152*B$45+D!D152*C$45+D!E152*D$45+D!F152*E$45+D!G152*F$45)/SUM(B$45:F$45) -> 190.442829
A153: 210 | B153: 210 | C153: =B!G$2+B!G$3*B153+B!G$4*B153^2 -> 192.1659544 | D153: =IF(B153<(B!H$3/(-2*B!H$4)),B!H$2+B!H$3*B153+B!H$4*B153^2,B!H$2+B!H$3*(B!H$3/(-2*B!H$4))+B!H$3*B!H$3/(4*B!H$4)) -> 190.5025217 | E153: =B!I$2+B!I$3*EXP(B!I$4*B153) -> 191.6034409 | F153: =IF((B!J$2+B!J$3*B153)<B!J$4,B!J$2+B!J$3*B153,B!J$4) -> 188.7500056 | G153: =IF(B153<B!K$4,B!K$2+B!K$3*(3*B153/(2*B!K$4)-0.5*(B153/B!K$4)^3),B!K$3+B!K$2) -> 189.8334139 | H153: =(C153*B$45+D!D153*C$45+D!E153*D$45+D!F153*E$45+D!G153*F$45)/SUM(B$45:F$45) -> 190.4228407
A154: 212 | B154: 212 | C154: =B!G$2+B!G$3*B154+B!G$4*B154^2 -> 192.0638869 | D154: =IF(B154<(B!H$3/(-2*B!H$4)),B!H$2+B!H$3*B154+B!H$4*B154^2,B!H$2+B!H$3*(B!H$3/(-2*B!H$4))+B!H$3*B!H$3/(4*B!H$4)) -> 190.5025217 | E154: =B!I$2+B!I$3*EXP(B!I$4*B154) -> 191.8559971 | F154: =IF((B!J$2+B!J$3*B154)<B!J$4,B!J$2+B!J$3*B154,B!J$4) -> 188.7500056 | G154: =IF(B154<B!K$4,B!K$2+B!K$3*(3*B154/(2*B!K$4)-0.5*(B154/B!K$4)^3),B!K$3+B!K$2) -> 189.8334139 | H154: =(C154*B$45+D!D154*C$45+D!E154*D$45+D!F154*E$45+D!G154*F$45)/SUM(B$45:F$45) -> 190.3967074
A155: 214 | B155: 214 | C155: =B!G$2+B!G$3*B155+B!G$4*B155^2 -> 191.9386639 | D155: =IF(B155<(B!H$3/(-2*B!H$4)),B!H$2+B!H$3*B155+B!H$4*B155^2,B!H$2+B!H$3*(B!H$3/(-2*B!H$4))+B!H$3*B!H$3/(4*B!H$4)) -> 190.5025217 | E155: =B!I$2+B!I$3*EXP(B!I$4*B155) -> 192.1026142 | F155: =IF((B!J$2+B!J$3*B155)<B!J$4,B!J$2+B!J$3*B155,B!J$4) -> 188.7500056 | G155: =IF(B155<B!K$4,B!K$2+B!K$3*(3*B155/(2*B!K$4)-0.5*(B155/B!K$4)^3),B!K$3+B!K$2) -> 189.8334139 | H155: =(C155*B$45+D!D155*C$45+D!E155*D$45+D!F155*E$45+D!G155*F$45)/SUM(B$45:F$45) -> 190.3644295
A156: 216 | B156: 216 | C156: =B!G$2+B!G$3*B156+B!G$4*B156^2 -> 191.7902854 | D156: =IF(B156<(B!H$3/(-2*B!H$4)),B!H$2+B!H$3*B156+B!H$4*B156^2,B!H$2+B!H$3*(B!H$3/(-2*B!H$4))+B!H$3*B!H$3/(4*B!H$4)) -> 190.5025217 | E156: =B!I$2+B!I$3*EXP(B!I$4*B156) -> 192.3434321 | F156: =IF((B!J$2+B!J$3*B156)<B!J$4,B!J$2+B!J$3*B156,B!J$4) -> 188.7500056 | G156: =IF(B156<B!K$4,B!K$2+B!K$3*(3*B156/(2*B!K$4)-0.5*(B156/B!K$4)^3),B!K$3+B!K$2) -> 189.8334139 | H156: =(C156*B$45+D!D156*C$45+D!E156*D$45+D!F156*E$45+D!G156*F$45)/SUM(B$45:F$45) -> 190.3260077
A157: 218 | B157: 218 | C157: =B!G$2+B!G$3*B157+B!G$4*B157^2 -> 191.6187513 | D157: =IF(B157<(B!H$3/(-2*B!H$4)),B!H$2+B!H$3*B157+B!H$4*B157^2,B!H$2+B!H$3*(B!H$3/(-2*B!H$4))+B!H$3*B!H$3/(4*B!H$4)) -> 190.5025217 | E157: =B!I$2+B!I$3*EXP(B!I$4*B157) -> 192.578587 | F157: =IF((B!J$2+B!J$3*B157)<B!J$4,B!J$2+B!J$3*B157,B!J$4) -> 188.7500056 | G157: =IF(B157<B!K$4,B!K$2+B!K$3*(3*B157/(2*B!K$4)-0.5*(B157/B!K$4)^3),B!K$3+B!K$2) -> 189.8334139 | H157: =(C157*B$45+D!D157*C$45+D!E157*D$45+D!F157*E$45+D!G157*F$45)/SUM(B$45:F$45) -> 190.2814423
A158: 220 | B158: 220 | C158: =B!G$2+B!G$3*B158+B!G$4*B158^2 -> 191.4240617 | D158: =IF(B158<(B!H$3/(-2*B!H$4)),B!H$2+B!H$3*B158+B!H$4*B158^2,B!H$2+B!H$3*(B!H$3/(-2*B!H$4))+B!H$3*B!H$3/(4*B!H$4)) -> 190.5025217 | E158: =B!I$2+B!I$3*EXP(B!I$4*B158) -> 192.8082121 | F158: =IF((B!J$2+B!J$3*B158)<B!J$4,B!J$2+B!J$3*B158,B!J$4) -> 188.7500056 | G158: =IF(B158<B!K$4,B!K$2+B!K$3*(3*B158/(2*B!K$4)-0.5*(B158/B!K$4)^3),B!K$3+B!K$2) -> 189.8334139 | H158: =(C158*B$45+D!D158*C$45+D!E158*D$45+D!F158*E$45+D!G158*F$45)/SUM(B$45:F$45) -> 190.2307337
A159: 222 | B159: 222 | C159: =B!G$2+B!G$3*B159+B!G$4*B159^2 -> 191.2062165 | D159: =IF(B159<(B!H$3/(-2*B!H$4)),B!H$2+B!H$3*B159+B!H$4*B159^2,B!H$2+B!H$3*(B!H$3/(-2*B!H$4))+B!H$3*B!H$3/(4*B!H$4)) -> 190.5025217 | E159: =B!I$2+B!I$3*EXP(B!I$4*B159) -> 193.0324374 | F159: =IF((B!J$2+B!J$3*B159)<B!J$4,B!J$2+B!J$3*B159,B!J$4) -> 188.7500056 | G159: =IF(B159<B!K$4,B!K$2+B!K$3*(3*B159/(2*B!K$4)-0.5*(B159/B!K$4)^3),B!K$3+B!K$2) -> 189.8334139 | H159: =(C159*B$45+D!D159*C$45+D!E159*D$45+D!F159*E$45+D!G159*F$45)/SUM(B$45:F$45) -> 190.1738826
A160: 224 | B160: 224 | C160: =B!G$2+B!G$3*B160+B!G$4*B160^2 -> 190.9652158 | D160: =IF(B160<(B!H$3/(-2*B!H$4)),B!H$2+B!H$3*B160+B!H$4*B160^2,B!H$2+B!H$3*(B!H$3/(-2*B!H$4))+B!H$3*B!H$3/(4*B!H$4)) -> 190.5025217 | E160: =B!I$2+B!I$3*EXP(B!I$4*B160) -> 193.25139 | F160: =IF((B!J$2+B!J$3*B160)<B!J$4,B!J$2+B!J$3*B160,B!J$4) -> 188.7500056 | G160: =IF(B160<B!K$4,B!K$2+B!K$3*(3*B160/(2*B!K$4)-0.5*(B160/B!K$4)^3),B!K$3+B!K$2) -> 189.8334139 | H160: =(C160*B$45+D!D160*C$45+D!E160*D$45+D!F160*E$45+D!G160*F$45)/SUM(B$45:F$45) -> 190.1108891
A161: 226 | B161: 226 | C161: =B!G$2+B!G$3*B161+B!G$4*B161^2 -> 190.7010595 | D161: =IF(B161<(B!H$3/(-2*B!H$4)),B!H$2+B!H$3*B161+B!H$4*B161^2,B!H$2+B!H$3*(B!H$3/(-2*B!H$4))+B!H$3*B!H$3/(4*B!H$4)) -> 190.5025217 | E161: =B!I$2+B!I$3*EXP(B!I$4*B161) -> 193.4651938 | F161: =IF((B!J$2+B!J$3*B161)<B!J$4,B!J$2+B!J$3*B161,B!J$4) -> 188.7500056 | G161: =IF(B161<B!K$4,B!K$2+B!K$3*(3*B161/(2*B!K$4)-0.5*(B161/B!K$4)^3),B!K$3+B!K$2) -> 189.8334139 | H161: =(C161*B$45+D!D161*C$45+D!E161*D$45+D!F161*E$45+D!G161*F$45)/SUM(B$45:F$45) -> 190.0417539
A162: 228 | B162: 228 | C162: =B!G$2+B!G$3*B162+B!G$4*B162^2 -> 190.4137478 | D162: =IF(B162<(B!H$3/(-2*B!H$4)),B!H$2+B!H$3*B162+B!H$4*B162^2,B!H$2+B!H$3*(B!H$3/(-2*B!H$4))+B!H$3*B!H$3/(4*B!H$4)) -> 190.5025217 | E162: =B!I$2+B!I$3*EXP(B!I$4*B162) -> 193.6739699 | F162: =IF((B!J$2+B!J$3*B162)<B!J$4,B!J$2+B!J$3*B162,B!J$4) -> 188.7500056 | G162: =IF(B162<B!K$4,B!K$2+B!K$3*(3*B162/(2*B!K$4)-0.5*(B162/B!K$4)^3),B!K$3+B!K$2) -> 189.8334139 | H162: =(C162*B$45+D!D162*C$45+D!E162*D$45+D!F162*E$45+D!G162*F$45)/SUM(B$45:F$45) -> 189.9664772
A163: 230 | B163: 230 | C163: =B!G$2+B!G$3*B163+B!G$4*B163^2 -> 190.1032804 | D163: =IF(B163<(B!H$3/(-2*B!H$4)),B!H$2+B!H$3*B163+B!H$4*B163^2,B!H$2+B!H$3*(B!H$3/(-2*B!H$4))+B!H$3*B!H$3/(4*B!H$4)) -> 190.5025217 | E163: =B!I$2+B!I$3*EXP(B!I$4*B163) -> 193.8778365 | F163: =IF((B!J$2+B!J$3*B163)<B!J$4,B!J$2+B!J$3*B163,B!J$4) -> 188.7500056 | G163: =IF(B163<B!K$4,B!K$2+B!K$3*(3*B163/(2*B!K$4)-0.5*(B163/B!K$4)^3),B!K$3+B!K$2) -> 189.8334139 | H163: =(C163*B$45+D!D163*C$45+D!E163*D$45+D!F163*E$45+D!G163*F$45)/SUM(B$45:F$45) -> 189.8850596
A164: 232 | B164: 232 | C164: =B!G$2+B!G$3*B164+B!G$4*B164^2 -> 189.7696576 | D164: =IF(B164<(B!H$3/(-2*B!H$4)),B!H$2+B!H$3*B164+B!H$4*B164^2,B!H$2+B!H$3*(B!H$3/(-2*B!H$4))+B!H$3*B!H$3/(4*B!H$4)) -> 190.5025217 | E164: =B!I$2+B!I$3*EXP(B!I$4*B164) -> 194.0769091 | F164: =IF((B!J$2+B!J$3*B164)<B!J$4,B!J$2+B!J$3*B164,B!J$4) -> 188.7500056 | G164: =IF(B164<B!K$4,B!K$2+B!K$3*(3*B164/(2*B!K$4)-0.5*(B164/B!K$4)^3),B!K$3+B!K$2) -> 189.8334139 | H164: =(C164*B$45+D!D164*C$45+D!E164*D$45+D!F164*E$45+D!G164*F$45)/SUM(B$45:F$45) -> 189.7975014
A165: 234 | B165: 234 | C165: =B!G$2+B!G$3*B165+B!G$4*B165^2 -> 189.4128792 | D165: =IF(B165<(B!H$3/(-2*B!H$4)),B!H$2+B!H$3*B165+B!H$4*B165^2,B!H$2+B!H$3*(B!H$3/(-2*B!H$4))+B!H$3*B!H$3/(4*B!H$4)) -> 190.5025217 | E165: =B!I$2+B!I$3*EXP(B!I$4*B165) -> 194.2713004 | F165: =IF((B!J$2+B!J$3*B165)<B!J$4,B!J$2+B!J$3*B165,B!J$4) -> 188.7500056 | G165: =IF(B165<B!K$4,B!K$2+B!K$3*(3*B165/(2*B!K$4)-0.5*(B165/B!K$4)^3),B!K$3+B!K$2) -> 189.8334139 | H165: =(C165*B$45+D!D165*C$45+D!E165*D$45+D!F165*E$45+D!G165*F$45)/SUM(B$45:F$45) -> 189.7038029
A166: 236 | B166: 236 | C166: =B!G$2+B!G$3*B166+B!G$4*B166^2 -> 189.0329452 | D166: =IF(B166<(B!H$3/(-2*B!H$4)),B!H$2+B!H$3*B166+B!H$4*B166^2,B!H$2+B!H$3*(B!H$3/(-2*B!H$4))+B!H$3*B!H$3/(4*B!H$4)) -> 190.5025217 | E166: =B!I$2+B!I$3*EXP(B!I$4*B166) -> 194.4611205 | F166: =IF((B!J$2+B!J$3*B166)<B!J$4,B!J$2+B!J$3*B166,B!J$4) -> 188.7500056 | G166: =IF(B166<B!K$4,B!K$2+B!K$3*(3*B166/(2*B!K$4)-0.5*(B166/B!K$4)^3),B!K$3+B!K$2) -> 189.8334139 | H166: =(C166*B$45+D!D166*C$45+D!E166*D$45+D!F166*E$45+D!G166*F$45)/SUM(B$45:F$45) -> 189.6039646
A167: 238 | B167: 238 | C167: =B!G$2+B!G$3*B167+B!G$4*B167^2 -> 188.6298557 | D167: =IF(B167<(B!H$3/(-2*B!H$4)),B!H$2+B!H$3*B167+B!H$4*B167^2,B!H$2+B!H$3*(B!H$3/(-2*B!H$4))+B!H$3*B!H$3/(4*B!H$4)) -> 190.5025217 | E167: =B!I$2+B!I$3*EXP(B!I$4*B167) -> 194.6464769 | F167: =IF((B!J$2+B!J$3*B167)<B!J$4,B!J$2+B!J$3*B167,B!J$4) -> 188.7500056 | G167: =IF(B167<B!K$4,B!K$2+B!K$3*(3*B167/(2*B!K$4)-0.5*(B167/B!K$4)^3),B!K$3+B!K$2) -> 189.8334139 | H167: =(C167*B$45+D!D167*C$45+D!E167*D$45+D!F167*E$45+D!G167*F$45)/SUM(B$45:F$45) -> 189.4979869
A168: 240 | B168: 240 | C168: =B!G$2+B!G$3*B168+B!G$4*B168^2 -> 188.2036107 | D168: =IF(B168<(B!H$3/(-2*B!H$4)),B!H$2+B!H$3*B168+B!H$4*B168^2,B!H$2+B!H$3*(B!H$3/(-2*B!H$4))+B!H$3*B!H$3/(4*B!H$4)) -> 190.5025217 | E168: =B!I$2+B!I$3*EXP(B!I$4*B168) -> 194.8274745 | F168: =IF((B!J$2+B!J$3*B168)<B!J$4,B!J$2+B!J$3*B168,B!J$4) -> 188.7500056 | G168: =IF(B168<B!K$4,B!K$2+B!K$3*(3*B168/(2*B!K$4)-0.5*(B168/B!K$4)^3),B!K$3+B!K$2) -> 189.8334139 | H168: =(C168*B$45+D!D168*C$45+D!E168*D$45+D!F168*E$45+D!G168*F$45)/SUM(B$45:F$45) -> 189.38587
A169: 242 | B169: 240 | C169: =B!G$2+B!G$3*B169+B!G$4*B169^2 -> 188.2036107 | D169: =IF(B169<(B!H$3/(-2*B!H$4)),B!H$2+B!H$3*B169+B!H$4*B169^2,B!H$2+B!H$3*(B!H$3/(-2*B!H$4))+B!H$3*B!H$3/(4*B!H$4)) -> 190.5025217 | E169: =B!I$2+B!I$3*EXP(B!I$4*B169) -> 194.8274745 | F169: =IF((B!J$2+B!J$3*B169)<B!J$4,B!J$2+B!J$3*B169,B!J$4) -> 188.7500056 | G169: =IF(B169<B!K$4,B!K$2+B!K$3*(3*B169/(2*B!K$4)-0.5*(B169/B!K$4)^3),B!K$3+B!K$2) -> 189.8334139 | H169: =(C169*B$45+D!D169*C$45+D!E169*D$45+D!F169*E$45+D!G169*F$45)/SUM(B$45:F$45) -> 189.38587
A170: 244 | B170: 240 | C170: =B!G$2+B!G$3*B170+B!G$4*B170^2 -> 188.2036107 | D170: =IF(B170<(B!H$3/(-2*B!H$4)),B!H$2+B!H$3*B170+B!H$4*B170^2,B!H$2+B!H$3*(B!H$3/(-2*B!H$4))+B!H$3*B!H$3/(4*B!H$4)) -> 190.5025217 | E170: =B!I$2+B!I$3*EXP(B!I$4*B170) -> 194.8274745 | F170: =IF((B!J$2+B!J$3*B170)<B!J$4,B!J$2+B!J$3*B170,B!J$4) -> 188.7500056 | G170: =IF(B170<B!K$4,B!K$2+B!K$3*(3*B170/(2*B!K$4)-0.5*(B170/B!K$4)^3),B!K$3+B!K$2) -> 189.8334139 | H170: =(C170*B$45+D!D170*C$45+D!E170*D$45+D!F170*E$45+D!G170*F$45)/SUM(B$45:F$45) -> 189.38587
A171: 246 | B171: 240 | C171: =B!G$2+B!G$3*B171+B!G$4*B171^2 -> 188.2036107 | D171: =IF(B171<(B!H$3/(-2*B!H$4)),B!H$2+B!H$3*B171+B!H$4*B171^2,B!H$2+B!H$3*(B!H$3/(-2*B!H$4))+B!H$3*B!H$3/(4*B!H$4)) -> 190.5025217 | E171: =B!I$2+B!I$3*EXP(B!I$4*B171) -> 194.8274745 | F171: =IF((B!J$2+B!J$3*B171)<B!J$4,B!J$2+B!J$3*B171,B!J$4) -> 188.7500056 | G171: =IF(B171<B!K$4,B!K$2+B!K$3*(3*B171/(2*B!K$4)-0.5*(B171/B!K$4)^3),B!K$3+B!K$2) -> 189.8334139 | H171: =(C171*B$45+D!D171*C$45+D!E171*D$45+D!F171*E$45+D!G171*F$45)/SUM(B$45:F$45) -> 189.38587
A172: 248 | B172: 240 | C172: =B!G$2+B!G$3*B172+B!G$4*B172^2 -> 188.2036107 | D172: =IF(B172<(B!H$3/(-2*B!H$4)),B!H$2+B!H$3*B172+B!H$4*B172^2,B!H$2+B!H$3*(B!H$3/(-2*B!H$4))+B!H$3*B!H$3/(4*B!H$4)) -> 190.5025217 | E172: =B!I$2+B!I$3*EXP(B!I$4*B172) -> 194.8274745 | F172: =IF((B!J$2+B!J$3*B172)<B!J$4,B!J$2+B!J$3*B172,B!J$4) -> 188.7500056 | G172: =IF(B172<B!K$4,B!K$2+B!K$3*(3*B172/(2*B!K$4)-0.5*(B172/B!K$4)^3),B!K$3+B!K$2) -> 189.8334139 | H172: =(C172*B$45+D!D172*C$45+D!E172*D$45+D!F172*E$45+D!G172*F$45)/SUM(B$45:F$45) -> 189.38587
A173: 250 | B173: 240 | C173: =B!G$2+B!G$3*B173+B!G$4*B173^2 -> 188.2036107 | D173: =IF(B173<(B!H$3/(-2*B!H$4)),B!H$2+B!H$3*B173+B!H$4*B173^2,B!H$2+B!H$3*(B!H$3/(-2*B!H$4))+B!H$3*B!H$3/(4*B!H$4)) -> 190.5025217 | E173: =B!I$2+B!I$3*EXP(B!I$4*B173) -> 194.8274745 | F173: =IF((B!J$2+B!J$3*B173)<B!J$4,B!J$2+B!J$3*B173,B!J$4) -> 188.7500056 | G173: =IF(B173<B!K$4,B!K$2+B!K$3*(3*B173/(2*B!K$4)-0.5*(B173/B!K$4)^3),B!K$3+B!K$2) -> 189.8334139 | H173: =(C173*B$45+D!D173*C$45+D!E173*D$45+D!F173*E$45+D!G173*F$45)/SUM(B$45:F$45) -> 189.38587
A174: 252 | B174: 240 | C174: =B!G$2+B!G$3*B174+B!G$4*B174^2 -> 188.2036107 | D174: =IF(B174<(B!H$3/(-2*B!H$4)),B!H$2+B!H$3*B174+B!H$4*B174^2,B!H$2+B!H$3*(B!H$3/(-2*B!H$4))+B!H$3*B!H$3/(4*B!H$4)) -> 190.5025217 | E174: =B!I$2+B!I$3*EXP(B!I$4*B174) -> 194.8274745 | F174: =IF((B!J$2+B!J$3*B174)<B!J$4,B!J$2+B!J$3*B174,B!J$4) -> 188.7500056 | G174: =IF(B174<B!K$4,B!K$2+B!K$3*(3*B174/(2*B!K$4)-0.5*(B174/B!K$4)^3),B!K$3+B!K$2) -> 189.8334139 | H174: =(C174*B$45+D!D174*C$45+D!E174*D$45+D!F174*E$45+D!G174*F$45)/SUM(B$45:F$45) -> 189.38587
A175: 254 | B175: 240 | C175: =B!G$2+B!G$3*B175+B!G$4*B175^2 -> 188.2036107 | D175: =IF(B175<(B!H$3/(-2*B!H$4)),B!H$2+B!H$3*B175+B!H$4*B175^2,B!H$2+B!H$3*(B!H$3/(-2*B!H$4))+B!H$3*B!H$3/(4*B!H$4)) -> 190.5025217 | E175: =B!I$2+B!I$3*EXP(B!I$4*B175) -> 194.8274745 | F175: =IF((B!J$2+B!J$3*B175)<B!J$4,B!J$2+B!J$3*B175,B!J$4) -> 188.7500056 | G175: =IF(B175<B!K$4,B!K$2+B!K$3*(3*B175/(2*B!K$4)-0.5*(B175/B!K$4)^3),B!K$3+B!K$2) -> 189.8334139 | H175: =(C175*B$45+D!D175*C$45+D!E175*D$45+D!F175*E$45+D!G175*F$45)/SUM(B$45:F$45) -> 189.38587
A176: 256 | B176: 240 | C176: =B!G$2+B!G$3*B176+B!G$4*B176^2 -> 188.2036107 | D176: =IF(B176<(B!H$3/(-2*B!H$4)),B!H$2+B!H$3*B176+B!H$4*B176^2,B!H$2+B!H$3*(B!H$3/(-2*B!H$4))+B!H$3*B!H$3/(4*B!H$4)) -> 190.5025217 | E176: =B!I$2+B!I$3*EXP(B!I$4*B176) -> 194.8274745 | F176: =IF((B!J$2+B!J$3*B176)<B!J$4,B!J$2+B!J$3*B176,B!J$4) -> 188.7500056 | G176: =IF(B176<B!K$4,B!K$2+B!K$3*(3*B176/(2*B!K$4)-0.5*(B176/B!K$4)^3),B!K$3+B!K$2) -> 189.8334139 | H176: =(C176*B$45+D!D176*C$45+D!E176*D$45+D!F176*E$45+D!G176*F$45)/SUM(B$45:F$45) -> 189.38587
A177: 258 | B177: =IF(A177<MAX($M$48),A177,MAX($M$48)) -> 240 | C177: =B!G$2+B!G$3*B177+B!G$4*B177^2 -> 188.2036107 | D177: =IF(B177<(B!H$3/(-2*B!H$4)),B!H$2+B!H$3*B177+B!H$4*B177^2,B!H$2+B!H$3*(B!H$3/(-2*B!H$4))+B!H$3*B!H$3/(4*B!H$4)) -> 190.5025217 | E177: =B!I$2+B!I$3*EXP(B!I$4*B177) -> 194.8274745 | F177: =IF((B!J$2+B!J$3*B177)<B!J$4,B!J$2+B!J$3*B177,B!J$4) -> 188.7500056 | G177: =IF(B177<B!K$4,B!K$2+B!K$3*(3*B177/(2*B!K$4)-0.5*(B177/B!K$4)^3),B!K$3+B!K$2) -> 189.8334139 | H177: =(C177*B$45+D!D177*C$45+D!E177*D$45+D!F177*E$45+D!G177*F$45)/SUM(B$45:F$45) -> 189.38587
A178: 260 | B178: 240 | C178: =B!G$2+B!G$3*B178+B!G$4*B178^2 -> 188.2036107 | D178: =IF(B178<(B!H$3/(-2*B!H$4)),B!H$2+B!H$3*B178+B!H$4*B178^2,B!H$2+B!H$3*(B!H$3/(-2*B!H$4))+B!H$3*B!H$3/(4*B!H$4)) -> 190.5025217 | E178: =B!I$2+B!I$3*EXP(B!I$4*B178) -> 194.8274745 | F178: =IF((B!J$2+B!J$3*B178)<B!J$4,B!J$2+B!J$3*B178,B!J$4) -> 188.7500056 | G178: =IF(B178<B!K$4,B!K$2+B!K$3*(3*B178/(2*B!K$4)-0.5*(B178/B!K$4)^3),B!K$3+B!K$2) -> 189.8334139 | H178: =(C178*B$45+D!D178*C$45+D!E178*D$45+D!F178*E$45+D!G178*F$45)/SUM(B$45:F$45) -> 189.38587
A179: 262 | B179: 240 | C179: =B!G$2+B!G$3*B179+B!G$4*B179^2 -> 188.2036107 | D179: =IF(B179<(B!H$3/(-2*B!H$4)),B!H$2+B!H$3*B179+B!H$4*B179^2,B!H$2+B!H$3*(B!H$3/(-2*B!H$4))+B!H$3*B!H$3/(4*B!H$4)) -> 190.5025217 | E179: =B!I$2+B!I$3*EXP(B!I$4*B179) -> 194.8274745 | F179: =IF((B!J$2+B!J$3*B179)<B!J$4,B!J$2+B!J$3*B179,B!J$4) -> 188.7500056 | G179: =IF(B179<B!K$4,B!K$2+B!K$3*(3*B179/(2*B!K$4)-0.5*(B179/B!K$4)^3),B!K$3+B!K$2) -> 189.8334139 | H179: =(C179*B$45+D!D179*C$45+D!E179*D$45+D!F179*E$45+D!G179*F$45)/SUM(B$45:F$45) -> 189.38587
A180: 264 | B180: 240 | C180: =B!G$2+B!G$3*B180+B!G$4*B180^2 -> 188.2036107 | D180: =IF(B180<(B!H$3/(-2*B!H$4)),B!H$2+B!H$3*B180+B!H$4*B180^2,B!H$2+B!H$3*(B!H$3/(-2*B!H$4))+B!H$3*B!H$3/(4*B!H$4)) -> 190.5025217 | E180: =B!I$2+B!I$3*EXP(B!I$4*B180) -> 194.8274745 | F180: =IF((B!J$2+B!J$3*B180)<B!J$4,B!J$2+B!J$3*B180,B!J$4) -> 188.7500056 | G180: =IF(B180<B!K$4,B!K$2+B!K$3*(3*B180/(2*B!K$4)-0.5*(B180/B!K$4)^3),B!K$3+B!K$2) -> 189.8334139 | H180: =(C180*B$45+D!D180*C$45+D!E180*D$45+D!F180*E$45+D!G180*F$45)/SUM(B$45:F$45) -> 189.38587
A181: 266 | B181: 240 | C181: =B!G$2+B!G$3*B181+B!G$4*B181^2 -> 188.2036107 | D181: =IF(B181<(B!H$3/(-2*B!H$4)),B!H$2+B!H$3*B181+B!H$4*B181^2,B!H$2+B!H$3*(B!H$3/(-2*B!H$4))+B!H$3*B!H$3/(4*B!H$4)) -> 190.5025217 | E181: =B!I$2+B!I$3*EXP(B!I$4*B181) -> 194.8274745 | F181: =IF((B!J$2+B!J$3*B181)<B!J$4,B!J$2+B!J$3*B181,B!J$4) -> 188.7500056 | G181: =IF(B181<B!K$4,B!K$2+B!K$3*(3*B181/(2*B!K$4)-0.5*(B181/B!K$4)^3),B!K$3+B!K$2) -> 189.8334139 | H181: =(C181*B$45+D!D181*C$45+D!E181*D$45+D!F181*E$45+D!G181*F$45)/SUM(B$45:F$45) -> 189.38587
A182: 268 | B182: 240 | C182: =B!G$2+B!G$3*B182+B!G$4*B182^2 -> 188.2036107 | D182: =IF(B182<(B!H$3/(-2*B!H$4)),B!H$2+B!H$3*B182+B!H$4*B182^2,B!H$2+B!H$3*(B!H$3/(-2*B!H$4))+B!H$3*B!H$3/(4*B!H$4)) -> 190.5025217 | E182: =B!I$2+B!I$3*EXP(B!I$4*B182) -> 194.8274745 | F182: =IF((B!J$2+B!J$3*B182)<B!J$4,B!J$2+B!J$3*B182,B!J$4) -> 188.7500056 | G182: =IF(B182<B!K$4,B!K$2+B!K$3*(3*B182/(2*B!K$4)-0.5*(B182/B!K$4)^3),B!K$3+B!K$2) -> 189.8334139 | H182: =(C182*B$45+D!D182*C$45+D!E182*D$45+D!F182*E$45+D!G182*F$45)/SUM(B$45:F$45) -> 189.38587
A183: 270 | B183: 240 | C183: =B!G$2+B!G$3*B183+B!G$4*B183^2 -> 188.2036107 | D183: =IF(B183<(B!H$3/(-2*B!H$4)),B!H$2+B!H$3*B183+B!H$4*B183^2,B!H$2+B!H$3*(B!H$3/(-2*B!H$4))+B!H$3*B!H$3/(4*B!H$4)) -> 190.5025217 | E183: =B!I$2+B!I$3*EXP(B!I$4*B183) -> 194.8274745 | F183: =IF((B!J$2+B!J$3*B183)<B!J$4,B!J$2+B!J$3*B183,B!J$4) -> 188.7500056 | G183: =IF(B183<B!K$4,B!K$2+B!K$3*(3*B183/(2*B!K$4)-0.5*(B183/B!K$4)^3),B!K$3+B!K$2) -> 189.8334139 | H183: =(C183*B$45+D!D183*C$45+D!E183*D$45+D!F183*E$45+D!G183*F$45)/SUM(B$45:F$45) -> 189.38587
A184: 272 | B184: 240 | C184: =B!G$2+B!G$3*B184+B!G$4*B184^2 -> 188.2036107 | D184: =IF(B184<(B!H$3/(-2*B!H$4)),B!H$2+B!H$3*B184+B!H$4*B184^2,B!H$2+B!H$3*(B!H$3/(-2*B!H$4))+B!H$3*B!H$3/(4*B!H$4)) -> 190.5025217 | E184: =B!I$2+B!I$3*EXP(B!I$4*B184) -> 194.8274745 | F184: =IF((B!J$2+B!J$3*B184)<B!J$4,B!J$2+B!J$3*B184,B!J$4) -> 188.7500056 | G184: =IF(B184<B!K$4,B!K$2+B!K$3*(3*B184/(2*B!K$4)-0.5*(B184/B!K$4)^3),B!K$3+B!K$2) -> 189.8334139 | H184: =(C184*B$45+D!D184*C$45+D!E184*D$45+D!F184*E$45+D!G184*F$45)/SUM(B$45:F$45) -> 189.38587
A185: 274 | B185: 240 | C185: =B!G$2+B!G$3*B185+B!G$4*B185^2 -> 188.2036107 | D185: =IF(B185<(B!H$3/(-2*B!H$4)),B!H$2+B!H$3*B185+B!H$4*B185^2,B!H$2+B!H$3*(B!H$3/(-2*B!H$4))+B!H$3*B!H$3/(4*B!H$4)) -> 190.5025217 | E185: =B!I$2+B!I$3*EXP(B!I$4*B185) -> 194.8274745 | F185: =IF((B!J$2+B!J$3*B185)<B!J$4,B!J$2+B!J$3*B185,B!J$4) -> 188.7500056 | G185: =IF(B185<B!K$4,B!K$2+B!K$3*(3*B185/(2*B!K$4)-0.5*(B185/B!K$4)^3),B!K$3+B!K$2) -> 189.8334139 | H185: =(C185*B$45+D!D185*C$45+D!E185*D$45+D!F185*E$45+D!G185*F$45)/SUM(B$45:F$45) -> 189.38587
A186: 276 | B186: 240 | C186: =B!G$2+B!G$3*B186+B!G$4*B186^2 -> 188.2036107 | D186: =IF(B186<(B!H$3/(-2*B!H$4)),B!H$2+B!H$3*B186+B!H$4*B186^2,B!H$2+B!H$3*(B!H$3/(-2*B!H$4))+B!H$3*B!H$3/(4*B!H$4)) -> 190.5025217 | E186: =B!I$2+B!I$3*EXP(B!I$4*B186) -> 194.8274745 | F186: =IF((B!J$2+B!J$3*B186)<B!J$4,B!J$2+B!J$3*B186,B!J$4) -> 188.7500056 | G186: =IF(B186<B!K$4,B!K$2+B!K$3*(3*B186/(2*B!K$4)-0.5*(B186/B!K$4)^3),B!K$3+B!K$2) -> 189.8334139 | H186: =(C186*B$45+D!D186*C$45+D!E186*D$45+D!F186*E$45+D!G186*F$45)/SUM(B$45:F$45) -> 189.38587
A187: 278 | B187: 240 | C187: =B!G$2+B!G$3*B187+B!G$4*B187^2 -> 188.2036107 | D187: =IF(B187<(B!H$3/(-2*B!H$4)),B!H$2+B!H$3*B187+B!H$4*B187^2,B!H$2+B!H$3*(B!H$3/(-2*B!H$4))+B!H$3*B!H$3/(4*B!H$4)) -> 190.5025217 | E187: =B!I$2+B!I$3*EXP(B!I$4*B187) -> 194.8274745 | F187: =IF((B!J$2+B!J$3*B187)<B!J$4,B!J$2+B!J$3*B187,B!J$4) -> 188.7500056 | G187: =IF(B187<B!K$4,B!K$2+B!K$3*(3*B187/(2*B!K$4)-0.5*(B187/B!K$4)^3),B!K$3+B!K$2) -> 189.8334139 | H187: =(C187*B$45+D!D187*C$45+D!E187*D$45+D!F187*E$45+D!G187*F$45)/SUM(B$45:F$45) -> 189.38587
A188: 280 | B188: 240 | C188: =B!G$2+B!G$3*B188+B!G$4*B188^2 -> 188.2036107 | D188: =IF(B188<(B!H$3/(-2*B!H$4)),B!H$2+B!H$3*B188+B!H$4*B188^2,B!H$2+B!H$3*(B!H$3/(-2*B!H$4))+B!H$3*B!H$3/(4*B!H$4)) -> 190.5025217 | E188: =B!I$2+B!I$3*EXP(B!I$4*B188) -> 194.8274745 | F188: =IF((B!J$2+B!J$3*B188)<B!J$4,B!J$2+B!J$3*B188,B!J$4) -> 188.7500056 | G188: =IF(B188<B!K$4,B!K$2+B!K$3*(3*B188/(2*B!K$4)-0.5*(B188/B!K$4)^3),B!K$3+B!K$2) -> 189.8334139 | H188: =(C188*B$45+D!D188*C$45+D!E188*D$45+D!F188*E$45+D!G188*F$45)/SUM(B$45:F$45) -> 189.38587
A189: 282 | B189: 240 | C189: =B!G$2+B!G$3*B189+B!G$4*B189^2 -> 188.2036107 | D189: =IF(B189<(B!H$3/(-2*B!H$4)),B!H$2+B!H$3*B189+B!H$4*B189^2,B!H$2+B!H$3*(B!H$3/(-2*B!H$4))+B!H$3*B!H$3/(4*B!H$4)) -> 190.5025217 | E189: =B!I$2+B!I$3*EXP(B!I$4*B189) -> 194.8274745 | F189: =IF((B!J$2+B!J$3*B189)<B!J$4,B!J$2+B!J$3*B189,B!J$4) -> 188.7500056 | G189: =IF(B189<B!K$4,B!K$2+B!K$3*(3*B189/(2*B!K$4)-0.5*(B189/B!K$4)^3),B!K$3+B!K$2) -> 189.8334139 | H189: =(C189*B$45+D!D189*C$45+D!E189*D$45+D!F189*E$45+D!G189*F$45)/SUM(B$45:F$45) -> 189.38587
A190: 284 | B190: 240 | C190: =B!G$2+B!G$3*B190+B!G$4*B190^2 -> 188.2036107 | D190: =IF(B190<(B!H$3/(-2*B!H$4)),B!H$2+B!H$3*B190+B!H$4*B190^2,B!H$2+B!H$3*(B!H$3/(-2*B!H$4))+B!H$3*B!H$3/(4*B!H$4)) -> 190.5025217 | E190: =B!I$2+B!I$3*EXP(B!I$4*B190) -> 194.8274745 | F190: =IF((B!J$2+B!J$3*B190)<B!J$4,B!J$2+B!J$3*B190,B!J$4) -> 188.7500056 | G190: =IF(B190<B!K$4,B!K$2+B!K$3*(3*B190/(2*B!K$4)-0.5*(B190/B!K$4)^3),B!K$3+B!K$2) -> 189.8334139 | H190: =(C190*B$45+D!D190*C$45+D!E190*D$45+D!F190*E$45+D!G190*F$45)/SUM(B$45:F$45) -> 189.38587
A191: 286 | B191: 240 | C191: =B!G$2+B!G$3*B191+B!G$4*B191^2 -> 188.2036107 | D191: =IF(B191<(B!H$3/(-2*B!H$4)),B!H$2+B!H$3*B191+B!H$4*B191^2,B!H$2+B!H$3*(B!H$3/(-2*B!H$4))+B!H$3*B!H$3/(4*B!H$4)) -> 190.5025217 | E191: =B!I$2+B!I$3*EXP(B!I$4*B191) -> 194.8274745 | F191: =IF((B!J$2+B!J$3*B191)<B!J$4,B!J$2+B!J$3*B191,B!J$4) -> 188.7500056 | G191: =IF(B191<B!K$4,B!K$2+B!K$3*(3*B191/(2*B!K$4)-0.5*(B191/B!K$4)^3),B!K$3+B!K$2) -> 189.8334139 | H191: =(C191*B$45+D!D191*C$45+D!E191*D$45+D!F191*E$45+D!G191*F$45)/SUM(B$45:F$45) -> 189.38587
A192: 288 | B192: 240 | C192: =B!G$2+B!G$3*B192+B!G$4*B192^2 -> 188.2036107 | D192: =IF(B192<(B!H$3/(-2*B!H$4)),B!H$2+B!H$3*B192+B!H$4*B192^2,B!H$2+B!H$3*(B!H$3/(-2*B!H$4))+B!H$3*B!H$3/(4*B!H$4)) -> 190.5025217 | E192: =B!I$2+B!I$3*EXP(B!I$4*B192) -> 194.8274745 | F192: =IF((B!J$2+B!J$3*B192)<B!J$4,B!J$2+B!J$3*B192,B!J$4) -> 188.7500056 | G192: =IF(B192<B!K$4,B!K$2+B!K$3*(3*B192/(2*B!K$4)-0.5*(B192/B!K$4)^3),B!K$3+B!K$2) -> 189.8334139 | H192: =(C192*B$45+D!D192*C$45+D!E192*D$45+D!F192*E$45+D!G192*F$45)/SUM(B$45:F$45) -> 189.38587
A193: 290 | B193: 240 | C193: =B!G$2+B!G$3*B193+B!G$4*B193^2 -> 188.2036107 | D193: =IF(B193<(B!H$3/(-2*B!H$4)),B!H$2+B!H$3*B193+B!H$4*B193^2,B!H$2+B!H$3*(B!H$3/(-2*B!H$4))+B!H$3*B!H$3/(4*B!H$4)) -> 190.5025217 | E193: =B!I$2+B!I$3*EXP(B!I$4*B193) -> 194.8274745 | F193: =IF((B!J$2+B!J$3*B193)<B!J$4,B!J$2+B!J$3*B193,B!J$4) -> 188.7500056 | G193: =IF(B193<B!K$4,B!K$2+B!K$3*(3*B193/(2*B!K$4)-0.5*(B193/B!K$4)^3),B!K$3+B!K$2) -> 189.8334139 | H193: =(C193*B$45+D!D193*C$45+D!E193*D$45+D!F193*E$45+D!G193*F$45)/SUM(B$45:F$45) -> 189.38587
A194: 292 | B194: 240 | C194: =B!G$2+B!G$3*B194+B!G$4*B194^2 -> 188.2036107 | D194: =IF(B194<(B!H$3/(-2*B!H$4)),B!H$2+B!H$3*B194+B!H$4*B194^2,B!H$2+B!H$3*(B!H$3/(-2*B!H$4))+B!H$3*B!H$3/(4*B!H$4)) -> 190.5025217 | E194: =B!I$2+B!I$3*EXP(B!I$4*B194) -> 194.8274745 | F194: =IF((B!J$2+B!J$3*B194)<B!J$4,B!J$2+B!J$3*B194,B!J$4) -> 188.7500056 | G194: =IF(B194<B!K$4,B!K$2+B!K$3*(3*B194/(2*B!K$4)-0.5*(B194/B!K$4)^3),B!K$3+B!K$2) -> 189.8334139 | H194: =(C194*B$45+D!D194*C$45+D!E194*D$45+D!F194*E$45+D!G194*F$45)/SUM(B$45:F$45) -> 189.38587
A195: 294 | B195: 240 | C195: =B!G$2+B!G$3*B195+B!G$4*B195^2 -> 188.2036107 | D195: =IF(B195<(B!H$3/(-2*B!H$4)),B!H$2+B!H$3*B195+B!H$4*B195^2,B!H$2+B!H$3*(B!H$3/(-2*B!H$4))+B!H$3*B!H$3/(4*B!H$4)) -> 190.5025217 | E195: =B!I$2+B!I$3*EXP(B!I$4*B195) -> 194.8274745 | F195: =IF((B!J$2+B!J$3*B195)<B!J$4,B!J$2+B!J$3*B195,B!J$4) -> 188.7500056 | G195: =IF(B195<B!K$4,B!K$2+B!K$3*(3*B195/(2*B!K$4)-0.5*(B195/B!K$4)^3),B!K$3+B!K$2) -> 189.8334139 | H195: =(C195*B$45+D!D195*C$45+D!E195*D$45+D!F195*E$45+D!G195*F$45)/SUM(B$45:F$45) -> 189.38587
A196: 296 | B196: 240 | C196: =B!G$2+B!G$3*B196+B!G$4*B196^2 -> 188.2036107 | D196: =IF(B196<(B!H$3/(-2*B!H$4)),B!H$2+B!H$3*B196+B!H$4*B196^2,B!H$2+B!H$3*(B!H$3/(-2*B!H$4))+B!H$3*B!H$3/(4*B!H$4)) -> 190.5025217 | E196: =B!I$2+B!I$3*EXP(B!I$4*B196) -> 194.8274745 | F196: =IF((B!J$2+B!J$3*B196)<B!J$4,B!J$2+B!J$3*B196,B!J$4) -> 188.7500056 | G196: =IF(B196<B!K$4,B!K$2+B!K$3*(3*B196/(2*B!K$4)-0.5*(B196/B!K$4)^3),B!K$3+B!K$2) -> 189.8334139 | H196: =(C196*B$45+D!D196*C$45+D!E196*D$45+D!F196*E$45+D!G196*F$45)/SUM(B$45:F$45) -> 189.38587
A197: 298 | B197: 240 | C197: =B!G$2+B!G$3*B197+B!G$4*B197^2 -> 188.2036107 | D197: =IF(B197<(B!H$3/(-2*B!H$4)),B!H$2+B!H$3*B197+B!H$4*B197^2,B!H$2+B!H$3*(B!H$3/(-2*B!H$4))+B!H$3*B!H$3/(4*B!H$4)) -> 190.5025217 | E197: =B!I$2+B!I$3*EXP(B!I$4*B197) -> 194.8274745 | F197: =IF((B!J$2+B!J$3*B197)<B!J$4,B!J$2+B!J$3*B197,B!J$4) -> 188.7500056 | G197: =IF(B197<B!K$4,B!K$2+B!K$3*(3*B197/(2*B!K$4)-0.5*(B197/B!K$4)^3),B!K$3+B!K$2) -> 189.8334139 | H197: =(C197*B$45+D!D197*C$45+D!E197*D$45+D!F197*E$45+D!G197*F$45)/SUM(B$45:F$45) -> 189.38587
A198: 300 | B198: 240 | C198: =B!G$2+B!G$3*B198+B!G$4*B198^2 -> 188.2036107 | D198: =IF(B198<(B!H$3/(-2*B!H$4)),B!H$2+B!H$3*B198+B!H$4*B198^2,B!H$2+B!H$3*(B!H$3/(-2*B!H$4))+B!H$3*B!H$3/(4*B!H$4)) -> 190.5025217 | E198: =B!I$2+B!I$3*EXP(B!I$4*B198) -> 194.8274745 | F198: =IF((B!J$2+B!J$3*B198)<B!J$4,B!J$2+B!J$3*B198,B!J$4) -> 188.7500056 | G198: =IF(B198<B!K$4,B!K$2+B!K$3*(3*B198/(2*B!K$4)-0.5*(B198/B!K$4)^3),B!K$3+B!K$2) -> 189.8334139 | H198: =(C198*B$45+D!D198*C$45+D!E198*D$45+D!F198*E$45+D!G198*F$45)/SUM(B$45:F$45) -> 189.38587
A199: 302 | B199: 240 | C199: =B!G$2+B!G$3*B199+B!G$4*B199^2 -> 188.2036107 | D199: =IF(B199<(B!H$3/(-2*B!H$4)),B!H$2+B!H$3*B199+B!H$4*B199^2,B!H$2+B!H$3*(B!H$3/(-2*B!H$4))+B!H$3*B!H$3/(4*B!H$4)) -> 190.5025217 | E199: =B!I$2+B!I$3*EXP(B!I$4*B199) -> 194.8274745 | F199: =IF((B!J$2+B!J$3*B199)<B!J$4,B!J$2+B!J$3*B199,B!J$4) -> 188.7500056 | G199: =IF(B199<B!K$4,B!K$2+B!K$3*(3*B199/(2*B!K$4)-0.5*(B199/B!K$4)^3),B!K$3+B!K$2) -> 189.8334139 | H199: =(C199*B$45+D!D199*C$45+D!E199*D$45+D!F199*E$45+D!G199*F$45)/SUM(B$45:F$45) -> 189.38587
A200: 304 | B200: 240 | C200: =B!G$2+B!G$3*B200+B!G$4*B200^2 -> 188.2036107 | D200: =IF(B200<(B!H$3/(-2*B!H$4)),B!H$2+B!H$3*B200+B!H$4*B200^2,B!H$2+B!H$3*(B!H$3/(-2*B!H$4))+B!H$3*B!H$3/(4*B!H$4)) -> 190.5025217 | E200: =B!I$2+B!I$3*EXP(B!I$4*B200) -> 194.8274745 | F200: =IF((B!J$2+B!J$3*B200)<B!J$4,B!J$2+B!J$3*B200,B!J$4) -> 188.7500056 | G200: =IF(B200<B!K$4,B!K$2+B!K$3*(3*B200/(2*B!K$4)-0.5*(B200/B!K$4)^3),B!K$3+B!K$2) -> 189.8334139 | H200: =(C200*B$45+D!D200*C$45+D!E200*D$45+D!F200*E$45+D!G200*F$45)/SUM(B$45:F$45) -> 189.38587
A201: 306 | B201: 240 | C201: =B!G$2+B!G$3*B201+B!G$4*B201^2 -> 188.2036107 | D201: =IF(B201<(B!H$3/(-2*B!H$4)),B!H$2+B!H$3*B201+B!H$4*B201^2,B!H$2+B!H$3*(B!H$3/(-2*B!H$4))+B!H$3*B!H$3/(4*B!H$4)) -> 190.5025217 | E201: =B!I$2+B!I$3*EXP(B!I$4*B201) -> 194.8274745 | F201: =IF((B!J$2+B!J$3*B201)<B!J$4,B!J$2+B!J$3*B201,B!J$4) -> 188.7500056 | G201: =IF(B201<B!K$4,B!K$2+B!K$3*(3*B201/(2*B!K$4)-0.5*(B201/B!K$4)^3),B!K$3+B!K$2) -> 189.8334139 | H201: =(C201*B$45+D!D201*C$45+D!E201*D$45+D!F201*E$45+D!G201*F$45)/SUM(B$45:F$45) -> 189.38587
A202: 308 | B202: 240 | C202: =B!G$2+B!G$3*B202+B!G$4*B202^2 -> 188.2036107 | D202: =IF(B202<(B!H$3/(-2*B!H$4)),B!H$2+B!H$3*B202+B!H$4*B202^2,B!H$2+B!H$3*(B!H$3/(-2*B!H$4))+B!H$3*B!H$3/(4*B!H$4)) -> 190.5025217 | E202: =B!I$2+B!I$3*EXP(B!I$4*B202) -> 194.8274745 | F202: =IF((B!J$2+B!J$3*B202)<B!J$4,B!J$2+B!J$3*B202,B!J$4) -> 188.7500056 | G202: =IF(B202<B!K$4,B!K$2+B!K$3*(3*B202/(2*B!K$4)-0.5*(B202/B!K$4)^3),B!K$3+B!K$2) -> 189.8334139 | H202: =(C202*B$45+D!D202*C$45+D!E202*D$45+D!F202*E$45+D!G202*F$45)/SUM(B$45:F$45) -> 189.38587
... 96 more rows

Sheet Summary
A1: Summary - Multi-site-year Database | D1: =COUNTA(A5:A966) -> 1 | G1: Current site-year is shown on row 4 - do not delete
A3: =A!A7 -> Site | B3: =A!A8 -> Year | C3: =A!A9 -> Town | D3: =A!A10 -> County | E3: =A!A11 -> State or province | F3: =A!A12 -> Latitude | G3: =A!A13 -> Longitude | H3: =A!A14 -> Altitude | I3: =A!A15 -> Soil texture class | J3: =A!A16 -> Preceding crop | K3: =A!A17 -> Expected Yield (bu/A) | L3: =A!A18 -> Tillage | M3: =A!A19 -> Nutrient Source | N3: =A!A20 -> Nutrient Timing | O3: =A!A21 -> Nutrient Placement | P3: =A!A22 -> Planting date | Q3: =A!A23 -> PSNT (ppm) | R3: =A!A24 -> Manure N (lb/A) | S3: =A!A25 -> Harvest date | T3: =A!A26 -> ESSENTIAL INFORMATION | U3: =A!A27 -> Crop ($/bu) | V3: =A!A28 -> Fertilizer ($/lb) | W3: =A!A29 -> Price ratio (f/c) | X3: =A!A30 -> Crop nutrient content (lb/bu) | Y3: =A!A31 -> Nutrient harvest index | Z3: =A!A32 -> 0 | AA3: =A!A33 -> 0 | AB3: =A!A34 -> 0 | AC3: =A!A35 -> 0 | AD3: =A!A36 -> 0 | AE3: =A!A37 -> 0 | AF3: =A!A38 -> 0 | AG3: =A!A39 -> 0 | AH3: =A!A40 -> 0 | AI3: =A!E6 -> MERN (lb/A): | AJ3: =A!E7 -> Yield @ MERN (bu/A) | AK3: PFP | AL3: AEN | AM3: PNB | AN3: REN | AO3: =A!E12 -> Delta Yield (bu/A) | AP3: =A!E13 -> Relative Yield (%) | AQ3: QA | AR3: QB | AS3: QC | AT3: QPA | AU3: QPB | AV3: QPC | AW3: MA | AX3: MB | AY3: MC | AZ3: LPA | BA3: LPB | BB3: LPC | BC3: SA | BD3: SB | BE3: SC | BF3: QR2 | BG3: QPR2 | BH3: MR2 | BI3: LPR2 | BJ3: SR2
A4: =A!B7 -> 0 | B4: =A!B8 -> 0 | C4: =A!B9 -> 0 | D4: =A!B10 -> 0 | E4: =A!B11 -> 0 | F4: =A!B12 -> 0 | G4: =A!B13 -> 0 | H4: =A!B14 -> 0 | I4: =A!B15 -> 0 | J4: =A!B16 -> 0 | K4: =A!B17 -> 0 | L4: =A!B18 -> 0 | M4: =A!B19 -> 0 | N4: =A!B20 -> 0 | O4: =A!B21 -> 0 | P4: =A!B22 -> 0 | Q4: =A!B23 -> 0 | R4: =A!B24 -> 0 | S4: =A!B25 -> 0 | T4: =A!B26 -> 0 | U4: =A!B27 -> 4 | V4: =A!B28 -> 0.5 | W4: =A!B29 -> 0.125 | X4: =A!B30 -> 0.65 | Y4: =A!B31 -> 0.666 | Z4: =A!B32 -> 0 | AA4: =A!B33 -> 0 | AB4: =A!B34 -> 0 | AC4: =A!B35 -> 0 | AD4: =A!B36 -> 0 | AE4: =A!B37 -> 0 | AF4: =A!B38 -> 0 | AG4: =A!B39 -> 0 | AH4: =A!B40 -> 0 | AI4: =A!F6 -> 188.6601003 | AJ4: =A!F7 -> 168.8891959 | AK4: =A!F8 -> 0.8952035732 | AL4: =A!F9 -> 0.6830264189 | AM4: =A!F10 -> 0.5818823226 | AN4: =A!F11 -> 0.6666173758 | AO4: =A!F12 -> 128.8598327 | AP4: =A!F13 -> 0.2370155356 | AQ4: =A!G2 -> 37.96311758 | AR4: =A!G3 -> 1.184065134 | AS4: =A!G4 -> -0.002619138698 | AT4: =A!H2 -> 38.0958687 | AU4: =A!H3 -> 1.179037737 | AV4: =A!H4 -> -0.002599097073 | AW4: =A!I2 -> 188.8975439 | AX4: =A!I3 -> -151 | AY4: =A!I4 -> -0.009666607144 | AZ4: =A!J2 -> 43.72095679 | BA4: =A!J3 -> 0.7984482947 | BB4: =A!J4 -> 169.9998471 | BC4: =A!K2 -> 40.28930004 | BD4: =A!K3 -> 130.460659 | BE4: =A!K4 -> 204.1413411 | BF4: =A!G5 -> 0.9973900591 | BG4: =A!H5 -> 0.9972680335 | BH4: =A!I5 -> 0.9898955098 | BI4: =A!J5 -> 0.9973572638 | BJ4: =A!K5 -> 0.9991768176
A5: 0 | B5: 0 | C5: 0 | D5: 0 | E5: 0 | F5: 0 | G5: 0 | H5: 0 | I5: 0 | J5: 0 | K5: 0 | L5: 0 | M5: 0 | N5: 0 | O5: 0 | P5: 0 | Q5: 0 | R5: 0 | S5: 0 | T5: 0 | U5: 6 | V5: 0.6 | W5: 0.1 | X5: 0.65 | Y5: 0.666 | Z5: 0 | AA5: 0 | AB5: 0 | AC5: 0 | AD5: 0 | AE5: 0 | AF5: 0 | AG5: 0 | AH5: 0 | AI5: 170.3853969 | AJ5: 177.9631544 | AK5: 1.044474219 | AL5: 0.6011285987 | AM5: 0.6789082426 | AN5: 0.5866870708 | AO5: 102.4235349 | AP5: 0.4244677488 | AQ5: 72.72752125 | AR5: 1.088970665 | AS5: -0.002773254163 | AT5: 72.93354509 | AU5: 1.082513893 | AV5: -0.002742536037 | AW5: 198.32574 | AX5: -129.2270564 | AY5: -0.01045313888 | AZ5: 79.99985282 | BA5: 0.7500020942 | BB5: 177.3333259 | BC5: 78.26042681 | BD5: 101.1448899 | BE5: 183.2175035 | BF5: 0.98927251 | BG5: 0.9892452692 | BH5: 0.9832412867 | BI5: 0.9860390721 | BJ5: 0.9908111905
